Workbook

Sheet Principal (hidden)
B2: PANEL DE DECISIONES DATA-DRIVEN
B4: Usuario: Raid Pimentel Garcia | D4: Producto: | E4: Hipotecario | H4: Zona de Riesgo: | I4: =IFERROR(VLOOKUP(Principal!C14,Resolucion!$R$4:$S$9,2,FALSE),"") -> ZONA 1 | J4: =_xlfn.IFS( I4="ZONA 3","ZONA RESTRINGIDA", AND(E5="Ahorro Casa",I4="ZONA 2"),"ZONA RESTRINGIDA PARA AHORRO CASA", AND(E5="Ahorro Casa",I4="NO BANC",F9<>"Dependiente"),"ZONA RESTRINGIDA PARA AHORRO CASA", TRUE,"" ) -> 
D5: Tipo Evaluacion: | E5: Tradicional | H5: Zona de Recorte: | I5: =IFERROR(IF(matriz_recorte!H9=1,"ATENCIÓN","RESTRINGIDA"),"") -> ATENCIÓN
I6: =IF(F12="Anticampaña","Alerta anticampaña, sujeto a revisión de base gestionable","") -> 
B7: DATOS DE TITULAR | H7: DATOS DEL CÓNYUGE | O7: Hipotecario
B8: Ingrese DNI: | C8: 46046330 | H8: Ingrese DNI: | O8: MiVivienda
B9: Estado Civil: | C9: Soltero(a) | E9: Situación Laboral: | F9: Dependiente | O9: TechoPropio
B10: =IF(LEN(C8)>8,"Para Carnet de Extranjeria se revisarán deudas y alertas de manera manual","") ->  | K10: =IFERROR(VLOOKUP(Principal!I14,Resolucion!$R$4:$S$9,2,FALSE),"") ->  | L10: =IF(K10="ZONA 3","RESTRINGIDA","") ->  | O10: Personal con Garantía
B11: Segmento | C11: RENTA ALTA | E11: Flujo Campaña | F11: CAMPAÑA | H11: Segmento | K11: Flag Campaña
B12: Score Hipotecario | C12: ALTO | D12: 20040729 | E12: Flujo Anticampaña | F12: NO DATA | H12: Score Hipotecario | K12: Flag Anticampaña | O12: Tradicional
B13: Score Buró Hipo | C13: ALTO | E13: SUNEDU | F13: CON SUNEDU | H13: Score Buró Hipo | K13: Flag Sunedu | O13: Ahorro Casa
B14: Color de Riesgo | C14: VERDE CLARO | E14: Tipo Institución | F14: UNIVERSIDAD | H14: Color de Riesgo | K14: Tipo Institución
B15: Abono planilla | C15: CON PLANILLA | E15: Flag Sin Saldo Ult12m | F15: NO DATA | H15: Abono planilla | K15: Flag Sin Saldo Ult12m | O15: Soltero(a)
O16: Casado(a)
B17: Evaluación con codeudor | D17: No | E17: =IF(AND(D17="si",OR(Deudas!C21>0,Deudas!F21>0,Deudas!I21>0,Deudas!L21>0)),"Evaluación codeudor solo aplica para primera vivienda","") ->  | O17: Conviviente
B18: DATOS DE CODEUDOR | H18: DATOS DE CÓNYUGE DEL CODEUDOR
B19: Ingrese DNI: | H19: Ingrese DNI:
B20: Estado Civil: | C20: Soltero(a)
E21: =IFERROR(VLOOKUP(Principal!C25,Resolucion!$R$4:$S$9,2,FALSE),"") ->  | F21: =IF(E21="ZONA 3","RESTRINGIDA","") ->  | K21: =IFERROR(VLOOKUP(Principal!I25,Resolucion!$R$4:$S$9,2,FALSE),"") ->  | L21: =IF(K21="ZONA 3","RESTRINGIDA","") -> 
B22: Segmento | E22: Flag Campaña | H22: Segmento | K22: Flag Campaña
B23: Score Hipotecario | E23: Flag Anticampaña | H23: Score Hipotecario | K23: Flag Anticampaña
B24: Score Buró Hipo | E24: Flag Sunedu | H24: Score Buró Hipo | K24: Flag Sunedu
B25: Color de Riesgo | E25: Tipo Institución | H25: Color de Riesgo | K25: Tipo Institución
B26: Abono planilla | E26: Flag Sin Saldo Ult12m | H26: Abono planilla | K26: Flag Sin Saldo Ult12m
B29: Leyenda:
C30: NO DATA
B31: Flag Campaña | C31: No se encuentra en bases campaña
B32: Flag Anticampaña | C32: No se encuentra en bases anticampaña
B33: Flag Sunedu | C33: No cuenta con información en SUNEDU
B34: Flag Sin Saldo Ult12m | C34: Cuenta con movimientos en los últimos 12 meses

Sheet Deudas (hidden)
B2: RCC | C2: =TODAY()-30*2 -> 2025-02-28 | D2: BALANCE DE SITUACION FINANCIERA
B4: Usuario: Tom Davye Agurto Alban | C4: =TODAY() -> 2025-04-29 | L4: C/Y : | M4: =Resolucion!J30 -> 0.2460991618 | N4: =Resolucion!K30 -> 0.5
L5: D/Y : | M5: =Resolucion!J31 -> 0.4567308344 | N5: =Resolucion!K31 -> 0.59
L6: CEM : | M6: =Resolucion!J28 -> 3411.28
B8: Deudas Actuales en el SSFF | I8: Codeudor | J8: =Principal!D17 -> No
C9: Titular | E9: =CONCATENATE("DNI ",Principal!C8) -> DNI 46046330 | F9: Cónyuge | H9: =CONCATENATE("DNI ",Principal!I8) -> DNI | I9: Codeudor | K9: =CONCATENATE("DNI ",Principal!C19) -> DNI | L9: Cónyuge Codeudor | N9: =CONCATENATE("DNI ",Principal!I19) -> DNI
B10: Nombre
B11: Estado Civil | C11: =Principal!C9 -> Soltero(a) | I11: =Principal!C20 -> Soltero(a)
B12: Fecha de Nacimiento | C12: 27/07/1989 | D12: Edad | E12: =IF(C12="",0,YEAR($C$4-C12)-1900) ->  | G12: Edad | H12: =IF(F12="",0,YEAR($C$4-F12)-1900) -> 0 | J12: Edad | K12: =IF(I12="",0,YEAR($C$4-I12)-1900) -> 0 | M12: Edad | N12: =IF(L12="",0,YEAR($C$4-L12)-1900) -> 0
B13: Score Buro Hipotecario | C13: =IF(Principal!C13="no data","SIN SCORE",Principal!C13) -> ALTO | F13: =IF(Principal!I13="no data","SIN SCORE",Principal!I13) -> 0 | I13: =IF(OR(Principal!C24=0,Principal!C24="no data"),"SIN SCORE",Principal!C24) -> SIN SCORE | L13: =IF(OR(Principal!I24=0,Principal!I24="no data"),"SIN SCORE",Principal!I24) -> SIN SCORE
B14: Deudas del Cliente (*) | C14: Saldo | D14: Cuota Inferida | E14: Cuota Real | F14: Saldo | G14: Cuota Inferida | H14: Cuota Real | I14: Saldo | J14: Cuota Inferida | K14: Cuota Real | L14: Saldo | M14: Cuota Inferida | N14: Cuota Real | P14: Cta_final_tit | Q14: Cta_final_cony | R14: Cta_final_cod1 | S14: Cta_final_cod2
B15: Línea usada TC | C15: 0 | D15: =IF(C15>0,Deudas_fx!G14,0) -> 0 | F15: 0 | G15: =IF(F15>0,Deudas_fx!K14,0) -> 0 | I15: 0 | J15: =IF(I15>0,Deudas_fx!P14,0) -> 0 | L15: 0 | M15: =IF(L15>0,Deudas_fx!U14,0) -> 0 | P15: =IF(E15<>0,E15,D15) -> 0 | Q15: =IF(H15<>0,H15,G15) -> 0 | R15: =IF(K15<>0,K15,J15) -> 0 | S15: =IF(N15<>0,N15,M15) -> 0
B16: Linea no usadaTC | C16: 5000 | D16: =IF(C16>0,Deudas_fx!G15,0) -> 55 | F16: 0 | G16: =IF(F16>0,Deudas_fx!K15,0) -> 0 | I16: 0 | J16: =IF(I16>0,Deudas_fx!P15,0) -> 0 | L16: 0 | M16: =IF(L16>0,Deudas_fx!U15,0) -> 0 | P16: =IF(E16<>0,E16,D16) -> 55 | Q16: =IF(H16<>0,H16,G16) -> 0 | R16: =IF(K16<>0,K16,J16) -> 0 | S16: =IF(N16<>0,N16,M16) -> 0
B17: Linea Paralela | C17: 0 | D17: 0 | F17: 0 | G17: 0 | I17: 0 | J17: 0 | L17: 0 | M17: 0 | P17: 0 | Q17: 0 | R17: 0 | S17: 0
B18: Préstamo Fácil | C18: 0 | D18: 0 | F18: 0 | G18: 0 | I18: 0 | J18: 0 | L18: 0 | M18: 0 | P18: 0 | Q18: 0 | R18: 0 | S18: 0
B19: Vehicular | C19: 0 | D19: 0 | F19: 0 | G19: 0 | I19: 0 | J19: 0 | L19: 0 | M19: 0 | P19: 0 | Q19: 0 | R19: 0 | S19: 0
B20: Convenio | C20: 0 | D20: 0 | F20: 0 | G20: 0 | I20: 0 | J20: 0 | L20: 0 | M20: 0 | P20: 0 | Q20: 0 | R20: 0 | S20: 0
B21: Hipotecario 1 | C21: 177272.37 | D21: 1839 | F21: 0 | G21: 0 | I21: 0 | J21: 0 | L21: 0 | M21: 0 | P21: 1839 | Q21: 0 | R21: 0 | S21: 0
B22: Hipotecario 2 o más | C22: 0 | D22: =IF(C22>0,Deudas_fx!G20,0) -> 0 | F22: 0 | G22: =IF(F22>0,Deudas_fx!K20,0) -> 0 | I22: 0 | J22: =IF(I22>0,Deudas_fx!P20,0) -> 0 | L22: 0 | M22: =IF(L22>0,Deudas_fx!U20,0) -> 0 | P22: 0 | Q22: 0 | R22: 0 | S22: 0
B23: Respos. PeMe | C23: 0 | D23: =IF(C23>0,Deudas_fx!G21,0) -> 0 | F23: 0 | G23: =IF(F23>0,Deudas_fx!K21,0) -> 0 | I23: 0 | J23: =IF(I23>0,Deudas_fx!P21,0) -> 0 | L23: 0 | M23: =IF(L23>0,Deudas_fx!U21,0) -> 0 | P23: 0 | Q23: 0 | R23: 0 | S23: 0
B24: Saldo PeMe_Sin Revol | C24: 0 | D24: =IF(C24>0,Deudas_fx!G22,0) -> 0 | F24: 0 | G24: =IF(F24>0,Deudas_fx!K22,0) -> 0 | I24: 0 | J24: =IF(I24>0,Deudas_fx!P22,0) -> 0 | L24: 0 | M24: =IF(L24>0,Deudas_fx!U22,0) -> 0 | P24: 0 | Q24: 0 | R24: 0 | S24: 0
B25: Saldo PeMe_Revol | C25: 0 | D25: =IF(C25>0,Deudas_fx!G23,0) -> 0 | F25: 0 | G25: =IF(F25>0,Deudas_fx!K23,0) -> 0 | I25: 0 | J25: =IF(I25>0,Deudas_fx!P23,0) -> 0 | L25: 0 | M25: =IF(L25>0,Deudas_fx!U23,0) -> 0 | P25: 0 | Q25: 0 | R25: 0 | S25: 0
B26: Aval | C26: 0 | D26: =IF(C26>0,Deudas_fx!G24,0) -> 0 | F26: 0 | G26: =IF(F26>0,Deudas_fx!K24,0) -> 0 | I26: 0 | J26: =IF(I26>0,Deudas_fx!P24,0) -> 0 | L26: 0 | M26: =IF(L26>0,Deudas_fx!U24,0) -> 0 | P26: 0 | Q26: 0 | R26: 0 | S26: 0
D27: Cuota SSFF | E27: =SUM(P15:P26) -> 1894 | G27: Cuota total SSFF | H27: =SUM(Q15:Q26) -> 0 | J27: Cuota total SSFF | K27: =SUM(R15:R26) -> 0 | M27: Cuota total SSFF | N27: =SUM(S15:S26) -> 0
B28: Deudas en IBK
C29: Titular | E29: Cónyuge | G29: Codeudor | I29: Cónyuge Codeudor
C30: Saldo | D30: Cuota | E30: Saldo | F30: Cuota | G30: Saldo | H30: Cuota | I30: Saldo | J30: Cuota
B31: Línea usada TC | D31: =IF(C31>0,Deudas_fx!G26,0) -> 0 | F31: =IF(E31>0,Deudas_fx!K26,0) -> 0 | H31: =IF(G31>0,Deudas_fx!P26,0) -> 0 | J31: =IF(I31>0,Deudas_fx!U26,0) -> 0
B32: Linea no usadaTC | D32: =IF(C32>0,Deudas_fx!G27,0) -> 0 | F32: =IF(E32>0,Deudas_fx!K27,0) -> 0 | H32: =IF(G32>0,Deudas_fx!P27,0) -> 0 | J32: =IF(I32>0,Deudas_fx!U27,0) -> 0
B33: Extracash / CD
B34: PPE
B35: Credito por Convenio
B36: Credito Hipotecario
B37: Cuota final IBK | D37: =SUM(D31:D36) -> 0 | F37: 0 | H37: 0 | J37: 0
B39: Resultado Deudas Actuales
C40: Deudas en S/
B41: Deuda Total en el Sistema Financiero a la fecha | C41: =IFERROR(Deudas_fx!F55,0) -> 178522.37
B42: Cuota SBS | C42: =SUM(Q15:Q26)+SUM(R15:R26)+SUM(S15:S26)+SUM(P15:P26)+SUM(F31:F36)+SUM(H31:H36)+SUM(J31:J36)+SUM(D31:D36) -> 1894

Sheet matriz_recorte (hidden)
H1: 1 | I1: 2 | J1: 3 | K1: 4 | L1: 5 | M1: 6
B2: 1 SI, 0 NO | H2: VERDE CLARO | I2: VERDE | J2: AMARILLO | K2: GRIS | L2: ROJO | M2: NO DATA
A3: OK SUNEDU | B3: =IF(OR(Principal!F13="NO DATA",Principal!F13=""),0,1) -> 1 | F3: 1 | G3: Tradicional | H3: 1 | I3: 1 | J3: =B5 -> 1 | K3: =B5 -> 1 | L3: 0 | M3: 1
A4: OK RCC | B4: =IF(Principal!F15="NO DATA",1,0) -> 1 | F4: 2 | G4: Ahorro Casa | H4: 1 | I4: =B5 -> 1 | J4: =B5 -> 1 | K4: 0 | L4: 0 | M4: =B5 -> 1
A5: OK FLAG RCC O SUNEDU | B5: =IF(OR(B3<>0,B4<>0),1,0) -> 1
A7: FLAG DEPENDIENTE | B7: =IF(Principal!F9="DEPENDIENTE",1,0) -> 1 | G7: tipo de evaluacion | H7: =MATCH(Principal!E5,G3:G4,0) -> 1
G8: color | H8: =MATCH(Principal!C14,matriz_recorte!H2:M2,0) -> 1
G9: ZONA DE RECORTE | H9: =INDEX(H3:M4,MATCH(Principal!E5,G3:G4,0),MATCH(Principal!C14,matriz_recorte!H2:M2,0)) -> 1

Sheet Ah_casa (hidden)
D2: Dependiente | E2: Profesional Independiente | F2: Microempresario | G2: Informal
C3: Verde Claro | D3: 4 Meses + CI 10% | E3: 4 Meses + CI 20% // 6 Meses + CI 10% | F3: 4 Meses + CI 20% // 6 Meses + CI 10% | G3: 6 Meses + CI 20% // 9 Meses + CI 15%
C4: Verde | D4: 4 Meses + CI 10% | E4: 4 Meses + CI 20% // 6 Meses + CI 10% | F4: 4 Meses + CI 20% // 6 Meses + CI 10% | G4: 6 Meses + CI 20% // 9 Meses + CI 15%
C5: Amarillo | D5: 4 Meses + CI 10% | E5: 4 Meses + CI 20% // 6 Meses + CI 10% | F5: 4 Meses + CI 20% // 6 Meses + CI 10% | G5: 6 Meses + CI 20% // 9 Meses + CI 15%
C6: Gris | D6: APAGADA | E6: APAGADA | F6: APAGADA | G6: APAGADA
C7: Rojo | D7: ZONA RESTRINGIDA | E7: ZONA RESTRINGIDA | F7: ZONA RESTRINGIDA | G7: ZONA RESTRINGIDA
C8: NO DATA | D8: 6 Meses + CI 20% // 9 Meses + CI 15% | E8: APAGADA | F8: APAGADA | G8: APAGADA
C13: =MATCH(Principal!F9,D2:G2,0) -> 1
C14: =MATCH(Principal!C14,C3:C8,0) -> 1
C15: =INDEX(D3:G8,C14,C13) -> 4 Meses + CI 10%

Sheet Ingreso_Titular (hidden)
C2: Crédito Hipotecario - Formato de Cálculo de Ingreso Neto Mensual del Titular | O2: Fecha | P2: =TODAY() -> 2025-04-29
O3: TC US$ | P3: =Resolucion!C11 -> 3.85
B4: Usuario: Raid Pimentel Garcia | C4: Cliente: | D4: =Deudas!C10 -> 0 | G4: =Principal!E5 -> Tradicional | M4: Observaciones:
C5: DNI: | D5: =Principal!C8 -> 46046330 | G5: Depósito Ahorro Casa
C6: Tipo de Evaluación: | D6: =Principal!E5 -> Tradicional | G6: Ingreso Inferido | H6: =IF(G4="Ahorro casa",H5/0.4,"") -> 
G7: Ingreso Declaración Jurada
C8: Ingreso Neto | D8: =IFERROR(IF(D6="Ahorro Casa",MIN(H6,(D35+E62+F62+G62+N43+N58+T35+H7)),(D35+E62+F62+G62+N43+N58+T35)),0) -> 8992 | G8: Informalidad | H8: =IFERROR(IF(1-((D35+E62+F62+G62+N43+N58+T35)/D8)>0,1-((D35+E62+F62+G62+N43+N58+T35)/D8),0),0) -> 0
G9: =IF(H8>0.8,"Si la informalidad es mayor al 80% se considerará como INFORMAL","") -> 
C10: Renta de 5ta. Categoría | M10: Renta de 3era Categoría | O10: Reg. General | S10: Renta de 5ta. Categoría | AC10: Hipotecario
E11: Boleta | F11: Experian | G11: CTS en IBK | M11: Empresa | U11: Boleta | V11: Experian | W11: CTS en IBK | AC11: Mi vivienda
C12: Fecha de ingreso | G12: Ingreso bruto | M12: RUC | S12: Fecha de ingreso | W12: Ingreso bruto
C13: Empleador | F13: SI | G13: =IF(G12="Ingreso bruto","Último depósito CTS",IF(G12="Último depósito CTS","Ingreso bruto","")) -> Último depósito CTS | H13: =IF(G12="Ingreso bruto",E25*14/24,H12*24/14) -> 0 | M13: Fecha de Inicio | S13: Empleador | W13: =IF(W12="Ingreso bruto","Último depósito CTS",IF(W12="Último depósito CTS","Ingreso bruto","")) -> Último depósito CTS | X13: =IF(W12="Ingreso bruto",U25*14/24,X12*24/14) -> 0 | AC13: Normal
C14: RUC | F14: 20606089024 | G14: (correspondiente a 6 meses de trabajo) | M14: Giro del Negocio | S14: RUC | W14: (correspondiente a 6 meses de trabajo) | AC14: Ahorro Casa
C15: Antigüedad | E15: =IF(E12="","",DATEDIF(E12,TODAY(),"Y")&" años, "&DATEDIF(E12,TODAY(),"YM")&" meses") ->  | F15: SI | S15: Antigüedad | U15: =IF(U12="","",DATEDIF(U12,TODAY(),"Y")&" años, "&DATEDIF(U12,TODAY(),"YM")&" meses") -> 
C16: Mes referencia - ult. boleta | F16: 202502 | M16: Margen Comercial | N16: =IFERROR(MIN(P26:P27),"") -> 0 | S16: Mes referencia - ult. boleta | AC16: Reg. General
C17: Utilidades | M17: % Participación | N17: 0 | S17: Utilidades | AC17: Reg. Especial
C18: CTS IBK | M18: Campaña | S18: CTS IBK | AC18: RUS
AC19: Microempresario
C20: Ingreso Bruto | E20: Ing. Promedio | F20: Ing.Prom.Ajust * | G20: Año | H20: Uti. Bruta | I20: Nro. Veces | M20: Información DD JJ: Ventas | S20: Ingreso Bruto | U20: Ing. Promedio | V20: Ing.Prom.Ajust * | W20: Año | X20: Uti. Bruta | Y20: Nro. Veces
C21: Ingreso Fijo | E21: 0 | F21: =E21 -> 0 | G21: =YEAR(TODAY())-2 -> 2023 | H21: 0 | I21: =IFERROR(H21/$E$25,) -> 0 | M21: Año | N21: Ingreso Anual | O21: Ingreso Mensual | S21: Ingreso Fijo | U21: 0 | V21: =U21 -> 0 | W21: =YEAR(TODAY())-2 -> 2023 | X21: 0 | Y21: =IFERROR(X21/$E$25,) -> 0 | AC21: Local Comercial
C22: Comisión | E22: 0 | F22: =E22*0.85 -> 0 | G22: =YEAR(TODAY())-1 -> 2024 | H22: 0 | I22: =IFERROR(H22/$E$25,) -> 0 | M22: =YEAR(TODAY())-2 -> 2023 | N22: 0 | O22: =+N22/12 -> 0 | P22: Variación | S22: Comisión | U22: 0 | V22: =U22*0.85 -> 0 | W22: =YEAR(TODAY())-1 -> 2024 | X22: 0 | Y22: =IFERROR(X22/$E$25,) -> 0 | AC22: Vivienda
C23: Horas Extras | E23: 0 | F23: =E23*0.85 -> 0 | G23: Variabilidad | H23: =IFERROR(ABS((H21/H22)-1), "0") -> 0 | I23: =IF(H23<=30%,IF(AVERAGE(I21,I22)>5,5,IF(AVERAGE(I21,I22)>=2,AVERAGE(I21,I22),0)),IF(OR(I21<2,I22<2),0,MIN(I21,I22))) -> 0 | M23: =YEAR(TODAY())-1 -> 2024 | N23: 0 | O23: =+N23/12 -> 0 | P23: =IF(O23<>0,(O23-O22)/O22,0) -> 0 | S23: Horas Extras | U23: 0 | V23: =U23*0.85 -> 0 | W23: Variabilidad | X23: =IFERROR(ABS((X21/X22)-1), "0") -> 0 | Y23: =IF(X23<=30%,IF(AVERAGE(Y21,Y22)>5,5,IF(AVERAGE(Y21,Y22)>=2,AVERAGE(Y21,Y22),0)),IF(OR(Y21<2,Y22<2),0,MIN(Y21,Y22))) -> 0 | AC23: Local Comercial + Vivienda
C24: Bonos | E24: 0 | F24: =E24*0.85 -> 0 | G24: Ing. Utilidades | H24: =IFERROR(+(I24*I23)/12,) -> 0 | I24: =IF(OR(E31="",E31=0),F25*(1-VLOOKUP(F25,Cuadros!$B$49:$D$54,3,1))-E32,F25-E33) -> 0 | M24: Información DD JJ: Utilidad Neta | S24: Bonos | U24: 0 | V24: =U24*0.85 -> 0 | W24: Ing. Utilidades | X24: =IFERROR(+(Y24*Y23)/12,) -> 0 | Y24: =IF(OR(U31="",U31=0),V25*(1-VLOOKUP(V25,Cuadros!$B$49:$D$54,3,1))-U32,V25-U33) -> 0
C25: Total | E25: =SUM(E21:E24) -> 0 | F25: =SUM(F21:F24) -> 0 | G25: =IF(E17="si",IF(E35<7000,"Para utilidades: el ingreso neto deberá ser mayor a S/ 7,000",""),"") ->  | M25: Año | N25: UN Anual | O25: UN Mensual | S25: Total | U25: =SUM(U21:U24) -> 0 | V25: =SUM(V21:V24) -> 0 | AC25: Con RT
C26: * Aplica solo para Comisiones y Horas Extras (85%) | G26: =IF(E17="si",IF(OR(Principal!C14="verde claro",Principal!C14="verde",Principal!C14="amarillo"),"","Para utilidades: solo colores de riesgo Verde Claro, Verde y Amarillo"),"") ->  | M26: =YEAR(TODAY())-2 -> 2023 | N26: 0 | O26: =IF(I2="ahorro casa","",N26/12) -> 0 | P26: =IF(O10="Reg. General",IFERROR((N26/N22),""),"") ->  | S26: * Aplica solo para Comisiones y Horas Extras (85%) | AC26: Sin RT
M27: =YEAR(TODAY())-1 -> 2024 | N27: 0 | O27: =+N27/12 -> 0 | P27: =IF(OR(O10="RUS",O10="Reg. Especial"),"",IFERROR((N27/N23),"")) -> 
C28: Descuentos | E28: Monto | S28: Descuentos | U28: Monto | AC28: Con EPS
C29: Renta 5ta. | E29: =IF(D29="",0,DL_tit!F22) -> 0 | H29: Ley | I29: Boleta | J29: Var. | M29: Información de Ventas Mensual | S29: Renta 5ta. | U29: =IF(T29="",0,DL_tit!V22) -> 0 | X29: Ley | Y29: Boleta | Z29: Var. | AC29: Sin EPS
E30: =IFERROR(SUM(H30:H32),) -> 0 | G30: APORTE OBLIGATORIO | H30: =IFERROR(DL_tit!$F$24,) -> 0 | J30: =IFERROR(I30/H30-1,) -> 0 | M30: Mes | N30: Venta Mensual | U30: =IFERROR(SUM(X30:X32),) -> 0 | W30: APORTE OBLIGATORIO | X30: =IFERROR(DL_tit!F48,) -> 0 | Z30: =IFERROR(Y30/X30-1,) -> 0
C31: Según Boleta | E31: 0 | G31: SEGURO INVALIDEZ | H31: =IFERROR(DL_tit!F25,) -> 0 | J31: =IFERROR(I31/H31-1,) -> 0 | M31: =DATE(YEAR(TODAY()),MONTH(TODAY())-6,1) -> 2024-10-01 | N31: 0 | S31: Según Boleta | U31: 0 | W31: SEGURO INVALIDEZ | X31: =IFERROR(DL_tit!F49,) -> 0 | Z31: =IFERROR(Y31/X31-1,) -> 0 | AC31: Con Metodizado IBK
C32: Otros Descuentos | E32: 0 | G32: COMISION | H32: =IFERROR(DL_tit!F26,) -> 0 | J32: =IFERROR(I32/H32-1,) -> 0 | M32: =DATE(YEAR(TODAY()),MONTH(TODAY())-5,1) -> 2024-11-01 | N32: 0 | S32: Otros Descuentos | U32: 0 | W32: COMISION | X32: =IFERROR(DL_tit!F50,) -> 0 | Z32: =IFERROR(Y32/X32-1,) -> 0 | AC32: Sin Metodizado IBK
C33: Descuento | E33: =IF(SUM(E29:E31)=0,E25-E35,IF(E31>0,E31+E32,IF(AND(SUM(E22:E24)=0,E30=0),E31,E29+E30+E32))) -> -8992 | M33: =DATE(YEAR(TODAY()),MONTH(TODAY())-4,1) -> 2024-12-01 | N33: 0 | S33: Descuento | U33: =IF(SUM(U29:U31)=0,U25-U35,IF(U31>0,U31+U32,IF(AND(SUM(U22:U24)=0,U30=0),U31,U29+U30+U32))) -> 0
G34: Para registrar en el Power Apps | M34: =DATE(YEAR(TODAY()),MONTH(TODAY())-3,1) -> 2025-01-01 | N34: 0 | W34: Para registrar en el Power Apps | AC34: AFP HABITAT
C35: Ingreso Neto | D35: =IF(E17="Si",E36,E35) -> 8992 | E35: 8992 | G35: =IF(G4="ahorro casa","YN Formal","YN Principal") -> YN Principal | H35: =IF(G4="ahorro casa",D8-H36,IFERROR(E35*F21/F25,0)) -> 0 | M35: =DATE(YEAR(TODAY()),MONTH(TODAY())-2,1) -> 2025-02-01 | N35: 0 | S35: Ingreso Neto | T35: =IF(U17="Si",U36,U35) -> 0 | U35: =IF(U31=0, IF(OR(T29="", S30=""), V25-DL_tit!Q47-U32, V25-U29-U30 ), V25-U31-U32 ) -> 0 | W35: YN Principal | X35: =IFERROR(U35*V21/V25,0) -> 0 | AC35: AFP INTEGRA
C36: Ing Neto c/utilidades | E36: =IFERROR(E35+H24,E35) -> 8992 | G36: =IF(G4="ahorro casa","YN Informal","Ingreso Extraordinario") -> Ingreso Extraordinario | H36: =IF(G4="ahorro casa",D8*H8,IFERROR(((E35*SUM(F22:F24)/F25)+H24),0)) -> 0 | M36: =DATE(YEAR(TODAY()),MONTH(TODAY())-1,1) -> 2025-03-01 | N36: 0 | S36: Ing Neto c/utilidades | U36: =IFERROR(U35+X24,U35) -> 0 | W36: Ingreso Extraordinario | X36: =IFERROR(((U35*SUM(V22:V24)/V25)+X24),0) -> 0 | AC36: AFP PRIMA
M37: Promedio Mensual | N37: =IF(AVERAGE(N31:N33)=0,AVERAGE(N34:N36),AVERAGE(N31:N36)) -> 0 | AC37: AFP PROFUTURO
AC38: ONP
C39: Ingresos independiente | M39: Venta Prom Mens | N39: =(IF(O10=AC16,AVERAGE(O22,O23,N37),IF(O10=AC19,AVERAGE(O23,N37),N37))) -> 0 | O39: =IFERROR((N39*N16*N17)*0.8,0) -> 0 | P39: neto scamp
E40: 1ra | F40: 2da | G40: 4ta | M40: Venta Informal Mens | N40: 0 | O40: =IF(N42<=15%,N41*N16*N17,((N39+(N40*0.8))*N16*N17)) -> 0 | P40: neto ccamp
C41: RUC | M41: Total venta evaluada | N41: =N39+N40 -> 0
C42: Tipo de Actividad | M42: % de informalidad | N42: =IF(AND(N40<>0,N39<>0),N40/N39,0) -> 0 | O42: Para campaña
C43: Fecha de inicio | E43: =DATE(YEAR(TODAY())-1, 1, 1) -> 2024-01-01 | M43: Ingreso Neto | N43: =IF(N18="si",O40,O39) -> 0 | O43: =N41*N16*N17 -> 0
D45: Alquileres | F45: 2da | G45: Prof. Independiente
C46: Ingreso Mensual | D46: Vivienda | E46: =IF(OR(E42="Vivienda",E42="")," ","Local Comercial") ->  | M46: Metodizado
C47: =DATE(YEAR(TODAY()),MONTH(TODAY())-3,1) -> 2025-01-01 | O47: TC
C48: =DATE(YEAR(TODAY()),MONTH(TODAY())-2,1) -> 2025-02-01 | O48: Participación
C49: =DATE(YEAR(TODAY()),MONTH(TODAY())-1,1) -> 2025-03-01
C50: Promedio Mensual | D50: =IFERROR(AVERAGE(D47:D49),) -> 0 | E50: =IFERROR(AVERAGE(E47:E49),) -> 0 | F50: =IFERROR((SUM(F47:F49)/12),) -> 0 | G50: =IFERROR(AVERAGE(G47:G49),) -> 0 | M50: Año | N50: =+O50-1 -> 2023 | O50: =+P50-1 -> 2024 | P50: =YEAR(TODAY()) -> 2025
D51: =E59*E51*0.15 -> 0 | E51: =IF(D50=0,0,D50/(E50+D50)) -> 0 | M51: Periodos | N51: 12 | O51: 12 | P51: =MONTH(TODAY())-1 -> 3
D52: =YEAR(TODAY())-1 -> 2024 | M52: Resultado del ejercicio
C53: =CONCATENATE("Ingreso Anual del ",D52) -> Ingreso Anual del 2024 | M53: Mensual | N53: =N52*1000*$P$47*$P$48/N51 -> 0 | O53: =O52*1000*$P$47*$P$48/O51 -> 0 | P53: =IFERROR(P52*1000*$P$47*$P$48/P51,0) -> 0
C54: =CONCATENATE("Ingreso Mensual del ",D52) -> Ingreso Mensual del 2024 | E54: =E53/12 -> 0 | F54: =F53/12 -> 0 | G54: =G53/12 -> 0
C56: =CONCATENATE("Ingreso Anual del ",D52-1) -> Ingreso Anual del 2023 | M56: Promedio Mensual | N56: =AVERAGE(N53:P53) -> 0
C57: =CONCATENATE("Ingreso Mensual del ",D52-1) -> Ingreso Mensual del 2023 | F57: =F56/12 -> 0
M58: Ingreso Neto | N58: =N56*0.85 -> 0
C59: Ingreso Promedio Mensual | E59: =(IF(E39=AC25,AVERAGE(E54,E50+D50),E50+D50)) -> 0 | F59: =IF(F39=AC25,AVERAGE(F54,F50),F50) -> 0 | G59: =IF(G39=AC25,AVERAGE(G54,G50),G50) -> 0
E61: 1ra | F61: 2da | G61: 4ta
C62: Ingreso Neto | E62: =IF(E42="",0,(E59-D51)*0.95) -> 0 | F62: =F59*(1-0.05)*(1-0.3) -> 0 | G62: =(IF(G39=AC25,(G59*(1-0.08)),IF(G59>2807.33,(G59*(1-0.08)),(G59)))) -> 0

Sheet DL_tit (hidden)
B4: Usuario: Tom Davye Agurto Alban
B5: CÁLCULO DE RENTA BRUTA ANUAL
B6: Bruto total mensual | C6: =+C22+C23 -> 0 | L6: SI
B7: REMUNERACION 12 MESES | C7: =(C6)*12 -> 0 | L7: NO
B8: GRATIF JULIO/DICIEMBRE | C8: =(C6)*2 -> 0
B9: BONIF EXT TEMPORAL | C9: =IF(C24="SI",C8*0.0675,C8*0.09) -> 0
B10: GRATIF EXTRAORDINARIA (casos como BBVA)
B11: OTROS INGRESOS
B12: RENTA BRUTA ANUAL | C12: =SUM(C7:C11) -> 0 | E12: CÁLCULO RANGOS 5TA | N12: CÁLCULO AFP
B13: DEDUCCION | C13: =7*$C$25 -> 36050 | E13: APLICABLE | F13: DESDE | G13: HASTA | H13: TASA | I13: IMPUESTO | J13: EXCEDENTE | N13: REGIMEN PENSION | O13: COMISION | P13: PRIMA DE SEGURO | Q13: APORTE OBLIGATORIO
B14: APLICABLE | C14: =IF(C12-C13>0,C12-C13,0) -> 0 | E14: =IF(C14>0,C14,0) -> 0 | F14: 0 | G14: =5*C25 -> 25750 | H14: 0.08 | I14: =IF(J14>0,G14*H14,E14*H14) -> 0 | J14: =IF(E14-G14>0,E14-G14,0) -> 0 | N14: AFP HABITAT | O14: =(1.47)% -> 0.0147 | P14: 0.0137 | Q14: 0.1
B15: IMPUESTO ANUAL PROYECTADO | C15: =SUM(I14:I18) -> 0 | E15: =IF(J14>0,J14,0) -> 0 | F15: =+G14 -> 25750 | G15: =20*C25 -> 103000 | H15: 0.14 | I15: =IF(J15>0,G15*H15,E15*H15) -> 0 | J15: =IF(E15-G15>0,E15-G15,0) -> 0 | N15: AFP INTEGRA | O15: =(1.55)% -> 0.0155 | P15: 0.0137 | Q15: 0.1
E16: =IF(J15>0,J15,0) -> 0 | F16: =+G15 -> 103000 | G16: =35*C25 -> 180250 | H16: 0.17 | I16: =IF(J16>0,G16*H16,E16*H16) -> 0 | J16: =IF(E16-G16>0,E16-G16,0) -> 0 | N16: AFP PRIMA | O16: 0.016 | P16: 0.0137 | Q16: 0.1
E17: =IF(J16>0,J16,0) -> 0 | F17: =+G16 -> 180250 | G17: =45*C25 -> 231750 | H17: 0.2 | I17: =IF(J17>0,G17*H17,E17*H17) -> 0 | J17: =IF(E17-G17>0,E17-G17,0) -> 0 | N17: AFP PROFUTURO | O17: 0.0169 | P17: 0.0137 | Q17: 0.1
E18: =IF(J17>0,J17,0) -> 0 | F18: =+G17 -> 231750 | H18: 0.3 | I18: =IF(J18>0,E18*H18,0) -> 0 | J18: =IF(E18-G18>0,E18-G18,0) -> 0 | N18: ONP | Q18: 0.13
N20: Tabla 1.3. Factores de descuentos de Ley, según Rangos de Ingreso Bruto
E21: A VALIDAR | N21: 0 | O21: 0.13 | P21: =MATCH(Ingreso_Titular!F25,N21:N26,1) -> 1
B22: Ingreso bruto fijo | C22: =Ingreso_Titular!E21 -> 0 | E22: 5TA CATEGORIA | F22: =IF(C15/12>0,C15/12,0) -> 0 | N22: 1901 | O22: 0.15 | P22: =INDEX(N21:O26,P21,2) -> 0.13
B23: Ingreso bruto variable | C23: =SUM(Ingreso_Titular!E22:E24) -> 0 | E23: REGIMEN PENSION | F23: =Ingreso_Titular!C30 -> 0 | N23: 3301 | O23: 0.2 | P23: DL | Q23: =Ingreso_Titular!F25*P22 -> 0
B24: EPS | C24: =IF(Ingreso_Titular!$D$29="Con EPS","SI","NO") -> NO | E24: APORTE OBLIGATORIO | F24: =VLOOKUP(F23,N14:Q18,4,FALSE)*IF(C26=0,C22,C26) ->  | N24: 7401 | O24: 0.25
B25: UIT 2024 | C25: 5150 | E25: SEGURO INVALIDEZ | F25: =VLOOKUP(F23,N14:Q18,3,FALSE)*IF(C26=0,C22,C26) ->  | N25: 11401 | O25: 0.27
B26: Ingreso bruto del mes | E26: COMISION | F26: =VLOOKUP(F23,N14:Q18,2,FALSE)*IF(C26=0,C22,C26) ->  | N26: 14001 | O26: 0.3
B29: CÁLCULO DE RENTA BRUTA ANUAL
B30: Bruto total mensual | C30: =+C46+C47 -> 0 | L30: SI
B31: REMUNERACION 12 MESES | C31: =(C30)*12 -> 0 | L31: NO
B32: GRATIF JULIO/DICIEMBRE | C32: =(C30)*2 -> 0
B33: BONIF EXT TEMPORAL | C33: =IF(C48="SI",C32*0.0675,C32*0.09) -> 0
B34: GRATIF EXTRAORDINARIA (casos como BBVA)
B35: OTROS INGRESOS
B36: RENTA BRUTA ANUAL | C36: =SUM(C31:C35) -> 0 | E36: CÁLCULO RANGOS 5TA | N36: CÁLCULO AFP
B37: DEDUCCION | C37: =7*$C$49 -> 36050 | E37: APLICABLE | F37: DESDE | G37: HASTA | H37: TASA | I37: IMPUESTO | J37: EXCEDENTE | N37: REGIMEN PENSION | O37: COMISION | P37: PRIMA DE SEGURO | Q37: APORTE OBLIGATORIO
B38: APLICABLE | C38: =IF(C36-C37>0,C36-C37,0) -> 0 | E38: =IF(C38>0,C38,0) -> 0 | F38: 0 | G38: =5*C49 -> 25750 | H38: 0.08 | I38: =IF(J38>0,G38*H38,E38*H38) -> 0 | J38: =IF(E38-G38>0,E38-G38,0) -> 0 | N38: AFP HABITAT | O38: =(1.47)% -> 0.0147 | P38: 0.0137 | Q38: 0.1
B39: IMPUESTO ANUAL PROYECTADO | C39: =SUM(I38:I42) -> 0 | E39: =IF(J38>0,J38,0) -> 0 | F39: =+G38 -> 25750 | G39: =20*C49 -> 103000 | H39: 0.14 | I39: =IF(J39>0,G39*H39,E39*H39) -> 0 | J39: =IF(E39-G39>0,E39-G39,0) -> 0 | N39: AFP INTEGRA | O39: =(1.55)% -> 0.0155 | P39: 0.0137 | Q39: 0.1
E40: =IF(J39>0,J39,0) -> 0 | F40: =+G39 -> 103000 | G40: =35*C49 -> 180250 | H40: 0.17 | I40: =IF(J40>0,G40*H40,E40*H40) -> 0 | J40: =IF(E40-G40>0,E40-G40,0) -> 0 | N40: AFP PRIMA | O40: 0.016 | P40: 0.0137 | Q40: 0.1
E41: =IF(J40>0,J40,0) -> 0 | F41: =+G40 -> 180250 | G41: =45*C49 -> 231750 | H41: 0.2 | I41: =IF(J41>0,G41*H41,E41*H41) -> 0 | J41: =IF(E41-G41>0,E41-G41,0) -> 0 | N41: AFP PROFUTURO | O41: 0.0169 | P41: 0.0137 | Q41: 0.1
E42: =IF(J41>0,J41,0) -> 0 | F42: =+G41 -> 231750 | H42: 0.3 | I42: =IF(J42>0,E42*H42,0) -> 0 | J42: =IF(E42-G42>0,E42-G42,0) -> 0 | N42: ONP | Q42: 0.13
N44: Tabla 1.3. Factores de descuentos de Ley, según Rangos de Ingreso Bruto
E45: A VALIDAR | N45: 0 | O45: 0.13 | P45: =MATCH(Ingreso_Titular!V25,N45:N50,1) -> 1
B46: Ingreso bruto fijo | C46: =Ingreso_Titular!U21 -> 0 | E46: 5TA CATEGORIA | F46: =IF(C39/12>0,C39/12,0) -> 0 | N46: 1901 | O46: 0.15 | P46: =INDEX(N45:O50,P45,2) -> 0.13
B47: Ingreso bruto variable | C47: =SUM(Ingreso_Titular!U22:U24) -> 0 | E47: REGIMEN PENSION | F47: =Ingreso_Titular!S30 -> 0 | N47: 3301 | O47: 0.2 | P47: DL | Q47: =Ingreso_Titular!V25*P46 -> 0
B48: EPS | C48: =IF(Ingreso_Titular!$S$30="Con EPS","SI","NO") -> NO | E48: APORTE OBLIGATORIO | F48: =VLOOKUP(F47,N38:Q42,4,FALSE)*IF(C50=0,C46,C50) ->  | N48: 7401 | O48: 0.25
B49: UIT 2024 | C49: 5150 | E49: SEGURO INVALIDEZ | F49: =VLOOKUP(F47,N38:Q42,3,FALSE)*IF(C50=0,C46,C50) ->  | N49: 11401 | O49: 0.27
B50: Ingreso bruto del mes | E50: COMISION | F50: =VLOOKUP(F47,N38:Q42,2,FALSE)*IF(C50=0,C46,C50) ->  | N50: 14001 | O50: 0.3

Sheet Ingreso_Cony (hidden)
C1: =IF(Principal!C19<>"","Codeudor","Cónyuge") -> Cónyuge
C2: =CONCATENATE("Crédito Hipotecario - Formato de Cálculo de Ingreso Neto Mensual del ",C1) -> Crédito Hipotecario - Formato de Cálculo de Ingreso Neto Mensual del Cónyuge | O2: Fecha | P2: =TODAY() -> 2025-04-29
O3: TC US$ | P3: =Resolucion!C11 -> 3.85
C4: Cliente: | D4: =IF(Principal!C19<>"",Deudas!I10,Deudas!F10) -> 0 | G4: =Principal!E5 -> Tradicional | M4: Observaciones:
C5: DNI: | D5: =IF(Principal!C19<>"",Principal!C19,Principal!I8) -> 0 | G5: Depósito Ahorro Casa
C6: Tipo de Evaluación: | D6: =Principal!E5 -> Tradicional | G6: Ingreso Inferido | H6: =IF(G4="Ahorro casa",H5/0.4,"") -> 
G7: Ingreso Declaración Jurada
C8: Ingreso Neto | D8: =IFERROR( IF(D6="Ahorro Casa",MIN(H6,(D35+E62+F62+G62+N43+N58+T35+H7)),(D35+E62+F62+G62+N43+N58+T35)),0) -> 0 | G8: Informalidad | H8: =IFERROR(IF(1-((D35+E62+F62+G62+N43+N58+T35)/D8)>0,1-((D35+E62+F62+G62+N43+N58+T35)/D8),0),0) -> 0
C10: Renta de 5ta. Categoría | M10: Renta de 3era Categoría | O10: Reg. General | S10: Renta de 5ta. Categoría | AC10: Hipotecario
E11: Boleta | F11: Experian | G11: CTS en IBK | M11: Empresa | U11: Boleta | V11: Experian | W11: CTS en IBK | AC11: Mi vivienda
C12: Fecha de ingreso | G12: Ingreso bruto | M12: RUC | S12: Fecha de ingreso | W12: Ingreso bruto
C13: Empleador | G13: =IF(G12="Ingreso bruto","Último depósito CTS",IF(G12="Último depósito CTS","Ingreso bruto","")) -> Último depósito CTS | H13: =IF(G12="Ingreso bruto",E25*14/24,H12*24/14) -> 0 | M13: Fecha de Inicio | S13: Empleador | W13: =IF(W12="Ingreso bruto","Último depósito CTS",IF(W12="Último depósito CTS","Ingreso bruto","")) -> Último depósito CTS | X13: =IF(W12="Ingreso bruto",U25*14/24,X12*24/14) -> 0 | AC13: Normal
C14: RUC | G14: (correspondiente a 6 meses de trabajo) | M14: Giro del Negocio | S14: RUC | W14: (correspondiente a 6 meses de trabajo) | AC14: Ahorro Casa
C15: Antigüedad | E15: =IF(E12="","",DATEDIF(E12,TODAY(),"Y")&" años, "&DATEDIF(E12,TODAY(),"YM")&" meses") ->  | S15: Antigüedad | U15: =IF(U12="","",DATEDIF(U12,TODAY(),"Y")&" años, "&DATEDIF(U12,TODAY(),"YM")&" meses") -> 
C16: Mes referencia - ult. boleta | M16: Margen Comercial | N16: =IFERROR(MIN(P26:P27),"") -> 0 | S16: Mes referencia - ult. boleta | AC16: Reg. General
C17: Utilidades | M17: % Participación | N17: 0 | S17: Utilidades | AC17: Reg. Especial
C18: CTS IBK | S18: CTS IBK | AC18: RUS
AC19: Microempresario
C20: Ingreso Bruto | E20: Ing. Promedio | F20: Ing.Prom.Ajust * | G20: Año | H20: Uti. Bruta | I20: Nro. Veces | M20: Información DD JJ: Ventas | S20: Ingreso Bruto | U20: Ing. Promedio | V20: Ing.Prom.Ajust * | W20: Año | X20: Uti. Bruta | Y20: Nro. Veces
C21: Ingreso Fijo | E21: 0 | F21: =E21 -> 0 | G21: =YEAR(TODAY())-2 -> 2023 | H21: 0 | I21: =IFERROR(H21/$E$25,) -> 0 | M21: Año | N21: Ingreso Anual | O21: Ingreso Mensual | S21: Ingreso Fijo | U21: 0 | V21: =U21 -> 0 | W21: =YEAR(TODAY())-2 -> 2023 | X21: 0 | Y21: =IFERROR(X21/$E$25,) -> 0 | AC21: Local Comercial
C22: Comisión | E22: 0 | F22: =E22*0.85 -> 0 | G22: =YEAR(TODAY())-1 -> 2024 | H22: 0 | I22: =IFERROR(H22/$E$25,) -> 0 | M22: =YEAR(TODAY())-2 -> 2023 | N22: 0 | O22: =+N22/12 -> 0 | S22: Comisión | U22: 0 | V22: =U22*0.85 -> 0 | W22: =YEAR(TODAY())-1 -> 2024 | X22: 0 | Y22: =IFERROR(X22/$E$25,) -> 0 | AC22: Vivienda
C23: Horas Extras | E23: 0 | F23: =E23*0.85 -> 0 | G23: Variabilidad | H23: =IFERROR(ABS((H21/H22)-1), "0") -> 0 | I23: =IF(H23<=30%,IF(AVERAGE(I21,I22)>5,5,IF(AVERAGE(I21,I22)>=2,AVERAGE(I21,I22),0)),IF(OR(I21<2,I22<2),0,MIN(I21,I22))) -> 0 | M23: =YEAR(TODAY())-1 -> 2024 | N23: 0 | O23: =+N23/12 -> 0 | S23: Horas Extras | U23: 0 | V23: =U23*0.85 -> 0 | W23: Variabilidad | X23: =IFERROR(ABS((X21/X22)-1), "0") -> 0 | Y23: =IF(X23<=30%,IF(AVERAGE(Y21,Y22)>5,5,IF(AVERAGE(Y21,Y22)>=2,AVERAGE(Y21,Y22),0)),IF(OR(Y21<2,Y22<2),0,MIN(Y21,Y22))) -> 0 | AC23: Local Comercial + Vivienda
C24: Bonos | E24: 0 | F24: =E24*0.85 -> 0 | G24: Ing. Utilidades | H24: =IFERROR(+(I24*I23)/12,) -> 0 | I24: =IF(OR(E31="",E31=0),F25*(1-VLOOKUP(F25,Cuadros!$B$49:$D$54,3,1))-E32,F25-E33) -> 0 | M24: Información DD JJ: Utilidad Neta | S24: Bonos | U24: 0 | V24: =U24*0.85 -> 0 | W24: Ing. Utilidades | X24: =IFERROR(+(Y24*Y23)/12,) -> 0 | Y24: =IF(OR(U31="",U31=0),V25*(1-VLOOKUP(V25,Cuadros!$B$49:$D$54,3,1))-U32,V25-U33) -> 0
C25: Total | E25: =SUM(E21:E24) -> 0 | F25: =SUM(F21:F24) -> 0 | G25: =IF(E17="si",IF(E35<7000,"Para utilidades: el ingreso neto deberá ser mayor a S/ 7,000",""),"") ->  | M25: Año | N25: UN Anual | O25: UN Mensual | S25: Total | U25: =SUM(U21:U24) -> 0 | V25: =SUM(V21:V24) -> 0 | AC25: Con RT
C26: * Aplica solo para Comisiones y Horas Extras (85%) | G26: =IF(E17="si",IF(OR(Principal!C14="verde claro",Principal!C14="verde",Principal!C14="amarillo"),"","Para utilidades: solo colores de riesgo Verde Claro, Verde y Amarillo"),"") ->  | M26: =YEAR(TODAY())-2 -> 2023 | N26: 0 | O26: =IF(I2="ahorro casa","",N26/12) -> 0 | P26: =IF(O10="Reg. General",IFERROR((N26/N22),""),"") ->  | S26: * Aplica solo para Comisiones y Horas Extras (85%) | AC26: Sin RT
M27: =YEAR(TODAY())-1 -> 2024 | N27: 0 | O27: =+N27/12 -> 0 | P27: =IF(OR(O10="RUS",O10="Reg. Especial"),"",IFERROR((N27/N23),"")) -> 
C28: Descuentos | E28: Monto | S28: Descuentos | U28: Monto | AC28: Con EPS
C29: Renta 5ta. | E29: =IF(D29="",0,DL_Cony!F22) -> 0 | H29: Ley | I29: Boleta | J29: Var. | M29: Información de Ventas Mensual | S29: Renta 5ta. | X29: Ley | Y29: Boleta | Z29: Var. | AC29: Sin EPS
E30: =IFERROR(SUM(DL_Cony!F24:F26),) -> 0 | G30: APORTE OBLIGATORIO | H30: =DL_Cony!F24 ->  | I30: 1000 | J30: =IFERROR(I30/H30-1,) -> 0 | M30: Mes | N30: Venta Mensual | U30: =SUM(Y30:Y32) -> 0 | W30: APORTE OBLIGATORIO | X30: =DL_Cony!F48 ->  | Z30: =IFERROR(Y30/X30-1,) -> 0
C31: Según Boleta | E31: 0 | G31: SEGURO INVALIDEZ | H31: =DL_Cony!F25 ->  | I31: 120 | J31: =IFERROR(I31/H31-1,) -> 0 | M31: =DATE(YEAR(TODAY()),MONTH(TODAY())-6,1) -> 2024-10-01 | N31: 0 | S31: Según Boleta | U31: 0 | W31: SEGURO INVALIDEZ | X31: =DL_Cony!F49 ->  | Z31: =IFERROR(Y31/X31-1,) -> 0 | AC31: Con Metodizado IBK
C32: Otros Descuentos | E32: 0 | G32: COMISION | H32: =DL_Cony!F26 ->  | I32: 160 | J32: =IFERROR(I32/H32-1,) -> 0 | M32: =DATE(YEAR(TODAY()),MONTH(TODAY())-5,1) -> 2024-11-01 | N32: 0 | S32: Otros Descuentos | U32: 0 | W32: COMISION | X32: =DL_Cony!F50 ->  | Z32: =IFERROR(Y32/X32-1,) -> 0 | AC32: Sin Metodizado IBK
C33: Descuento | E33: =IF(SUM(E29:E31)=0,E25-E35,IF(E31>0,E31+E32,IF(AND(SUM(E22:E24)=0,E30=0),E31,E29+E30+E32))) -> 0 | M33: =DATE(YEAR(TODAY()),MONTH(TODAY())-4,1) -> 2024-12-01 | N33: 0 | S33: Descuento | U33: =IF(SUM(U29:U31)=0,U25-U35,IF(U31>0,U31+U32,IF(AND(SUM(U22:U24)=0,U30=0),U31,U29+U30+U32))) -> 0
G34: Para registrar en el Power Apps | M34: =DATE(YEAR(TODAY()),MONTH(TODAY())-3,1) -> 2025-01-01 | N34: 0 | W34: Para registrar en el Power Apps | AC34: AFP HABITAT
C35: Ingreso Neto | D35: =IF(E17="Si",E36,E35) -> 0 | E35: =IF(E31=0, IF(OR(D29="", C30=""), F25-DL_Cony!Q23-E32, F25-E29-E30 ), F25-E31-E32 ) -> 0 | G35: YN Principal | H35: =IFERROR(E35*F21/F25,0) -> 0 | M35: =DATE(YEAR(TODAY()),MONTH(TODAY())-2,1) -> 2025-02-01 | N35: 0 | S35: Ingreso Neto | T35: =IF(U17="Si",U36,U35) -> 0 | U35: =IF(U31=0, IF(OR(T29="", S30=""), V25-DL_Cony!Q47-U32, V25-U29-U30 ), V25-U31-U32 ) -> 0 | W35: YN Principal | X35: =IFERROR(U35*V21/V25,0) -> 0 | AC35: AFP INTEGRA
C36: Ing Neto c/utilidades | E36: =IFERROR(E35+H24,E35) -> 0 | G36: Ingreso Extraordinario | H36: =IFERROR(((E35*SUM(F22:F24)/F25)+H24),0) -> 0 | M36: =DATE(YEAR(TODAY()),MONTH(TODAY())-1,1) -> 2025-03-01 | N36: 0 | S36: Ing Neto c/utilidades | U36: =IFERROR(U35+X24,U35) -> 0 | W36: Ingreso Extraordinario | X36: =IFERROR(((U35*SUM(V22:V24)/V25)+X24),0) -> 0 | AC36: AFP PRIMA
M37: Promedio Mensual | N37: =IF(AVERAGE(N31:N33)=0,AVERAGE(N34:N36),AVERAGE(N31:N36)) -> 0 | AC37: AFP PROFUTURO
AC38: ONP
C39: Ingresos independiente | M39: Venta Prom Mens | N39: =(IF(O10=AC16,AVERAGE(O22,O23,N37),IF(O10=AC19,AVERAGE(O23,N37),N37))) -> 0 | O39: =IFERROR((N39*N16*N17)*0.8,0) -> 0
E40: 1ra | F40: 2da | G40: 4ta | M40: Venta Informal Mens | N40: 0 | O40: =IF(N42<=15%,N41*N16*N17,((N39+(N40*0.8))*N16*N17)) -> 0
C41: RUC | M41: Total venta evaluada | N41: =N39+N40 -> 0
C42: Tipo de Actividad | M42: % de informalidad | N42: =IF(AND(N40<>0,N39<>0),N40/N39,0) -> 0 | O42: Con Factor Ajuste
C43: Fecha de inicio | E43: =DATE(YEAR(TODAY())-1, 1, 1) -> 2024-01-01 | M43: Ingreso Neto | N43: =IF(N18="si",O40,O39) -> 0 | O43: =N41*N16*N17 -> 0
D45: Alquileres | F45: 2da | G45: Prof. Independiente
C46: Ingreso Mensual | D46: Vivienda | E46: =IF(OR(E42="Vivienda",E42="")," ","Local Comercial") ->  | M46: Metodizado
C47: =DATE(YEAR(TODAY()),MONTH(TODAY())-3,1) -> 2025-01-01 | O47: TC
C48: =DATE(YEAR(TODAY()),MONTH(TODAY())-2,1) -> 2025-02-01 | O48: Participación
C49: =DATE(YEAR(TODAY()),MONTH(TODAY())-1,1) -> 2025-03-01
C50: Promedio Mensual | D50: =IFERROR(AVERAGE(D47:D49),) -> 0 | E50: =IFERROR(AVERAGE(E47:E49),) -> 0 | F50: =IFERROR((SUM(F47:F49)/12),) -> 0 | G50: =IFERROR(AVERAGE(G47:G49),) -> 0 | M50: Año | N50: =+O50-1 -> 2023 | O50: =+P50-1 -> 2024 | P50: =YEAR(TODAY()) -> 2025
D51: =E59*E51*0.15 -> 0 | E51: =IF(D50=0,0,D50/(E50+D50)) -> 0 | M51: Periodos | N51: 12 | O51: 12 | P51: =MONTH(TODAY())-1 -> 3
D52: =YEAR(TODAY())-1 -> 2024 | M52: Resultado del ejercicio
C53: =CONCATENATE("Ingreso Anual del ",D52) -> Ingreso Anual del 2024 | M53: Mensual | N53: =N52*1000*$P$47*$P$48/N51 -> 0 | O53: =O52*1000*$P$47*$P$48/O51 -> 0 | P53: =IFERROR(P52*1000*$P$47*$P$48/P51,0) -> 0
C54: =CONCATENATE("Ingreso Mensual del ",D52) -> Ingreso Mensual del 2024 | E54: =E53/12 -> 0 | F54: =F53/12 -> 0 | G54: =G53/12 -> 0
C56: =CONCATENATE("Ingreso Anual del ",D52-1) -> Ingreso Anual del 2023 | M56: Promedio Mensual | N56: =AVERAGE(N53:P53) -> 0
C57: =CONCATENATE("Ingreso Mensual del ",D52-1) -> Ingreso Mensual del 2023 | F57: =F56/12 -> 0
M58: Ingreso Neto | N58: =N56*0.85 -> 0
C59: Ingreso Promedio Mensual | E59: =(IF(E39=AC25,AVERAGE(E54,E50+D50),E50+D50)) -> 0 | F59: =IF(F39=AC25,AVERAGE(F54,F50),F50) -> 0 | G59: =IF(G39=AC25,AVERAGE(G54,G50),G50) -> 0
E61: 1ra | F61: 2da | G61: 4ta
C62: Ingreso Neto | E62: =IF(E42="",0,(E59-D51)*0.95) -> 0 | F62: =F59*(1-0.05)*(1-0.3) -> 0 | G62: =(IF(G39=AC25,(G59*(1-0.08)),IF(G59>2807.33,(G59*(1-0.08)),(G59)))) -> 0

Sheet Ing_Titular (hidden)
C2: Crédito Hipotecario - Formato de Cálculo de Ingreso Neto Mensual del Titular | N2: Fecha | O2: =TODAY() -> 2025-04-29
J3: Tipo de Evaluación
B4: Usuario: Augusto Samillan Pisfil | C4: Cliente Titular: | N4: TC US$ | O4: =HIPO!J25 -> 3.85
C5: DNI | D5: =+#REF! -> 
R6: Hipotecario
K7: Observaciones | R7: Mi vivienda
F8: Ahorro Casa
B9: Ingreso Neto S/. | D9: =IF(J5="ahorro casa",MIN(I10,(D32+D56+I32+I56+N45+N50)),(+D32+D56+I32+I56+N45)) -> 0 | F9: Depósito Ahorro Casa S/. | I9: 0 | R9: Normal
B10: =IF(AND(J4="Mi Vivienda",J5="Ahorro Casa"),"Mínimo entre el ingreso inferido y los ingresos netos por las rentas y DDJJ","") ->  | F10: Ingreso Inferido S/. | I10: =IF(J5="Ahorro casa",IF(J4="Hipotecario",I9/0.4,IF(J5="Ahorro casa",IF(J4="Mi vivienda",I9/0.4,"")))) -> FALSE | R10: Ahorro Casa
C11: Moneda Nacional S/.
C12: Renta de 1era. Categoría | E12: Con DD JJ | H12: Renta de 4ta. Categoría | J12: Con DD JJ | M12: Renta de 3era Categoría | O12: Reg. General | R12: Con DD JJ | X12: =IF(O12="Reg. General","","Esta Renta es Referencial pues dependerá de la Evaluación de Riesgos con sus Analistas de Campo") -> 
C13: RUC | H13: RUC | M13: Empresa | R13: Sin DD JJ
C14: Tipo de Actividad | H14: Tipo de Actividad | M14: RUC
C15: Fecha de Inicio | H15: Fecha de Inicio | M15: Fecha de Inicio | R15: Reg. General
M16: Giro del Negocio | R16: Reg. Especial
C17: Año | D17: Ingreso Anual | E17: Ingreso Mensual | H17: Año | I17: Ingreso Anual | J17: Ingreso Mensual | R17: RUS
C18: =YEAR(TODAY())-1 -> 2024 | D18: 0 | E18: =+D18/12 -> 0 | H18: =YEAR(TODAY())-1 -> 2024 | I18: 0 | J18: =+I18/12 -> 0 | M18: Margen Comercial | N18: =IFERROR(MIN(P28:P29),"") -> 0 | R18: Microempresario
M19: % Participación | N19: 0
C20: Mes | D20: Ingreso Mensual | H20: Mes | I20: Ingreso Mensual
C21: =DATE(YEAR(TODAY()),MONTH(TODAY())-3,1) -> 2025-01-01 | D21: 0 | H21: =DATE(YEAR(TODAY()),MONTH(TODAY())-3,1) -> 2025-01-01 | I21: 0
C22: =DATE(YEAR(TODAY()),MONTH(TODAY())-2,1) -> 2025-02-01 | D22: 0 | H22: =DATE(YEAR(TODAY()),MONTH(TODAY())-2,1) -> 2025-02-01 | I22: 0 | M22: Información DD JJ: Ventas
C23: =DATE(YEAR(TODAY()),MONTH(TODAY())-1,1) -> 2025-03-01 | D23: 0 | H23: =DATE(YEAR(TODAY()),MONTH(TODAY())-1,1) -> 2025-03-01 | I23: 0 | M23: Año | N23: Ingreso Anual | O23: Ingreso Mensual
C24: Promedio Mensual | D24: =(AVERAGE(D21:D23)) -> 0 | H24: Promedio Mensual | I24: =(AVERAGE(I21:I23)) -> 0 | M24: =YEAR(TODAY())-2 -> 2023 | N24: 0 | O24: =IF(J5="ahorro casa","",N24/12) -> 0
M25: =YEAR(TODAY())-1 -> 2024 | N25: 0 | O25: =+N25/12 -> 0
C26: Ingreso Prom Mens | D26: =(IF(E12=R12,AVERAGE(E18,D24),D24)) -> 0 | H26: Ingreso Prom Mens | I26: =(IF(J12=R12,AVERAGE(J18,I24),I24)) -> 0 | M26: Información DD JJ: Utilidad Neta
M27: Año | N27: UN Anual | O27: UN Mensual
C28: INM= Ingreso Promedio Mensual *(1-DL)*(1-FRDG) | H28: INM= Ingreso Promedio Mensual *(1-DL)*(1-FAVI) | M28: =YEAR(TODAY())-2 -> 2023 | N28: 0 | O28: =IF(J9="ahorro casa","",N28/12) -> 0 | P28: =IF(O12="Reg. General",IFERROR((N28/N24),""),"") -> 
C29: DL= Descuento de Ley (5%) | H29: DL= Descuento de Ley (8%) | M29: =YEAR(TODAY())-1 -> 2024 | N29: 0 | O29: =+N29/12 -> 0 | P29: =IF(OR(O12="RUS",O12="Reg. Especial"),"",IFERROR((N29/N25),"")) -> 
M31: Información de Ventas Mensual
C32: Ingreso Neto | D32: =(D26*(1-0.05)) -> 0 | H32: Ingreso Neto | I32: =(IF(J12=R12,(I26*(1-0.08)),IF(I26>2807.33,(I26*(1-0.08)),(I26)))) -> 0 | M32: Mes | N32: Venta Mensual
M33: =DATE(YEAR(TODAY()),MONTH(TODAY())-6,1) -> 2024-10-01 | N33: 0
E34: Con DD JJ | M34: =DATE(YEAR(TODAY()),MONTH(TODAY())-5,1) -> 2024-11-01 | N34: 0
C35: Renta de 2da Categoría | H35: Renta de 5ta. Categoría | M35: =DATE(YEAR(TODAY()),MONTH(TODAY())-4,1) -> 2024-12-01 | N35: 0
C36: RUC | H36: Empleador | M36: =DATE(YEAR(TODAY()),MONTH(TODAY())-3,1) -> 2025-01-01 | N36: 0
C37: Tipo de Actividad | H37: Fecha de Ingreso | M37: =DATE(YEAR(TODAY()),MONTH(TODAY())-2,1) -> 2025-02-01 | N37: 0
C38: Fecha de Inicio | M38: =DATE(YEAR(TODAY()),MONTH(TODAY())-1,1) -> 2025-03-01 | N38: 0
H39: Ingreso Bruto | I39: Ingr. Promedio | J39: Ing.Prom.Ajust * | M39: Promedio Mensual | N39: =IF(AVERAGE(N33:N35)=0,AVERAGE(N36:N38),AVERAGE(N33:N38)) -> 0
C40: Año | D40: Ingreso Anual | E40: Ingreso Mensual | H40: Ingreso Fijo | I40: 0 | J40: =I40 -> 0
C41: =YEAR(TODAY())-2 -> 2023 | D41: 0 | E41: =IF(J5="ahorro casa","",D41/12) -> 0 | H41: Comisión | I41: 0 | J41: =+I41*0.85 -> 0 | M41: Venta Prom Mens | N41: =(IF(O12=R15,AVERAGE(O24,O25,N39),IF(O12=R18,AVERAGE(O25,N39),N39))) -> 0
C42: =YEAR(TODAY())-1 -> 2024 | D42: 0 | E42: =+D42/12 -> 0 | H42: Horas Extras | I42: 0 | J42: =+I42*0.85 -> 0
H43: Bonos | I43: 0 | J43: =I43*0.85 -> 0 | M43: INM= Venta Promedio Mensual * MC * % Participación Acc.
C44: Mes | D44: Ingreso Mensual | H44: Total | I44: =SUM(I40:I43) -> 0 | J44: =SUM(J40:J43) -> 0
C45: =DATE(YEAR(TODAY()),MONTH(TODAY())-3,1) -> 2025-01-01 | D45: 0 | H45: * Aplica solo para Comisiones y Horas Extras (85%) | M45: Ingreso Neto | N45: =IFERROR((N41*N18*N19)*0.8,0) -> 0
C46: =DATE(YEAR(TODAY()),MONTH(TODAY())-2,1) -> 2025-02-01 | D46: 0
C47: =DATE(YEAR(TODAY()),MONTH(TODAY())-1,1) -> 2025-03-01 | D47: 0 | H47: Descuentos | I47: Monto
C48: Promedio Mensual | D48: =IFERROR(AVERAGE(D45:D47),0) -> 0 | H48: Descuentos Ley * | I48: =IF(SUM(I41:I43)=0,0,VLOOKUP(J44,Cuadros!$B$49:$D$54,3,1)*J44) -> 0 | M48: Declaración Jurada de Ingresos - Ahorro Casa
H49: Según Boleta | I49: 0
C50: Ingreso Prom Mens | D50: =(IF(E34=R12,AVERAGE(E41,E42,D48),D48)) -> 0 | H50: Otros Descuentos | I50: 0 | M50: Ingreso Neto | N50: 1000
H51: Descuento | I51: =(IF(SUM(I41:I43)=0,I49,I48+I50)) -> 0
C52: INM= Ingreso Promedio Mensual *(1-DL)*(1-FRDG) | H52: * Estimación de Dctos de Ley en caso presente Comisiones y HE
C53: DL= Descuento de Ley (5%) | H53: Factor DL según Manual de Sobreendeudameinto RBP
C54: FRDG: Factor de rentabilidad después de gastos (30%) | H54: INM= Ingreso Promedio Ajustado - Descuentos
C56: Ingreso Neto | D56: =D50*(1-0.05)*(1-0.3) -> 0 | H56: Ingreso Neto | I56: =IF(OR(I49="",I49=0),J44*(1-VLOOKUP(J44,Cuadros!$B$49:$D$54,3,1))-I50,J44-I51) -> 0 | M56: Firma y Sello del Analista

Sheet Ing_Cónyuge (hidden)
C2: Crédito Hipotecario - Formato de Cálculo de Ingreso Neto Mensual del Cónyuge | N2: Fecha | O2: =HIPO!C3 -> 2025-04-29
J3: Tipo de Evaluación
B4: Usuario: Augusto Samillan Pisfil | C4: Cliente Cónyuge: | J4: Hipotecario | N4: TC US$ | O4: =HIPO!J25 -> 3.85
C5: DNI | D5: =+#REF! ->  | J5: Normal
R6: Hipotecario
K7: Observaciones | R7: Mi vivienda
F8: Ahorro Casa
B9: Ingreso Neto S/. | D9: =IF(J5="ahorro casa",MIN(I10,(D32+D56+I32+I56+N45+N50)),(+D32+D56+I32+I56+N45)) -> 0 | F9: Depósito Ahorro Casa S/. | I9: 3000 | R9: Normal
B10: =IF(AND(J4="Mi Vivienda",J5="Ahorro Casa"),"Mínimo entre el ingreso inferido y los ingresos netos por las rentas y DDJJ","") ->  | F10: Ingreso Inferido S/. | I10: =IF(J5="Ahorro casa",IF(J4="Hipotecario",I9/0.3,IF(J5="Ahorro casa",IF(J4="Mi vivienda",I9/0.4,"")))) -> FALSE | R10: Ahorro Casa
C11: Moneda Nacional S/.
C12: Renta de 1era. Categoría | E12: Con DD JJ | H12: Renta de 4ta. Categoría | J12: Con DD JJ | M12: Renta de 3era Categoría | O12: Reg. General | R12: Con DD JJ | X12: =IF(O12="Reg. General","","Esta Renta es Referencial pues dependerá de la Evaluación de Riesgos con sus Analistas de Campo") -> 
C13: RUC | H13: RUC | M13: Empresa | R13: Sin DD JJ
C14: Tipo de Actividad | H14: Tipo de Actividad | M14: RUC
C15: Fecha de Inicio | H15: Fecha de Inicio | M15: Fecha de Inicio | R15: Reg. General
M16: Giro del Negocio | R16: Reg. Especial
C17: Año | D17: Ingreso Anual | E17: Ingreso Mensual | H17: Año | I17: Ingreso Anual | J17: Ingreso Mensual | R17: RUS
C18: =YEAR(TODAY())-1 -> 2024 | D18: 0 | E18: =+D18/12 -> 0 | H18: =YEAR(TODAY())-1 -> 2024 | I18: 0 | J18: =+I18/12 -> 0 | M18: Margen Comercial | N18: =IFERROR(MIN(P28:P29),"") -> 0 | O18: =IF(OR(O12="Reg. Especial",O12="RUS"),"Ver hoja Cuadros","") ->  | R18: Microempresario
M19: % Participación | N19: 0
C20: Mes | D20: Ingreso Mensual | H20: Mes | I20: Ingreso Mensual
C21: =DATE(YEAR(TODAY()),MONTH(TODAY())-3,1) -> 2025-01-01 | D21: 0 | H21: =DATE(YEAR(TODAY()),MONTH(TODAY())-3,1) -> 2025-01-01 | I21: 0
C22: =DATE(YEAR(TODAY()),MONTH(TODAY())-2,1) -> 2025-02-01 | D22: 0 | H22: =DATE(YEAR(TODAY()),MONTH(TODAY())-2,1) -> 2025-02-01 | I22: 0 | M22: Información DD JJ: Ventas
C23: =DATE(YEAR(TODAY()),MONTH(TODAY())-1,1) -> 2025-03-01 | D23: 0 | H23: =DATE(YEAR(TODAY()),MONTH(TODAY())-1,1) -> 2025-03-01 | I23: 0 | M23: Año | N23: Ingreso Anual | O23: Ingreso Mensual
C24: Promedio Mensual | D24: =(AVERAGE(D21:D23)) -> 0 | H24: Promedio Mensual | I24: =(AVERAGE(I21:I23)) -> 0 | M24: =YEAR(TODAY())-2 -> 2023 | N24: 0 | O24: =IF(J5="ahorro casa","",N24/12) -> 0
M25: =YEAR(TODAY())-1 -> 2024 | N25: 0 | O25: =+N25/12 -> 0
C26: Ingreso Prom Mens | D26: =(IF(E12=R12,AVERAGE(E18,D24),D24)) -> 0 | H26: Ingreso Prom Mens | I26: =(IF(J12=R12,AVERAGE(J18,I24),I24)) -> 0 | M26: Información DD JJ: Utilidad Neta
M27: Año | N27: UN Anual | O27: UN Mensual
C28: INM= Ingreso Promedio Mensual *(1-DL)*(1-FRDG) | H28: INM= Ingreso Promedio Mensual *(1-DL)*(1-FAVI) | M28: =YEAR(TODAY())-2 -> 2023 | N28: 0 | O28: =IF(J9="ahorro casa","",N28/12) -> 0 | P28: =IF(O12="Reg. General",IFERROR((N28/N24),""),"") -> 
C29: DL= Descuento de Ley (5%) | H29: DL= Descuento de Ley (8%) | M29: =YEAR(TODAY())-1 -> 2024 | N29: 0 | O29: =+N29/12 -> 0 | P29: =IF(OR(O12="RUS",O12="Reg. Especial"),"",IFERROR((N29/N25),"")) -> 
M31: Información de Ventas Mensual
C32: Ingreso Neto | D32: =(D26*(1-0.05)) -> 0 | H32: Ingreso Neto | I32: =(IF(J12=R12,(I26*(1-0.08)),IF(I26>2807.33,(I26*(1-0.08)),(I26)))) -> 0 | M32: Mes | N32: Venta Mensual
M33: =DATE(YEAR(TODAY()),MONTH(TODAY())-6,1) -> 2024-10-01 | N33: 0
E34: Con DD JJ | M34: =DATE(YEAR(TODAY()),MONTH(TODAY())-5,1) -> 2024-11-01 | N34: 0
C35: Renta de 2da Categoría | H35: Renta de 5ta. Categoría | M35: =DATE(YEAR(TODAY()),MONTH(TODAY())-4,1) -> 2024-12-01 | N35: 0
C36: RUC | H36: Empleador | M36: =DATE(YEAR(TODAY()),MONTH(TODAY())-3,1) -> 2025-01-01 | N36: 0
C37: Tipo de Actividad | H37: Fecha de Ingreso | M37: =DATE(YEAR(TODAY()),MONTH(TODAY())-2,1) -> 2025-02-01 | N37: 0
C38: Fecha de Inicio | M38: =DATE(YEAR(TODAY()),MONTH(TODAY())-1,1) -> 2025-03-01 | N38: 0
H39: Ingreso Bruto | I39: Ingr. Promedio | J39: Ing.Prom.Ajust * | M39: Promedio Mensual | N39: =IF(AVERAGE(N33:N35)=0,AVERAGE(N36:N38),AVERAGE(N33:N38)) -> 0
C40: Año | D40: Ingreso Anual | E40: Ingreso Mensual | H40: Ingreso Fijo | I40: 0 | J40: =I40 -> 0
C41: =YEAR(TODAY())-2 -> 2023 | E41: =IF(J5="ahorro casa","",D41/12) -> 0 | H41: Comisión | I41: 0 | J41: =+I41*0.85 -> 0 | M41: Venta Prom Mens | N41: =(IF(O12=R15,AVERAGE(O24,O25,N39),IF(O12=R18,AVERAGE(O25,N39),N39))) -> 0
C42: =YEAR(TODAY())-1 -> 2024 | E42: =+D42/12 -> 0 | H42: Horas Extras | I42: 0 | J42: =+I42*0.85 -> 0
H43: Bonos | I43: 0 | J43: =I43*0.85 -> 0 | M43: INM= Venta Promedio Mensual * MC * % Participación Acc.
C44: Mes | D44: Ingreso Mensual | H44: Total | I44: =SUM(I40:I43) -> 0 | J44: =SUM(J40:J43) -> 0
C45: =DATE(YEAR(TODAY()),MONTH(TODAY())-3,1) -> 2025-01-01 | D45: 0 | H45: * Aplica solo para Comisiones y Horas Extras (85%) | M45: Ingreso Neto | N45: =IFERROR((N41*N18*N19)*0.8,0) -> 0
C46: =DATE(YEAR(TODAY()),MONTH(TODAY())-2,1) -> 2025-02-01 | D46: 0
C47: =DATE(YEAR(TODAY()),MONTH(TODAY())-1,1) -> 2025-03-01 | D47: 0 | H47: Descuentos | I47: Monto
C48: Promedio Mensual | D48: =IFERROR(AVERAGE(D45:D47),0) -> 0 | H48: Descuentos Ley * | I48: =IF(SUM(I41:I43)=0,0,VLOOKUP(J44,Cuadros!$B$49:$D$54,3,1)*J44) -> 0 | M48: Declaración Jurada de Ingresos - Ahorro Casa
H49: Según Boleta | I49: 0
C50: Ingreso Prom Mens | D50: =(IF(E34=R12,AVERAGE(E41,E42,D48),D48)) -> 0 | H50: Otros Descuentos | I50: 0 | M50: Ingreso Neto | N50: 4000
H51: Descuento | I51: =(IF(SUM(I41:I43)=0,I49,I48+I50)) -> 0
C52: INM= Ingreso Promedio Mensual *(1-DL)*(1-FRDG) | H52: * Estimación de Dctos de Ley en caso presente Comisiones y HE
C53: DL= Descuento de Ley (5%) | H53: Factor DL según Manual de Sobreendeudameinto RBP
C54: FRDG: Factor de rentabilidad después de gastos (30%) | H54: INM= Ingreso Promedio Ajustado - Descuentos
C56: Ingreso Neto | D56: =D50*(1-0.05)*(1-0.3) -> 0 | H56: Ingreso Neto | I56: =IF(OR(I49="",I49=0),J44*(1-VLOOKUP(J44,Cuadros!$B$49:$D$54,3,1))-I50,J44-I51) -> 0 | M56: Firma y Sello del Analista

Sheet DL_Cony (hidden)
B4: Usuario: Tom Davye Agurto Alban
B5: CÁLCULO DE RENTA BRUTA ANUAL
B6: Bruto total mensual | C6: =+C22+C23 -> 0 | L6: SI
B7: REMUNERACION 12 MESES | C7: =(C6)*12 -> 0 | L7: NO
B8: GRATIF JULIO/DICIEMBRE | C8: =(C6)*2 -> 0
B9: BONIF EXT TEMPORAL | C9: =IF(C24="SI",C8*0.0675,C8*0.09) -> 0
B10: GRATIF EXTRAORDINARIA (casos como BBVA)
B11: OTROS INGRESOS
B12: RENTA BRUTA ANUAL | C12: =SUM(C7:C11) -> 0 | E12: CÁLCULO RANGOS 5TA | N12: CÁLCULO AFP
B13: DEDUCCION | C13: =7*$C$25 -> 36050 | E13: APLICABLE | F13: DESDE | G13: HASTA | H13: TASA | I13: IMPUESTO | J13: EXCEDENTE | N13: REGIMEN PENSION | O13: COMISION | P13: PRIMA DE SEGURO | Q13: APORTE OBLIGATORIO
B14: APLICABLE | C14: =IF(C12-C13>0,C12-C13,0) -> 0 | E14: =IF(C14>0,C14,0) -> 0 | F14: 0 | G14: =5*C25 -> 25750 | H14: 0.08 | I14: =IF(J14>0,G14*H14,E14*H14) -> 0 | J14: =IF(E14-G14>0,E14-G14,0) -> 0 | N14: AFP HABITAT | O14: =(1.47)% -> 0.0147 | P14: 0.0137 | Q14: 0.1
B15: IMPUESTO ANUAL PROYECTADO | C15: =SUM(I14:I18) -> 0 | E15: =IF(J14>0,J14,0) -> 0 | F15: =+G14 -> 25750 | G15: =20*C25 -> 103000 | H15: 0.14 | I15: =IF(J15>0,G15*H15,E15*H15) -> 0 | J15: =IF(E15-G15>0,E15-G15,0) -> 0 | N15: AFP INTEGRA | O15: =(1.55)% -> 0.0155 | P15: 0.0137 | Q15: 0.1
E16: =IF(J15>0,J15,0) -> 0 | F16: =+G15 -> 103000 | G16: =35*C25 -> 180250 | H16: 0.17 | I16: =IF(J16>0,G16*H16,E16*H16) -> 0 | J16: =IF(E16-G16>0,E16-G16,0) -> 0 | N16: AFP PRIMA | O16: 0.016 | P16: 0.0137 | Q16: 0.1
E17: =IF(J16>0,J16,0) -> 0 | F17: =+G16 -> 180250 | G17: =45*C25 -> 231750 | H17: 0.2 | I17: =IF(J17>0,G17*H17,E17*H17) -> 0 | J17: =IF(E17-G17>0,E17-G17,0) -> 0 | N17: AFP PROFUTURO | O17: 0.0169 | P17: 0.0137 | Q17: 0.1
E18: =IF(J17>0,J17,0) -> 0 | F18: =+G17 -> 231750 | H18: 0.3 | I18: =IF(J18>0,E18*H18,0) -> 0 | J18: =IF(E18-G18>0,E18-G18,0) -> 0 | N18: ONP | Q18: 0.13
N20: Tabla 1.3. Factores de descuentos de Ley, según Rangos de Ingreso Bruto
E21: A VALIDAR | N21: 0 | O21: 0.13 | P21: =MATCH(Ingreso_Cony!F25,N21:N26,1) -> 1
B22: Ingreso bruto fijo | C22: =Ingreso_Cony!E21 -> 0 | E22: 5TA CATEGORIA | F22: =IF(C15/12>0,C15/12,0) -> 0 | N22: 1901 | O22: 0.15 | P22: =INDEX(N21:O26,P21,2) -> 0.13
B23: Ingreso bruto variable | C23: =SUM(Ingreso_Cony!E22:E24) -> 0 | E23: REGIMEN PENSION | F23: =Ingreso_Cony!C30 -> 0 | N23: 3301 | O23: 0.2 | P23: DL | Q23: =Ingreso_Cony!F25*P22 -> 0
B24: EPS | C24: =IF(Ingreso_Cony!D29="Con EPS","SI","NO") -> NO | E24: APORTE OBLIGATORIO | F24: =VLOOKUP(F23,N14:Q18,4,FALSE)*IF(C26=0,C22,C26) ->  | N24: 7401 | O24: 0.25
B25: UIT 2024 | C25: 5150 | E25: SEGURO INVALIDEZ | F25: =VLOOKUP(F23,N14:Q18,3,FALSE)*IF(C26=0,C22,C26) ->  | N25: 11401 | O25: 0.27
B26: Ingreso bruto del mes | E26: COMISION | F26: =VLOOKUP(F23,N14:Q18,2,FALSE)*IF(C26=0,C22,C26) ->  | N26: 14001 | O26: 0.3
B29: CÁLCULO DE RENTA BRUTA ANUAL
B30: Bruto total mensual | C30: =+C46+C47 -> 0 | L30: SI
B31: REMUNERACION 12 MESES | C31: =(C30)*12 -> 0 | L31: NO
B32: GRATIF JULIO/DICIEMBRE | C32: =(C30)*2 -> 0
B33: BONIF EXT TEMPORAL | C33: =IF(C48="SI",C32*0.0675,C32*0.09) -> 0
B34: GRATIF EXTRAORDINARIA (casos como BBVA)
B35: OTROS INGRESOS
B36: RENTA BRUTA ANUAL | C36: =SUM(C31:C35) -> 0 | E36: CÁLCULO RANGOS 5TA | N36: CÁLCULO AFP
B37: DEDUCCION | C37: =7*$C$49 -> 36050 | E37: APLICABLE | F37: DESDE | G37: HASTA | H37: TASA | I37: IMPUESTO | J37: EXCEDENTE | N37: REGIMEN PENSION | O37: COMISION | P37: PRIMA DE SEGURO | Q37: APORTE OBLIGATORIO
B38: APLICABLE | C38: =IF(C36-C37>0,C36-C37,0) -> 0 | E38: =IF(C38>0,C38,0) -> 0 | F38: 0 | G38: =5*C49 -> 25750 | H38: 0.08 | I38: =IF(J38>0,G38*H38,E38*H38) -> 0 | J38: =IF(E38-G38>0,E38-G38,0) -> 0 | N38: AFP HABITAT | O38: =(1.47)% -> 0.0147 | P38: 0.0137 | Q38: 0.1
B39: IMPUESTO ANUAL PROYECTADO | C39: =SUM(I38:I42) -> 0 | E39: =IF(J38>0,J38,0) -> 0 | F39: =+G38 -> 25750 | G39: =20*C49 -> 103000 | H39: 0.14 | I39: =IF(J39>0,G39*H39,E39*H39) -> 0 | J39: =IF(E39-G39>0,E39-G39,0) -> 0 | N39: AFP INTEGRA | O39: =(1.55)% -> 0.0155 | P39: 0.0137 | Q39: 0.1
E40: =IF(J39>0,J39,0) -> 0 | F40: =+G39 -> 103000 | G40: =35*C49 -> 180250 | H40: 0.17 | I40: =IF(J40>0,G40*H40,E40*H40) -> 0 | J40: =IF(E40-G40>0,E40-G40,0) -> 0 | N40: AFP PRIMA | O40: 0.016 | P40: 0.0137 | Q40: 0.1
E41: =IF(J40>0,J40,0) -> 0 | F41: =+G40 -> 180250 | G41: =45*C49 -> 231750 | H41: 0.2 | I41: =IF(J41>0,G41*H41,E41*H41) -> 0 | J41: =IF(E41-G41>0,E41-G41,0) -> 0 | N41: AFP PROFUTURO | O41: 0.0169 | P41: 0.0137 | Q41: 0.1
E42: =IF(J41>0,J41,0) -> 0 | F42: =+G41 -> 231750 | H42: 0.3 | I42: =IF(J42>0,E42*H42,0) -> 0 | J42: =IF(E42-G42>0,E42-G42,0) -> 0 | N42: ONP | Q42: 0.13
N44: Tabla 1.3. Factores de descuentos de Ley, según Rangos de Ingreso Bruto
E45: A VALIDAR | N45: 0 | O45: 0.13 | P45: =MATCH(Ingreso_Cony!V25,N45:N50,1) -> 1
B46: Ingreso bruto fijo | C46: =Ingreso_Cony!U21 -> 0 | E46: 5TA CATEGORIA | F46: =IF(C39/12>0,C39/12,0) -> 0 | N46: 1901 | O46: 0.15 | P46: =INDEX(N45:O50,P45,2) -> 0.13
B47: Ingreso bruto variable | C47: =SUM(Ingreso_Cony!U22:U24) -> 0 | E47: REGIMEN PENSION | F47: =Ingreso_Cony!S30 -> 0 | N47: 3301 | O47: 0.2 | P47: DL | Q47: =Ingreso_Cony!V25*P46 -> 0
B48: EPS | C48: =IF(Ingreso_Cony!T29="Con EPS","SI","NO") -> NO | E48: APORTE OBLIGATORIO | F48: =VLOOKUP(F47,N38:Q42,4,FALSE)*IF(C50=0,C46,C50) ->  | N48: 7401 | O48: 0.25
B49: UIT 2024 | C49: 5150 | E49: SEGURO INVALIDEZ | F49: =VLOOKUP(F47,N38:Q42,3,FALSE)*IF(C50=0,C46,C50) ->  | N49: 11401 | O49: 0.27
B50: Ingreso bruto del mes | E50: COMISION | F50: =VLOOKUP(F47,N38:Q42,2,FALSE)*IF(C50=0,C46,C50) ->  | N50: 14001 | O50: 0.3

Sheet Cuadros (hidden)
AA1: Departamento | AB1: Zona
AA2: Lima | AB2: Zona1
B3: Ratio de Sobre-Endeudamiento Máximo por Zona Geográfica e Ingresos Netos | L3: % Máximo de Financiamiento para Créditos Hipotecarios | AA3: Callao | AB3: Zona1
B4: Usuario: Melody Yadira Villanueva Villanueva | C4: Zona 1 | D4: Zona 2 | E4: Zona 3 | F4: Zona 4 | G4: Zona 5 | L4: Destino del Crédito | M4: Ocupación | N4: % Máximo de financiamiento | O4: % Cuota Inicial Mínima | AA4: Amazonas | AB4: Zona2
B5: [0 - 1,000> | C5: 0.25 | D5: 0.25 | E5: 0.25 | F5: 0.22 | G5: 0.25 | L5: Compra de casa o deparamento como primera vivienda | M5: Dependiente(1) | N5: 0.9 | O5: =1-N5 -> 0.1 | AA5: Ancash | AB5: Zona4
B6: [1,000 - 1,500> | C6: 0.26 | D6: 0.38 | E6: 0.34 | F6: 0.26 | G6: 0.3 | M6: Independiente | N6: 0.8 | O6: =1-N6 -> 0.2 | AA6: Apurímac | AB6: Zona2
B7: [1,500 - 2,000> | C7: 0.33 | D7: 0.43 | E7: 0.4 | F7: 0.33 | G7: 0.33 | L7: Construcción de casa o departamento en terreno propio como primera vivienda | N7: 0.8 | O7: 0.2 | AA7: Arequipa | AB7: Zona3
B8: [2,000 - 3,000> | C8: 0.39 | D8: 0.48 | E8: 0.48 | F8: 0.4 | G8: 0.43 | L8: La compra de un terreno como primera vivienda | N8: 0.8 | O8: 0.2 | AA8: Ayacucho | AB8: Zona2
B9: [3,000 - 4,000> | C9: 0.47 | D9: 0.51 | E9: 0.54 | F9: 0.46 | G9: 0.49 | L9: Compra de segunda vivienda si ya cancelaste en su totalidad la primera vivienda | M9: Dependiente(1) | N9: 0.9 | O9: 0.1 | AA9: Cajamarca | AB9: Zona2
B10: [4,000 - 5,000> | C10: 0.53 | D10: 0.53 | E10: 0.57 | F10: 0.52 | G10: 0.54 | M10: Independiente | N10: 0.8 | O10: 0.2 | AA10: Cusco | AB10: Zona2
B11: [5,000 - 7,000> | C11: 0.58 | D11: 0.58 | E11: 0.59 | F11: 0.53 | G11: 0.57 | L11: Compra de segunda vivienda si aún no has cancelado en su totalidad la primera | N11: 0.8 | O11: 0.2 | AA11: Huancavelica | AB11: Zona2
B12: [7,000 - más> | C12: 0.59 | D12: 0.6 | E12: 0.6 | F12: 0.6 | G12: 0.6 | L12: Compra de casa de campo o playa | N12: 0.7 | O12: 0.3 | AA12: Huánuco | AB12: Zona3
L13: Crédito en efectivo con garantía hipotecaria | N13: 0.6 | O13: 0.4 | AA13: Ica | AB13: Zona4
B14: Zona Geográfica | L14: Ampliación de vivienda | N14: 0.3 | O14: 0.7 | AA14: Junin | AB14: Zona2
B15: Zona 1: Lima y Callao | L15: Remodelación de vivienda | N15: 0.3 | O15: 0.7 | AA15: La Libertad | AB15: Zona4
B16: Zona 2: Amazonas, Apurímac, Ayacucho, Cajamarca, Cusco, Huancavelica, Junin, Pasco y Puno | AA16: Lambayeque | AB16: Zona4
B17: Zona 3: Arequipa, Huánuco, Moquegua y Tacna | L17: (1) Ahorro Casa condicionado al periodo de ahorro | AA17: Loreto | AB17: Zona5
B18: Zona 4: Ica, La Libertad, Lambayeque, Piura, Tumbes y Ancash | AA18: Madre de Dios | AB18: Zona5
B19: Zona 5: Loreto, Madre de Dios, San Martin y Ucayali | AA19: Moquegua | AB19: Zona3
AA20: Pasco | AB20: Zona2
B21: Fondos Mi Vivienda, Rangos del Bono del Buen Pagador (BBP) | L21: Márgenes Comerciales | AA21: Piura | AB21: Zona4
B22: Valor Bien Inmueble | D22: BBP | E22: Cuota Inicial | G22: CI + BBP | I22: Préstamo | AA22: Puno | AB22: Zona2
B23: Desde | C23: Hasta | E23: Desde | F23: Hasta | G23: Desde | H23: Hasta | I23: Desde | J23: Hasta | AA23: San Martrin | AB23: Zona5
B24: 67400 | C24: 96200 | D24: 26900 | E24: =B24*0.075 -> 5055 | F24: =C24*0.075 -> 7215 | G24: =$D24+E24 -> 31955 | H24: 34115 | I24: 20000 | J24: =C24-H24 -> 62085 | AA24: Tacna | AB24: Zona3
B25: 96200 | C25: 144000 | D25: 22400 | E25: 7215 | F25: 10800 | G25: 29615 | H25: 33200 | I25: 66585 | J25: 110800 | AA25: Tumbes | AB25: Zona4
B26: 144000 | C26: 239800 | D26: 20500 | E26: 10800 | F26: 17985 | G26: 31300 | H26: 38485 | I26: 112700 | J26: 201315 | AA26: Ucayali | AB26: Zona5
B27: 239800 | C27: 355100 | D27: 7600 | E27: 17985 | F27: 26632.5 | G27: =$D27+E27 -> 25585 | H27: =$D27+F27 -> 34232.5 | I27: =B27-G27 -> 214215 | J27: =C27-H27 -> 320867.5
B28: 355100 | C28: 479300 | D28: 0 | E28: =B28*0.1 -> 35510 | F28: =C28*0.1 -> 47930 | G28: 35510 | H28: 47930 | I28: 319590 | J28: 431370
B31: Fondos Techo Propio, Rangos del Bono Habitacional Familiar (BFH)
B32: Valor Bien Inmueble | D32: BBP | E32: Cuota Inicial | G32: CI + BBP | I32: Préstamo
B33: Desde | C33: Hasta | E33: Desde | F33: Hasta | G33: Desde | H33: Hasta | I33: Desde | J33: Hasta
B34: 63500 | C34: 102800 | D34: 44805 | E34: =B34*0.05 -> 3175 | F34: =C34*0.05 -> 5140 | G34: =$D34+E34 -> 47980 | H34: =$D34+F34 -> 49945 | I34: 20000 | J34: =C34-H34 -> 52855
B35: 102800 | C35: 128400 | D35: 44805 | E35: =B35*0.05 -> 5140 | F35: =C35*0.05 -> 6420 | G35: =$D35+E35 -> 49945 | H35: =$D35+F35 -> 51225 | I35: =B35-G35 -> 52855 | J35: =C35-H35 -> 77175
B37: Seguros de Desgravamen por tipo de Crédito y Seguro
B38: Tipo Crédito | C38: Tipo Seguro | D38: Valor
B39: Hipot/MV/TP/PPGH | C39: Individual | D39: 0.00028
B40: Hipotecario | C40: Mancomunado | D40: 0.00052
B41: MiVivienda | C41: Individual | D41: 0.00035
B42: MiVivienda | C42: Mancomunado | D42: 0.00065
B43: Hipotecario | C43: Individual/Devolución | D43: 0.000323
B44: Hipotecario | C44: Mancomunado/Devolución | D44: 0.000605
B46: Tasas de Impuesto a la Renta de 5ta Categoría (Manual Sobre-Endeudamiento Banca Persona)
B47: Ingreso Bruto | D47: Valor
B48: Desde | C48: Hasta
B49: 0 | C49: 1900 | D49: 0.13
B50: 1901 | C50: 3300 | D50: 0.15
B51: 3301 | C51: =B52-1 -> 7400 | D51: 0.2
B52: 7401 | C52: =B53-1 -> 11400 | D52: 0.25
B53: 11401 | C53: =B54-1 -> 14000 | D53: 0.27
B54: 14001 | C54: Más | D54: 0.3
B57: Con Bono Integrador | C57: 3400
B58: Sin Bono Integrador | C58: 0
B59: Con Bono Verde | C59: 6000
B60: Sin Bono Verde | C60: 0
B63: Bono integrador | C63: 1 si, 0 no
B64: YN | C64: =IF(AND(Resolucion!K13>1000,Resolucion!K13<=4172),1,0) -> 0 | D64: Por YN
B65: Edad | C65: =IF(Deudas!E12>60,1,0) ->  | D65: Por edad

Sheet Ficha_Resumen (hidden)
B3: INFORME DE CREDITO POR AUTONOMIA
B5: =Principal!C11 -> RENTA ALTA
B6: DATOS GENERALES
B8: TITULAR: | C8: =Ingreso_Titular!D4 -> 0 | E8: DNI: | F8: =Principal!C8 -> 46046330 | H8: CONYUGE/CODEUDOR: | I8: =Ingreso_Cony!D4 -> 0 | K8: DNI | L8: =Ingreso_Cony!D5 -> 0 | N8: Deudas en el SSFF
B10: Situacion laboral: | C10: =Principal!F9 -> Dependiente | D10: Ing. Neto: | E10: =Resolucion!K15 -> 8992 | H10: Mancomuna ingresos: | J10: Situacion laboral: | N10: Producto | O10: Saldo | P10: Cuota
B11: Centro Laboral: | C11: =Ingreso_Titular!E13 -> 0 | D11: Cargo: | H11: Centro Laboral: | I11: =Ingreso_Cony!E13 -> 0 | J11: Cargo: | N11: Lineas de TC utilizadas | O11: =Deudas!C15+Deudas!F15+Deudas!I15+Deudas!L15 -> 0 | P11: =+Deudas!D15+Deudas!G15+Deudas!J15+Deudas!M15 -> 0
B12: Fecha de Ingreso: | C12: =Ingreso_Titular!E12 -> 00:00:00 | D12: Validaciones: | H12: Fecha de Ingreso: | I12: =Ingreso_Cony!E12 -> 00:00:00 | J12: Validaciones: | N12: Lineas de TC por usar | O12: =Deudas!C16+Deudas!F16+Deudas!I16+Deudas!L16 -> 5000 | P12: =Deudas!D16+Deudas!G16+Deudas!J16+Deudas!M16 -> 55
B13: Estado Civil | C13: =Principal!C9 -> Soltero(a) | D13: Edad: | E13: =Deudas!E12 ->  | H13: Edad: | J13: Ing. Neto: | K13: =Ingreso_Cony!D8 -> 0 | N13: PPE | O13: =Deudas!C18+Deudas!F18+Deudas!I18+Deudas!L18 -> 0 | P13: =+Deudas!D18+Deudas!G18+Deudas!J18+Deudas!M18 -> 0
B14: Color de Riesgos: | C14: =Principal!C14 -> VERDE CLARO | D14: Score Buro: | E14: =Principal!C13 -> ALTO | H14: Color de Riesgos: | J14: Score: | N14: Vehicular | O14: =Deudas!C19+Deudas!F19+Deudas!I19+Deudas!L19 -> 0 | P14: =Deudas!D19+Deudas!G19+Deudas!J19+Deudas!M19 -> 0
B15: Zona: | C15: =IFERROR(VLOOKUP(Principal!C14,Resolucion!$R$4:$S$9,2,FALSE),"") -> ZONA 1 | D15: Cumplimiento: | J15: Zona: | N15: Convenio | O15: =Deudas!C20+Deudas!F20+Deudas!I20+Deudas!L20 -> 0 | P15: =Deudas!D20+Deudas!G20+Deudas!J20+Deudas!M20 -> 0
N16: Hipotecario | O16: =Deudas!C21+Deudas!F21+Deudas!I21+Deudas!L21 -> 177272.37 | P16: =+Deudas!D21+Deudas!G21+Deudas!J21+Deudas!M21 -> 1839
B25: DATOS DEL CREDITO
B27: Monto a financiar: | C27: =Resolucion!D17 -> 240000 | H27: Producto: | I27: =Principal!E4 -> Hipotecario | N27: Ratios | P27: Maximos
B28: Cuota Inicial: | C28: =Resolucion!D12 -> 0 | E28: =IFERROR(C28/C30,"") -> 0 | H28: Destino: | N28: C/Y: | O28: =Resolucion!J30 -> 0.2460991618 | P28: =Resolucion!K30 -> 0.5
B29: Plazo: | C29: =Resolucion!D19 -> 240 | H29: Ubicación: | N29: D/Y: | O29: =Resolucion!J31 -> 0.4567308344 | P29: =Resolucion!K31 -> 0.59
B30: Valor del Inmueble: | C30: =Resolucion!D9 -> 300000 | H30: Nro. De vivienda: | N30: CEM: | O30: =Resolucion!J28 -> 3411.28
N31: Cuota HPC: | O31: =Resolucion!D33 -> 2212.923663
B32: Hipotecario en Interbank | C32: Si
B33: Saldo Inicial S/ | C33: Saldo Actual S/ | D33: Fecha Desembolso | E33: Fecha de termino | F33: Cuotas pagadas | H33: Cuota mes
B36: El nivel de exposición sería de | D36: =IFERROR((C27+C34)/Resolucion!C11,0) -> 62337.66234
B39: COMENTARIOS DEL CREDITO
B41: MOTIVOS DE RECHAZO | I41: EXCEPCION POR RECHAZO ADQ
B46: SUSTENTO DE RESOLUCION
B48: Autonomia | C48: Nombre | D48: COMENTARIO | L48: EXCEPCION ANALISTA
B49: Analista
B50: Jefatura
B51: Sub Gerencia
B52: CONDICIONES:

Sheet Vision_Cliente (hidden)
T1: Sí
T2: No
B3: Calculadora para Préstamo Visión Cliente | K3: Calculadora para TC Visión Cliente | T3: Excepción No Califica para Oferta
B4: Usuario: Jean Alexander Purizaca Moran
B5: Usuario: Jean Alexander Purizaca Moran
C6: Información Admisión | L6: Información Admisión | T6: Hipotecario
C7: Excep por CY o Inicial | L7: Excep por CY o Inicial | M7: =+D7 -> 0 | T7: Normal
C8: Ingreso Neto | D8: =IF(Resolucion!J20<>"Hipotecario","",Resolucion!K15) -> 8992 | L8: Ingreso Neto | M8: =IF(Resolucion!J20<>"Hipotecario","",Resolucion!K15) -> 8992 | T8: No aplica para producto MV ni AC
C9: DY Actual | D9: =IF(Resolucion!J20<>"Hipotecario","",Resolucion!J31) -> 0.4567308344 | L9: DY Actual | M9: =IF(Resolucion!J20<>"Hipotecario","",Resolucion!J31) -> 0.4567308344
C10: DY Máxima | D10: =IF(Resolucion!J20<>"Hipotecario","",Resolucion!K31) -> 0.59 | L10: DY Máxima | M10: =IF(Resolucion!J20<>"Hipotecario","",Resolucion!K31) -> 0.59 | T10: SELECT
C11: CEM Disponible | D11: =IFERROR(IF(OR(D7="Sí",D7=""),"",(D10-D9)*D8),"") ->  | L11: CEM Disponible | M11: =IFERROR(IF(OR(M7="Sí",M7=""),"",(M10-M9)*M8),"") -> 1198.356337 | T11: PREMIUM
T12: Segmento o Zona no aplica para Oferta
C13: Estructura de Préstamo | L13: Estructura de TC | T13: No califica a Oferta Mínima
C14: TEA | D14: 0.1199 | L14: Nro Tarjetas IBK | M14: 0
C15: TEM | D15: =((1+D14)^(1/12))-1 -> 0.00948128155 | T15: VERDE CLARO
C16: PLAZO | D16: 60 | E16: Meses | T16: VERDE
C17: Ajuste Oferta | D17: =IF(Resolucion!J20<>"Hipotecario","","80%") -> 80% | L17: Ajuste Oferta | M17: 1 | T17: AMARILLO
C18: Oferta Máxima | D18: =IF(Resolucion!J20<>"Hipotecario","",300000) -> 300000 | L18: Oferta Máxima | M18: =IF(Resolucion!J20<>"Hipotecario","",100000) -> 100000
C20: Oferta PPE | D20: =IFERROR(IF(Principal!C8="","",IF(D7="Sí","Excepción No Califica para Oferta",IF(OR(Resolucion!J20<>"Hipotecario",Ingreso_Titular!D6<>"Tradicional"),"No aplica para producto MV ni AC",IF(Principal!C11<>"Renta Alta","Segmento no aplica para Oferta",IF(Principal!I4<>"ZONA 1", "Zona No Aplica para Oferta",IF((($D$11/(($D$15*(1+$D$15)^$D$16)/(((1+$D$15)^$D$16)-1)))*$D$17)>300000,$D$18,IF(($D$11/(($D$15*(1+$D$15)^$D$16)/(((1+$D$15)^$D$16)-1)))*$D$17<3000,"No califica a Oferta Mínima",(($D$11/(($D$15*(1+$D$15)^$D$16)/(((1+$D$15)^$D$16)-1)))*$D$17)))))))),"") ->  | L20: Oferta TC | M20: =IF(M7="Sí","Excepción No Califica para Oferta",IF(OR(Resolucion!J20<>"Hipotecario",Ingreso_Titular!D6<>"Tradicional"),"No aplica para producto MV ni AC",IF(Principal!C11<>"Renta Alta","Segmento no aplica para Oferta",IF(Principal!I4<>"ZONA 1", "Zona No Aplica para Oferta",IF(M14>=2,"No aplica oferta, ofrecer solo PP VC",IF(MIN($U$31,$U$32)*M17>100000,$M$18,IF(MIN($U$31,$U$32)*M17<1000,"No califica a Oferta Mínima",MIN($U$31,$U$32)*M17))))))) -> 35968 | T20: MATRIZ BURO
T21: FACTORES BURO
T22: Alto | U22: 0.011
C23: Campos Editables: | D23: Excep por CY o Inicial / TEA / PLAZO | L23: Campos Editables: | M23: Nro Tarjetas IBK | T23: Medio | U23: 0.01672
C24: *No Aplica para "Mi Vivienda" ni "Ahorro Casa" *Solo aplica para "Renta Alta" | L24: *No Aplica para "Mi Vivienda" ni "Ahorro Casa" *Solo aplica para "Renta Alta" | T24: Bajo | U24: 0.02024
T25: Muy Bajo | U25: 0.02244
T26: Rechazo | U26: 0.02244
T27: Sin Buro | U27: 0.0176
A29: * Se muestra las ofertas de ambos productos consumo ofrecidos
A30: * Equipo comercial debera indicar la oferta que se le ofrecerá a cliente. | U30: =VLOOKUP(Principal!C13,$T$22:$U$27,2,0) -> 0.011
T31: LC TC1 | U31: =+M11/U30 -> 108941.4852
T32: LC TC 2 | U32: =+M8*4 -> 35968
T34: 0
T35: 1
T36: 2

Sheet Saldos (hidden)
A1: SOLO USAR ESTA HOJA CUANDO CARGUEN LAS DEUDAS INCOMPLETAS O NO CARGUEN LAS DEUDAS DEL RCC LA FORMATO DE SOBRE-ENDEUDAMIENTO
B2: TITULAR | H2: CONYUGE
A3: EXTRACASH
C4: Cuota Inferida | D4: =#REF! ->  | E4: Nueva Cuota Inferida | F4: =IF(ISERROR(E6/C6)=TRUE,0,E6/C6)*D4 ->  | I4: Cuota Inferida | J4: =#REF! ->  | K4: Nueva Cuota Inferida | L4: =IF(ISERROR(K6/I6)=TRUE,0,K6/I6)*J4 -> 
C5: Deudas RCC | E5: Saldo RCC | I5: Deudas RCC | K5: Saldo RCC
C6: 0 | E6: 0 | I6: 0 | K6: 0
A8: PRESTAMO PERSONAL
C9: Cuota Inferida | D9: =#REF! ->  | E9: Nueva Cuota Inferida | F9: =IF(ISERROR(E11/C11)=TRUE,0,E11/C11)*D9 ->  | I9: Cuota Inferida | J9: =#REF! ->  | K9: Nueva Cuota Inferida | L9: =IF(ISERROR(K11/I11)=TRUE,0,K11/I11)*J9 -> 
C10: Deudas RCC | E10: Saldo RCC | I10: Deudas RCC | K10: Saldo RCC
C11: 0 | E11: 0 | I11: 0 | K11: 0
A13: CREDITO VEHICULAR
C14: Cuota Inferida | D14: =#REF! ->  | E14: Nueva Cuota Inferida | F14: =IF(ISERROR(E16/C16)=TRUE,0,E16/C16)*D14 ->  | I14: Cuota Inferida | J14: =#REF! ->  | K14: Nueva Cuota Inferida | L14: =IF(ISERROR(K16/I16)=TRUE,0,K16/I16)*J14 -> 
C15: Deudas RCC | E15: Saldo RCC | I15: Deudas RCC | K15: Saldo RCC
C16: 0 | E16: 0 | I16: 0 | K16: 0
A18: CREDITO POR CONVENIO
C19: Cuota Inferida | D19: =#REF! ->  | E19: Nueva Cuota Inferida | F19: =IF(ISERROR(E21/C21)=TRUE,0,E21/C21)*D19 ->  | I19: Cuota Inferida | J19: =#REF! ->  | K19: Nueva Cuota Inferida | L19: =IF(ISERROR(K21/I21)=TRUE,0,K21/I21)*J19 -> 
C20: Deudas RCC | E20: Saldo RCC | I20: Deudas RCC | K20: Saldo RCC
C21: 0 | E21: 0 | I21: 0 | K21: 0
A23: CREDITO HIPOTECARIO
C24: Cuota Inferida | D24: =#REF! ->  | E24: Nueva Cuota Inferida | F24: =IF(ISERROR(E26/C26)=TRUE,0,E26/C26)*D24 ->  | I24: Cuota Inferida | J24: =#REF! ->  | K24: Nueva Cuota Inferida | L24: =IF(ISERROR(K26/I26)=TRUE,0,K26/I26)*J24 -> 
C25: Deudas RCC | E25: Saldo RCC | I25: Deudas RCC | K25: Saldo RCC
C26: 0 | E26: 0 | I26: 0 | K26: 0

Sheet Constancia (hidden)
A6: =IF(HIPO!K54="CALIFICA","CONSTANCIA DE SIMULACIÓN DE CRÉDITO HIPOTECARIO","") -> 
H9: =HIPO!C3 -> 2025-04-29
A10: Estimado(a):
A11: =IF(HIPO!K54="CALIFICA",UPPER(HIPO!C6),"") -> 
A13: Presente.-
A15: =IF(HIPO!K54="CALIFICA",IF(LEN(HIPO!C8)<2,"Se deja constancia que en base a la información porporcionada por el(la) Sr(a). "&HIPO!C6&", identificado con DNI N° "&HIPO!E6&", podría calificar a un crédito hipotecario con las siguientes características:","Se deja constancia que en base a la información porporcionada por el(la) Sr(a). "&HIPO!C6&", identificado con DNI N° "&HIPO!E6&", y el(la) Sr(a). "&HIPO!C8&", identificado con DNI N° "&HIPO!E8&", podrían calificar a un crédito hipotecario con las siguientes características:"),"") -> 
A17: Características del Crédito:
B19: Producto: | E19: =IF(HIPO!K54="CALIFICA",HIPO!J14,"") -> 
B20: Monto de Crédito: | E20: =IF(HIPO!K54="CALIFICA",IF(HIPO!K30="Soles","S/ "&TEXT(HIPO!J30,"#,##0"),TEXT(HIPO!J30,"#,##0")&" USD"),"") -> 
B21: Plazo: | E21: =IF(HIPO!K54="CALIFICA",HIPO!J33,"") -> 
B22: Tipo de Cuota(1): | E22: =IF(HIPO!K54="CALIFICA",HIPO!J38,"") -> 
B23: Periodo de Gracia: | E23: =IF(HIPO!K54="CALIFICA",HIPO!J42,"") -> 
B24: Cuota Mensual(2): | E24: =IF(HIPO!K54="CALIFICA",IF(HIPO!K44="Soles","S/ "&TEXT(HIPO!J44,"#,##0"),TEXT(HIPO!J44,"#,##0")&" USD"),"") -> 
B25: Cuota Extraordinaria: | E25: =IF(HIPO!K54="CALIFICA",IF(HIPO!K45="Soles","S/ "&TEXT(HIPO!J45,"#,##0"),TEXT(HIPO!J45,"#,##0")&" USD"),"") -> 
A28: Para acceder al Crédito Hipotecario, usted deberá pasar por la evaluación crediticia correspondiente en INTERBANK, en la que se solicitará la documentación necesaria para sustentar sus ingresos, esta documentación varía según renta percibida. Esta constancia es sólo de orden informativo, no debe ser considerada como cotización o aprobación final. Para conocer más acerca de nuestros productos e inmuebles, ingresa a www.interbank.pe/credito-hipotecario.
A33: Atentamente,
A34: INTERBANK
A36: (1) Las cuotas ordinarias en las que se pagan 12 cuotas al año y la extraordinaria en la que se pagan 14 cuotas al año, pagando una adicional en los meses de julio y diciembre. (2) La Tasa Efectiva Anual (TEA) aplicada es referencial y fija, la cual podrá variar por el periodo de evaluación, condiciones del crédito y/o calificación financiera; y la Cuota mensual a pagar se compone de amortización, intereses, seguro de desgravamen y seguro del inmueble. (3) El cliente tiene derecho a contratar directamente el seguro de desgravamen o del bien, y endosarlos a favor de Interbank hasta por el monto adeudado. (4) La tasa de costo efectiva anual (TCEA) del crédito, la fecha de desembolso, la fecha de primer pago y los montos totales a pagar se informarán posteriormente a la aprobación y firma de documentos contractuales. (5) INTERBANK no asumirá ninguna responsabilidad por los adelantos o contratos de arras que pudiesen haber celebrado con anterioridad o luego de la emisión de esta constancia de simulación. (6) INTERBANK se reserva el derecho de suspender o dejar sin efecto la presente constancia, si se verifica algún cambio en la situación financiera del solicitante o co-deudor o condiciones tomadas en cuenta (7) La presente comunicación ha sido elaborada de conformidad con la información proporcionada por el solicitante y se emite a su solicitud. De no presentarse los documentos sustento necesarios o si estos no concuerdan con los datos declarados, la presente Constancia quedará sin efecto e Interbank no tendrá responsabilidad alguna. (8) Para mayor información sobre tasas de interés, comisiones, gastos y penalidades en el tarifario, en Tiendas Interbank o en www.interbank.pe conforme a la normativa vigente.

Sheet VISTA CLIENTE
E3: SIMULADOR DE CRÉDITO HIPOTECARIO INTERBANK
B4: Usuario: Diana Iris Granda Sanchez
C7: DATOS DE SOLICITUD | K7: DEL HIPOTECARIO
E9: MONEDA | G9: SOLES | M9: MONTO A FINANCIAR | O9: =+G53 -> 250586.5883
E11: FECHA DE DESEMBOLSO | G11: 2025-04-28 | M11: TCEA | O11: ='Cronograma HIPO'!AA32 -> 0.09134339773
E13: PRECIO DE INMUEBLE | G13: 300000 | M13: CUOTA | O13: =+MIN(O53:P54) -> 2212.923663
E15: CUOTA INICIAL | G15: 50000 | H15: *misma moneda de inmueble | M15: PRIMERA FECHA DE PAGO | O15: =+F53 -> 2025-06-07
E17: MONTO A DESEMBOLSAR | G17: =IF(G9="DOLARES",'Cronograma HIPO'!$I$13*(G13-G15),(G13-G15)) -> 250000 | M17: TOTAL AMORTIZACIÓN | O17: ='Cronograma HIPO'!Q395 -> 250590.8314
E19: PLAZO (MESES) (8) | G19: 240 | M19: TOTAL INTERESES | O19: ='Cronograma HIPO'!R395 -> 260110.8477
E21: TEA (2) | G21: 0.08 | M21: TOTAL DESGRAVAMEN | O21: ='Cronograma HIPO'!T395 -> 10846.98555
E23: FECHA DE PAGO AL MES | G23: 7 | M23: TOTAL SEGURO BIEN | O23: ='Cronograma HIPO'!U395 -> 20400
I24: =+IF((G17>300000)*(G9="DÓLARES")*(G30<>"SIN SEGURO (ENDOSO)"),"Corregir conforme a (3)","") -> 
I25: =+IF((G19<24)*(G30="CON DEVOLUC."),"Corregir conforme a (4)","") -> 
E26: TIPO DE CUOTA | G26: ORDINARIA | K26: LEYENDA:
E28: PERIODO DE GRACIA (MESES) | G28: 0 | M28: Dato a ingresar y/o elegir de lista desplegable
E30: TIPO DE SEGURO DE DESG (3)(4)(5)(6) | G30: INDIVIDUAL | M30: Dato formulado, no modificar
E32: TASA SEGURO DESG. | G32: =+IF(G30="INDIVIDUAL",0.028%,IF(G30="MANCOMUNADO",0.052%,IF(G30="INDIVIDUAL/DEVOLUCIÓN",0.0323%,IF(G30="MANCOMUNADO/DEVOLUCIÓN",0.0605%,0)))) -> 0.00028
E34: SEGURO DE BIEN (4)(6)(7) | G34: NORMAL
E36: PRIMA DE SEGURO DE BIEN | G36: =+IF(G34="NORMAL",0.34%,0) -> 0.0034
D39: NOTA:
D40: (1) | E40: Esta simulación NO constituye una garantía de calificación para la aprobación de un Crédito Hipotecario.
D41: (2) | E41: La TEA es fija durante todo el crédito. Tasa referencial y sujeto a modificaciones. Consulta tu tasa aplicable ingresando a Interbank.pe, por nuestra App, visitando nuestras Tiendas o llamando al (01)3119000
D43: (3) | E43: El cliente puede elegir contratar el seguro de desgravamen tradicional sin devolución o seguro de desgravamen con devolución. Consultar condiciones y requisitos en www.Interbank.pe
D45: (4) | E45: El cliente no tiene la obligación de tomar el seguro de Interbank, puede endosar el suyo (ya existente) a favor de Interbank y/o uno similar provisto por otra compañía.
D47: (5) | E47: Se calcula sobre el saldo de capital del crédito hipotecario. El cliente puede elegir contratar el seguro de desgravamen tradicional sin devolución o seguro de desgravamen con devolución. Consultar condiciones y requisitos en www.Interbank.pe
D48: (6) | E48: Este seguro es a solicitud del cliente. El importe de la prima será incluida en el capital y financiada según las condiciones del crédito.
D49: (7) | E49: Para financiamientos mayores a USD $300,000 solo se podrá desembolsar con un seguro de bien endosado/externo.
D50: (8) | E50: Plazo mínimo 60 y máximo de 360 meses.
D52: CUOTA | F52: VENCIMIENTO | G52: SALDO CAPITAL | H52: AMORTIZACIÓN | J52: INTERÉS | L52: DESGRAVAMEN | N52: SEGURO BIEN | O52: CUOTA
D53: 1 | F53: ='Cronograma HIPO'!O1 -> 2025-06-07 | G53: =+IFERROR(VLOOKUP(F53,'Cronograma HIPO'!$I$35:$K$394,3,0),"") -> 250586.5883 | H53: =+IFERROR(VLOOKUP(F53,'Cronograma HIPO'!$I$35:$Q$394,9,0),"") -> -117.6394641 | J53: =+IFERROR(VLOOKUP(F53,'Cronograma HIPO'!$I$35:$S$394,11,0),"") -> 2152.010801 | L53: =+IFERROR(VLOOKUP(F53,'Cronograma HIPO'!$I$35:$T$394,12,0),"") -> 93.5523263 | N53: =+IFERROR(VLOOKUP(F53,'Cronograma HIPO'!$I$35:$U$394,13,0),"") -> 85 | O53: =+IFERROR(VLOOKUP(F53,'Cronograma HIPO'!$I$35:$X$394,16,0),"") -> 2212.923663
D54: =+IF(D53="", "", IF((D53+1)>$G$19,"", D53+1)) -> 2 | F54: =INDEX('Cronograma HIPO'!$I$35:$I$394,MATCH(F53,'Cronograma HIPO'!$I$35:$I$394,0)+1,1) -> 2025-07-07 | G54: =+IFERROR(VLOOKUP(F54,'Cronograma HIPO'!$I$35:$K$394,3,0),"") -> 250704.2278 | H54: =+IFERROR(VLOOKUP(F54,'Cronograma HIPO'!$I$35:$Q$394,9,0),"") -> 444.6879288 | J54: =+IFERROR(VLOOKUP(F54,'Cronograma HIPO'!$I$35:$S$394,11,0),"") -> 1613.03855 | L54: =+IFERROR(VLOOKUP(F54,'Cronograma HIPO'!$I$35:$T$394,12,0),"") -> 70.19718378 | N54: =+IFERROR(VLOOKUP(F54,'Cronograma HIPO'!$I$35:$U$394,13,0),"") -> 85 | O54: =+IFERROR(VLOOKUP(F54,'Cronograma HIPO'!$I$35:$X$394,16,0),"") -> 2212.923663
D55: =+IF(D54="", "", IF((D54+1)>$G$19,"", D54+1)) -> 3 | F55: =INDEX('Cronograma HIPO'!$I$35:$I$394,MATCH(F54,'Cronograma HIPO'!$I$35:$I$394,0)+1,1) -> 2025-08-07 | G55: =+IFERROR(VLOOKUP(F55,'Cronograma HIPO'!$I$35:$K$394,3,0),"") -> 250259.5399 | H55: =+IFERROR(VLOOKUP(F55,'Cronograma HIPO'!$I$35:$Q$394,9,0),"") -> 391.4871885 | J55: =+IFERROR(VLOOKUP(F55,'Cronograma HIPO'!$I$35:$S$394,11,0),"") -> 1664.028048 | L55: =+IFERROR(VLOOKUP(F55,'Cronograma HIPO'!$I$35:$T$394,12,0),"") -> 72.40842686 | N55: =+IFERROR(VLOOKUP(F55,'Cronograma HIPO'!$I$35:$U$394,13,0),"") -> 85 | O55: =+IFERROR(VLOOKUP(F55,'Cronograma HIPO'!$I$35:$X$394,16,0),"") -> 2212.923663
D56: 4 | F56: =INDEX('Cronograma HIPO'!$I$35:$I$394,MATCH(F55,'Cronograma HIPO'!$I$35:$I$394,0)+1,1) -> 2025-09-07 | G56: =+IFERROR(VLOOKUP(F56,'Cronograma HIPO'!$I$35:$K$394,3,0),"") -> 249868.0527 | H56: =+IFERROR(VLOOKUP(F56,'Cronograma HIPO'!$I$35:$Q$394,9,0),"") -> 394.203539 | J56: =+IFERROR(VLOOKUP(F56,'Cronograma HIPO'!$I$35:$S$394,11,0),"") -> 1661.424967 | L56: =+IFERROR(VLOOKUP(F56,'Cronograma HIPO'!$I$35:$T$394,12,0),"") -> 72.29515657 | N56: =+IFERROR(VLOOKUP(F56,'Cronograma HIPO'!$I$35:$U$394,13,0),"") -> 85 | O56: =+IFERROR(VLOOKUP(F56,'Cronograma HIPO'!$I$35:$X$394,16,0),"") -> 2212.923663
D57: 5 | F57: =INDEX('Cronograma HIPO'!$I$35:$I$394,MATCH(F56,'Cronograma HIPO'!$I$35:$I$394,0)+1,1) -> 2025-10-07 | G57: =+IFERROR(VLOOKUP(F57,'Cronograma HIPO'!$I$35:$K$394,3,0),"") -> 249473.8491 | H57: =+IFERROR(VLOOKUP(F57,'Cronograma HIPO'!$I$35:$Q$394,9,0),"") -> 452.9487282 | J57: =+IFERROR(VLOOKUP(F57,'Cronograma HIPO'!$I$35:$S$394,11,0),"") -> 1605.122257 | L57: =+IFERROR(VLOOKUP(F57,'Cronograma HIPO'!$I$35:$T$394,12,0),"") -> 69.85267775 | N57: =+IFERROR(VLOOKUP(F57,'Cronograma HIPO'!$I$35:$U$394,13,0),"") -> 85 | O57: =+IFERROR(VLOOKUP(F57,'Cronograma HIPO'!$I$35:$X$394,16,0),"") -> 2212.923663
D58: 6 | F58: =INDEX('Cronograma HIPO'!$I$35:$I$394,MATCH(F57,'Cronograma HIPO'!$I$35:$I$394,0)+1,1) -> 2025-11-07 | G58: =+IFERROR(VLOOKUP(F58,'Cronograma HIPO'!$I$35:$K$394,3,0),"") -> 249020.9004 | H58: =+IFERROR(VLOOKUP(F58,'Cronograma HIPO'!$I$35:$Q$394,9,0),"") -> 400.0815411 | J58: =+IFERROR(VLOOKUP(F58,'Cronograma HIPO'!$I$35:$S$394,11,0),"") -> 1655.792075 | L58: =+IFERROR(VLOOKUP(F58,'Cronograma HIPO'!$I$35:$T$394,12,0),"") -> 72.05004718 | N58: =+IFERROR(VLOOKUP(F58,'Cronograma HIPO'!$I$35:$U$394,13,0),"") -> 85 | O58: =+IFERROR(VLOOKUP(F58,'Cronograma HIPO'!$I$35:$X$394,16,0),"") -> 2212.923663
D59: 7 | F59: =INDEX('Cronograma HIPO'!$I$35:$I$394,MATCH(F58,'Cronograma HIPO'!$I$35:$I$394,0)+1,1) -> 2025-12-07 | G59: =+IFERROR(VLOOKUP(F59,'Cronograma HIPO'!$I$35:$K$394,3,0),"") -> 248620.8189 | H59: =+IFERROR(VLOOKUP(F59,'Cronograma HIPO'!$I$35:$Q$394,9,0),"") -> 458.6759991 | J59: =+IFERROR(VLOOKUP(F59,'Cronograma HIPO'!$I$35:$S$394,11,0),"") -> 1599.633835 | L59: =+IFERROR(VLOOKUP(F59,'Cronograma HIPO'!$I$35:$T$394,12,0),"") -> 69.61382928 | N59: =+IFERROR(VLOOKUP(F59,'Cronograma HIPO'!$I$35:$U$394,13,0),"") -> 85 | O59: =+IFERROR(VLOOKUP(F59,'Cronograma HIPO'!$I$35:$X$394,16,0),"") -> 2212.923663
D60: 8 | F60: =INDEX('Cronograma HIPO'!$I$35:$I$394,MATCH(F59,'Cronograma HIPO'!$I$35:$I$394,0)+1,1) -> 2026-01-07 | G60: =+IFERROR(VLOOKUP(F60,'Cronograma HIPO'!$I$35:$K$394,3,0),"") -> 248162.1429 | H60: =+IFERROR(VLOOKUP(F60,'Cronograma HIPO'!$I$35:$Q$394,9,0),"") -> 406.0400669 | J60: =+IFERROR(VLOOKUP(F60,'Cronograma HIPO'!$I$35:$S$394,11,0),"") -> 1650.082016 | L60: =+IFERROR(VLOOKUP(F60,'Cronograma HIPO'!$I$35:$T$394,12,0),"") -> 71.80158 | N60: =+IFERROR(VLOOKUP(F60,'Cronograma HIPO'!$I$35:$U$394,13,0),"") -> 85 | O60: =+IFERROR(VLOOKUP(F60,'Cronograma HIPO'!$I$35:$X$394,16,0),"") -> 2212.923663
D61: 9 | F61: =INDEX('Cronograma HIPO'!$I$35:$I$394,MATCH(F60,'Cronograma HIPO'!$I$35:$I$394,0)+1,1) -> 2026-02-07 | G61: =+IFERROR(VLOOKUP(F61,'Cronograma HIPO'!$I$35:$K$394,3,0),"") -> 247756.1028 | H61: =+IFERROR(VLOOKUP(F61,'Cronograma HIPO'!$I$35:$Q$394,9,0),"") -> 408.8573932 | J61: =+IFERROR(VLOOKUP(F61,'Cronograma HIPO'!$I$35:$S$394,11,0),"") -> 1647.382171 | L61: =+IFERROR(VLOOKUP(F61,'Cronograma HIPO'!$I$35:$T$394,12,0),"") -> 71.68409907 | N61: =+IFERROR(VLOOKUP(F61,'Cronograma HIPO'!$I$35:$U$394,13,0),"") -> 85 | O61: =+IFERROR(VLOOKUP(F61,'Cronograma HIPO'!$I$35:$X$394,16,0),"") -> 2212.923663
D62: 10 | F62: =INDEX('Cronograma HIPO'!$I$35:$I$394,MATCH(F61,'Cronograma HIPO'!$I$35:$I$394,0)+1,1) -> 2026-03-07 | G62: =+IFERROR(VLOOKUP(F62,'Cronograma HIPO'!$I$35:$K$394,3,0),"") -> 247347.2454 | H62: =+IFERROR(VLOOKUP(F62,'Cronograma HIPO'!$I$35:$Q$394,9,0),"") -> 578.257765 | J62: =+IFERROR(VLOOKUP(F62,'Cronograma HIPO'!$I$35:$S$394,11,0),"") -> 1485.025818 | L62: =+IFERROR(VLOOKUP(F62,'Cronograma HIPO'!$I$35:$T$394,12,0),"") -> 64.64008013 | N62: =+IFERROR(VLOOKUP(F62,'Cronograma HIPO'!$I$35:$U$394,13,0),"") -> 85 | O62: =+IFERROR(VLOOKUP(F62,'Cronograma HIPO'!$I$35:$X$394,16,0),"") -> 2212.923663
D63: 11 | F63: =+IFERROR(VLOOKUP(D63,'Cronograma HIPO'!$C$35:$I$394,7,0),"") -> 2026-04-07 | G63: =+IFERROR(VLOOKUP(D63,'Cronograma HIPO'!$C$35:$K$394,9,0),"") -> 246768.9876 | H63: =+IFERROR(VLOOKUP(D63,'Cronograma HIPO'!$C$35:$Q$394,15,0),"") -> 415.7065337 | J63: =+IFERROR(VLOOKUP(D63,'Cronograma HIPO'!$C$35:$R$394,16,0),"") -> 1712.217129 | L63: =+IFERROR(VLOOKUP(D63,'Cronograma HIPO'!$C$35:$T$394,18,0),"") -> 71.39849375 | N63: =+IFERROR(VLOOKUP(D63,'Cronograma HIPO'!$C$35:$U$394,19,0),"") -> 85 | O63: =+IFERROR(VLOOKUP(D63,'Cronograma HIPO'!$C$35:$X$394,22,0),"") -> 2212.923663
D64: 12 | F64: =+IFERROR(VLOOKUP(D64,'Cronograma HIPO'!$C$35:$I$394,7,0),"") -> 2026-05-07 | G64: =+IFERROR(VLOOKUP(D64,'Cronograma HIPO'!$C$35:$K$394,9,0),"") -> 246353.2811 | H64: =+IFERROR(VLOOKUP(D64,'Cronograma HIPO'!$C$35:$Q$394,15,0),"") -> 473.9003159 | J64: =+IFERROR(VLOOKUP(D64,'Cronograma HIPO'!$C$35:$R$394,16,0),"") -> 1654.023347 | L64: =+IFERROR(VLOOKUP(D64,'Cronograma HIPO'!$C$35:$T$394,18,0),"") -> 68.97891871 | N64: =+IFERROR(VLOOKUP(D64,'Cronograma HIPO'!$C$35:$U$394,19,0),"") -> 85 | O64: =+IFERROR(VLOOKUP(D64,'Cronograma HIPO'!$C$35:$X$394,22,0),"") -> 2212.923663
D65: 13 | F65: =+IFERROR(VLOOKUP(D65,'Cronograma HIPO'!$C$35:$I$394,7,0),"") -> 2026-06-07 | G65: =+IFERROR(VLOOKUP(D65,'Cronograma HIPO'!$C$35:$K$394,9,0),"") -> 245879.3808 | H65: =+IFERROR(VLOOKUP(D65,'Cronograma HIPO'!$C$35:$Q$394,15,0),"") -> 421.8791087 | J65: =+IFERROR(VLOOKUP(D65,'Cronograma HIPO'!$C$35:$R$394,16,0),"") -> 1706.044554 | L65: =+IFERROR(VLOOKUP(D65,'Cronograma HIPO'!$C$35:$T$394,18,0),"") -> 71.14110084 | N65: =+IFERROR(VLOOKUP(D65,'Cronograma HIPO'!$C$35:$U$394,19,0),"") -> 85 | O65: =+IFERROR(VLOOKUP(D65,'Cronograma HIPO'!$C$35:$X$394,22,0),"") -> 2212.923663
D66: 14 | F66: =+IFERROR(VLOOKUP(D66,'Cronograma HIPO'!$C$35:$I$394,7,0),"") -> 2026-07-07 | G66: =+IFERROR(VLOOKUP(D66,'Cronograma HIPO'!$C$35:$K$394,9,0),"") -> 245457.5017 | H66: =+IFERROR(VLOOKUP(D66,'Cronograma HIPO'!$C$35:$Q$394,15,0),"") -> 479.9146059 | J66: =+IFERROR(VLOOKUP(D66,'Cronograma HIPO'!$C$35:$R$394,16,0),"") -> 1648.009057 | L66: =+IFERROR(VLOOKUP(D66,'Cronograma HIPO'!$C$35:$T$394,18,0),"") -> 68.72810047 | N66: =+IFERROR(VLOOKUP(D66,'Cronograma HIPO'!$C$35:$U$394,19,0),"") -> 85 | O66: =+IFERROR(VLOOKUP(D66,'Cronograma HIPO'!$C$35:$X$394,22,0),"") -> 2212.923663
D67: 15 | F67: =+IFERROR(VLOOKUP(D67,'Cronograma HIPO'!$C$35:$I$394,7,0),"") -> 2026-08-07 | G67: =+IFERROR(VLOOKUP(D67,'Cronograma HIPO'!$C$35:$K$394,9,0),"") -> 244977.5871 | H67: =+IFERROR(VLOOKUP(D67,'Cronograma HIPO'!$C$35:$Q$394,15,0),"") -> 428.1362428 | J67: =+IFERROR(VLOOKUP(D67,'Cronograma HIPO'!$C$35:$R$394,16,0),"") -> 1699.78742 | L67: =+IFERROR(VLOOKUP(D67,'Cronograma HIPO'!$C$35:$T$394,18,0),"") -> 70.88018186 | N67: =+IFERROR(VLOOKUP(D67,'Cronograma HIPO'!$C$35:$U$394,19,0),"") -> 85 | O67: =+IFERROR(VLOOKUP(D67,'Cronograma HIPO'!$C$35:$X$394,22,0),"") -> 2212.923663
D68: 16 | F68: =+IFERROR(VLOOKUP(D68,'Cronograma HIPO'!$C$35:$I$394,7,0),"") -> 2026-09-07 | G68: =+IFERROR(VLOOKUP(D68,'Cronograma HIPO'!$C$35:$K$394,9,0),"") -> 244549.4508 | H68: =+IFERROR(VLOOKUP(D68,'Cronograma HIPO'!$C$35:$Q$394,15,0),"") -> 431.1068844 | J68: =+IFERROR(VLOOKUP(D68,'Cronograma HIPO'!$C$35:$R$394,16,0),"") -> 1696.816779 | L68: =+IFERROR(VLOOKUP(D68,'Cronograma HIPO'!$C$35:$T$394,18,0),"") -> 70.75630777 | N68: =+IFERROR(VLOOKUP(D68,'Cronograma HIPO'!$C$35:$U$394,19,0),"") -> 85 | O68: =+IFERROR(VLOOKUP(D68,'Cronograma HIPO'!$C$35:$X$394,22,0),"") -> 2212.923663
D69: 17 | F69: =+IFERROR(VLOOKUP(D69,'Cronograma HIPO'!$C$35:$I$394,7,0),"") -> 2026-10-07 | G69: =+IFERROR(VLOOKUP(D69,'Cronograma HIPO'!$C$35:$K$394,9,0),"") -> 244118.3439 | H69: =+IFERROR(VLOOKUP(D69,'Cronograma HIPO'!$C$35:$Q$394,15,0),"") -> 488.9057512 | J69: =+IFERROR(VLOOKUP(D69,'Cronograma HIPO'!$C$35:$R$394,16,0),"") -> 1639.017912 | L69: =+IFERROR(VLOOKUP(D69,'Cronograma HIPO'!$C$35:$T$394,18,0),"") -> 68.3531363 | N69: =+IFERROR(VLOOKUP(D69,'Cronograma HIPO'!$C$35:$U$394,19,0),"") -> 85 | O69: =+IFERROR(VLOOKUP(D69,'Cronograma HIPO'!$C$35:$X$394,22,0),"") -> 2212.923663
D70: 18 | F70: =+IFERROR(VLOOKUP(D70,'Cronograma HIPO'!$C$35:$I$394,7,0),"") -> 2026-11-07 | G70: =+IFERROR(VLOOKUP(D70,'Cronograma HIPO'!$C$35:$K$394,9,0),"") -> 243629.4382 | H70: =+IFERROR(VLOOKUP(D70,'Cronograma HIPO'!$C$35:$Q$394,15,0),"") -> 437.4904312 | J70: =+IFERROR(VLOOKUP(D70,'Cronograma HIPO'!$C$35:$R$394,16,0),"") -> 1690.433232 | L70: =+IFERROR(VLOOKUP(D70,'Cronograma HIPO'!$C$35:$T$394,18,0),"") -> 70.49011745 | N70: =+IFERROR(VLOOKUP(D70,'Cronograma HIPO'!$C$35:$U$394,19,0),"") -> 85 | O70: =+IFERROR(VLOOKUP(D70,'Cronograma HIPO'!$C$35:$X$394,22,0),"") -> 2212.923663
D71: 19 | F71: =+IFERROR(VLOOKUP(D71,'Cronograma HIPO'!$C$35:$I$394,7,0),"") -> 2026-12-07 | G71: =+IFERROR(VLOOKUP(D71,'Cronograma HIPO'!$C$35:$K$394,9,0),"") -> 243191.9478 | H71: =+IFERROR(VLOOKUP(D71,'Cronograma HIPO'!$C$35:$Q$394,15,0),"") -> 495.1256031 | J71: =+IFERROR(VLOOKUP(D71,'Cronograma HIPO'!$C$35:$R$394,16,0),"") -> 1632.79806 | L71: =+IFERROR(VLOOKUP(D71,'Cronograma HIPO'!$C$35:$T$394,18,0),"") -> 68.09374537 | N71: =+IFERROR(VLOOKUP(D71,'Cronograma HIPO'!$C$35:$U$394,19,0),"") -> 85 | O71: =+IFERROR(VLOOKUP(D71,'Cronograma HIPO'!$C$35:$X$394,22,0),"") -> 2212.923663
D72: 20 | F72: =+IFERROR(VLOOKUP(D72,'Cronograma HIPO'!$C$35:$I$394,7,0),"") -> 2027-01-07 | G72: =+IFERROR(VLOOKUP(D72,'Cronograma HIPO'!$C$35:$K$394,9,0),"") -> 242696.8222 | H72: =+IFERROR(VLOOKUP(D72,'Cronograma HIPO'!$C$35:$Q$394,15,0),"") -> 443.9614273 | J72: =+IFERROR(VLOOKUP(D72,'Cronograma HIPO'!$C$35:$R$394,16,0),"") -> 1683.962236 | L72: =+IFERROR(VLOOKUP(D72,'Cronograma HIPO'!$C$35:$T$394,18,0),"") -> 70.22028054 | N72: =+IFERROR(VLOOKUP(D72,'Cronograma HIPO'!$C$35:$U$394,19,0),"") -> 85 | O72: =+IFERROR(VLOOKUP(D72,'Cronograma HIPO'!$C$35:$X$394,22,0),"") -> 2212.923663
D73: 21 | F73: =+IFERROR(VLOOKUP(D73,'Cronograma HIPO'!$C$35:$I$394,7,0),"") -> 2027-02-07 | G73: =+IFERROR(VLOOKUP(D73,'Cronograma HIPO'!$C$35:$K$394,9,0),"") -> 242252.8607 | H73: =+IFERROR(VLOOKUP(D73,'Cronograma HIPO'!$C$35:$Q$394,15,0),"") -> 447.0418726 | J73: =+IFERROR(VLOOKUP(D73,'Cronograma HIPO'!$C$35:$R$394,16,0),"") -> 1680.88179 | L73: =+IFERROR(VLOOKUP(D73,'Cronograma HIPO'!$C$35:$T$394,18,0),"") -> 70.0918277 | N73: =+IFERROR(VLOOKUP(D73,'Cronograma HIPO'!$C$35:$U$394,19,0),"") -> 85 | O73: =+IFERROR(VLOOKUP(D73,'Cronograma HIPO'!$C$35:$X$394,22,0),"") -> 2212.923663
D74: 22 | F74: =+IFERROR(VLOOKUP(D74,'Cronograma HIPO'!$C$35:$I$394,7,0),"") -> 2027-03-07 | G74: =+IFERROR(VLOOKUP(D74,'Cronograma HIPO'!$C$35:$K$394,9,0),"") -> 241805.8189 | H74: =+IFERROR(VLOOKUP(D74,'Cronograma HIPO'!$C$35:$Q$394,15,0),"") -> 612.9755955 | J74: =+IFERROR(VLOOKUP(D74,'Cronograma HIPO'!$C$35:$R$394,16,0),"") -> 1514.948067 | L74: =+IFERROR(VLOOKUP(D74,'Cronograma HIPO'!$C$35:$T$394,18,0),"") -> 63.19192066 | N74: =+IFERROR(VLOOKUP(D74,'Cronograma HIPO'!$C$35:$U$394,19,0),"") -> 85 | O74: =+IFERROR(VLOOKUP(D74,'Cronograma HIPO'!$C$35:$X$394,22,0),"") -> 2212.923663
D75: 23 | F75: =+IFERROR(VLOOKUP(D75,'Cronograma HIPO'!$C$35:$I$394,7,0),"") -> 2027-04-07 | G75: =+IFERROR(VLOOKUP(D75,'Cronograma HIPO'!$C$35:$K$394,9,0),"") -> 241192.8433 | H75: =+IFERROR(VLOOKUP(D75,'Cronograma HIPO'!$C$35:$Q$394,15,0),"") -> 454.3968489 | J75: =+IFERROR(VLOOKUP(D75,'Cronograma HIPO'!$C$35:$R$394,16,0),"") -> 1673.526814 | L75: =+IFERROR(VLOOKUP(D75,'Cronograma HIPO'!$C$35:$T$394,18,0),"") -> 69.78512932 | N75: =+IFERROR(VLOOKUP(D75,'Cronograma HIPO'!$C$35:$U$394,19,0),"") -> 85 | O75: =+IFERROR(VLOOKUP(D75,'Cronograma HIPO'!$C$35:$X$394,22,0),"") -> 2212.923663
D76: 24 | F76: =+IFERROR(VLOOKUP(D76,'Cronograma HIPO'!$C$35:$I$394,7,0),"") -> 2027-05-07 | G76: =+IFERROR(VLOOKUP(D76,'Cronograma HIPO'!$C$35:$K$394,9,0),"") -> 240738.4464 | H76: =+IFERROR(VLOOKUP(D76,'Cronograma HIPO'!$C$35:$Q$394,15,0),"") -> 511.598485 | J76: =+IFERROR(VLOOKUP(D76,'Cronograma HIPO'!$C$35:$R$394,16,0),"") -> 1616.325178 | L76: =+IFERROR(VLOOKUP(D76,'Cronograma HIPO'!$C$35:$T$394,18,0),"") -> 67.40676499 | N76: =+IFERROR(VLOOKUP(D76,'Cronograma HIPO'!$C$35:$U$394,19,0),"") -> 85 | O76: =+IFERROR(VLOOKUP(D76,'Cronograma HIPO'!$C$35:$X$394,22,0),"") -> 2212.923663
D77: 25 | F77: =+IFERROR(VLOOKUP(D77,'Cronograma HIPO'!$C$35:$I$394,7,0),"") -> 2027-06-07 | G77: =+IFERROR(VLOOKUP(D77,'Cronograma HIPO'!$C$35:$K$394,9,0),"") -> 240226.8479 | H77: =+IFERROR(VLOOKUP(D77,'Cronograma HIPO'!$C$35:$Q$394,15,0),"") -> 461.0994487 | J77: =+IFERROR(VLOOKUP(D77,'Cronograma HIPO'!$C$35:$R$394,16,0),"") -> 1666.824214 | L77: =+IFERROR(VLOOKUP(D77,'Cronograma HIPO'!$C$35:$T$394,18,0),"") -> 69.50563467 | N77: =+IFERROR(VLOOKUP(D77,'Cronograma HIPO'!$C$35:$U$394,19,0),"") -> 85 | O77: =+IFERROR(VLOOKUP(D77,'Cronograma HIPO'!$C$35:$X$394,22,0),"") -> 2212.923663
D78: 26 | F78: =+IFERROR(VLOOKUP(D78,'Cronograma HIPO'!$C$35:$I$394,7,0),"") -> 2027-07-07 | G78: =+IFERROR(VLOOKUP(D78,'Cronograma HIPO'!$C$35:$K$394,9,0),"") -> 239765.7485 | H78: =+IFERROR(VLOOKUP(D78,'Cronograma HIPO'!$C$35:$Q$394,15,0),"") -> 518.1292082 | J78: =+IFERROR(VLOOKUP(D78,'Cronograma HIPO'!$C$35:$R$394,16,0),"") -> 1609.794455 | L78: =+IFERROR(VLOOKUP(D78,'Cronograma HIPO'!$C$35:$T$394,18,0),"") -> 67.13440957 | N78: =+IFERROR(VLOOKUP(D78,'Cronograma HIPO'!$C$35:$U$394,19,0),"") -> 85 | O78: =+IFERROR(VLOOKUP(D78,'Cronograma HIPO'!$C$35:$X$394,22,0),"") -> 2212.923663
D79: 27 | F79: =+IFERROR(VLOOKUP(D79,'Cronograma HIPO'!$C$35:$I$394,7,0),"") -> 2027-08-07 | G79: =+IFERROR(VLOOKUP(D79,'Cronograma HIPO'!$C$35:$K$394,9,0),"") -> 239247.6193 | H79: =+IFERROR(VLOOKUP(D79,'Cronograma HIPO'!$C$35:$Q$394,15,0),"") -> 467.8938684 | J79: =+IFERROR(VLOOKUP(D79,'Cronograma HIPO'!$C$35:$R$394,16,0),"") -> 1660.029794 | L79: =+IFERROR(VLOOKUP(D79,'Cronograma HIPO'!$C$35:$T$394,18,0),"") -> 69.22231117 | N79: =+IFERROR(VLOOKUP(D79,'Cronograma HIPO'!$C$35:$U$394,19,0),"") -> 85 | O79: =+IFERROR(VLOOKUP(D79,'Cronograma HIPO'!$C$35:$X$394,22,0),"") -> 2212.923663
D80: 28 | F80: =+IFERROR(VLOOKUP(D80,'Cronograma HIPO'!$C$35:$I$394,7,0),"") -> 2027-09-07 | G80: =+IFERROR(VLOOKUP(D80,'Cronograma HIPO'!$C$35:$K$394,9,0),"") -> 238779.7254 | H80: =+IFERROR(VLOOKUP(D80,'Cronograma HIPO'!$C$35:$Q$394,15,0),"") -> 471.1403699 | J80: =+IFERROR(VLOOKUP(D80,'Cronograma HIPO'!$C$35:$R$394,16,0),"") -> 1656.783293 | L80: =+IFERROR(VLOOKUP(D80,'Cronograma HIPO'!$C$35:$T$394,18,0),"") -> 69.08693388 | N80: =+IFERROR(VLOOKUP(D80,'Cronograma HIPO'!$C$35:$U$394,19,0),"") -> 85 | O80: =+IFERROR(VLOOKUP(D80,'Cronograma HIPO'!$C$35:$X$394,22,0),"") -> 2212.923663
D81: 29 | F81: =+IFERROR(VLOOKUP(D81,'Cronograma HIPO'!$C$35:$I$394,7,0),"") -> 2027-10-07 | G81: =+IFERROR(VLOOKUP(D81,'Cronograma HIPO'!$C$35:$K$394,9,0),"") -> 238308.585 | H81: =+IFERROR(VLOOKUP(D81,'Cronograma HIPO'!$C$35:$Q$394,15,0),"") -> 527.9126475 | J81: =+IFERROR(VLOOKUP(D81,'Cronograma HIPO'!$C$35:$R$394,16,0),"") -> 1600.011015 | L81: =+IFERROR(VLOOKUP(D81,'Cronograma HIPO'!$C$35:$T$394,18,0),"") -> 66.72640381 | N81: =+IFERROR(VLOOKUP(D81,'Cronograma HIPO'!$C$35:$U$394,19,0),"") -> 85 | O81: =+IFERROR(VLOOKUP(D81,'Cronograma HIPO'!$C$35:$X$394,22,0),"") -> 2212.923663
D82: 30 | F82: =+IFERROR(VLOOKUP(D82,'Cronograma HIPO'!$C$35:$I$394,7,0),"") -> 2027-11-07 | G82: =+IFERROR(VLOOKUP(D82,'Cronograma HIPO'!$C$35:$K$394,9,0),"") -> 237780.6724 | H82: =+IFERROR(VLOOKUP(D82,'Cronograma HIPO'!$C$35:$Q$394,15,0),"") -> 478.0723418 | J82: =+IFERROR(VLOOKUP(D82,'Cronograma HIPO'!$C$35:$R$394,16,0),"") -> 1649.851321 | L82: =+IFERROR(VLOOKUP(D82,'Cronograma HIPO'!$C$35:$T$394,18,0),"") -> 68.79787454 | N82: =+IFERROR(VLOOKUP(D82,'Cronograma HIPO'!$C$35:$U$394,19,0),"") -> 85 | O82: =+IFERROR(VLOOKUP(D82,'Cronograma HIPO'!$C$35:$X$394,22,0),"") -> 2212.923663
D83: 31 | F83: =+IFERROR(VLOOKUP(D83,'Cronograma HIPO'!$C$35:$I$394,7,0),"") -> 2027-12-07 | G83: =+IFERROR(VLOOKUP(D83,'Cronograma HIPO'!$C$35:$K$394,9,0),"") -> 237302.6 | H83: =+IFERROR(VLOOKUP(D83,'Cronograma HIPO'!$C$35:$Q$394,15,0),"") -> 534.666861 | J83: =+IFERROR(VLOOKUP(D83,'Cronograma HIPO'!$C$35:$R$394,16,0),"") -> 1593.256802 | L83: =+IFERROR(VLOOKUP(D83,'Cronograma HIPO'!$C$35:$T$394,18,0),"") -> 66.44472801 | N83: =+IFERROR(VLOOKUP(D83,'Cronograma HIPO'!$C$35:$U$394,19,0),"") -> 85 | O83: =+IFERROR(VLOOKUP(D83,'Cronograma HIPO'!$C$35:$X$394,22,0),"") -> 2212.923663
D84: 32 | F84: =+IFERROR(VLOOKUP(D84,'Cronograma HIPO'!$C$35:$I$394,7,0),"") -> 2028-01-07 | G84: =+IFERROR(VLOOKUP(D84,'Cronograma HIPO'!$C$35:$K$394,9,0),"") -> 236767.9332 | H84: =+IFERROR(VLOOKUP(D84,'Cronograma HIPO'!$C$35:$Q$394,15,0),"") -> 485.0992759 | J84: =+IFERROR(VLOOKUP(D84,'Cronograma HIPO'!$C$35:$R$394,16,0),"") -> 1642.824387 | L84: =+IFERROR(VLOOKUP(D84,'Cronograma HIPO'!$C$35:$T$394,18,0),"") -> 68.50485533 | N84: =+IFERROR(VLOOKUP(D84,'Cronograma HIPO'!$C$35:$U$394,19,0),"") -> 85 | O84: =+IFERROR(VLOOKUP(D84,'Cronograma HIPO'!$C$35:$X$394,22,0),"") -> 2212.923663
D85: 33 | F85: =+IFERROR(VLOOKUP(D85,'Cronograma HIPO'!$C$35:$I$394,7,0),"") -> 2028-02-07 | G85: =+IFERROR(VLOOKUP(D85,'Cronograma HIPO'!$C$35:$K$394,9,0),"") -> 236282.8339 | H85: =+IFERROR(VLOOKUP(D85,'Cronograma HIPO'!$C$35:$Q$394,15,0),"") -> 488.4651579 | J85: =+IFERROR(VLOOKUP(D85,'Cronograma HIPO'!$C$35:$R$394,16,0),"") -> 1639.458505 | L85: =+IFERROR(VLOOKUP(D85,'Cronograma HIPO'!$C$35:$T$394,18,0),"") -> 68.36449994 | N85: =+IFERROR(VLOOKUP(D85,'Cronograma HIPO'!$C$35:$U$394,19,0),"") -> 85 | O85: =+IFERROR(VLOOKUP(D85,'Cronograma HIPO'!$C$35:$X$394,22,0),"") -> 2212.923663
D86: 34 | F86: =+IFERROR(VLOOKUP(D86,'Cronograma HIPO'!$C$35:$I$394,7,0),"") -> 2028-03-07 | G86: =+IFERROR(VLOOKUP(D86,'Cronograma HIPO'!$C$35:$K$394,9,0),"") -> 235794.3687 | H86: =+IFERROR(VLOOKUP(D86,'Cronograma HIPO'!$C$35:$Q$394,15,0),"") -> 597.7211028 | J86: =+IFERROR(VLOOKUP(D86,'Cronograma HIPO'!$C$35:$R$394,16,0),"") -> 1530.20256 | L86: =+IFERROR(VLOOKUP(D86,'Cronograma HIPO'!$C$35:$T$394,18,0),"") -> 63.82167581 | N86: =+IFERROR(VLOOKUP(D86,'Cronograma HIPO'!$C$35:$U$394,19,0),"") -> 85 | O86: =+IFERROR(VLOOKUP(D86,'Cronograma HIPO'!$C$35:$X$394,22,0),"") -> 2212.923663
D87: 35 | F87: =+IFERROR(VLOOKUP(D87,'Cronograma HIPO'!$C$35:$I$394,7,0),"") -> 2028-04-07 | G87: =+IFERROR(VLOOKUP(D87,'Cronograma HIPO'!$C$35:$K$394,9,0),"") -> 235196.6476 | H87: =+IFERROR(VLOOKUP(D87,'Cronograma HIPO'!$C$35:$Q$394,15,0),"") -> 496.0017075 | J87: =+IFERROR(VLOOKUP(D87,'Cronograma HIPO'!$C$35:$R$394,16,0),"") -> 1631.921955 | L87: =+IFERROR(VLOOKUP(D87,'Cronograma HIPO'!$C$35:$T$394,18,0),"") -> 68.05023005 | N87: =+IFERROR(VLOOKUP(D87,'Cronograma HIPO'!$C$35:$U$394,19,0),"") -> 85 | O87: =+IFERROR(VLOOKUP(D87,'Cronograma HIPO'!$C$35:$X$394,22,0),"") -> 2212.923663
D88: 36 | F88: =+IFERROR(VLOOKUP(D88,'Cronograma HIPO'!$C$35:$I$394,7,0),"") -> 2028-05-07 | G88: =+IFERROR(VLOOKUP(D88,'Cronograma HIPO'!$C$35:$K$394,9,0),"") -> 234700.6459 | H88: =+IFERROR(VLOOKUP(D88,'Cronograma HIPO'!$C$35:$Q$394,15,0),"") -> 552.1364592 | J88: =+IFERROR(VLOOKUP(D88,'Cronograma HIPO'!$C$35:$R$394,16,0),"") -> 1575.787204 | L88: =+IFERROR(VLOOKUP(D88,'Cronograma HIPO'!$C$35:$T$394,18,0),"") -> 65.71618086 | N88: =+IFERROR(VLOOKUP(D88,'Cronograma HIPO'!$C$35:$U$394,19,0),"") -> 85 | O88: =+IFERROR(VLOOKUP(D88,'Cronograma HIPO'!$C$35:$X$394,22,0),"") -> 2212.923663
D89: 37 | F89: =+IFERROR(VLOOKUP(D89,'Cronograma HIPO'!$C$35:$I$394,7,0),"") -> 2028-06-07 | G89: =+IFERROR(VLOOKUP(D89,'Cronograma HIPO'!$C$35:$K$394,9,0),"") -> 234148.5095 | H89: =+IFERROR(VLOOKUP(D89,'Cronograma HIPO'!$C$35:$Q$394,15,0),"") -> 503.2742588 | J89: =+IFERROR(VLOOKUP(D89,'Cronograma HIPO'!$C$35:$R$394,16,0),"") -> 1624.649404 | L89: =+IFERROR(VLOOKUP(D89,'Cronograma HIPO'!$C$35:$T$394,18,0),"") -> 67.74696874 | N89: =+IFERROR(VLOOKUP(D89,'Cronograma HIPO'!$C$35:$U$394,19,0),"") -> 85 | O89: =+IFERROR(VLOOKUP(D89,'Cronograma HIPO'!$C$35:$X$394,22,0),"") -> 2212.923663
D90: 38 | F90: =+IFERROR(VLOOKUP(D90,'Cronograma HIPO'!$C$35:$I$394,7,0),"") -> 2028-07-07 | G90: =+IFERROR(VLOOKUP(D90,'Cronograma HIPO'!$C$35:$K$394,9,0),"") -> 233645.2352 | H90: =+IFERROR(VLOOKUP(D90,'Cronograma HIPO'!$C$35:$Q$394,15,0),"") -> 559.2225185 | J90: =+IFERROR(VLOOKUP(D90,'Cronograma HIPO'!$C$35:$R$394,16,0),"") -> 1568.701144 | L90: =+IFERROR(VLOOKUP(D90,'Cronograma HIPO'!$C$35:$T$394,18,0),"") -> 65.42066586 | N90: =+IFERROR(VLOOKUP(D90,'Cronograma HIPO'!$C$35:$U$394,19,0),"") -> 85 | O90: =+IFERROR(VLOOKUP(D90,'Cronograma HIPO'!$C$35:$X$394,22,0),"") -> 2212.923663
D91: 39 | F91: =+IFERROR(VLOOKUP(D91,'Cronograma HIPO'!$C$35:$I$394,7,0),"") -> 2028-08-07 | G91: =+IFERROR(VLOOKUP(D91,'Cronograma HIPO'!$C$35:$K$394,9,0),"") -> 233086.0127 | H91: =+IFERROR(VLOOKUP(D91,'Cronograma HIPO'!$C$35:$Q$394,15,0),"") -> 510.646438 | J91: =+IFERROR(VLOOKUP(D91,'Cronograma HIPO'!$C$35:$R$394,16,0),"") -> 1617.277225 | L91: =+IFERROR(VLOOKUP(D91,'Cronograma HIPO'!$C$35:$T$394,18,0),"") -> 67.43955301 | N91: =+IFERROR(VLOOKUP(D91,'Cronograma HIPO'!$C$35:$U$394,19,0),"") -> 85 | O91: =+IFERROR(VLOOKUP(D91,'Cronograma HIPO'!$C$35:$X$394,22,0),"") -> 2212.923663
D92: 40 | F92: =+IFERROR(VLOOKUP(D92,'Cronograma HIPO'!$C$35:$I$394,7,0),"") -> 2028-09-07 | G92: =+IFERROR(VLOOKUP(D92,'Cronograma HIPO'!$C$35:$K$394,9,0),"") -> 232575.3663 | H92: =+IFERROR(VLOOKUP(D92,'Cronograma HIPO'!$C$35:$Q$394,15,0),"") -> 514.18958 | J92: =+IFERROR(VLOOKUP(D92,'Cronograma HIPO'!$C$35:$R$394,16,0),"") -> 1613.734083 | L92: =+IFERROR(VLOOKUP(D92,'Cronograma HIPO'!$C$35:$T$394,18,0),"") -> 67.29180597 | N92: =+IFERROR(VLOOKUP(D92,'Cronograma HIPO'!$C$35:$U$394,19,0),"") -> 85 | O92: =+IFERROR(VLOOKUP(D92,'Cronograma HIPO'!$C$35:$X$394,22,0),"") -> 2212.923663
D93: 41 | F93: =+IFERROR(VLOOKUP(D93,'Cronograma HIPO'!$C$35:$I$394,7,0),"") -> 2028-10-07 | G93: =+IFERROR(VLOOKUP(D93,'Cronograma HIPO'!$C$35:$K$394,9,0),"") -> 232061.1767 | H93: =+IFERROR(VLOOKUP(D93,'Cronograma HIPO'!$C$35:$Q$394,15,0),"") -> 569.8579352 | J93: =+IFERROR(VLOOKUP(D93,'Cronograma HIPO'!$C$35:$R$394,16,0),"") -> 1558.065728 | L93: =+IFERROR(VLOOKUP(D93,'Cronograma HIPO'!$C$35:$T$394,18,0),"") -> 64.97712947 | N93: =+IFERROR(VLOOKUP(D93,'Cronograma HIPO'!$C$35:$U$394,19,0),"") -> 85 | O93: =+IFERROR(VLOOKUP(D93,'Cronograma HIPO'!$C$35:$X$394,22,0),"") -> 2212.923663
D94: 42 | F94: =+IFERROR(VLOOKUP(D94,'Cronograma HIPO'!$C$35:$I$394,7,0),"") -> 2028-11-07 | G94: =+IFERROR(VLOOKUP(D94,'Cronograma HIPO'!$C$35:$K$394,9,0),"") -> 231491.3187 | H94: =+IFERROR(VLOOKUP(D94,'Cronograma HIPO'!$C$35:$Q$394,15,0),"") -> 521.7112899 | J94: =+IFERROR(VLOOKUP(D94,'Cronograma HIPO'!$C$35:$R$394,16,0),"") -> 1606.212373 | L94: =+IFERROR(VLOOKUP(D94,'Cronograma HIPO'!$C$35:$T$394,18,0),"") -> 66.97815489 | N94: =+IFERROR(VLOOKUP(D94,'Cronograma HIPO'!$C$35:$U$394,19,0),"") -> 85 | O94: =+IFERROR(VLOOKUP(D94,'Cronograma HIPO'!$C$35:$X$394,22,0),"") -> 2212.923663
D95: 43 | F95: =+IFERROR(VLOOKUP(D95,'Cronograma HIPO'!$C$35:$I$394,7,0),"") -> 2028-12-07 | G95: =+IFERROR(VLOOKUP(D95,'Cronograma HIPO'!$C$35:$K$394,9,0),"") -> 230969.6075 | H95: =+IFERROR(VLOOKUP(D95,'Cronograma HIPO'!$C$35:$Q$394,15,0),"") -> 577.1867639 | J95: =+IFERROR(VLOOKUP(D95,'Cronograma HIPO'!$C$35:$R$394,16,0),"") -> 1550.736899 | L95: =+IFERROR(VLOOKUP(D95,'Cronograma HIPO'!$C$35:$T$394,18,0),"") -> 64.67149009 | N95: =+IFERROR(VLOOKUP(D95,'Cronograma HIPO'!$C$35:$U$394,19,0),"") -> 85 | O95: =+IFERROR(VLOOKUP(D95,'Cronograma HIPO'!$C$35:$X$394,22,0),"") -> 2212.923663
D96: 44 | F96: =+IFERROR(VLOOKUP(D96,'Cronograma HIPO'!$C$35:$I$394,7,0),"") -> 2029-01-07 | G96: =+IFERROR(VLOOKUP(D96,'Cronograma HIPO'!$C$35:$K$394,9,0),"") -> 230392.4207 | H96: =+IFERROR(VLOOKUP(D96,'Cronograma HIPO'!$C$35:$Q$394,15,0),"") -> 529.3360408 | J96: =+IFERROR(VLOOKUP(D96,'Cronograma HIPO'!$C$35:$R$394,16,0),"") -> 1598.587622 | L96: =+IFERROR(VLOOKUP(D96,'Cronograma HIPO'!$C$35:$T$394,18,0),"") -> 66.66020705 | N96: =+IFERROR(VLOOKUP(D96,'Cronograma HIPO'!$C$35:$U$394,19,0),"") -> 85 | O96: =+IFERROR(VLOOKUP(D96,'Cronograma HIPO'!$C$35:$X$394,22,0),"") -> 2212.923663
D97: 45 | F97: =+IFERROR(VLOOKUP(D97,'Cronograma HIPO'!$C$35:$I$394,7,0),"") -> 2029-02-07 | G97: =+IFERROR(VLOOKUP(D97,'Cronograma HIPO'!$C$35:$K$394,9,0),"") -> 229863.0847 | H97: =+IFERROR(VLOOKUP(D97,'Cronograma HIPO'!$C$35:$Q$394,15,0),"") -> 533.0088615 | J97: =+IFERROR(VLOOKUP(D97,'Cronograma HIPO'!$C$35:$R$394,16,0),"") -> 1594.914801 | L97: =+IFERROR(VLOOKUP(D97,'Cronograma HIPO'!$C$35:$T$394,18,0),"") -> 66.50705249 | N97: =+IFERROR(VLOOKUP(D97,'Cronograma HIPO'!$C$35:$U$394,19,0),"") -> 85 | O97: =+IFERROR(VLOOKUP(D97,'Cronograma HIPO'!$C$35:$X$394,22,0),"") -> 2212.923663
D98: 46 | F98: =+IFERROR(VLOOKUP(D98,'Cronograma HIPO'!$C$35:$I$394,7,0),"") -> 2029-03-07 | G98: =+IFERROR(VLOOKUP(D98,'Cronograma HIPO'!$C$35:$K$394,9,0),"") -> 229330.0758 | H98: =+IFERROR(VLOOKUP(D98,'Cronograma HIPO'!$C$35:$Q$394,15,0),"") -> 691.1379116 | J98: =+IFERROR(VLOOKUP(D98,'Cronograma HIPO'!$C$35:$R$394,16,0),"") -> 1436.785751 | L98: =+IFERROR(VLOOKUP(D98,'Cronograma HIPO'!$C$35:$T$394,18,0),"") -> 59.93159314 | N98: =+IFERROR(VLOOKUP(D98,'Cronograma HIPO'!$C$35:$U$394,19,0),"") -> 85 | O98: =+IFERROR(VLOOKUP(D98,'Cronograma HIPO'!$C$35:$X$394,22,0),"") -> 2212.923663
D99: 47 | F99: =+IFERROR(VLOOKUP(D99,'Cronograma HIPO'!$C$35:$I$394,7,0),"") -> 2029-04-07 | G99: =+IFERROR(VLOOKUP(D99,'Cronograma HIPO'!$C$35:$K$394,9,0),"") -> 228638.9379 | H99: =+IFERROR(VLOOKUP(D99,'Cronograma HIPO'!$C$35:$Q$394,15,0),"") -> 541.502656 | J99: =+IFERROR(VLOOKUP(D99,'Cronograma HIPO'!$C$35:$R$394,16,0),"") -> 1586.421007 | L99: =+IFERROR(VLOOKUP(D99,'Cronograma HIPO'!$C$35:$T$394,18,0),"") -> 66.15286603 | N99: =+IFERROR(VLOOKUP(D99,'Cronograma HIPO'!$C$35:$U$394,19,0),"") -> 85 | O99: =+IFERROR(VLOOKUP(D99,'Cronograma HIPO'!$C$35:$X$394,22,0),"") -> 2212.923663
D100: 48 | F100: =+IFERROR(VLOOKUP(D100,'Cronograma HIPO'!$C$35:$I$394,7,0),"") -> 2029-05-07 | G100: =+IFERROR(VLOOKUP(D100,'Cronograma HIPO'!$C$35:$K$394,9,0),"") -> 228097.4352 | H100: =+IFERROR(VLOOKUP(D100,'Cronograma HIPO'!$C$35:$Q$394,15,0),"") -> 596.4706148 | J100: =+IFERROR(VLOOKUP(D100,'Cronograma HIPO'!$C$35:$R$394,16,0),"") -> 1531.453048 | L100: =+IFERROR(VLOOKUP(D100,'Cronograma HIPO'!$C$35:$T$394,18,0),"") -> 63.86728186 | N100: =+IFERROR(VLOOKUP(D100,'Cronograma HIPO'!$C$35:$U$394,19,0),"") -> 85 | O100: =+IFERROR(VLOOKUP(D100,'Cronograma HIPO'!$C$35:$X$394,22,0),"") -> 2212.923663
D101: 49 | F101: =+IFERROR(VLOOKUP(D101,'Cronograma HIPO'!$C$35:$I$394,7,0),"") -> 2029-06-07 | G101: =+IFERROR(VLOOKUP(D101,'Cronograma HIPO'!$C$35:$K$394,9,0),"") -> 227500.9646 | H101: =+IFERROR(VLOOKUP(D101,'Cronograma HIPO'!$C$35:$Q$394,15,0),"") -> 549.398532 | J101: =+IFERROR(VLOOKUP(D101,'Cronograma HIPO'!$C$35:$R$394,16,0),"") -> 1578.525131 | L101: =+IFERROR(VLOOKUP(D101,'Cronograma HIPO'!$C$35:$T$394,18,0),"") -> 65.82361243 | N101: =+IFERROR(VLOOKUP(D101,'Cronograma HIPO'!$C$35:$U$394,19,0),"") -> 85 | O101: =+IFERROR(VLOOKUP(D101,'Cronograma HIPO'!$C$35:$X$394,22,0),"") -> 2212.923663
D102: 50 | F102: =+IFERROR(VLOOKUP(D102,'Cronograma HIPO'!$C$35:$I$394,7,0),"") -> 2029-07-07 | G102: =+IFERROR(VLOOKUP(D102,'Cronograma HIPO'!$C$35:$K$394,9,0),"") -> 226951.5661 | H102: =+IFERROR(VLOOKUP(D102,'Cronograma HIPO'!$C$35:$Q$394,15,0),"") -> 604.1640147 | J102: =+IFERROR(VLOOKUP(D102,'Cronograma HIPO'!$C$35:$R$394,16,0),"") -> 1523.759648 | L102: =+IFERROR(VLOOKUP(D102,'Cronograma HIPO'!$C$35:$T$394,18,0),"") -> 63.5464385 | N102: =+IFERROR(VLOOKUP(D102,'Cronograma HIPO'!$C$35:$U$394,19,0),"") -> 85 | O102: =+IFERROR(VLOOKUP(D102,'Cronograma HIPO'!$C$35:$X$394,22,0),"") -> 2212.923663
D103: 51 | F103: =+IFERROR(VLOOKUP(D103,'Cronograma HIPO'!$C$35:$I$394,7,0),"") -> 2029-08-07 | G103: =+IFERROR(VLOOKUP(D103,'Cronograma HIPO'!$C$35:$K$394,9,0),"") -> 226347.4021 | H103: =+IFERROR(VLOOKUP(D103,'Cronograma HIPO'!$C$35:$Q$394,15,0),"") -> 557.4025748 | J103: =+IFERROR(VLOOKUP(D103,'Cronograma HIPO'!$C$35:$R$394,16,0),"") -> 1570.521088 | L103: =+IFERROR(VLOOKUP(D103,'Cronograma HIPO'!$C$35:$T$394,18,0),"") -> 65.48984833 | N103: =+IFERROR(VLOOKUP(D103,'Cronograma HIPO'!$C$35:$U$394,19,0),"") -> 85 | O103: =+IFERROR(VLOOKUP(D103,'Cronograma HIPO'!$C$35:$X$394,22,0),"") -> 2212.923663
D104: 52 | F104: =+IFERROR(VLOOKUP(D104,'Cronograma HIPO'!$C$35:$I$394,7,0),"") -> 2029-09-07 | G104: =+IFERROR(VLOOKUP(D104,'Cronograma HIPO'!$C$35:$K$394,9,0),"") -> 225789.9995 | H104: =+IFERROR(VLOOKUP(D104,'Cronograma HIPO'!$C$35:$Q$394,15,0),"") -> 561.2701363 | J104: =+IFERROR(VLOOKUP(D104,'Cronograma HIPO'!$C$35:$R$394,16,0),"") -> 1566.653527 | L104: =+IFERROR(VLOOKUP(D104,'Cronograma HIPO'!$C$35:$T$394,18,0),"") -> 65.32857318 | N104: =+IFERROR(VLOOKUP(D104,'Cronograma HIPO'!$C$35:$U$394,19,0),"") -> 85 | O104: =+IFERROR(VLOOKUP(D104,'Cronograma HIPO'!$C$35:$X$394,22,0),"") -> 2212.923663
D105: 53 | F105: =+IFERROR(VLOOKUP(D105,'Cronograma HIPO'!$C$35:$I$394,7,0),"") -> 2029-10-07 | G105: =+IFERROR(VLOOKUP(D105,'Cronograma HIPO'!$C$35:$K$394,9,0),"") -> 225228.7294 | H105: =+IFERROR(VLOOKUP(D105,'Cronograma HIPO'!$C$35:$Q$394,15,0),"") -> 615.7311924 | J105: =+IFERROR(VLOOKUP(D105,'Cronograma HIPO'!$C$35:$R$394,16,0),"") -> 1512.192471 | L105: =+IFERROR(VLOOKUP(D105,'Cronograma HIPO'!$C$35:$T$394,18,0),"") -> 63.06404422 | N105: =+IFERROR(VLOOKUP(D105,'Cronograma HIPO'!$C$35:$U$394,19,0),"") -> 85 | O105: =+IFERROR(VLOOKUP(D105,'Cronograma HIPO'!$C$35:$X$394,22,0),"") -> 2212.923663
D106: 54 | F106: =+IFERROR(VLOOKUP(D106,'Cronograma HIPO'!$C$35:$I$394,7,0),"") -> 2029-11-07 | G106: =+IFERROR(VLOOKUP(D106,'Cronograma HIPO'!$C$35:$K$394,9,0),"") -> 224612.9982 | H106: =+IFERROR(VLOOKUP(D106,'Cronograma HIPO'!$C$35:$Q$394,15,0),"") -> 569.4368102 | J106: =+IFERROR(VLOOKUP(D106,'Cronograma HIPO'!$C$35:$R$394,16,0),"") -> 1558.486853 | L106: =+IFERROR(VLOOKUP(D106,'Cronograma HIPO'!$C$35:$T$394,18,0),"") -> 64.98802747 | N106: =+IFERROR(VLOOKUP(D106,'Cronograma HIPO'!$C$35:$U$394,19,0),"") -> 85 | O106: =+IFERROR(VLOOKUP(D106,'Cronograma HIPO'!$C$35:$X$394,22,0),"") -> 2212.923663
D107: 55 | F107: =+IFERROR(VLOOKUP(D107,'Cronograma HIPO'!$C$35:$I$394,7,0),"") -> 2029-12-07 | G107: =+IFERROR(VLOOKUP(D107,'Cronograma HIPO'!$C$35:$K$394,9,0),"") -> 224043.5614 | H107: =+IFERROR(VLOOKUP(D107,'Cronograma HIPO'!$C$35:$Q$394,15,0),"") -> 623.688446 | J107: =+IFERROR(VLOOKUP(D107,'Cronograma HIPO'!$C$35:$R$394,16,0),"") -> 1504.235217 | L107: =+IFERROR(VLOOKUP(D107,'Cronograma HIPO'!$C$35:$T$394,18,0),"") -> 62.73219718 | N107: =+IFERROR(VLOOKUP(D107,'Cronograma HIPO'!$C$35:$U$394,19,0),"") -> 85 | O107: =+IFERROR(VLOOKUP(D107,'Cronograma HIPO'!$C$35:$X$394,22,0),"") -> 2212.923663
D108: 56 | F108: =+IFERROR(VLOOKUP(D108,'Cronograma HIPO'!$C$35:$I$394,7,0),"") -> 2030-01-07 | G108: =+IFERROR(VLOOKUP(D108,'Cronograma HIPO'!$C$35:$K$394,9,0),"") -> 223419.8729 | H108: =+IFERROR(VLOOKUP(D108,'Cronograma HIPO'!$C$35:$Q$394,15,0),"") -> 577.7153606 | J108: =+IFERROR(VLOOKUP(D108,'Cronograma HIPO'!$C$35:$R$394,16,0),"") -> 1550.208302 | L108: =+IFERROR(VLOOKUP(D108,'Cronograma HIPO'!$C$35:$T$394,18,0),"") -> 64.64281656 | N108: =+IFERROR(VLOOKUP(D108,'Cronograma HIPO'!$C$35:$U$394,19,0),"") -> 85 | O108: =+IFERROR(VLOOKUP(D108,'Cronograma HIPO'!$C$35:$X$394,22,0),"") -> 2212.923663
D109: 57 | F109: =+IFERROR(VLOOKUP(D109,'Cronograma HIPO'!$C$35:$I$394,7,0),"") -> 2030-02-07 | G109: =+IFERROR(VLOOKUP(D109,'Cronograma HIPO'!$C$35:$K$394,9,0),"") -> 222842.1575 | H109: =+IFERROR(VLOOKUP(D109,'Cronograma HIPO'!$C$35:$Q$394,15,0),"") -> 581.7238632 | J109: =+IFERROR(VLOOKUP(D109,'Cronograma HIPO'!$C$35:$R$394,16,0),"") -> 1546.1998 | L109: =+IFERROR(VLOOKUP(D109,'Cronograma HIPO'!$C$35:$T$394,18,0),"") -> 64.47566425 | N109: =+IFERROR(VLOOKUP(D109,'Cronograma HIPO'!$C$35:$U$394,19,0),"") -> 85 | O109: =+IFERROR(VLOOKUP(D109,'Cronograma HIPO'!$C$35:$X$394,22,0),"") -> 2212.923663
D110: 58 | F110: =+IFERROR(VLOOKUP(D110,'Cronograma HIPO'!$C$35:$I$394,7,0),"") -> 2030-03-07 | G110: =+IFERROR(VLOOKUP(D110,'Cronograma HIPO'!$C$35:$K$394,9,0),"") -> 222260.4337 | H110: =+IFERROR(VLOOKUP(D110,'Cronograma HIPO'!$C$35:$Q$394,15,0),"") -> 735.4302314 | J110: =+IFERROR(VLOOKUP(D110,'Cronograma HIPO'!$C$35:$R$394,16,0),"") -> 1392.493431 | L110: =+IFERROR(VLOOKUP(D110,'Cronograma HIPO'!$C$35:$T$394,18,0),"") -> 58.08406 | N110: =+IFERROR(VLOOKUP(D110,'Cronograma HIPO'!$C$35:$U$394,19,0),"") -> 85 | O110: =+IFERROR(VLOOKUP(D110,'Cronograma HIPO'!$C$35:$X$394,22,0),"") -> 2212.923663
D111: 59 | F111: =+IFERROR(VLOOKUP(D111,'Cronograma HIPO'!$C$35:$I$394,7,0),"") -> 2030-04-07 | G111: =+IFERROR(VLOOKUP(D111,'Cronograma HIPO'!$C$35:$K$394,9,0),"") -> 221525.0034 | H111: =+IFERROR(VLOOKUP(D111,'Cronograma HIPO'!$C$35:$Q$394,15,0),"") -> 590.862993 | J111: =+IFERROR(VLOOKUP(D111,'Cronograma HIPO'!$C$35:$R$394,16,0),"") -> 1537.06067 | L111: =+IFERROR(VLOOKUP(D111,'Cronograma HIPO'!$C$35:$T$394,18,0),"") -> 64.09456766 | N111: =+IFERROR(VLOOKUP(D111,'Cronograma HIPO'!$C$35:$U$394,19,0),"") -> 85 | O111: =+IFERROR(VLOOKUP(D111,'Cronograma HIPO'!$C$35:$X$394,22,0),"") -> 2212.923663
D112: 60 | F112: =+IFERROR(VLOOKUP(D112,'Cronograma HIPO'!$C$35:$I$394,7,0),"") -> 2030-05-07 | G112: =+IFERROR(VLOOKUP(D112,'Cronograma HIPO'!$C$35:$K$394,9,0),"") -> 220934.1405 | H112: =+IFERROR(VLOOKUP(D112,'Cronograma HIPO'!$C$35:$Q$394,15,0),"") -> 644.5651915 | J112: =+IFERROR(VLOOKUP(D112,'Cronograma HIPO'!$C$35:$R$394,16,0),"") -> 1483.358471 | L112: =+IFERROR(VLOOKUP(D112,'Cronograma HIPO'!$C$35:$T$394,18,0),"") -> 61.86155933 | N112: =+IFERROR(VLOOKUP(D112,'Cronograma HIPO'!$C$35:$U$394,19,0),"") -> 85 | O112: =+IFERROR(VLOOKUP(D112,'Cronograma HIPO'!$C$35:$X$394,22,0),"") -> 2212.923663
D113: 61 | F113: =+IFERROR(VLOOKUP(D113,'Cronograma HIPO'!$C$35:$I$394,7,0),"") -> 2030-06-07 | G113: =+IFERROR(VLOOKUP(D113,'Cronograma HIPO'!$C$35:$K$394,9,0),"") -> 220289.5753 | H113: =+IFERROR(VLOOKUP(D113,'Cronograma HIPO'!$C$35:$Q$394,15,0),"") -> 599.435064 | J113: =+IFERROR(VLOOKUP(D113,'Cronograma HIPO'!$C$35:$R$394,16,0),"") -> 1528.488599 | L113: =+IFERROR(VLOOKUP(D113,'Cronograma HIPO'!$C$35:$T$394,18,0),"") -> 63.73711711 | N113: =+IFERROR(VLOOKUP(D113,'Cronograma HIPO'!$C$35:$U$394,19,0),"") -> 85 | O113: =+IFERROR(VLOOKUP(D113,'Cronograma HIPO'!$C$35:$X$394,22,0),"") -> 2212.923663
D114: 62 | F114: =+IFERROR(VLOOKUP(D114,'Cronograma HIPO'!$C$35:$I$394,7,0),"") -> 2030-07-07 | G114: =+IFERROR(VLOOKUP(D114,'Cronograma HIPO'!$C$35:$K$394,9,0),"") -> 219690.1402 | H114: =+IFERROR(VLOOKUP(D114,'Cronograma HIPO'!$C$35:$Q$394,15,0),"") -> 652.9174467 | J114: =+IFERROR(VLOOKUP(D114,'Cronograma HIPO'!$C$35:$R$394,16,0),"") -> 1475.006216 | L114: =+IFERROR(VLOOKUP(D114,'Cronograma HIPO'!$C$35:$T$394,18,0),"") -> 61.51323926 | N114: =+IFERROR(VLOOKUP(D114,'Cronograma HIPO'!$C$35:$U$394,19,0),"") -> 85 | O114: =+IFERROR(VLOOKUP(D114,'Cronograma HIPO'!$C$35:$X$394,22,0),"") -> 2212.923663
D115: 63 | F115: =+IFERROR(VLOOKUP(D115,'Cronograma HIPO'!$C$35:$I$394,7,0),"") -> 2030-08-07 | G115: =+IFERROR(VLOOKUP(D115,'Cronograma HIPO'!$C$35:$K$394,9,0),"") -> 219037.2228 | H115: =+IFERROR(VLOOKUP(D115,'Cronograma HIPO'!$C$35:$Q$394,15,0),"") -> 608.1245653 | J115: =+IFERROR(VLOOKUP(D115,'Cronograma HIPO'!$C$35:$R$394,16,0),"") -> 1519.799098 | L115: =+IFERROR(VLOOKUP(D115,'Cronograma HIPO'!$C$35:$T$394,18,0),"") -> 63.37476978 | N115: =+IFERROR(VLOOKUP(D115,'Cronograma HIPO'!$C$35:$U$394,19,0),"") -> 85 | O115: =+IFERROR(VLOOKUP(D115,'Cronograma HIPO'!$C$35:$X$394,22,0),"") -> 2212.923663
D116: 64 | F116: =+IFERROR(VLOOKUP(D116,'Cronograma HIPO'!$C$35:$I$394,7,0),"") -> 2030-09-07 | G116: =+IFERROR(VLOOKUP(D116,'Cronograma HIPO'!$C$35:$K$394,9,0),"") -> 218429.0982 | H116: =+IFERROR(VLOOKUP(D116,'Cronograma HIPO'!$C$35:$Q$394,15,0),"") -> 612.3440635 | J116: =+IFERROR(VLOOKUP(D116,'Cronograma HIPO'!$C$35:$R$394,16,0),"") -> 1515.579599 | L116: =+IFERROR(VLOOKUP(D116,'Cronograma HIPO'!$C$35:$T$394,18,0),"") -> 63.19881907 | N116: =+IFERROR(VLOOKUP(D116,'Cronograma HIPO'!$C$35:$U$394,19,0),"") -> 85 | O116: =+IFERROR(VLOOKUP(D116,'Cronograma HIPO'!$C$35:$X$394,22,0),"") -> 2212.923663
D117: 65 | F117: =+IFERROR(VLOOKUP(D117,'Cronograma HIPO'!$C$35:$I$394,7,0),"") -> 2030-10-07 | G117: =+IFERROR(VLOOKUP(D117,'Cronograma HIPO'!$C$35:$K$394,9,0),"") -> 217816.7541 | H117: =+IFERROR(VLOOKUP(D117,'Cronograma HIPO'!$C$35:$Q$394,15,0),"") -> 665.4954172 | J117: =+IFERROR(VLOOKUP(D117,'Cronograma HIPO'!$C$35:$R$394,16,0),"") -> 1462.428246 | L117: =+IFERROR(VLOOKUP(D117,'Cronograma HIPO'!$C$35:$T$394,18,0),"") -> 60.98869115 | N117: =+IFERROR(VLOOKUP(D117,'Cronograma HIPO'!$C$35:$U$394,19,0),"") -> 85 | O117: =+IFERROR(VLOOKUP(D117,'Cronograma HIPO'!$C$35:$X$394,22,0),"") -> 2212.923663
D118: 66 | F118: =+IFERROR(VLOOKUP(D118,'Cronograma HIPO'!$C$35:$I$394,7,0),"") -> 2030-11-07 | G118: =+IFERROR(VLOOKUP(D118,'Cronograma HIPO'!$C$35:$K$394,9,0),"") -> 217151.2587 | H118: =+IFERROR(VLOOKUP(D118,'Cronograma HIPO'!$C$35:$Q$394,15,0),"") -> 621.2104071 | J118: =+IFERROR(VLOOKUP(D118,'Cronograma HIPO'!$C$35:$R$394,16,0),"") -> 1506.713256 | L118: =+IFERROR(VLOOKUP(D118,'Cronograma HIPO'!$C$35:$T$394,18,0),"") -> 62.82909752 | N118: =+IFERROR(VLOOKUP(D118,'Cronograma HIPO'!$C$35:$U$394,19,0),"") -> 85 | O118: =+IFERROR(VLOOKUP(D118,'Cronograma HIPO'!$C$35:$X$394,22,0),"") -> 2212.923663
D119: =+IF(D118="", "", IF((D118+1)>$G$19,"", D118+1)) -> 67 | F119: =+IFERROR(VLOOKUP(D119,'Cronograma HIPO'!$C$35:$I$394,7,0),"") -> 2030-12-07 | G119: =+IFERROR(VLOOKUP(D119,'Cronograma HIPO'!$C$35:$K$394,9,0),"") -> 216530.0483 | H119: =+IFERROR(VLOOKUP(D119,'Cronograma HIPO'!$C$35:$Q$394,15,0),"") -> 674.1343989 | J119: =+IFERROR(VLOOKUP(D119,'Cronograma HIPO'!$C$35:$R$394,16,0),"") -> 1453.789264 | L119: =+IFERROR(VLOOKUP(D119,'Cronograma HIPO'!$C$35:$T$394,18,0),"") -> 60.62841352 | N119: =+IFERROR(VLOOKUP(D119,'Cronograma HIPO'!$C$35:$U$394,19,0),"") -> 85 | O119: =+IFERROR(VLOOKUP(D119,'Cronograma HIPO'!$C$35:$X$394,22,0),"") -> 2212.923663
D120: 68 | F120: =+IFERROR(VLOOKUP(D120,'Cronograma HIPO'!$C$35:$I$394,7,0),"") -> 2031-01-07 | G120: =+IFERROR(VLOOKUP(D120,'Cronograma HIPO'!$C$35:$K$394,9,0),"") -> 215855.9139 | H120: =+IFERROR(VLOOKUP(D120,'Cronograma HIPO'!$C$35:$Q$394,15,0),"") -> 630.1982122 | J120: =+IFERROR(VLOOKUP(D120,'Cronograma HIPO'!$C$35:$R$394,16,0),"") -> 1497.725451 | L120: =+IFERROR(VLOOKUP(D120,'Cronograma HIPO'!$C$35:$T$394,18,0),"") -> 62.45431109 | N120: =+IFERROR(VLOOKUP(D120,'Cronograma HIPO'!$C$35:$U$394,19,0),"") -> 85 | O120: =+IFERROR(VLOOKUP(D120,'Cronograma HIPO'!$C$35:$X$394,22,0),"") -> 2212.923663
D121: 69 | F121: =+IFERROR(VLOOKUP(D121,'Cronograma HIPO'!$C$35:$I$394,7,0),"") -> 2031-02-07 | G121: =+IFERROR(VLOOKUP(D121,'Cronograma HIPO'!$C$35:$K$394,9,0),"") -> 215225.7157 | H121: =+IFERROR(VLOOKUP(D121,'Cronograma HIPO'!$C$35:$Q$394,15,0),"") -> 634.5708693 | J121: =+IFERROR(VLOOKUP(D121,'Cronograma HIPO'!$C$35:$R$394,16,0),"") -> 1493.352794 | L121: =+IFERROR(VLOOKUP(D121,'Cronograma HIPO'!$C$35:$T$394,18,0),"") -> 62.27197374 | N121: =+IFERROR(VLOOKUP(D121,'Cronograma HIPO'!$C$35:$U$394,19,0),"") -> 85 | O121: =+IFERROR(VLOOKUP(D121,'Cronograma HIPO'!$C$35:$X$394,22,0),"") -> 2212.923663
D122: 70 | F122: =+IFERROR(VLOOKUP(D122,'Cronograma HIPO'!$C$35:$I$394,7,0),"") -> 2031-03-07 | G122: =+IFERROR(VLOOKUP(D122,'Cronograma HIPO'!$C$35:$K$394,9,0),"") -> 214591.1448 | H122: =+IFERROR(VLOOKUP(D122,'Cronograma HIPO'!$C$35:$Q$394,15,0),"") -> 783.4794239 | J122: =+IFERROR(VLOOKUP(D122,'Cronograma HIPO'!$C$35:$R$394,16,0),"") -> 1344.444239 | L122: =+IFERROR(VLOOKUP(D122,'Cronograma HIPO'!$C$35:$T$394,18,0),"") -> 56.07981918 | N122: =+IFERROR(VLOOKUP(D122,'Cronograma HIPO'!$C$35:$U$394,19,0),"") -> 85 | O122: =+IFERROR(VLOOKUP(D122,'Cronograma HIPO'!$C$35:$X$394,22,0),"") -> 2212.923663
D123: 71 | F123: =+IFERROR(VLOOKUP(D123,'Cronograma HIPO'!$C$35:$I$394,7,0),"") -> 2031-04-07 | G123: =+IFERROR(VLOOKUP(D123,'Cronograma HIPO'!$C$35:$K$394,9,0),"") -> 213807.6654 | H123: =+IFERROR(VLOOKUP(D123,'Cronograma HIPO'!$C$35:$Q$394,15,0),"") -> 644.4100717 | J123: =+IFERROR(VLOOKUP(D123,'Cronograma HIPO'!$C$35:$R$394,16,0),"") -> 1483.513591 | L123: =+IFERROR(VLOOKUP(D123,'Cronograma HIPO'!$C$35:$T$394,18,0),"") -> 61.86168452 | N123: =+IFERROR(VLOOKUP(D123,'Cronograma HIPO'!$C$35:$U$394,19,0),"") -> 85 | O123: =+IFERROR(VLOOKUP(D123,'Cronograma HIPO'!$C$35:$X$394,22,0),"") -> 2212.923663
D124: 72 | F124: =+IFERROR(VLOOKUP(D124,'Cronograma HIPO'!$C$35:$I$394,7,0),"") -> 2031-05-07 | G124: =+IFERROR(VLOOKUP(D124,'Cronograma HIPO'!$C$35:$K$394,9,0),"") -> 213163.2553 | H124: =+IFERROR(VLOOKUP(D124,'Cronograma HIPO'!$C$35:$Q$394,15,0),"") -> 696.7391483 | J124: =+IFERROR(VLOOKUP(D124,'Cronograma HIPO'!$C$35:$R$394,16,0),"") -> 1431.184515 | L124: =+IFERROR(VLOOKUP(D124,'Cronograma HIPO'!$C$35:$T$394,18,0),"") -> 59.68571149 | N124: =+IFERROR(VLOOKUP(D124,'Cronograma HIPO'!$C$35:$U$394,19,0),"") -> 85 | O124: =+IFERROR(VLOOKUP(D124,'Cronograma HIPO'!$C$35:$X$394,22,0),"") -> 2212.923663
D125: 73 | F125: =+IFERROR(VLOOKUP(D125,'Cronograma HIPO'!$C$35:$I$394,7,0),"") -> 2031-06-07 | G125: =+IFERROR(VLOOKUP(D125,'Cronograma HIPO'!$C$35:$K$394,9,0),"") -> 212466.5162 | H125: =+IFERROR(VLOOKUP(D125,'Cronograma HIPO'!$C$35:$Q$394,15,0),"") -> 653.7156927 | J125: =+IFERROR(VLOOKUP(D125,'Cronograma HIPO'!$C$35:$R$394,16,0),"") -> 1474.20797 | L125: =+IFERROR(VLOOKUP(D125,'Cronograma HIPO'!$C$35:$T$394,18,0),"") -> 61.47364535 | N125: =+IFERROR(VLOOKUP(D125,'Cronograma HIPO'!$C$35:$U$394,19,0),"") -> 85 | O125: =+IFERROR(VLOOKUP(D125,'Cronograma HIPO'!$C$35:$X$394,22,0),"") -> 2212.923663
D126: 74 | F126: =+IFERROR(VLOOKUP(D126,'Cronograma HIPO'!$C$35:$I$394,7,0),"") -> 2031-07-07 | G126: =+IFERROR(VLOOKUP(D126,'Cronograma HIPO'!$C$35:$K$394,9,0),"") -> 211812.8005 | H126: =+IFERROR(VLOOKUP(D126,'Cronograma HIPO'!$C$35:$Q$394,15,0),"") -> 705.8061427 | J126: =+IFERROR(VLOOKUP(D126,'Cronograma HIPO'!$C$35:$R$394,16,0),"") -> 1422.11752 | L126: =+IFERROR(VLOOKUP(D126,'Cronograma HIPO'!$C$35:$T$394,18,0),"") -> 59.30758413 | N126: =+IFERROR(VLOOKUP(D126,'Cronograma HIPO'!$C$35:$U$394,19,0),"") -> 85 | O126: =+IFERROR(VLOOKUP(D126,'Cronograma HIPO'!$C$35:$X$394,22,0),"") -> 2212.923663
D127: 75 | F127: =+IFERROR(VLOOKUP(D127,'Cronograma HIPO'!$C$35:$I$394,7,0),"") -> 2031-08-07 | G127: =+IFERROR(VLOOKUP(D127,'Cronograma HIPO'!$C$35:$K$394,9,0),"") -> 211106.9943 | H127: =+IFERROR(VLOOKUP(D127,'Cronograma HIPO'!$C$35:$Q$394,15,0),"") -> 663.1487928 | J127: =+IFERROR(VLOOKUP(D127,'Cronograma HIPO'!$C$35:$R$394,16,0),"") -> 1464.77487 | L127: =+IFERROR(VLOOKUP(D127,'Cronograma HIPO'!$C$35:$T$394,18,0),"") -> 61.08029036 | N127: =+IFERROR(VLOOKUP(D127,'Cronograma HIPO'!$C$35:$U$394,19,0),"") -> 85 | O127: =+IFERROR(VLOOKUP(D127,'Cronograma HIPO'!$C$35:$X$394,22,0),"") -> 2212.923663
D128: 76 | F128: =+IFERROR(VLOOKUP(D128,'Cronograma HIPO'!$C$35:$I$394,7,0),"") -> 2031-09-07 | G128: =+IFERROR(VLOOKUP(D128,'Cronograma HIPO'!$C$35:$K$394,9,0),"") -> 210443.8455 | H128: =+IFERROR(VLOOKUP(D128,'Cronograma HIPO'!$C$35:$Q$394,15,0),"") -> 667.750079 | J128: =+IFERROR(VLOOKUP(D128,'Cronograma HIPO'!$C$35:$R$394,16,0),"") -> 1460.173584 | L128: =+IFERROR(VLOOKUP(D128,'Cronograma HIPO'!$C$35:$T$394,18,0),"") -> 60.88841931 | N128: =+IFERROR(VLOOKUP(D128,'Cronograma HIPO'!$C$35:$U$394,19,0),"") -> 85 | O128: =+IFERROR(VLOOKUP(D128,'Cronograma HIPO'!$C$35:$X$394,22,0),"") -> 2212.923663
D129: 77 | F129: =+IFERROR(VLOOKUP(D129,'Cronograma HIPO'!$C$35:$I$394,7,0),"") -> 2031-10-07 | G129: =+IFERROR(VLOOKUP(D129,'Cronograma HIPO'!$C$35:$K$394,9,0),"") -> 209776.0955 | H129: =+IFERROR(VLOOKUP(D129,'Cronograma HIPO'!$C$35:$Q$394,15,0),"") -> 719.4806415 | J129: =+IFERROR(VLOOKUP(D129,'Cronograma HIPO'!$C$35:$R$394,16,0),"") -> 1408.443021 | L129: =+IFERROR(VLOOKUP(D129,'Cronograma HIPO'!$C$35:$T$394,18,0),"") -> 58.73730673 | N129: =+IFERROR(VLOOKUP(D129,'Cronograma HIPO'!$C$35:$U$394,19,0),"") -> 85 | O129: =+IFERROR(VLOOKUP(D129,'Cronograma HIPO'!$C$35:$X$394,22,0),"") -> 2212.923663
D130: 78 | F130: =+IFERROR(VLOOKUP(D130,'Cronograma HIPO'!$C$35:$I$394,7,0),"") -> 2031-11-07 | G130: =+IFERROR(VLOOKUP(D130,'Cronograma HIPO'!$C$35:$K$394,9,0),"") -> 209056.6148 | H130: =+IFERROR(VLOOKUP(D130,'Cronograma HIPO'!$C$35:$Q$394,15,0),"") -> 677.3754384 | J130: =+IFERROR(VLOOKUP(D130,'Cronograma HIPO'!$C$35:$R$394,16,0),"") -> 1450.548224 | L130: =+IFERROR(VLOOKUP(D130,'Cronograma HIPO'!$C$35:$T$394,18,0),"") -> 60.48704722 | N130: =+IFERROR(VLOOKUP(D130,'Cronograma HIPO'!$C$35:$U$394,19,0),"") -> 85 | O130: =+IFERROR(VLOOKUP(D130,'Cronograma HIPO'!$C$35:$X$394,22,0),"") -> 2212.923663
D131: 79 | F131: =+IFERROR(VLOOKUP(D131,'Cronograma HIPO'!$C$35:$I$394,7,0),"") -> 2031-12-07 | G131: =+IFERROR(VLOOKUP(D131,'Cronograma HIPO'!$C$35:$K$394,9,0),"") -> 208379.2394 | H131: =+IFERROR(VLOOKUP(D131,'Cronograma HIPO'!$C$35:$Q$394,15,0),"") -> 728.8591753 | J131: =+IFERROR(VLOOKUP(D131,'Cronograma HIPO'!$C$35:$R$394,16,0),"") -> 1399.064488 | L131: =+IFERROR(VLOOKUP(D131,'Cronograma HIPO'!$C$35:$T$394,18,0),"") -> 58.34618703 | N131: =+IFERROR(VLOOKUP(D131,'Cronograma HIPO'!$C$35:$U$394,19,0),"") -> 85 | O131: =+IFERROR(VLOOKUP(D131,'Cronograma HIPO'!$C$35:$X$394,22,0),"") -> 2212.923663
D132: 80 | F132: =+IFERROR(VLOOKUP(D132,'Cronograma HIPO'!$C$35:$I$394,7,0),"") -> 2032-01-07 | G132: =+IFERROR(VLOOKUP(D132,'Cronograma HIPO'!$C$35:$K$394,9,0),"") -> 207650.3802 | H132: =+IFERROR(VLOOKUP(D132,'Cronograma HIPO'!$C$35:$Q$394,15,0),"") -> 687.1326571 | J132: =+IFERROR(VLOOKUP(D132,'Cronograma HIPO'!$C$35:$R$394,16,0),"") -> 1440.791006 | L132: =+IFERROR(VLOOKUP(D132,'Cronograma HIPO'!$C$35:$T$394,18,0),"") -> 60.08017667 | N132: =+IFERROR(VLOOKUP(D132,'Cronograma HIPO'!$C$35:$U$394,19,0),"") -> 85 | O132: =+IFERROR(VLOOKUP(D132,'Cronograma HIPO'!$C$35:$X$394,22,0),"") -> 2212.923663
D133: 81 | F133: =+IFERROR(VLOOKUP(D133,'Cronograma HIPO'!$C$35:$I$394,7,0),"") -> 2032-02-07 | G133: =+IFERROR(VLOOKUP(D133,'Cronograma HIPO'!$C$35:$K$394,9,0),"") -> 206963.2476 | H133: =+IFERROR(VLOOKUP(D133,'Cronograma HIPO'!$C$35:$Q$394,15,0),"") -> 691.9003563 | J133: =+IFERROR(VLOOKUP(D133,'Cronograma HIPO'!$C$35:$R$394,16,0),"") -> 1436.023307 | L133: =+IFERROR(VLOOKUP(D133,'Cronograma HIPO'!$C$35:$T$394,18,0),"") -> 59.88136629 | N133: =+IFERROR(VLOOKUP(D133,'Cronograma HIPO'!$C$35:$U$394,19,0),"") -> 85 | O133: =+IFERROR(VLOOKUP(D133,'Cronograma HIPO'!$C$35:$X$394,22,0),"") -> 2212.923663
D134: 82 | F134: =+IFERROR(VLOOKUP(D134,'Cronograma HIPO'!$C$35:$I$394,7,0),"") -> 2032-03-07 | G134: =+IFERROR(VLOOKUP(D134,'Cronograma HIPO'!$C$35:$K$394,9,0),"") -> 206271.3472 | H134: =+IFERROR(VLOOKUP(D134,'Cronograma HIPO'!$C$35:$Q$394,15,0),"") -> 789.3126297 | J134: =+IFERROR(VLOOKUP(D134,'Cronograma HIPO'!$C$35:$R$394,16,0),"") -> 1338.611033 | L134: =+IFERROR(VLOOKUP(D134,'Cronograma HIPO'!$C$35:$T$394,18,0),"") -> 55.83077797 | N134: =+IFERROR(VLOOKUP(D134,'Cronograma HIPO'!$C$35:$U$394,19,0),"") -> 85 | O134: =+IFERROR(VLOOKUP(D134,'Cronograma HIPO'!$C$35:$X$394,22,0),"") -> 2212.923663
D135: 83 | F135: =+IFERROR(VLOOKUP(D135,'Cronograma HIPO'!$C$35:$I$394,7,0),"") -> 2032-04-07 | G135: =+IFERROR(VLOOKUP(D135,'Cronograma HIPO'!$C$35:$K$394,9,0),"") -> 205482.0346 | H135: =+IFERROR(VLOOKUP(D135,'Cronograma HIPO'!$C$35:$Q$394,15,0),"") -> 702.1778157 | J135: =+IFERROR(VLOOKUP(D135,'Cronograma HIPO'!$C$35:$R$394,16,0),"") -> 1425.745847 | L135: =+IFERROR(VLOOKUP(D135,'Cronograma HIPO'!$C$35:$T$394,18,0),"") -> 59.452802 | N135: =+IFERROR(VLOOKUP(D135,'Cronograma HIPO'!$C$35:$U$394,19,0),"") -> 85 | O135: =+IFERROR(VLOOKUP(D135,'Cronograma HIPO'!$C$35:$X$394,22,0),"") -> 2212.923663
D136: 84 | F136: =+IFERROR(VLOOKUP(D136,'Cronograma HIPO'!$C$35:$I$394,7,0),"") -> 2032-05-07 | G136: =+IFERROR(VLOOKUP(D136,'Cronograma HIPO'!$C$35:$K$394,9,0),"") -> 204779.8568 | H136: =+IFERROR(VLOOKUP(D136,'Cronograma HIPO'!$C$35:$Q$394,15,0),"") -> 753.0255387 | J136: =+IFERROR(VLOOKUP(D136,'Cronograma HIPO'!$C$35:$R$394,16,0),"") -> 1374.898124 | L136: =+IFERROR(VLOOKUP(D136,'Cronograma HIPO'!$C$35:$T$394,18,0),"") -> 57.33835989 | N136: =+IFERROR(VLOOKUP(D136,'Cronograma HIPO'!$C$35:$U$394,19,0),"") -> 85 | O136: =+IFERROR(VLOOKUP(D136,'Cronograma HIPO'!$C$35:$X$394,22,0),"") -> 2212.923663
D137: 85 | F137: =+IFERROR(VLOOKUP(D137,'Cronograma HIPO'!$C$35:$I$394,7,0),"") -> 2032-06-07 | G137: =+IFERROR(VLOOKUP(D137,'Cronograma HIPO'!$C$35:$K$394,9,0),"") -> 204026.8312 | H137: =+IFERROR(VLOOKUP(D137,'Cronograma HIPO'!$C$35:$Q$394,15,0),"") -> 712.2748062 | J137: =+IFERROR(VLOOKUP(D137,'Cronograma HIPO'!$C$35:$R$394,16,0),"") -> 1415.648857 | L137: =+IFERROR(VLOOKUP(D137,'Cronograma HIPO'!$C$35:$T$394,18,0),"") -> 59.03176316 | N137: =+IFERROR(VLOOKUP(D137,'Cronograma HIPO'!$C$35:$U$394,19,0),"") -> 85 | O137: =+IFERROR(VLOOKUP(D137,'Cronograma HIPO'!$C$35:$X$394,22,0),"") -> 2212.923663
D138: 86 | F138: =+IFERROR(VLOOKUP(D138,'Cronograma HIPO'!$C$35:$I$394,7,0),"") -> 2032-07-07 | G138: =+IFERROR(VLOOKUP(D138,'Cronograma HIPO'!$C$35:$K$394,9,0),"") -> 203314.5564 | H138: =+IFERROR(VLOOKUP(D138,'Cronograma HIPO'!$C$35:$Q$394,15,0),"") -> 762.8636093 | J138: =+IFERROR(VLOOKUP(D138,'Cronograma HIPO'!$C$35:$R$394,16,0),"") -> 1365.060054 | L138: =+IFERROR(VLOOKUP(D138,'Cronograma HIPO'!$C$35:$T$394,18,0),"") -> 56.92807579 | N138: =+IFERROR(VLOOKUP(D138,'Cronograma HIPO'!$C$35:$U$394,19,0),"") -> 85 | O138: =+IFERROR(VLOOKUP(D138,'Cronograma HIPO'!$C$35:$X$394,22,0),"") -> 2212.923663
D139: 87 | F139: =+IFERROR(VLOOKUP(D139,'Cronograma HIPO'!$C$35:$I$394,7,0),"") -> 2032-08-07 | G139: =+IFERROR(VLOOKUP(D139,'Cronograma HIPO'!$C$35:$K$394,9,0),"") -> 202551.6928 | H139: =+IFERROR(VLOOKUP(D139,'Cronograma HIPO'!$C$35:$Q$394,15,0),"") -> 722.5101169 | J139: =+IFERROR(VLOOKUP(D139,'Cronograma HIPO'!$C$35:$R$394,16,0),"") -> 1405.413546 | L139: =+IFERROR(VLOOKUP(D139,'Cronograma HIPO'!$C$35:$T$394,18,0),"") -> 58.60495645 | N139: =+IFERROR(VLOOKUP(D139,'Cronograma HIPO'!$C$35:$U$394,19,0),"") -> 85 | O139: =+IFERROR(VLOOKUP(D139,'Cronograma HIPO'!$C$35:$X$394,22,0),"") -> 2212.923663
D140: 88 | F140: =+IFERROR(VLOOKUP(D140,'Cronograma HIPO'!$C$35:$I$394,7,0),"") -> 2032-09-07 | G140: =+IFERROR(VLOOKUP(D140,'Cronograma HIPO'!$C$35:$K$394,9,0),"") -> 201829.1827 | H140: =+IFERROR(VLOOKUP(D140,'Cronograma HIPO'!$C$35:$Q$394,15,0),"") -> 727.5232841 | J140: =+IFERROR(VLOOKUP(D140,'Cronograma HIPO'!$C$35:$R$394,16,0),"") -> 1400.400379 | L140: =+IFERROR(VLOOKUP(D140,'Cronograma HIPO'!$C$35:$T$394,18,0),"") -> 58.39591019 | N140: =+IFERROR(VLOOKUP(D140,'Cronograma HIPO'!$C$35:$U$394,19,0),"") -> 85 | O140: =+IFERROR(VLOOKUP(D140,'Cronograma HIPO'!$C$35:$X$394,22,0),"") -> 2212.923663
D141: 89 | F141: =+IFERROR(VLOOKUP(D141,'Cronograma HIPO'!$C$35:$I$394,7,0),"") -> 2032-10-07 | G141: =+IFERROR(VLOOKUP(D141,'Cronograma HIPO'!$C$35:$K$394,9,0),"") -> 201101.6594 | H141: =+IFERROR(VLOOKUP(D141,'Cronograma HIPO'!$C$35:$Q$394,15,0),"") -> 777.7210665 | J141: =+IFERROR(VLOOKUP(D141,'Cronograma HIPO'!$C$35:$R$394,16,0),"") -> 1350.202596 | L141: =+IFERROR(VLOOKUP(D141,'Cronograma HIPO'!$C$35:$T$394,18,0),"") -> 56.30846463 | N141: =+IFERROR(VLOOKUP(D141,'Cronograma HIPO'!$C$35:$U$394,19,0),"") -> 85 | O141: =+IFERROR(VLOOKUP(D141,'Cronograma HIPO'!$C$35:$X$394,22,0),"") -> 2212.923663
D142: 90 | F142: =+IFERROR(VLOOKUP(D142,'Cronograma HIPO'!$C$35:$I$394,7,0),"") -> 2032-11-07 | G142: =+IFERROR(VLOOKUP(D142,'Cronograma HIPO'!$C$35:$K$394,9,0),"") -> 200323.9383 | H142: =+IFERROR(VLOOKUP(D142,'Cronograma HIPO'!$C$35:$Q$394,15,0),"") -> 737.9674861 | J142: =+IFERROR(VLOOKUP(D142,'Cronograma HIPO'!$C$35:$R$394,16,0),"") -> 1389.956177 | L142: =+IFERROR(VLOOKUP(D142,'Cronograma HIPO'!$C$35:$T$394,18,0),"") -> 57.96039282 | N142: =+IFERROR(VLOOKUP(D142,'Cronograma HIPO'!$C$35:$U$394,19,0),"") -> 85 | O142: =+IFERROR(VLOOKUP(D142,'Cronograma HIPO'!$C$35:$X$394,22,0),"") -> 2212.923663
D143: 91 | F143: =+IFERROR(VLOOKUP(D143,'Cronograma HIPO'!$C$35:$I$394,7,0),"") -> 2032-12-07 | G143: =+IFERROR(VLOOKUP(D143,'Cronograma HIPO'!$C$35:$K$394,9,0),"") -> 199585.9708 | H143: =+IFERROR(VLOOKUP(D143,'Cronograma HIPO'!$C$35:$Q$394,15,0),"") -> 787.8974451 | J143: =+IFERROR(VLOOKUP(D143,'Cronograma HIPO'!$C$35:$R$394,16,0),"") -> 1340.026218 | L143: =+IFERROR(VLOOKUP(D143,'Cronograma HIPO'!$C$35:$T$394,18,0),"") -> 55.88407184 | N143: =+IFERROR(VLOOKUP(D143,'Cronograma HIPO'!$C$35:$U$394,19,0),"") -> 85 | O143: =+IFERROR(VLOOKUP(D143,'Cronograma HIPO'!$C$35:$X$394,22,0),"") -> 2212.923663
D144: 92 | F144: =+IFERROR(VLOOKUP(D144,'Cronograma HIPO'!$C$35:$I$394,7,0),"") -> 2033-01-07 | G144: =+IFERROR(VLOOKUP(D144,'Cronograma HIPO'!$C$35:$K$394,9,0),"") -> 198798.0734 | H144: =+IFERROR(VLOOKUP(D144,'Cronograma HIPO'!$C$35:$Q$394,15,0),"") -> 748.5547649 | J144: =+IFERROR(VLOOKUP(D144,'Cronograma HIPO'!$C$35:$R$394,16,0),"") -> 1379.368898 | L144: =+IFERROR(VLOOKUP(D144,'Cronograma HIPO'!$C$35:$T$394,18,0),"") -> 57.51890924 | N144: =+IFERROR(VLOOKUP(D144,'Cronograma HIPO'!$C$35:$U$394,19,0),"") -> 85 | O144: =+IFERROR(VLOOKUP(D144,'Cronograma HIPO'!$C$35:$X$394,22,0),"") -> 2212.923663
D145: 93 | F145: =+IFERROR(VLOOKUP(D145,'Cronograma HIPO'!$C$35:$I$394,7,0),"") -> 2033-02-07 | G145: =+IFERROR(VLOOKUP(D145,'Cronograma HIPO'!$C$35:$K$394,9,0),"") -> 198049.5186 | H145: =+IFERROR(VLOOKUP(D145,'Cronograma HIPO'!$C$35:$Q$394,15,0),"") -> 753.748644 | J145: =+IFERROR(VLOOKUP(D145,'Cronograma HIPO'!$C$35:$R$394,16,0),"") -> 1374.175019 | L145: =+IFERROR(VLOOKUP(D145,'Cronograma HIPO'!$C$35:$T$394,18,0),"") -> 57.30232739 | N145: =+IFERROR(VLOOKUP(D145,'Cronograma HIPO'!$C$35:$U$394,19,0),"") -> 85 | O145: =+IFERROR(VLOOKUP(D145,'Cronograma HIPO'!$C$35:$X$394,22,0),"") -> 2212.923663
D146: 94 | F146: =+IFERROR(VLOOKUP(D146,'Cronograma HIPO'!$C$35:$I$394,7,0),"") -> 2033-03-07 | G146: =+IFERROR(VLOOKUP(D146,'Cronograma HIPO'!$C$35:$K$394,9,0),"") -> 197295.77 | H146: =+IFERROR(VLOOKUP(D146,'Cronograma HIPO'!$C$35:$Q$394,15,0),"") -> 891.8374228 | J146: =+IFERROR(VLOOKUP(D146,'Cronograma HIPO'!$C$35:$R$394,16,0),"") -> 1236.08624 | L146: =+IFERROR(VLOOKUP(D146,'Cronograma HIPO'!$C$35:$T$394,18,0),"") -> 51.55996122 | N146: =+IFERROR(VLOOKUP(D146,'Cronograma HIPO'!$C$35:$U$394,19,0),"") -> 85 | O146: =+IFERROR(VLOOKUP(D146,'Cronograma HIPO'!$C$35:$X$394,22,0),"") -> 2212.923663
D147: 95 | F147: =+IFERROR(VLOOKUP(D147,'Cronograma HIPO'!$C$35:$I$394,7,0),"") -> 2033-04-07 | G147: =+IFERROR(VLOOKUP(D147,'Cronograma HIPO'!$C$35:$K$394,9,0),"") -> 196403.9326 | H147: =+IFERROR(VLOOKUP(D147,'Cronograma HIPO'!$C$35:$Q$394,15,0),"") -> 765.166613 | J147: =+IFERROR(VLOOKUP(D147,'Cronograma HIPO'!$C$35:$R$394,16,0),"") -> 1362.75705 | L147: =+IFERROR(VLOOKUP(D147,'Cronograma HIPO'!$C$35:$T$394,18,0),"") -> 56.82620449 | N147: =+IFERROR(VLOOKUP(D147,'Cronograma HIPO'!$C$35:$U$394,19,0),"") -> 85 | O147: =+IFERROR(VLOOKUP(D147,'Cronograma HIPO'!$C$35:$X$394,22,0),"") -> 2212.923663
D148: 96 | F148: =+IFERROR(VLOOKUP(D148,'Cronograma HIPO'!$C$35:$I$394,7,0),"") -> 2033-05-07 | G148: =+IFERROR(VLOOKUP(D148,'Cronograma HIPO'!$C$35:$K$394,9,0),"") -> 195638.766 | H148: =+IFERROR(VLOOKUP(D148,'Cronograma HIPO'!$C$35:$Q$394,15,0),"") -> 814.3990975 | J148: =+IFERROR(VLOOKUP(D148,'Cronograma HIPO'!$C$35:$R$394,16,0),"") -> 1313.524565 | L148: =+IFERROR(VLOOKUP(D148,'Cronograma HIPO'!$C$35:$T$394,18,0),"") -> 54.77885447 | N148: =+IFERROR(VLOOKUP(D148,'Cronograma HIPO'!$C$35:$U$394,19,0),"") -> 85 | O148: =+IFERROR(VLOOKUP(D148,'Cronograma HIPO'!$C$35:$X$394,22,0),"") -> 2212.923663
D149: 97 | F149: =+IFERROR(VLOOKUP(D149,'Cronograma HIPO'!$C$35:$I$394,7,0),"") -> 2033-06-07 | G149: =+IFERROR(VLOOKUP(D149,'Cronograma HIPO'!$C$35:$K$394,9,0),"") -> 194824.3669 | H149: =+IFERROR(VLOOKUP(D149,'Cronograma HIPO'!$C$35:$Q$394,15,0),"") -> 776.126497 | J149: =+IFERROR(VLOOKUP(D149,'Cronograma HIPO'!$C$35:$R$394,16,0),"") -> 1351.797166 | L149: =+IFERROR(VLOOKUP(D149,'Cronograma HIPO'!$C$35:$T$394,18,0),"") -> 56.36918348 | N149: =+IFERROR(VLOOKUP(D149,'Cronograma HIPO'!$C$35:$U$394,19,0),"") -> 85 | O149: =+IFERROR(VLOOKUP(D149,'Cronograma HIPO'!$C$35:$X$394,22,0),"") -> 2212.923663
D150: 98 | F150: =+IFERROR(VLOOKUP(D150,'Cronograma HIPO'!$C$35:$I$394,7,0),"") -> 2033-07-07 | G150: =+IFERROR(VLOOKUP(D150,'Cronograma HIPO'!$C$35:$K$394,9,0),"") -> 194048.2404 | H150: =+IFERROR(VLOOKUP(D150,'Cronograma HIPO'!$C$35:$Q$394,15,0),"") -> 825.0779343 | J150: =+IFERROR(VLOOKUP(D150,'Cronograma HIPO'!$C$35:$R$394,16,0),"") -> 1302.845729 | L150: =+IFERROR(VLOOKUP(D150,'Cronograma HIPO'!$C$35:$T$394,18,0),"") -> 54.3335073 | N150: =+IFERROR(VLOOKUP(D150,'Cronograma HIPO'!$C$35:$U$394,19,0),"") -> 85 | O150: =+IFERROR(VLOOKUP(D150,'Cronograma HIPO'!$C$35:$X$394,22,0),"") -> 2212.923663
D151: 99 | F151: =+IFERROR(VLOOKUP(D151,'Cronograma HIPO'!$C$35:$I$394,7,0),"") -> 2033-08-07 | G151: =+IFERROR(VLOOKUP(D151,'Cronograma HIPO'!$C$35:$K$394,9,0),"") -> 193223.1624 | H151: =+IFERROR(VLOOKUP(D151,'Cronograma HIPO'!$C$35:$Q$394,15,0),"") -> 787.2365221 | J151: =+IFERROR(VLOOKUP(D151,'Cronograma HIPO'!$C$35:$R$394,16,0),"") -> 1340.687141 | L151: =+IFERROR(VLOOKUP(D151,'Cronograma HIPO'!$C$35:$T$394,18,0),"") -> 55.90590166 | N151: =+IFERROR(VLOOKUP(D151,'Cronograma HIPO'!$C$35:$U$394,19,0),"") -> 85 | O151: =+IFERROR(VLOOKUP(D151,'Cronograma HIPO'!$C$35:$X$394,22,0),"") -> 2212.923663
D152: 100 | F152: =+IFERROR(VLOOKUP(D152,'Cronograma HIPO'!$C$35:$I$394,7,0),"") -> 2033-09-07 | G152: =+IFERROR(VLOOKUP(D152,'Cronograma HIPO'!$C$35:$K$394,9,0),"") -> 192435.9259 | H152: =+IFERROR(VLOOKUP(D152,'Cronograma HIPO'!$C$35:$Q$394,15,0),"") -> 792.6987962 | J152: =+IFERROR(VLOOKUP(D152,'Cronograma HIPO'!$C$35:$R$394,16,0),"") -> 1335.224867 | L152: =+IFERROR(VLOOKUP(D152,'Cronograma HIPO'!$C$35:$T$394,18,0),"") -> 55.67812789 | N152: =+IFERROR(VLOOKUP(D152,'Cronograma HIPO'!$C$35:$U$394,19,0),"") -> 85 | O152: =+IFERROR(VLOOKUP(D152,'Cronograma HIPO'!$C$35:$X$394,22,0),"") -> 2212.923663
D153: 101 | F153: =+IFERROR(VLOOKUP(D153,'Cronograma HIPO'!$C$35:$I$394,7,0),"") -> 2033-10-07 | G153: =+IFERROR(VLOOKUP(D153,'Cronograma HIPO'!$C$35:$K$394,9,0),"") -> 191643.2271 | H153: =+IFERROR(VLOOKUP(D153,'Cronograma HIPO'!$C$35:$Q$394,15,0),"") -> 841.2252657 | J153: =+IFERROR(VLOOKUP(D153,'Cronograma HIPO'!$C$35:$R$394,16,0),"") -> 1286.698397 | L153: =+IFERROR(VLOOKUP(D153,'Cronograma HIPO'!$C$35:$T$394,18,0),"") -> 53.66010359 | N153: =+IFERROR(VLOOKUP(D153,'Cronograma HIPO'!$C$35:$U$394,19,0),"") -> 85 | O153: =+IFERROR(VLOOKUP(D153,'Cronograma HIPO'!$C$35:$X$394,22,0),"") -> 2212.923663
D154: 102 | F154: =+IFERROR(VLOOKUP(D154,'Cronograma HIPO'!$C$35:$I$394,7,0),"") -> 2033-11-07 | G154: =+IFERROR(VLOOKUP(D154,'Cronograma HIPO'!$C$35:$K$394,9,0),"") -> 190802.0018 | H154: =+IFERROR(VLOOKUP(D154,'Cronograma HIPO'!$C$35:$Q$394,15,0),"") -> 804.0358479 | J154: =+IFERROR(VLOOKUP(D154,'Cronograma HIPO'!$C$35:$R$394,16,0),"") -> 1323.887815 | L154: =+IFERROR(VLOOKUP(D154,'Cronograma HIPO'!$C$35:$T$394,18,0),"") -> 55.2053792 | N154: =+IFERROR(VLOOKUP(D154,'Cronograma HIPO'!$C$35:$U$394,19,0),"") -> 85 | O154: =+IFERROR(VLOOKUP(D154,'Cronograma HIPO'!$C$35:$X$394,22,0),"") -> 2212.923663
D155: 103 | F155: =+IFERROR(VLOOKUP(D155,'Cronograma HIPO'!$C$35:$I$394,7,0),"") -> 2033-12-07 | G155: =+IFERROR(VLOOKUP(D155,'Cronograma HIPO'!$C$35:$K$394,9,0),"") -> 189997.966 | H155: =+IFERROR(VLOOKUP(D155,'Cronograma HIPO'!$C$35:$Q$394,15,0),"") -> 852.2715983 | J155: =+IFERROR(VLOOKUP(D155,'Cronograma HIPO'!$C$35:$R$394,16,0),"") -> 1275.652065 | L155: =+IFERROR(VLOOKUP(D155,'Cronograma HIPO'!$C$35:$T$394,18,0),"") -> 53.19943048 | N155: =+IFERROR(VLOOKUP(D155,'Cronograma HIPO'!$C$35:$U$394,19,0),"") -> 85 | O155: =+IFERROR(VLOOKUP(D155,'Cronograma HIPO'!$C$35:$X$394,22,0),"") -> 2212.923663
D156: 104 | F156: =+IFERROR(VLOOKUP(D156,'Cronograma HIPO'!$C$35:$I$394,7,0),"") -> 2034-01-07 | G156: =+IFERROR(VLOOKUP(D156,'Cronograma HIPO'!$C$35:$K$394,9,0),"") -> 189145.6944 | H156: =+IFERROR(VLOOKUP(D156,'Cronograma HIPO'!$C$35:$Q$394,15,0),"") -> 815.5282077 | J156: =+IFERROR(VLOOKUP(D156,'Cronograma HIPO'!$C$35:$R$394,16,0),"") -> 1312.395455 | L156: =+IFERROR(VLOOKUP(D156,'Cronograma HIPO'!$C$35:$T$394,18,0),"") -> 54.72615425 | N156: =+IFERROR(VLOOKUP(D156,'Cronograma HIPO'!$C$35:$U$394,19,0),"") -> 85 | O156: =+IFERROR(VLOOKUP(D156,'Cronograma HIPO'!$C$35:$X$394,22,0),"") -> 2212.923663
D157: 105 | F157: =+IFERROR(VLOOKUP(D157,'Cronograma HIPO'!$C$35:$I$394,7,0),"") -> 2034-02-07 | G157: =+IFERROR(VLOOKUP(D157,'Cronograma HIPO'!$C$35:$K$394,9,0),"") -> 188330.1662 | H157: =+IFERROR(VLOOKUP(D157,'Cronograma HIPO'!$C$35:$Q$394,15,0),"") -> 821.1867849 | J157: =+IFERROR(VLOOKUP(D157,'Cronograma HIPO'!$C$35:$R$394,16,0),"") -> 1306.736878 | L157: =+IFERROR(VLOOKUP(D157,'Cronograma HIPO'!$C$35:$T$394,18,0),"") -> 54.49019475 | N157: =+IFERROR(VLOOKUP(D157,'Cronograma HIPO'!$C$35:$U$394,19,0),"") -> 85 | O157: =+IFERROR(VLOOKUP(D157,'Cronograma HIPO'!$C$35:$X$394,22,0),"") -> 2212.923663
D158: 106 | F158: =+IFERROR(VLOOKUP(D158,'Cronograma HIPO'!$C$35:$I$394,7,0),"") -> 2034-03-07 | G158: =+IFERROR(VLOOKUP(D158,'Cronograma HIPO'!$C$35:$K$394,9,0),"") -> 187508.9794 | H158: =+IFERROR(VLOOKUP(D158,'Cronograma HIPO'!$C$35:$Q$394,15,0),"") -> 953.1530668 | J158: =+IFERROR(VLOOKUP(D158,'Cronograma HIPO'!$C$35:$R$394,16,0),"") -> 1174.770596 | L158: =+IFERROR(VLOOKUP(D158,'Cronograma HIPO'!$C$35:$T$394,18,0),"") -> 49.00234662 | N158: =+IFERROR(VLOOKUP(D158,'Cronograma HIPO'!$C$35:$U$394,19,0),"") -> 85 | O158: =+IFERROR(VLOOKUP(D158,'Cronograma HIPO'!$C$35:$X$394,22,0),"") -> 2212.923663
D159: 107 | F159: =+IFERROR(VLOOKUP(D159,'Cronograma HIPO'!$C$35:$I$394,7,0),"") -> 2034-04-07 | G159: =+IFERROR(VLOOKUP(D159,'Cronograma HIPO'!$C$35:$K$394,9,0),"") -> 186555.8263 | H159: =+IFERROR(VLOOKUP(D159,'Cronograma HIPO'!$C$35:$Q$394,15,0),"") -> 833.4981175 | J159: =+IFERROR(VLOOKUP(D159,'Cronograma HIPO'!$C$35:$R$394,16,0),"") -> 1294.425545 | L159: =+IFERROR(VLOOKUP(D159,'Cronograma HIPO'!$C$35:$T$394,18,0),"") -> 53.97681909 | N159: =+IFERROR(VLOOKUP(D159,'Cronograma HIPO'!$C$35:$U$394,19,0),"") -> 85 | O159: =+IFERROR(VLOOKUP(D159,'Cronograma HIPO'!$C$35:$X$394,22,0),"") -> 2212.923663
D160: 108 | F160: =+IFERROR(VLOOKUP(D160,'Cronograma HIPO'!$C$35:$I$394,7,0),"") -> 2034-05-07 | G160: =+IFERROR(VLOOKUP(D160,'Cronograma HIPO'!$C$35:$K$394,9,0),"") -> 185722.3282 | H160: =+IFERROR(VLOOKUP(D160,'Cronograma HIPO'!$C$35:$Q$394,15,0),"") -> 880.9783591 | J160: =+IFERROR(VLOOKUP(D160,'Cronograma HIPO'!$C$35:$R$394,16,0),"") -> 1246.945304 | L160: =+IFERROR(VLOOKUP(D160,'Cronograma HIPO'!$C$35:$T$394,18,0),"") -> 52.0022519 | N160: =+IFERROR(VLOOKUP(D160,'Cronograma HIPO'!$C$35:$U$394,19,0),"") -> 85 | O160: =+IFERROR(VLOOKUP(D160,'Cronograma HIPO'!$C$35:$X$394,22,0),"") -> 2212.923663
D161: 109 | F161: =+IFERROR(VLOOKUP(D161,'Cronograma HIPO'!$C$35:$I$394,7,0),"") -> 2034-06-07 | G161: =+IFERROR(VLOOKUP(D161,'Cronograma HIPO'!$C$35:$K$394,9,0),"") -> 184841.3499 | H161: =+IFERROR(VLOOKUP(D161,'Cronograma HIPO'!$C$35:$Q$394,15,0),"") -> 845.3940855 | J161: =+IFERROR(VLOOKUP(D161,'Cronograma HIPO'!$C$35:$R$394,16,0),"") -> 1282.529577 | L161: =+IFERROR(VLOOKUP(D161,'Cronograma HIPO'!$C$35:$T$394,18,0),"") -> 53.48076389 | N161: =+IFERROR(VLOOKUP(D161,'Cronograma HIPO'!$C$35:$U$394,19,0),"") -> 85 | O161: =+IFERROR(VLOOKUP(D161,'Cronograma HIPO'!$C$35:$X$394,22,0),"") -> 2212.923663
D162: 110 | F162: =+IFERROR(VLOOKUP(D162,'Cronograma HIPO'!$C$35:$I$394,7,0),"") -> 2034-07-07 | G162: =+IFERROR(VLOOKUP(D162,'Cronograma HIPO'!$C$35:$K$394,9,0),"") -> 183995.9558 | H162: =+IFERROR(VLOOKUP(D162,'Cronograma HIPO'!$C$35:$Q$394,15,0),"") -> 892.5692757 | J162: =+IFERROR(VLOOKUP(D162,'Cronograma HIPO'!$C$35:$R$394,16,0),"") -> 1235.354387 | L162: =+IFERROR(VLOOKUP(D162,'Cronograma HIPO'!$C$35:$T$394,18,0),"") -> 51.51886762 | N162: =+IFERROR(VLOOKUP(D162,'Cronograma HIPO'!$C$35:$U$394,19,0),"") -> 85 | O162: =+IFERROR(VLOOKUP(D162,'Cronograma HIPO'!$C$35:$X$394,22,0),"") -> 2212.923663
D163: 111 | F163: =+IFERROR(VLOOKUP(D163,'Cronograma HIPO'!$C$35:$I$394,7,0),"") -> 2034-08-07 | G163: =+IFERROR(VLOOKUP(D163,'Cronograma HIPO'!$C$35:$K$394,9,0),"") -> 183103.3865 | H163: =+IFERROR(VLOOKUP(D163,'Cronograma HIPO'!$C$35:$Q$394,15,0),"") -> 857.4530183 | J163: =+IFERROR(VLOOKUP(D163,'Cronograma HIPO'!$C$35:$R$394,16,0),"") -> 1270.470645 | L163: =+IFERROR(VLOOKUP(D163,'Cronograma HIPO'!$C$35:$T$394,18,0),"") -> 52.97791316 | N163: =+IFERROR(VLOOKUP(D163,'Cronograma HIPO'!$C$35:$U$394,19,0),"") -> 85 | O163: =+IFERROR(VLOOKUP(D163,'Cronograma HIPO'!$C$35:$X$394,22,0),"") -> 2212.923663
D164: 112 | F164: =+IFERROR(VLOOKUP(D164,'Cronograma HIPO'!$C$35:$I$394,7,0),"") -> 2034-09-07 | G164: =+IFERROR(VLOOKUP(D164,'Cronograma HIPO'!$C$35:$K$394,9,0),"") -> 182245.9335 | H164: =+IFERROR(VLOOKUP(D164,'Cronograma HIPO'!$C$35:$Q$394,15,0),"") -> 863.4024926 | J164: =+IFERROR(VLOOKUP(D164,'Cronograma HIPO'!$C$35:$R$394,16,0),"") -> 1264.52117 | L164: =+IFERROR(VLOOKUP(D164,'Cronograma HIPO'!$C$35:$T$394,18,0),"") -> 52.72982342 | N164: =+IFERROR(VLOOKUP(D164,'Cronograma HIPO'!$C$35:$U$394,19,0),"") -> 85 | O164: =+IFERROR(VLOOKUP(D164,'Cronograma HIPO'!$C$35:$X$394,22,0),"") -> 2212.923663
D165: 113 | F165: =+IFERROR(VLOOKUP(D165,'Cronograma HIPO'!$C$35:$I$394,7,0),"") -> 2034-10-07 | G165: =+IFERROR(VLOOKUP(D165,'Cronograma HIPO'!$C$35:$K$394,9,0),"") -> 181382.531 | H165: =+IFERROR(VLOOKUP(D165,'Cronograma HIPO'!$C$35:$Q$394,15,0),"") -> 910.1158884 | J165: =+IFERROR(VLOOKUP(D165,'Cronograma HIPO'!$C$35:$R$394,16,0),"") -> 1217.807774 | L165: =+IFERROR(VLOOKUP(D165,'Cronograma HIPO'!$C$35:$T$394,18,0),"") -> 50.78710868 | N165: =+IFERROR(VLOOKUP(D165,'Cronograma HIPO'!$C$35:$U$394,19,0),"") -> 85 | O165: =+IFERROR(VLOOKUP(D165,'Cronograma HIPO'!$C$35:$X$394,22,0),"") -> 2212.923663
D166: 114 | F166: =+IFERROR(VLOOKUP(D166,'Cronograma HIPO'!$C$35:$I$394,7,0),"") -> 2034-11-07 | G166: =+IFERROR(VLOOKUP(D166,'Cronograma HIPO'!$C$35:$K$394,9,0),"") -> 180472.4151 | H166: =+IFERROR(VLOOKUP(D166,'Cronograma HIPO'!$C$35:$Q$394,15,0),"") -> 875.7081254 | J166: =+IFERROR(VLOOKUP(D166,'Cronograma HIPO'!$C$35:$R$394,16,0),"") -> 1252.215537 | L166: =+IFERROR(VLOOKUP(D166,'Cronograma HIPO'!$C$35:$T$394,18,0),"") -> 52.21668544 | N166: =+IFERROR(VLOOKUP(D166,'Cronograma HIPO'!$C$35:$U$394,19,0),"") -> 85 | O166: =+IFERROR(VLOOKUP(D166,'Cronograma HIPO'!$C$35:$X$394,22,0),"") -> 2212.923663
D167: 115 | F167: =+IFERROR(VLOOKUP(D167,'Cronograma HIPO'!$C$35:$I$394,7,0),"") -> 2034-12-07 | G167: =+IFERROR(VLOOKUP(D167,'Cronograma HIPO'!$C$35:$K$394,9,0),"") -> 179596.707 | H167: =+IFERROR(VLOOKUP(D167,'Cronograma HIPO'!$C$35:$Q$394,15,0),"") -> 922.1059646 | J167: =+IFERROR(VLOOKUP(D167,'Cronograma HIPO'!$C$35:$R$394,16,0),"") -> 1205.817698 | L167: =+IFERROR(VLOOKUP(D167,'Cronograma HIPO'!$C$35:$T$394,18,0),"") -> 50.28707795 | N167: =+IFERROR(VLOOKUP(D167,'Cronograma HIPO'!$C$35:$U$394,19,0),"") -> 85 | O167: =+IFERROR(VLOOKUP(D167,'Cronograma HIPO'!$C$35:$X$394,22,0),"") -> 2212.923663
D168: 116 | F168: =+IFERROR(VLOOKUP(D168,'Cronograma HIPO'!$C$35:$I$394,7,0),"") -> 2035-01-07 | G168: =+IFERROR(VLOOKUP(D168,'Cronograma HIPO'!$C$35:$K$394,9,0),"") -> 178674.601 | H168: =+IFERROR(VLOOKUP(D168,'Cronograma HIPO'!$C$35:$Q$394,15,0),"") -> 888.182335 | J168: =+IFERROR(VLOOKUP(D168,'Cronograma HIPO'!$C$35:$R$394,16,0),"") -> 1239.741328 | L168: =+IFERROR(VLOOKUP(D168,'Cronograma HIPO'!$C$35:$T$394,18,0),"") -> 51.69651789 | N168: =+IFERROR(VLOOKUP(D168,'Cronograma HIPO'!$C$35:$U$394,19,0),"") -> 85 | O168: =+IFERROR(VLOOKUP(D168,'Cronograma HIPO'!$C$35:$X$394,22,0),"") -> 2212.923663
D169: 117 | F169: =+IFERROR(VLOOKUP(D169,'Cronograma HIPO'!$C$35:$I$394,7,0),"") -> 2035-02-07 | G169: =+IFERROR(VLOOKUP(D169,'Cronograma HIPO'!$C$35:$K$394,9,0),"") -> 177786.4187 | H169: =+IFERROR(VLOOKUP(D169,'Cronograma HIPO'!$C$35:$Q$394,15,0),"") -> 894.345026 | J169: =+IFERROR(VLOOKUP(D169,'Cronograma HIPO'!$C$35:$R$394,16,0),"") -> 1233.578637 | L169: =+IFERROR(VLOOKUP(D169,'Cronograma HIPO'!$C$35:$T$394,18,0),"") -> 51.43953714 | N169: =+IFERROR(VLOOKUP(D169,'Cronograma HIPO'!$C$35:$U$394,19,0),"") -> 85 | O169: =+IFERROR(VLOOKUP(D169,'Cronograma HIPO'!$C$35:$X$394,22,0),"") -> 2212.923663
D170: 118 | F170: =+IFERROR(VLOOKUP(D170,'Cronograma HIPO'!$C$35:$I$394,7,0),"") -> 2035-03-07 | G170: =+IFERROR(VLOOKUP(D170,'Cronograma HIPO'!$C$35:$K$394,9,0),"") -> 176892.0737 | H170: =+IFERROR(VLOOKUP(D170,'Cronograma HIPO'!$C$35:$Q$394,15,0),"") -> 1019.669501 | J170: =+IFERROR(VLOOKUP(D170,'Cronograma HIPO'!$C$35:$R$394,16,0),"") -> 1108.254162 | L170: =+IFERROR(VLOOKUP(D170,'Cronograma HIPO'!$C$35:$T$394,18,0),"") -> 46.22779525 | N170: =+IFERROR(VLOOKUP(D170,'Cronograma HIPO'!$C$35:$U$394,19,0),"") -> 85 | O170: =+IFERROR(VLOOKUP(D170,'Cronograma HIPO'!$C$35:$X$394,22,0),"") -> 2212.923663
D171: 119 | F171: =+IFERROR(VLOOKUP(D171,'Cronograma HIPO'!$C$35:$I$394,7,0),"") -> 2035-04-07 | G171: =+IFERROR(VLOOKUP(D171,'Cronograma HIPO'!$C$35:$K$394,9,0),"") -> 175872.4042 | H171: =+IFERROR(VLOOKUP(D171,'Cronograma HIPO'!$C$35:$Q$394,15,0),"") -> 907.6254973 | J171: =+IFERROR(VLOOKUP(D171,'Cronograma HIPO'!$C$35:$R$394,16,0),"") -> 1220.298166 | L171: =+IFERROR(VLOOKUP(D171,'Cronograma HIPO'!$C$35:$T$394,18,0),"") -> 50.88574893 | N171: =+IFERROR(VLOOKUP(D171,'Cronograma HIPO'!$C$35:$U$394,19,0),"") -> 85 | O171: =+IFERROR(VLOOKUP(D171,'Cronograma HIPO'!$C$35:$X$394,22,0),"") -> 2212.923663
D172: 120 | F172: =+IFERROR(VLOOKUP(D172,'Cronograma HIPO'!$C$35:$I$394,7,0),"") -> 2035-05-07 | G172: =+IFERROR(VLOOKUP(D172,'Cronograma HIPO'!$C$35:$K$394,9,0),"") -> 174964.7787 | H172: =+IFERROR(VLOOKUP(D172,'Cronograma HIPO'!$C$35:$Q$394,15,0),"") -> 953.2048708 | J172: =+IFERROR(VLOOKUP(D172,'Cronograma HIPO'!$C$35:$R$394,16,0),"") -> 1174.718792 | L172: =+IFERROR(VLOOKUP(D172,'Cronograma HIPO'!$C$35:$T$394,18,0),"") -> 48.99013802 | N172: =+IFERROR(VLOOKUP(D172,'Cronograma HIPO'!$C$35:$U$394,19,0),"") -> 85 | O172: =+IFERROR(VLOOKUP(D172,'Cronograma HIPO'!$C$35:$X$394,22,0),"") -> 2212.923663
D173: 121 | F173: =+IFERROR(VLOOKUP(D173,'Cronograma HIPO'!$C$35:$I$394,7,0),"") -> 2035-06-07 | G173: =+IFERROR(VLOOKUP(D173,'Cronograma HIPO'!$C$35:$K$394,9,0),"") -> 174011.5738 | H173: =+IFERROR(VLOOKUP(D173,'Cronograma HIPO'!$C$35:$Q$394,15,0),"") -> 920.536948 | J173: =+IFERROR(VLOOKUP(D173,'Cronograma HIPO'!$C$35:$R$394,16,0),"") -> 1207.386715 | L173: =+IFERROR(VLOOKUP(D173,'Cronograma HIPO'!$C$35:$T$394,18,0),"") -> 50.34734868 | N173: =+IFERROR(VLOOKUP(D173,'Cronograma HIPO'!$C$35:$U$394,19,0),"") -> 85 | O173: =+IFERROR(VLOOKUP(D173,'Cronograma HIPO'!$C$35:$X$394,22,0),"") -> 2212.923663
D174: 122 | F174: =+IFERROR(VLOOKUP(D174,'Cronograma HIPO'!$C$35:$I$394,7,0),"") -> 2035-07-07 | G174: =+IFERROR(VLOOKUP(D174,'Cronograma HIPO'!$C$35:$K$394,9,0),"") -> 173091.0368 | H174: =+IFERROR(VLOOKUP(D174,'Cronograma HIPO'!$C$35:$Q$394,15,0),"") -> 965.7852298 | J174: =+IFERROR(VLOOKUP(D174,'Cronograma HIPO'!$C$35:$R$394,16,0),"") -> 1162.138433 | L174: =+IFERROR(VLOOKUP(D174,'Cronograma HIPO'!$C$35:$T$394,18,0),"") -> 48.46549031 | N174: =+IFERROR(VLOOKUP(D174,'Cronograma HIPO'!$C$35:$U$394,19,0),"") -> 85 | O174: =+IFERROR(VLOOKUP(D174,'Cronograma HIPO'!$C$35:$X$394,22,0),"") -> 2212.923663
D175: 123 | F175: =+IFERROR(VLOOKUP(D175,'Cronograma HIPO'!$C$35:$I$394,7,0),"") -> 2035-08-07 | G175: =+IFERROR(VLOOKUP(D175,'Cronograma HIPO'!$C$35:$K$394,9,0),"") -> 172125.2516 | H175: =+IFERROR(VLOOKUP(D175,'Cronograma HIPO'!$C$35:$Q$394,15,0),"") -> 933.6252748 | J175: =+IFERROR(VLOOKUP(D175,'Cronograma HIPO'!$C$35:$R$394,16,0),"") -> 1194.298388 | L175: =+IFERROR(VLOOKUP(D175,'Cronograma HIPO'!$C$35:$T$394,18,0),"") -> 49.8015728 | N175: =+IFERROR(VLOOKUP(D175,'Cronograma HIPO'!$C$35:$U$394,19,0),"") -> 85 | O175: =+IFERROR(VLOOKUP(D175,'Cronograma HIPO'!$C$35:$X$394,22,0),"") -> 2212.923663
D176: 124 | F176: =+IFERROR(VLOOKUP(D176,'Cronograma HIPO'!$C$35:$I$394,7,0),"") -> 2035-09-07 | G176: =+IFERROR(VLOOKUP(D176,'Cronograma HIPO'!$C$35:$K$394,9,0),"") -> 171191.6263 | H176: =+IFERROR(VLOOKUP(D176,'Cronograma HIPO'!$C$35:$Q$394,15,0),"") -> 940.1032735 | J176: =+IFERROR(VLOOKUP(D176,'Cronograma HIPO'!$C$35:$R$394,16,0),"") -> 1187.820389 | L176: =+IFERROR(VLOOKUP(D176,'Cronograma HIPO'!$C$35:$T$394,18,0),"") -> 49.53144388 | N176: =+IFERROR(VLOOKUP(D176,'Cronograma HIPO'!$C$35:$U$394,19,0),"") -> 85 | O176: =+IFERROR(VLOOKUP(D176,'Cronograma HIPO'!$C$35:$X$394,22,0),"") -> 2212.923663
D177: 125 | F177: =+IFERROR(VLOOKUP(D177,'Cronograma HIPO'!$C$35:$I$394,7,0),"") -> 2035-10-07 | G177: =+IFERROR(VLOOKUP(D177,'Cronograma HIPO'!$C$35:$K$394,9,0),"") -> 170251.5231 | H177: =+IFERROR(VLOOKUP(D177,'Cronograma HIPO'!$C$35:$Q$394,15,0),"") -> 984.8498108 | J177: =+IFERROR(VLOOKUP(D177,'Cronograma HIPO'!$C$35:$R$394,16,0),"") -> 1143.073852 | L177: =+IFERROR(VLOOKUP(D177,'Cronograma HIPO'!$C$35:$T$394,18,0),"") -> 47.67042645 | N177: =+IFERROR(VLOOKUP(D177,'Cronograma HIPO'!$C$35:$U$394,19,0),"") -> 85 | O177: =+IFERROR(VLOOKUP(D177,'Cronograma HIPO'!$C$35:$X$394,22,0),"") -> 2212.923663
D178: 126 | F178: =+IFERROR(VLOOKUP(D178,'Cronograma HIPO'!$C$35:$I$394,7,0),"") -> 2035-11-07 | G178: =+IFERROR(VLOOKUP(D178,'Cronograma HIPO'!$C$35:$K$394,9,0),"") -> 169266.6732 | H178: =+IFERROR(VLOOKUP(D178,'Cronograma HIPO'!$C$35:$Q$394,15,0),"") -> 953.4596425 | J178: =+IFERROR(VLOOKUP(D178,'Cronograma HIPO'!$C$35:$R$394,16,0),"") -> 1174.46402 | L178: =+IFERROR(VLOOKUP(D178,'Cronograma HIPO'!$C$35:$T$394,18,0),"") -> 48.97449079 | N178: =+IFERROR(VLOOKUP(D178,'Cronograma HIPO'!$C$35:$U$394,19,0),"") -> 85 | O178: =+IFERROR(VLOOKUP(D178,'Cronograma HIPO'!$C$35:$X$394,22,0),"") -> 2212.923663
D179: 127 | F179: =+IFERROR(VLOOKUP(D179,'Cronograma HIPO'!$C$35:$I$394,7,0),"") -> 2035-12-07 | G179: =+IFERROR(VLOOKUP(D179,'Cronograma HIPO'!$C$35:$K$394,9,0),"") -> 168313.2136 | H179: =+IFERROR(VLOOKUP(D179,'Cronograma HIPO'!$C$35:$Q$394,15,0),"") -> 997.8636788 | J179: =+IFERROR(VLOOKUP(D179,'Cronograma HIPO'!$C$35:$R$394,16,0),"") -> 1130.059984 | L179: =+IFERROR(VLOOKUP(D179,'Cronograma HIPO'!$C$35:$T$394,18,0),"") -> 47.12769981 | N179: =+IFERROR(VLOOKUP(D179,'Cronograma HIPO'!$C$35:$U$394,19,0),"") -> 85 | O179: =+IFERROR(VLOOKUP(D179,'Cronograma HIPO'!$C$35:$X$394,22,0),"") -> 2212.923663
D180: 128 | F180: =+IFERROR(VLOOKUP(D180,'Cronograma HIPO'!$C$35:$I$394,7,0),"") -> 2036-01-07 | G180: =+IFERROR(VLOOKUP(D180,'Cronograma HIPO'!$C$35:$K$394,9,0),"") -> 167315.3499 | H180: =+IFERROR(VLOOKUP(D180,'Cronograma HIPO'!$C$35:$Q$394,15,0),"") -> 966.9989824 | J180: =+IFERROR(VLOOKUP(D180,'Cronograma HIPO'!$C$35:$R$394,16,0),"") -> 1160.92468 | L180: =+IFERROR(VLOOKUP(D180,'Cronograma HIPO'!$C$35:$T$394,18,0),"") -> 48.40990791 | N180: =+IFERROR(VLOOKUP(D180,'Cronograma HIPO'!$C$35:$U$394,19,0),"") -> 85 | O180: =+IFERROR(VLOOKUP(D180,'Cronograma HIPO'!$C$35:$X$394,22,0),"") -> 2212.923663
D181: 129 | F181: =+IFERROR(VLOOKUP(D181,'Cronograma HIPO'!$C$35:$I$394,7,0),"") -> 2036-02-07 | G181: =+IFERROR(VLOOKUP(D181,'Cronograma HIPO'!$C$35:$K$394,9,0),"") -> 166348.3509 | H181: =+IFERROR(VLOOKUP(D181,'Cronograma HIPO'!$C$35:$Q$394,15,0),"") -> 973.7085461 | J181: =+IFERROR(VLOOKUP(D181,'Cronograma HIPO'!$C$35:$R$394,16,0),"") -> 1154.215117 | L181: =+IFERROR(VLOOKUP(D181,'Cronograma HIPO'!$C$35:$T$394,18,0),"") -> 48.13012287 | N181: =+IFERROR(VLOOKUP(D181,'Cronograma HIPO'!$C$35:$U$394,19,0),"") -> 85 | O181: =+IFERROR(VLOOKUP(D181,'Cronograma HIPO'!$C$35:$X$394,22,0),"") -> 2212.923663
D182: 130 | F182: =+IFERROR(VLOOKUP(D182,'Cronograma HIPO'!$C$35:$I$394,7,0),"") -> 2036-03-07 | G182: =+IFERROR(VLOOKUP(D182,'Cronograma HIPO'!$C$35:$K$394,9,0),"") -> 165374.6424 | H182: =+IFERROR(VLOOKUP(D182,'Cronograma HIPO'!$C$35:$Q$394,15,0),"") -> 1054.714398 | J182: =+IFERROR(VLOOKUP(D182,'Cronograma HIPO'!$C$35:$R$394,16,0),"") -> 1073.209265 | L182: =+IFERROR(VLOOKUP(D182,'Cronograma HIPO'!$C$35:$T$394,18,0),"") -> 44.76140321 | N182: =+IFERROR(VLOOKUP(D182,'Cronograma HIPO'!$C$35:$U$394,19,0),"") -> 85 | O182: =+IFERROR(VLOOKUP(D182,'Cronograma HIPO'!$C$35:$X$394,22,0),"") -> 2212.923663
D183: =+IF(D182="", "", IF((D182+1)>$G$19,"", D182+1)) -> 131 | F183: =+IFERROR(VLOOKUP(D183,'Cronograma HIPO'!$C$35:$I$394,7,0),"") -> 2036-04-07 | G183: =+IFERROR(VLOOKUP(D183,'Cronograma HIPO'!$C$35:$K$394,9,0),"") -> 164319.928 | H183: =+IFERROR(VLOOKUP(D183,'Cronograma HIPO'!$C$35:$Q$394,15,0),"") -> 987.782845 | J183: =+IFERROR(VLOOKUP(D183,'Cronograma HIPO'!$C$35:$R$394,16,0),"") -> 1140.140818 | L183: =+IFERROR(VLOOKUP(D183,'Cronograma HIPO'!$C$35:$T$394,18,0),"") -> 47.5432325 | N183: =+IFERROR(VLOOKUP(D183,'Cronograma HIPO'!$C$35:$U$394,19,0),"") -> 85 | O183: =+IFERROR(VLOOKUP(D183,'Cronograma HIPO'!$C$35:$X$394,22,0),"") -> 2212.923663
D184: 132 | F184: =+IFERROR(VLOOKUP(D184,'Cronograma HIPO'!$C$35:$I$394,7,0),"") -> 2036-05-07 | G184: =+IFERROR(VLOOKUP(D184,'Cronograma HIPO'!$C$35:$K$394,9,0),"") -> 163332.1452 | H184: =+IFERROR(VLOOKUP(D184,'Cronograma HIPO'!$C$35:$Q$394,15,0),"") -> 1031.306722 | J184: =+IFERROR(VLOOKUP(D184,'Cronograma HIPO'!$C$35:$R$394,16,0),"") -> 1096.61694 | L184: =+IFERROR(VLOOKUP(D184,'Cronograma HIPO'!$C$35:$T$394,18,0),"") -> 45.73300064 | N184: =+IFERROR(VLOOKUP(D184,'Cronograma HIPO'!$C$35:$U$394,19,0),"") -> 85 | O184: =+IFERROR(VLOOKUP(D184,'Cronograma HIPO'!$C$35:$X$394,22,0),"") -> 2212.923663
D185: 133 | F185: =+IFERROR(VLOOKUP(D185,'Cronograma HIPO'!$C$35:$I$394,7,0),"") -> 2036-06-07 | G185: =+IFERROR(VLOOKUP(D185,'Cronograma HIPO'!$C$35:$K$394,9,0),"") -> 162300.8384 | H185: =+IFERROR(VLOOKUP(D185,'Cronograma HIPO'!$C$35:$Q$394,15,0),"") -> 1001.792384 | J185: =+IFERROR(VLOOKUP(D185,'Cronograma HIPO'!$C$35:$R$394,16,0),"") -> 1126.131279 | L185: =+IFERROR(VLOOKUP(D185,'Cronograma HIPO'!$C$35:$T$394,18,0),"") -> 46.95904258 | N185: =+IFERROR(VLOOKUP(D185,'Cronograma HIPO'!$C$35:$U$394,19,0),"") -> 85 | O185: =+IFERROR(VLOOKUP(D185,'Cronograma HIPO'!$C$35:$X$394,22,0),"") -> 2212.923663
D186: 134 | F186: =+IFERROR(VLOOKUP(D186,'Cronograma HIPO'!$C$35:$I$394,7,0),"") -> 2036-07-07 | G186: =+IFERROR(VLOOKUP(D186,'Cronograma HIPO'!$C$35:$K$394,9,0),"") -> 161299.046 | H186: =+IFERROR(VLOOKUP(D186,'Cronograma HIPO'!$C$35:$Q$394,15,0),"") -> 1044.957011 | J186: =+IFERROR(VLOOKUP(D186,'Cronograma HIPO'!$C$35:$R$394,16,0),"") -> 1082.966652 | L186: =+IFERROR(VLOOKUP(D186,'Cronograma HIPO'!$C$35:$T$394,18,0),"") -> 45.16373289 | N186: =+IFERROR(VLOOKUP(D186,'Cronograma HIPO'!$C$35:$U$394,19,0),"") -> 85 | O186: =+IFERROR(VLOOKUP(D186,'Cronograma HIPO'!$C$35:$X$394,22,0),"") -> 2212.923663
D187: 135 | F187: =+IFERROR(VLOOKUP(D187,'Cronograma HIPO'!$C$35:$I$394,7,0),"") -> 2036-08-07 | G187: =+IFERROR(VLOOKUP(D187,'Cronograma HIPO'!$C$35:$K$394,9,0),"") -> 160254.089 | H187: =+IFERROR(VLOOKUP(D187,'Cronograma HIPO'!$C$35:$Q$394,15,0),"") -> 1015.993842 | J187: =+IFERROR(VLOOKUP(D187,'Cronograma HIPO'!$C$35:$R$394,16,0),"") -> 1111.929821 | L187: =+IFERROR(VLOOKUP(D187,'Cronograma HIPO'!$C$35:$T$394,18,0),"") -> 46.36684976 | N187: =+IFERROR(VLOOKUP(D187,'Cronograma HIPO'!$C$35:$U$394,19,0),"") -> 85 | O187: =+IFERROR(VLOOKUP(D187,'Cronograma HIPO'!$C$35:$X$394,22,0),"") -> 2212.923663
D188: 136 | F188: =+IFERROR(VLOOKUP(D188,'Cronograma HIPO'!$C$35:$I$394,7,0),"") -> 2036-09-07 | G188: =+IFERROR(VLOOKUP(D188,'Cronograma HIPO'!$C$35:$K$394,9,0),"") -> 159238.0952 | H188: =+IFERROR(VLOOKUP(D188,'Cronograma HIPO'!$C$35:$Q$394,15,0),"") -> 1023.043358 | J188: =+IFERROR(VLOOKUP(D188,'Cronograma HIPO'!$C$35:$R$394,16,0),"") -> 1104.880305 | L188: =+IFERROR(VLOOKUP(D188,'Cronograma HIPO'!$C$35:$T$394,18,0),"") -> 46.07288888 | N188: =+IFERROR(VLOOKUP(D188,'Cronograma HIPO'!$C$35:$U$394,19,0),"") -> 85 | O188: =+IFERROR(VLOOKUP(D188,'Cronograma HIPO'!$C$35:$X$394,22,0),"") -> 2212.923663
D189: 137 | F189: =+IFERROR(VLOOKUP(D189,'Cronograma HIPO'!$C$35:$I$394,7,0),"") -> 2036-10-07 | G189: =+IFERROR(VLOOKUP(D189,'Cronograma HIPO'!$C$35:$K$394,9,0),"") -> 158215.0518 | H189: =+IFERROR(VLOOKUP(D189,'Cronograma HIPO'!$C$35:$Q$394,15,0),"") -> 1065.663041 | J189: =+IFERROR(VLOOKUP(D189,'Cronograma HIPO'!$C$35:$R$394,16,0),"") -> 1062.260622 | L189: =+IFERROR(VLOOKUP(D189,'Cronograma HIPO'!$C$35:$T$394,18,0),"") -> 44.30021451 | N189: =+IFERROR(VLOOKUP(D189,'Cronograma HIPO'!$C$35:$U$394,19,0),"") -> 85 | O189: =+IFERROR(VLOOKUP(D189,'Cronograma HIPO'!$C$35:$X$394,22,0),"") -> 2212.923663
D190: 138 | F190: =+IFERROR(VLOOKUP(D190,'Cronograma HIPO'!$C$35:$I$394,7,0),"") -> 2036-11-07 | G190: =+IFERROR(VLOOKUP(D190,'Cronograma HIPO'!$C$35:$K$394,9,0),"") -> 157149.3888 | H190: =+IFERROR(VLOOKUP(D190,'Cronograma HIPO'!$C$35:$Q$394,15,0),"") -> 1037.535937 | J190: =+IFERROR(VLOOKUP(D190,'Cronograma HIPO'!$C$35:$R$394,16,0),"") -> 1090.387726 | L190: =+IFERROR(VLOOKUP(D190,'Cronograma HIPO'!$C$35:$T$394,18,0),"") -> 45.46855649 | N190: =+IFERROR(VLOOKUP(D190,'Cronograma HIPO'!$C$35:$U$394,19,0),"") -> 85 | O190: =+IFERROR(VLOOKUP(D190,'Cronograma HIPO'!$C$35:$X$394,22,0),"") -> 2212.923663
D191: 139 | F191: =+IFERROR(VLOOKUP(D191,'Cronograma HIPO'!$C$35:$I$394,7,0),"") -> 2036-12-07 | G191: =+IFERROR(VLOOKUP(D191,'Cronograma HIPO'!$C$35:$K$394,9,0),"") -> 156111.8529 | H191: =+IFERROR(VLOOKUP(D191,'Cronograma HIPO'!$C$35:$Q$394,15,0),"") -> 1079.783982 | J191: =+IFERROR(VLOOKUP(D191,'Cronograma HIPO'!$C$35:$R$394,16,0),"") -> 1048.139681 | L191: =+IFERROR(VLOOKUP(D191,'Cronograma HIPO'!$C$35:$T$394,18,0),"") -> 43.7113188 | N191: =+IFERROR(VLOOKUP(D191,'Cronograma HIPO'!$C$35:$U$394,19,0),"") -> 85 | O191: =+IFERROR(VLOOKUP(D191,'Cronograma HIPO'!$C$35:$X$394,22,0),"") -> 2212.923663
D192: 140 | F192: =+IFERROR(VLOOKUP(D192,'Cronograma HIPO'!$C$35:$I$394,7,0),"") -> 2037-01-07 | G192: =+IFERROR(VLOOKUP(D192,'Cronograma HIPO'!$C$35:$K$394,9,0),"") -> 155032.0689 | H192: =+IFERROR(VLOOKUP(D192,'Cronograma HIPO'!$C$35:$Q$394,15,0),"") -> 1052.227051 | J192: =+IFERROR(VLOOKUP(D192,'Cronograma HIPO'!$C$35:$R$394,16,0),"") -> 1075.696612 | L192: =+IFERROR(VLOOKUP(D192,'Cronograma HIPO'!$C$35:$T$394,18,0),"") -> 44.85594526 | N192: =+IFERROR(VLOOKUP(D192,'Cronograma HIPO'!$C$35:$U$394,19,0),"") -> 85 | O192: =+IFERROR(VLOOKUP(D192,'Cronograma HIPO'!$C$35:$X$394,22,0),"") -> 2212.923663
D193: 141 | F193: =+IFERROR(VLOOKUP(D193,'Cronograma HIPO'!$C$35:$I$394,7,0),"") -> 2037-02-07 | G193: =+IFERROR(VLOOKUP(D193,'Cronograma HIPO'!$C$35:$K$394,9,0),"") -> 153979.8418 | H193: =+IFERROR(VLOOKUP(D193,'Cronograma HIPO'!$C$35:$Q$394,15,0),"") -> 1059.527973 | J193: =+IFERROR(VLOOKUP(D193,'Cronograma HIPO'!$C$35:$R$394,16,0),"") -> 1068.39569 | L193: =+IFERROR(VLOOKUP(D193,'Cronograma HIPO'!$C$35:$T$394,18,0),"") -> 44.5515009 | N193: =+IFERROR(VLOOKUP(D193,'Cronograma HIPO'!$C$35:$U$394,19,0),"") -> 85 | O193: =+IFERROR(VLOOKUP(D193,'Cronograma HIPO'!$C$35:$X$394,22,0),"") -> 2212.923663
D194: 142 | F194: =+IFERROR(VLOOKUP(D194,'Cronograma HIPO'!$C$35:$I$394,7,0),"") -> 2037-03-07 | G194: =+IFERROR(VLOOKUP(D194,'Cronograma HIPO'!$C$35:$K$394,9,0),"") -> 152920.3139 | H194: =+IFERROR(VLOOKUP(D194,'Cronograma HIPO'!$C$35:$Q$394,15,0),"") -> 1169.856008 | J194: =+IFERROR(VLOOKUP(D194,'Cronograma HIPO'!$C$35:$R$394,16,0),"") -> 958.0676554 | L194: =+IFERROR(VLOOKUP(D194,'Cronograma HIPO'!$C$35:$T$394,18,0),"") -> 39.96317535 | N194: =+IFERROR(VLOOKUP(D194,'Cronograma HIPO'!$C$35:$U$394,19,0),"") -> 85 | O194: =+IFERROR(VLOOKUP(D194,'Cronograma HIPO'!$C$35:$X$394,22,0),"") -> 2212.923663
D195: 143 | F195: =+IFERROR(VLOOKUP(D195,'Cronograma HIPO'!$C$35:$I$394,7,0),"") -> 2037-04-07 | G195: =+IFERROR(VLOOKUP(D195,'Cronograma HIPO'!$C$35:$K$394,9,0),"") -> 151750.4578 | H195: =+IFERROR(VLOOKUP(D195,'Cronograma HIPO'!$C$35:$Q$394,15,0),"") -> 1074.996649 | J195: =+IFERROR(VLOOKUP(D195,'Cronograma HIPO'!$C$35:$R$394,16,0),"") -> 1052.927014 | L195: =+IFERROR(VLOOKUP(D195,'Cronograma HIPO'!$C$35:$T$394,18,0),"") -> 43.9064658 | N195: =+IFERROR(VLOOKUP(D195,'Cronograma HIPO'!$C$35:$U$394,19,0),"") -> 85 | O195: =+IFERROR(VLOOKUP(D195,'Cronograma HIPO'!$C$35:$X$394,22,0),"") -> 2212.923663
D196: 144 | F196: =+IFERROR(VLOOKUP(D196,'Cronograma HIPO'!$C$35:$I$394,7,0),"") -> 2037-05-07 | G196: =+IFERROR(VLOOKUP(D196,'Cronograma HIPO'!$C$35:$K$394,9,0),"") -> 150675.4612 | H196: =+IFERROR(VLOOKUP(D196,'Cronograma HIPO'!$C$35:$Q$394,15,0),"") -> 1116.28408 | J196: =+IFERROR(VLOOKUP(D196,'Cronograma HIPO'!$C$35:$R$394,16,0),"") -> 1011.639583 | L196: =+IFERROR(VLOOKUP(D196,'Cronograma HIPO'!$C$35:$T$394,18,0),"") -> 42.18912913 | N196: =+IFERROR(VLOOKUP(D196,'Cronograma HIPO'!$C$35:$U$394,19,0),"") -> 85 | O196: =+IFERROR(VLOOKUP(D196,'Cronograma HIPO'!$C$35:$X$394,22,0),"") -> 2212.923663
D197: 145 | F197: =+IFERROR(VLOOKUP(D197,'Cronograma HIPO'!$C$35:$I$394,7,0),"") -> 2037-06-07 | G197: =+IFERROR(VLOOKUP(D197,'Cronograma HIPO'!$C$35:$K$394,9,0),"") -> 149559.1771 | H197: =+IFERROR(VLOOKUP(D197,'Cronograma HIPO'!$C$35:$Q$394,15,0),"") -> 1090.200944 | J197: =+IFERROR(VLOOKUP(D197,'Cronograma HIPO'!$C$35:$R$394,16,0),"") -> 1037.722719 | L197: =+IFERROR(VLOOKUP(D197,'Cronograma HIPO'!$C$35:$T$394,18,0),"") -> 43.27245524 | N197: =+IFERROR(VLOOKUP(D197,'Cronograma HIPO'!$C$35:$U$394,19,0),"") -> 85 | O197: =+IFERROR(VLOOKUP(D197,'Cronograma HIPO'!$C$35:$X$394,22,0),"") -> 2212.923663
D198: 146 | F198: =+IFERROR(VLOOKUP(D198,'Cronograma HIPO'!$C$35:$I$394,7,0),"") -> 2037-07-07 | G198: =+IFERROR(VLOOKUP(D198,'Cronograma HIPO'!$C$35:$K$394,9,0),"") -> 148468.9762 | H198: =+IFERROR(VLOOKUP(D198,'Cronograma HIPO'!$C$35:$Q$394,15,0),"") -> 1131.098486 | J198: =+IFERROR(VLOOKUP(D198,'Cronograma HIPO'!$C$35:$R$394,16,0),"") -> 996.8251764 | L198: =+IFERROR(VLOOKUP(D198,'Cronograma HIPO'!$C$35:$T$394,18,0),"") -> 41.57131333 | N198: =+IFERROR(VLOOKUP(D198,'Cronograma HIPO'!$C$35:$U$394,19,0),"") -> 85 | O198: =+IFERROR(VLOOKUP(D198,'Cronograma HIPO'!$C$35:$X$394,22,0),"") -> 2212.923663
D199: 147 | F199: =+IFERROR(VLOOKUP(D199,'Cronograma HIPO'!$C$35:$I$394,7,0),"") -> 2037-08-07 | G199: =+IFERROR(VLOOKUP(D199,'Cronograma HIPO'!$C$35:$K$394,9,0),"") -> 147337.8777 | H199: =+IFERROR(VLOOKUP(D199,'Cronograma HIPO'!$C$35:$Q$394,15,0),"") -> 1105.613524 | J199: =+IFERROR(VLOOKUP(D199,'Cronograma HIPO'!$C$35:$R$394,16,0),"") -> 1022.310139 | L199: =+IFERROR(VLOOKUP(D199,'Cronograma HIPO'!$C$35:$T$394,18,0),"") -> 42.62975928 | N199: =+IFERROR(VLOOKUP(D199,'Cronograma HIPO'!$C$35:$U$394,19,0),"") -> 85 | O199: =+IFERROR(VLOOKUP(D199,'Cronograma HIPO'!$C$35:$X$394,22,0),"") -> 2212.923663
D200: 148 | F200: =+IFERROR(VLOOKUP(D200,'Cronograma HIPO'!$C$35:$I$394,7,0),"") -> 2037-09-07 | G200: =+IFERROR(VLOOKUP(D200,'Cronograma HIPO'!$C$35:$K$394,9,0),"") -> 146232.2642 | H200: =+IFERROR(VLOOKUP(D200,'Cronograma HIPO'!$C$35:$Q$394,15,0),"") -> 1113.284871 | J200: =+IFERROR(VLOOKUP(D200,'Cronograma HIPO'!$C$35:$R$394,16,0),"") -> 1014.638792 | L200: =+IFERROR(VLOOKUP(D200,'Cronograma HIPO'!$C$35:$T$394,18,0),"") -> 42.30986843 | N200: =+IFERROR(VLOOKUP(D200,'Cronograma HIPO'!$C$35:$U$394,19,0),"") -> 85 | O200: =+IFERROR(VLOOKUP(D200,'Cronograma HIPO'!$C$35:$X$394,22,0),"") -> 2212.923663
D201: 149 | F201: =+IFERROR(VLOOKUP(D201,'Cronograma HIPO'!$C$35:$I$394,7,0),"") -> 2037-10-07 | G201: =+IFERROR(VLOOKUP(D201,'Cronograma HIPO'!$C$35:$K$394,9,0),"") -> 145118.9793 | H201: =+IFERROR(VLOOKUP(D201,'Cronograma HIPO'!$C$35:$Q$394,15,0),"") -> 1153.590466 | J201: =+IFERROR(VLOOKUP(D201,'Cronograma HIPO'!$C$35:$R$394,16,0),"") -> 974.3331965 | L201: =+IFERROR(VLOOKUP(D201,'Cronograma HIPO'!$C$35:$T$394,18,0),"") -> 40.6333142 | N201: =+IFERROR(VLOOKUP(D201,'Cronograma HIPO'!$C$35:$U$394,19,0),"") -> 85 | O201: =+IFERROR(VLOOKUP(D201,'Cronograma HIPO'!$C$35:$X$394,22,0),"") -> 2212.923663
D202: 150 | F202: =+IFERROR(VLOOKUP(D202,'Cronograma HIPO'!$C$35:$I$394,7,0),"") -> 2037-11-07 | G202: =+IFERROR(VLOOKUP(D202,'Cronograma HIPO'!$C$35:$K$394,9,0),"") -> 143965.3888 | H202: =+IFERROR(VLOOKUP(D202,'Cronograma HIPO'!$C$35:$Q$394,15,0),"") -> 1129.013682 | J202: =+IFERROR(VLOOKUP(D202,'Cronograma HIPO'!$C$35:$R$394,16,0),"") -> 998.909981 | L202: =+IFERROR(VLOOKUP(D202,'Cronograma HIPO'!$C$35:$T$394,18,0),"") -> 41.65398583 | N202: =+IFERROR(VLOOKUP(D202,'Cronograma HIPO'!$C$35:$U$394,19,0),"") -> 85 | O202: =+IFERROR(VLOOKUP(D202,'Cronograma HIPO'!$C$35:$X$394,22,0),"") -> 2212.923663
D203: 151 | F203: =+IFERROR(VLOOKUP(D203,'Cronograma HIPO'!$C$35:$I$394,7,0),"") -> 2037-12-07 | G203: =+IFERROR(VLOOKUP(D203,'Cronograma HIPO'!$C$35:$K$394,9,0),"") -> 142836.3751 | H203: =+IFERROR(VLOOKUP(D203,'Cronograma HIPO'!$C$35:$Q$394,15,0),"") -> 1168.915939 | J203: =+IFERROR(VLOOKUP(D203,'Cronograma HIPO'!$C$35:$R$394,16,0),"") -> 959.0077235 | L203: =+IFERROR(VLOOKUP(D203,'Cronograma HIPO'!$C$35:$T$394,18,0),"") -> 39.99418504 | N203: =+IFERROR(VLOOKUP(D203,'Cronograma HIPO'!$C$35:$U$394,19,0),"") -> 85 | O203: =+IFERROR(VLOOKUP(D203,'Cronograma HIPO'!$C$35:$X$394,22,0),"") -> 2212.923663
D204: 152 | F204: =+IFERROR(VLOOKUP(D204,'Cronograma HIPO'!$C$35:$I$394,7,0),"") -> 2038-01-07 | G204: =+IFERROR(VLOOKUP(D204,'Cronograma HIPO'!$C$35:$K$394,9,0),"") -> 141667.4592 | H204: =+IFERROR(VLOOKUP(D204,'Cronograma HIPO'!$C$35:$Q$394,15,0),"") -> 1144.957964 | J204: =+IFERROR(VLOOKUP(D204,'Cronograma HIPO'!$C$35:$R$394,16,0),"") -> 982.9656985 | L204: =+IFERROR(VLOOKUP(D204,'Cronograma HIPO'!$C$35:$T$394,18,0),"") -> 40.9891182 | N204: =+IFERROR(VLOOKUP(D204,'Cronograma HIPO'!$C$35:$U$394,19,0),"") -> 85 | O204: =+IFERROR(VLOOKUP(D204,'Cronograma HIPO'!$C$35:$X$394,22,0),"") -> 2212.923663
D205: 153 | F205: =+IFERROR(VLOOKUP(D205,'Cronograma HIPO'!$C$35:$I$394,7,0),"") -> 2038-02-07 | G205: =+IFERROR(VLOOKUP(D205,'Cronograma HIPO'!$C$35:$K$394,9,0),"") -> 140522.5012 | H205: =+IFERROR(VLOOKUP(D205,'Cronograma HIPO'!$C$35:$Q$394,15,0),"") -> 1152.902304 | J205: =+IFERROR(VLOOKUP(D205,'Cronograma HIPO'!$C$35:$R$394,16,0),"") -> 975.0213589 | L205: =+IFERROR(VLOOKUP(D205,'Cronograma HIPO'!$C$35:$T$394,18,0),"") -> 40.65784369 | N205: =+IFERROR(VLOOKUP(D205,'Cronograma HIPO'!$C$35:$U$394,19,0),"") -> 85 | O205: =+IFERROR(VLOOKUP(D205,'Cronograma HIPO'!$C$35:$X$394,22,0),"") -> 2212.923663
D206: 154 | F206: =+IFERROR(VLOOKUP(D206,'Cronograma HIPO'!$C$35:$I$394,7,0),"") -> 2038-03-07 | G206: =+IFERROR(VLOOKUP(D206,'Cronograma HIPO'!$C$35:$K$394,9,0),"") -> 139369.5989 | H206: =+IFERROR(VLOOKUP(D206,'Cronograma HIPO'!$C$35:$Q$394,15,0),"") -> 1254.753176 | J206: =+IFERROR(VLOOKUP(D206,'Cronograma HIPO'!$C$35:$R$394,16,0),"") -> 873.1704867 | L206: =+IFERROR(VLOOKUP(D206,'Cronograma HIPO'!$C$35:$T$394,18,0),"") -> 36.42192185 | N206: =+IFERROR(VLOOKUP(D206,'Cronograma HIPO'!$C$35:$U$394,19,0),"") -> 85 | O206: =+IFERROR(VLOOKUP(D206,'Cronograma HIPO'!$C$35:$X$394,22,0),"") -> 2212.923663
D207: 155 | F207: =+IFERROR(VLOOKUP(D207,'Cronograma HIPO'!$C$35:$I$394,7,0),"") -> 2038-04-07 | G207: =+IFERROR(VLOOKUP(D207,'Cronograma HIPO'!$C$35:$K$394,9,0),"") -> 138114.8458 | H207: =+IFERROR(VLOOKUP(D207,'Cronograma HIPO'!$C$35:$Q$394,15,0),"") -> 1169.607924 | J207: =+IFERROR(VLOOKUP(D207,'Cronograma HIPO'!$C$35:$R$394,16,0),"") -> 958.3157388 | L207: =+IFERROR(VLOOKUP(D207,'Cronograma HIPO'!$C$35:$T$394,18,0),"") -> 39.96122871 | N207: =+IFERROR(VLOOKUP(D207,'Cronograma HIPO'!$C$35:$U$394,19,0),"") -> 85 | O207: =+IFERROR(VLOOKUP(D207,'Cronograma HIPO'!$C$35:$X$394,22,0),"") -> 2212.923663
D208: 156 | F208: =+IFERROR(VLOOKUP(D208,'Cronograma HIPO'!$C$35:$I$394,7,0),"") -> 2038-05-07 | G208: =+IFERROR(VLOOKUP(D208,'Cronograma HIPO'!$C$35:$K$394,9,0),"") -> 136945.2378 | H208: =+IFERROR(VLOOKUP(D208,'Cronograma HIPO'!$C$35:$Q$394,15,0),"") -> 1208.469213 | J208: =+IFERROR(VLOOKUP(D208,'Cronograma HIPO'!$C$35:$R$394,16,0),"") -> 919.4544502 | L208: =+IFERROR(VLOOKUP(D208,'Cronograma HIPO'!$C$35:$T$394,18,0),"") -> 38.34466659 | N208: =+IFERROR(VLOOKUP(D208,'Cronograma HIPO'!$C$35:$U$394,19,0),"") -> 85 | O208: =+IFERROR(VLOOKUP(D208,'Cronograma HIPO'!$C$35:$X$394,22,0),"") -> 2212.923663
D209: 157 | F209: =+IFERROR(VLOOKUP(D209,'Cronograma HIPO'!$C$35:$I$394,7,0),"") -> 2038-06-07 | G209: =+IFERROR(VLOOKUP(D209,'Cronograma HIPO'!$C$35:$K$394,9,0),"") -> 135736.7686 | H209: =+IFERROR(VLOOKUP(D209,'Cronograma HIPO'!$C$35:$Q$394,15,0),"") -> 1186.108314 | J209: =+IFERROR(VLOOKUP(D209,'Cronograma HIPO'!$C$35:$R$394,16,0),"") -> 941.8153493 | L209: =+IFERROR(VLOOKUP(D209,'Cronograma HIPO'!$C$35:$T$394,18,0),"") -> 39.27317172 | N209: =+IFERROR(VLOOKUP(D209,'Cronograma HIPO'!$C$35:$U$394,19,0),"") -> 85 | O209: =+IFERROR(VLOOKUP(D209,'Cronograma HIPO'!$C$35:$X$394,22,0),"") -> 2212.923663
D210: 158 | F210: =+IFERROR(VLOOKUP(D210,'Cronograma HIPO'!$C$35:$I$394,7,0),"") -> 2038-07-07 | G210: =+IFERROR(VLOOKUP(D210,'Cronograma HIPO'!$C$35:$K$394,9,0),"") -> 134550.6603 | H210: =+IFERROR(VLOOKUP(D210,'Cronograma HIPO'!$C$35:$Q$394,15,0),"") -> 1224.546478 | J210: =+IFERROR(VLOOKUP(D210,'Cronograma HIPO'!$C$35:$R$394,16,0),"") -> 903.3771846 | L210: =+IFERROR(VLOOKUP(D210,'Cronograma HIPO'!$C$35:$T$394,18,0),"") -> 37.67418489 | N210: =+IFERROR(VLOOKUP(D210,'Cronograma HIPO'!$C$35:$U$394,19,0),"") -> 85 | O210: =+IFERROR(VLOOKUP(D210,'Cronograma HIPO'!$C$35:$X$394,22,0),"") -> 2212.923663
D211: 159 | F211: =+IFERROR(VLOOKUP(D211,'Cronograma HIPO'!$C$35:$I$394,7,0),"") -> 2038-08-07 | G211: =+IFERROR(VLOOKUP(D211,'Cronograma HIPO'!$C$35:$K$394,9,0),"") -> 133326.1138 | H211: =+IFERROR(VLOOKUP(D211,'Cronograma HIPO'!$C$35:$Q$394,15,0),"") -> 1202.834744 | J211: =+IFERROR(VLOOKUP(D211,'Cronograma HIPO'!$C$35:$R$394,16,0),"") -> 925.0889184 | L211: =+IFERROR(VLOOKUP(D211,'Cronograma HIPO'!$C$35:$T$394,18,0),"") -> 38.57568893 | N211: =+IFERROR(VLOOKUP(D211,'Cronograma HIPO'!$C$35:$U$394,19,0),"") -> 85 | O211: =+IFERROR(VLOOKUP(D211,'Cronograma HIPO'!$C$35:$X$394,22,0),"") -> 2212.923663
D212: 160 | F212: =+IFERROR(VLOOKUP(D212,'Cronograma HIPO'!$C$35:$I$394,7,0),"") -> 2038-09-07 | G212: =+IFERROR(VLOOKUP(D212,'Cronograma HIPO'!$C$35:$K$394,9,0),"") -> 132123.2791 | H212: =+IFERROR(VLOOKUP(D212,'Cronograma HIPO'!$C$35:$Q$394,15,0),"") -> 1211.180665 | J212: =+IFERROR(VLOOKUP(D212,'Cronograma HIPO'!$C$35:$R$394,16,0),"") -> 916.7429983 | L212: =+IFERROR(VLOOKUP(D212,'Cronograma HIPO'!$C$35:$T$394,18,0),"") -> 38.22766875 | N212: =+IFERROR(VLOOKUP(D212,'Cronograma HIPO'!$C$35:$U$394,19,0),"") -> 85 | O212: =+IFERROR(VLOOKUP(D212,'Cronograma HIPO'!$C$35:$X$394,22,0),"") -> 2212.923663
D213: 161 | F213: =+IFERROR(VLOOKUP(D213,'Cronograma HIPO'!$C$35:$I$394,7,0),"") -> 2038-10-07 | G213: =+IFERROR(VLOOKUP(D213,'Cronograma HIPO'!$C$35:$K$394,9,0),"") -> 130912.0984 | H213: =+IFERROR(VLOOKUP(D213,'Cronograma HIPO'!$C$35:$Q$394,15,0),"") -> 1248.975892 | J213: =+IFERROR(VLOOKUP(D213,'Cronograma HIPO'!$C$35:$R$394,16,0),"") -> 878.9477706 | L213: =+IFERROR(VLOOKUP(D213,'Cronograma HIPO'!$C$35:$T$394,18,0),"") -> 36.65538756 | N213: =+IFERROR(VLOOKUP(D213,'Cronograma HIPO'!$C$35:$U$394,19,0),"") -> 85 | O213: =+IFERROR(VLOOKUP(D213,'Cronograma HIPO'!$C$35:$X$394,22,0),"") -> 2212.923663
D214: 162 | F214: =+IFERROR(VLOOKUP(D214,'Cronograma HIPO'!$C$35:$I$394,7,0),"") -> 2038-11-07 | G214: =+IFERROR(VLOOKUP(D214,'Cronograma HIPO'!$C$35:$K$394,9,0),"") -> 129663.1225 | H214: =+IFERROR(VLOOKUP(D214,'Cronograma HIPO'!$C$35:$Q$394,15,0),"") -> 1228.250566 | J214: =+IFERROR(VLOOKUP(D214,'Cronograma HIPO'!$C$35:$R$394,16,0),"") -> 899.6730973 | L214: =+IFERROR(VLOOKUP(D214,'Cronograma HIPO'!$C$35:$T$394,18,0),"") -> 37.51586345 | N214: =+IFERROR(VLOOKUP(D214,'Cronograma HIPO'!$C$35:$U$394,19,0),"") -> 85 | O214: =+IFERROR(VLOOKUP(D214,'Cronograma HIPO'!$C$35:$X$394,22,0),"") -> 2212.923663
D215: 163 | F215: =+IFERROR(VLOOKUP(D215,'Cronograma HIPO'!$C$35:$I$394,7,0),"") -> 2038-12-07 | G215: =+IFERROR(VLOOKUP(D215,'Cronograma HIPO'!$C$35:$K$394,9,0),"") -> 128434.872 | H215: =+IFERROR(VLOOKUP(D215,'Cronograma HIPO'!$C$35:$Q$394,15,0),"") -> 1265.608065 | J215: =+IFERROR(VLOOKUP(D215,'Cronograma HIPO'!$C$35:$R$394,16,0),"") -> 862.3155975 | L215: =+IFERROR(VLOOKUP(D215,'Cronograma HIPO'!$C$35:$T$394,18,0),"") -> 35.96176415 | N215: =+IFERROR(VLOOKUP(D215,'Cronograma HIPO'!$C$35:$U$394,19,0),"") -> 85 | O215: =+IFERROR(VLOOKUP(D215,'Cronograma HIPO'!$C$35:$X$394,22,0),"") -> 2212.923663
D216: 164 | F216: =+IFERROR(VLOOKUP(D216,'Cronograma HIPO'!$C$35:$I$394,7,0),"") -> 2039-01-07 | G216: =+IFERROR(VLOOKUP(D216,'Cronograma HIPO'!$C$35:$K$394,9,0),"") -> 127169.2639 | H216: =+IFERROR(VLOOKUP(D216,'Cronograma HIPO'!$C$35:$Q$394,15,0),"") -> 1245.55431 | J216: =+IFERROR(VLOOKUP(D216,'Cronograma HIPO'!$C$35:$R$394,16,0),"") -> 882.3693529 | L216: =+IFERROR(VLOOKUP(D216,'Cronograma HIPO'!$C$35:$T$394,18,0),"") -> 36.79430702 | N216: =+IFERROR(VLOOKUP(D216,'Cronograma HIPO'!$C$35:$U$394,19,0),"") -> 85 | O216: =+IFERROR(VLOOKUP(D216,'Cronograma HIPO'!$C$35:$X$394,22,0),"") -> 2212.923663
D217: 165 | F217: =+IFERROR(VLOOKUP(D217,'Cronograma HIPO'!$C$35:$I$394,7,0),"") -> 2039-02-07 | G217: =+IFERROR(VLOOKUP(D217,'Cronograma HIPO'!$C$35:$K$394,9,0),"") -> 125923.7096 | H217: =+IFERROR(VLOOKUP(D217,'Cronograma HIPO'!$C$35:$Q$394,15,0),"") -> 1254.196642 | J217: =+IFERROR(VLOOKUP(D217,'Cronograma HIPO'!$C$35:$R$394,16,0),"") -> 873.7270213 | L217: =+IFERROR(VLOOKUP(D217,'Cronograma HIPO'!$C$35:$T$394,18,0),"") -> 36.43392664 | N217: =+IFERROR(VLOOKUP(D217,'Cronograma HIPO'!$C$35:$U$394,19,0),"") -> 85 | O217: =+IFERROR(VLOOKUP(D217,'Cronograma HIPO'!$C$35:$X$394,22,0),"") -> 2212.923663
D218: 166 | F218: =+IFERROR(VLOOKUP(D218,'Cronograma HIPO'!$C$35:$I$394,7,0),"") -> 2039-03-07 | G218: =+IFERROR(VLOOKUP(D218,'Cronograma HIPO'!$C$35:$K$394,9,0),"") -> 124669.5129 | H218: =+IFERROR(VLOOKUP(D218,'Cronograma HIPO'!$C$35:$Q$394,15,0),"") -> 1346.851319 | J218: =+IFERROR(VLOOKUP(D218,'Cronograma HIPO'!$C$35:$R$394,16,0),"") -> 781.0723439 | L218: =+IFERROR(VLOOKUP(D218,'Cronograma HIPO'!$C$35:$T$394,18,0),"") -> 32.58029938 | N218: =+IFERROR(VLOOKUP(D218,'Cronograma HIPO'!$C$35:$U$394,19,0),"") -> 85 | O218: =+IFERROR(VLOOKUP(D218,'Cronograma HIPO'!$C$35:$X$394,22,0),"") -> 2212.923663
D219: 167 | F219: =+IFERROR(VLOOKUP(D219,'Cronograma HIPO'!$C$35:$I$394,7,0),"") -> 2039-04-07 | G219: =+IFERROR(VLOOKUP(D219,'Cronograma HIPO'!$C$35:$K$394,9,0),"") -> 123322.6616 | H219: =+IFERROR(VLOOKUP(D219,'Cronograma HIPO'!$C$35:$Q$394,15,0),"") -> 1272.244124 | J219: =+IFERROR(VLOOKUP(D219,'Cronograma HIPO'!$C$35:$R$394,16,0),"") -> 855.6795393 | L219: =+IFERROR(VLOOKUP(D219,'Cronograma HIPO'!$C$35:$T$394,18,0),"") -> 35.68135676 | N219: =+IFERROR(VLOOKUP(D219,'Cronograma HIPO'!$C$35:$U$394,19,0),"") -> 85 | O219: =+IFERROR(VLOOKUP(D219,'Cronograma HIPO'!$C$35:$X$394,22,0),"") -> 2212.923663
D220: 168 | F220: =+IFERROR(VLOOKUP(D220,'Cronograma HIPO'!$C$35:$I$394,7,0),"") -> 2039-05-07 | G220: =+IFERROR(VLOOKUP(D220,'Cronograma HIPO'!$C$35:$K$394,9,0),"") -> 122050.4175 | H220: =+IFERROR(VLOOKUP(D220,'Cronograma HIPO'!$C$35:$Q$394,15,0),"") -> 1308.473485 | J220: =+IFERROR(VLOOKUP(D220,'Cronograma HIPO'!$C$35:$R$394,16,0),"") -> 819.450178 | L220: =+IFERROR(VLOOKUP(D220,'Cronograma HIPO'!$C$35:$T$394,18,0),"") -> 34.1741169 | N220: =+IFERROR(VLOOKUP(D220,'Cronograma HIPO'!$C$35:$U$394,19,0),"") -> 85 | O220: =+IFERROR(VLOOKUP(D220,'Cronograma HIPO'!$C$35:$X$394,22,0),"") -> 2212.923663
D221: 169 | F221: =+IFERROR(VLOOKUP(D221,'Cronograma HIPO'!$C$35:$I$394,7,0),"") -> 2039-06-07 | G221: =+IFERROR(VLOOKUP(D221,'Cronograma HIPO'!$C$35:$K$394,9,0),"") -> 120741.944 | H221: =+IFERROR(VLOOKUP(D221,'Cronograma HIPO'!$C$35:$Q$394,15,0),"") -> 1290.150543 | J221: =+IFERROR(VLOOKUP(D221,'Cronograma HIPO'!$C$35:$R$394,16,0),"") -> 837.7731203 | L221: =+IFERROR(VLOOKUP(D221,'Cronograma HIPO'!$C$35:$T$394,18,0),"") -> 34.93466914 | N221: =+IFERROR(VLOOKUP(D221,'Cronograma HIPO'!$C$35:$U$394,19,0),"") -> 85 | O221: =+IFERROR(VLOOKUP(D221,'Cronograma HIPO'!$C$35:$X$394,22,0),"") -> 2212.923663
D222: 170 | F222: =+IFERROR(VLOOKUP(D222,'Cronograma HIPO'!$C$35:$I$394,7,0),"") -> 2039-07-07 | G222: =+IFERROR(VLOOKUP(D222,'Cronograma HIPO'!$C$35:$K$394,9,0),"") -> 119451.7935 | H222: =+IFERROR(VLOOKUP(D222,'Cronograma HIPO'!$C$35:$Q$394,15,0),"") -> 1325.920725 | J222: =+IFERROR(VLOOKUP(D222,'Cronograma HIPO'!$C$35:$R$394,16,0),"") -> 802.0029381 | L222: =+IFERROR(VLOOKUP(D222,'Cronograma HIPO'!$C$35:$T$394,18,0),"") -> 33.44650217 | N222: =+IFERROR(VLOOKUP(D222,'Cronograma HIPO'!$C$35:$U$394,19,0),"") -> 85 | O222: =+IFERROR(VLOOKUP(D222,'Cronograma HIPO'!$C$35:$X$394,22,0),"") -> 2212.923663
D223: 171 | F223: =+IFERROR(VLOOKUP(D223,'Cronograma HIPO'!$C$35:$I$394,7,0),"") -> 2039-08-07 | G223: =+IFERROR(VLOOKUP(D223,'Cronograma HIPO'!$C$35:$K$394,9,0),"") -> 118125.8727 | H223: =+IFERROR(VLOOKUP(D223,'Cronograma HIPO'!$C$35:$Q$394,15,0),"") -> 1308.302265 | J223: =+IFERROR(VLOOKUP(D223,'Cronograma HIPO'!$C$35:$R$394,16,0),"") -> 819.6213984 | L223: =+IFERROR(VLOOKUP(D223,'Cronograma HIPO'!$C$35:$T$394,18,0),"") -> 34.17775252 | N223: =+IFERROR(VLOOKUP(D223,'Cronograma HIPO'!$C$35:$U$394,19,0),"") -> 85 | O223: =+IFERROR(VLOOKUP(D223,'Cronograma HIPO'!$C$35:$X$394,22,0),"") -> 2212.923663
... 189 more rows

Sheet Resolucion (hidden)
B2: =CONCATENATE(Principal!E4," - ",Principal!E5) -> Hipotecario - Tradicional | D2: Titular: | E2: =Ingreso_Titular!D4 -> 0 | G2: =Principal!C11 -> RENTA ALTA | H2: Mancomuno: | I2: =Ingreso_Cony!D4 -> 0 | L2: Interbank Booster CHIP | R2: MATRIZ ZONA | AA2: CY DY
D3: DNI: | E3: =Ingreso_Titular!D5 -> 46046330 | F3: =CONCATENATE("Edad: ",Deudas!E12) ->  | H3: DNI: | I3: =Ingreso_Cony!D5 -> 0 | P3: Soles
E4: =CONCATENATE("Buro: ",Principal!C13) -> Buro: ALTO | F4: =CONCATENATE("Color: ",Principal!C14) -> Color: VERDE CLARO | G4: =IFERROR(VLOOKUP(Principal!C14,$R$4:$S$9,2,FALSE),"") -> ZONA 1 | I4: =IF(Principal!C9="Soltero(a)",CONCATENATE("Buro: ",Principal!C24),CONCATENATE("Buro: ",Principal!I13)) -> Buro: | P4: Dólares | R4: VERDE CLARO | S4: ZONA 1 | AA4: RatioSobreendeudamientoMáximo (Máx D/Y) | AB4: =IFERROR(Deudas_fx!J66,"") -> 0.59
E5: =Principal!H5 -> Zona de Recorte: | F5: =Principal!I5 -> ATENCIÓN | R5: VERDE | S5: ZONA 1 | AA5: MaxRatioEndeudamHipotecario | AB5: =IF(J21="Ahorro Casa",0.4,IF(AND(J20="Hipotecario",J21="Tradicional"),$AA$16,Deudas_fx!F54)) -> 0.5
B6: =IF(AND(OR(J20="MiVivienda",J20="TechoPropio"),OR(C9="Dólares",C10="Dólares")),"Este producto se entrega en Soles","") ->  | P6: Integrador | R6: AMARILLO | S6: ZONA 1 | AA6: MaxRatioEndeudamientoPersonal | AB6: =IF(K15=0,"",Deudas_fx!J66-K11/K15) -> 0.3793683274
P7: TP | R7: GRIS | S7: ZONA 2 | AA7: Ratio EndeudamientoHip Útil (Max C/Y) | AB7: =IF(K15=0,"",MIN(AB6,AB5)) -> 0.3793683274
B8: Condiciones del Crédito | H8: Resumen Deudas e Ingresos | P8: Verde | R8: ROJO | S8: ZONA 3 | AA8: Capac. Endeudamiento Máximo - CEM | AB8: =IF(K15=0,"",Deudas_fx!K78) -> 3411.28 | AC8: CEM ($) | AD8: =IF(K15=0,"",IF($C$10="Dólares",AB8/$C$11,0)) -> 0
B9: Valor del Inmueble | C9: Soles | D9: 300000 | E9: =IF(D9="","",IF(OR(D14="N/A",D14="#N/A"),"Valor del Inmueble fuera del rango de Producto "&J20&" (Ver Cuadros)","")) ->  | H9: Deudas | L9: =C17 -> Soles | R9: NO DATA | S9: NO BANC | AA9: CEM Ajustado (****) | AB9: =IF(K15=0,"",Deudas_fx!L78) -> 3411.28 | AC9: CEM Ajustado ($) | AD9: =IF(K15=0,"",IF($C$10="Dólares",AB9/$C$11,0)) -> 0
B10: Elegir moneda del crédito | C10: Soles | H10: Saldo Total en el SSFF | J10: =P3 -> Soles | K10: =Deudas!C41 -> 178522.37 | L10: =IF(C10=P4,Deudas!C41/$C$11,0) -> 0 | P10: IB | AB10: =IF(K15=0,"",Deudas_fx!L78) -> 3411.28
B11: Tipo de Cambio | C11: 3.85 | H11: Cuota SBS | J11: =P3 -> Soles | K11: =Deudas!C42 -> 1894 | L11: =IF(C10=P4,Deudas!C42/$C$11,0) -> 0 | P11: Externo
B12: Cuota Inicial (sin bonos MV/TP) | C12: =C9 -> Soles | E12: 0.2 | F12: =IF(D12="","",IF(J20<>"MiVivienda","",IF(J21="Ahorro Casa","INICIAL MINIMA 10%",IF(AND(J21="Tradicional",D9<=Cuadros!C27),"INICIAL MINIMA 7.5%","INICIAL MINIMA 10%")))) ->  | H12: Ingresos neto | L12: =C17 -> Soles | R12: AHORRO CASA | S12: Dependiente | T12: Profesional Independiente | U12: Microempresario | V12: Informal
B13: Para MV: Cuota inicial a colocar en ADQ | D13: =IFERROR(D12+D14+D15+D16,0) -> 0 | H13: YN Titular | J13: =C17 -> Soles | K13: =Ingreso_Titular!D8 -> 8992 | L13: =IF(C10=P4,Ingreso_Titular!D8/$C$11,0) -> 0 | P13: Normal | Q13: 0.0034 | R13: Verde Claro | S13: 4M / CI 10% | T13: 4M / CI 20% 6M / CI 10% | U13: 4M / CI 20% 6M / CI 10% | V13: 6M / CI 20% 9M / CI 15% | AA13: Matriz CY Hipotecario Tradicional | AB13: =_xlfn.IFS( OR(G2="no data",G2=0),"consumo inicial", G2="estado","masivo dependiente", TRUE,G2) -> RENTA ALTA | AC13: provisional por segmento ESTADO y SIN SEGMENTO
B14: =_xlfn.IFS(J20="MiVivienda","Bono MV",J20="TechoPropio","Bono TechoPropio",TRUE,"") ->  | D14: =IF(J20="TechoPropio",IF(D9<Cuadros!B34,"N/A",IF(D9<=Cuadros!B35,Cuadros!D34,IF(D9<=Cuadros!C35,Cuadros!D35,"N/A"))),IF(J20="MiVivienda",IF(D9<Cuadros!B24,"N/A",IF(D9<=Cuadros!C24,Cuadros!D24,IF(D9<=Cuadros!C25,Cuadros!D25,IF(D9<=Cuadros!C26,Cuadros!D26,IF(D9<=Cuadros!C27,Cuadros!D27,IF(D9>Cuadros!C28,"N/A",0)))))),0)) -> 0 | E14: =IF(D14>0,"Soles","") ->  | H14: YN Mancomuno | J14: =J13 -> Soles | K14: =Ingreso_Cony!D8 -> 0 | L14: =IF(C10=P4,Ingreso_Cony!D8/$C$11,0) -> 0 | P14: Mixto | Q14: 0.005 | R14: Verde | S14: 4M / CI 10% | T14: 4M / CI 20% 6M / CI 10% | U14: 4M / CI 20% 6M / CI 10% | V14: 6M / CI 20% 9M / CI 15% | AA14: =MATCH($AB$13,$S$21:$V$21,0) -> 1 | AB14: Indice Segmento
B15: =IF(J20="Mivivienda","Bono Integrador","") ->  | D15: =IF(AND(D9<=Cuadros!C27,D9>=Cuadros!B24),IF(AND(C15<>"No",AND(C15<>"",C15<>"sin bono integrador"),D9<=Cuadros!C27,J20="MiVivienda"),3400,0),0) -> 0 | E15: =IF(D14>0,"Soles","") ->  | H15: Ingreso Neto Mensual Total | J15: =J14 -> Soles | K15: =K13+K14 -> 8992 | L15: =L13+L14 -> 0 | P15: Preferente | Q15: 0.0022 | R15: Amarillo | S15: 4M / CI 10% | T15: 4M / CI 20% 6M / CI 10% | U15: 4M / CI 20% 6M / CI 10% | V15: 6M / CI 20% 9M / CI 15% | AA15: =MATCH(Principal!$C$14,$R$22:$R$27,0) -> 1 | AB15: Indice Color
B16: =IF(J20="Mivivienda","Bono Verde","") ->  | D16: =IF(AND(D9<=355100,D9>=67400,J20="MiVivienda"),_xlfn.IFNA(VLOOKUP(C16,Cuadros!$B$59:$C$60,2,FALSE),0),0) -> 0 | E16: =IF(D14>0,"Soles","") ->  | P16: Dorado | Q16: 0.0024 | R16: Gris | S16: APAGADA | T16: APAGADA | U16: APAGADA | V16: APAGADA | AA16: =INDEX(S22:V27,AA15,AA14) -> 0.5 | AB16: CY correspondiente
B17: Importe del Préstamo | C17: =C10 -> Soles | D17: =IFERROR(IF(AND(C10=P3,C9=P4),(D9-(D9*E12)-D14-D15-D16)*C11,(D9-(D9*E12)-D14-D15-D16)),0) -> 240000 | E17: =_xlfn.IFNA(IF(AB22=0,"",AB31),"") -> 390000 | F17: =IF(E17<>"","Oferta CEM Máxima referencial","") -> Oferta CEM Máxima referencial | R17: Rojo | S17: ZONA RESTRINGIDA | T17: ZONA RESTRINGIDA | U17: ZONA RESTRINGIDA | V17: ZONA RESTRINGIDA
B18: Tasa Interes | C18: TEA | D18: 0.08 | E18: =(1 + D18)^(1/12) - 1 -> 0.00643403011 | H18: Endeudamiento, Zona Geográfica, Producto y Situación Laboral | P18: Ordinaria | R18: NO DATA | S18: 6M / CI 20% 9M / CI 15% | T18: APAGADA | U18: APAGADA | V18: APAGADA | AA18: Monto maximo sugerido
B19: Plazo | D19: 240 | E19: Meses | F19: =IF(D19="","",IFERROR(IF(AND('Cronograma HIPO'!V9+D19/12>86,Deudas!E12<0),"Titular o Cónyuge excede el límite de edad de permanencia (86 años), reducir el plazo del Crédito",IF(AND(J20=P30,OR(D19<60,D19>300)),"El rango de Plazo MV es de 5 a 25 años",IF(AND(J20=P32,D19>60),"El Plazo Máximo de PPGH es hasta 5 años. Solicitar excepción máxima hasta 10 años",""))),"")) ->  | H19: Departamento Geográfico | J19: Lima | K19: =VLOOKUP(J19,Cuadros!$AA$2:$AB$26,2,0) -> Zona1 | P19: Extraordinaria | AA19: Tasa de Costo Efectiva Mensual | AB19: =(1+D31)^(1/12)-1 -> 0.007310711412
B20: Tipo de Crédito | D20: Individual | F20: =IF(Deudas!E12>0,IFERROR(IF(OR(J20=P30,J20=P31),IF(VLOOKUP(75,'Cronograma HIPO'!Z:AC,4,1)>IF(C10="Soles",15000*HIPO!J25,15000),"Titular o Cónyuge excede el Saldo Capital MiVivienda Máximo (15,000 USD) al cumplir los 75 años, reducir el Plazo del Crédito",""),IF(VLOOKUP(75,'Cronograma HIPO'!Z:AC,4,1)>IF(C10="Soles",30000*HIPO!J25,30000),"Titular o Cónyuge excede el Saldo Capital Máximo (30,000 USD) al cumplir los 75 años, reducir el Plazo del Crédito","")),""),"") ->  | H20: Producto | J20: =Principal!E4 -> Hipotecario | AA20: Valor presente | AB20: =PV(AB19,D19,-J28,0) -> 385381.572
B21: Tasa Seguro Desgravamen | D21: =IF(D20="Individual",Cuadros!$D$39,IF(D20="Individual/Devolución",Cuadros!$D$43,IF(D20="Mancomunado/Devolución",Cuadros!$D$44,Cuadros!$D$40))) -> 0.00028 | E21: TEM | H21: Tipo de Evaluación | J21: =Principal!E5 -> Tradicional | P21: HPC | S21: Renta Alta | T21: Masivo Dependiente | U21: Masivo Independiente | V21: Consumo Inicial | AA21: Simulacion 1
B22: Tasa Seguro Inmueble | C22: Normal | D22: =VLOOKUP(C22,P13:Q16,2,0) -> 0.0034 | E22: TNA | H22: Situación Laboral | J22: =Principal!F9 -> Dependiente | P22: ADQ | R22: Verde Claro | S22: 0.5 | T22: 0.5 | U22: 0.5 | V22: 0.4 | AA22: VI1 | AB22: =AB20 -> 385381.572
B23: Comisión Administrativa | D23: =VLOOKUP(E23,Deudas_fx!H114:J115,3,FALSE) -> 0 | E23: =IF(Deudas_fx!$I$13=1,"Soles","Dólares") -> Soles | R23: Verde | S23: 0.5 | T23: 0.5 | U23: 0.5 | V23: 0.4 | AA23: TCEA1 | AB23: ='Cronograma HIPO (2)'!AA15 -> 0.08960385071
B24: Tipo de Cuota | D24: Ordinaria | P24: Individual | R24: Amarillo | S24: 0.5 | T24: 0.5 | U24: 0.4 | V24: 0.4 | AA24: TCEM1 | AB24: =(1+AB23)^(1/12)-1 -> 0.007176813305
B25: Factor Cuota Extraordinaria | D25: 2 | F25: =IF(J20=P29," ",IF(COUNTIF('Cronograma HIPO'!$Q$35:$Q$394,"<-0.01")>=1,"ERROR: Existen amortizaciones negativas, reducir progresivamente el Factor de Cuota Extaordinaria o el Plazo","")) ->  | H25: Ratios | J25: Calculado | K25: Máximo | P25: Mancomunado | R25: Gris | S25: 0.5 | T25: 0.4 | U25: 0.4 | V25: 0.4 | AA25: VA1 | AB25: =PV(AB24,D19,-J28,0) -> 389889.0598
B26: Fecha de Desembolso | D26: =TODAY() -> 2025-04-29 | H26: YN: | I26: =C10 -> Soles | J26: =IF(I26=P4,L15,K15) -> 8992 | K26: =IF(K14>0,CONCATENATE("TIT S/ ",K13," MANC S/ ",K14),"") ->  | P26: Individual/Devolución | R26: Rojo | S26: ZONA RESTRINGIDA | AA26: Simulacion 2
B27: Fecha 1er pago | D27: =DATE(YEAR(D26),MONTH(D26)+1,DAY(D26)-1) -> 2025-05-28 | H27: Cuota SBS: | I27: =C10 -> Soles | J27: =IF(I27=P4,L11,K11) -> 1894 | P27: Mancomunado/Devolución | R27: NO DATA | S27: 0.5 | T27: 0.5 | U27: 0.4 | V27: 0.4 | AA27: VI2 | AB27: =AB25 -> 389889.0598
B28: Periodo de Gracia (*****) | D28: 0 | E28: Meses | H28: CEM: | I28: =C10 -> Soles | J28: =IF(I28=P4,AD9,IF(K15=0,0,Deudas_fx!K78)) -> 3411.28 | K28: =AD8 -> 0 | AA28: TCEA2 | AB28: ='Cronograma HIPO (3)'!AA15 -> 0.0895600672
H29: Cuota Final: | I29: =C10 -> Soles | J29: =IF(D32="ADQ",D33,E33) -> 2212.923663 | P29: Hipotecario | AA29: TCEM2 | AB29: =(1+AB28)^(1/12)-1 -> 0.00717344063
B30: Simulación Cuota | H30: C/Y: | I30: =IF(K15=0,"",IF(J30<=K30,"CALIFICA","SOBREENDEUDADO")) -> CALIFICA | J30: =IFERROR(J29/J26,) -> 0.2460991618 | K30: =_xlfn.IFNA(AB5,"") -> 0.5 | P30: MiVivienda | T30: Score Buró | AA30: VA2 | AB30: =PV(AB29,D19,-J28,0) -> 390003.6523
B31: Tasa de Costo Efectiva Anual | C31: TCEA | D31: =IF(OR(D33=0,D17=0),0,+'Cronograma HIPO'!AA32) -> 0.09134339773 | E31: =IF(D32="HPC","Utilizar solo la Cuota HPC","Cuota ADQ sólo es para Riesgos") -> Utilizar solo la Cuota HPC | H31: D/Y: | I31: =IFERROR(Deudas_fx!G92,"") -> CALIFICA | J31: =IFERROR((J27+J29)/J26,) -> 0.4567308344 | K31: =IFERROR(Deudas_fx!J66,"") -> 0.59 | P31: TechoPropio | T31: Alto | U31: Medio | V31: Bajo | W31: Muy Bajo | X31: Rechazo | Y31: Null | AA31: Maximo referencial | AB31: =ROUND(AB30,-3) -> 390000
B32: Tipo de simulación | D32: HPC | E32: HPC | P32: Personal con Garantía | R32: Score CHIP | S32: Muy Alto
B33: Cuota mensual | C33: =C10 -> Soles | D33: =IF(D32="HPC",E33,0) -> 2212.923663 | E33: =IF(OR(D9=0,D17=0,D18=0,D26=0),0,+VLOOKUP(1,'Cronograma HIPO'!E35:X52,20,FALSE)) -> 2212.923663 | S33: Alto
B34: Cuota Extraordinaria | C34: =C10 -> Soles | D34: =IF(D32="HPC",E34,0) -> 0 | E34: =IF(OR(D9=0,D17=0,D18=0,D26=0),0,IF(Deudas_fx!I24=1,0,VLOOKUP($D$25,'Cronograma HIPO'!E41:X52,20,FALSE))) -> 0 | H34: Plan de Ahorros | P34: CALIFICA | S34: Medio
H35: Plan correspondiente | J35: =_xlfn.IFNA(IF(J21="TRADICIONAL","",Ah_casa!C15),"") ->  | P35: SOBREENDEUDADO | S35: Bajo
J36: Debe ser aprobado por riesgos para iniciar con el plan de ahorros | S36: Rechazo
B37: Condiciones del credito | S37: Null
B38: =IF(AND(I30=P34,I31=P34), IF(K14=0, "YN S/ " & J26 & " DEUDA S/ " & J27 & " CY " & J30 & " DY " & J31 & " CEM S/ " & J28 & " CON / SIN CONDICIONES ", "TIT S/ " & K13 & IF(Principal!C19="", " CONY S/ ", " COD S/ ") & K14 & " YN S/ " & J26 & " DEUDA S/ " & J27 & " CY " & J30 & " DY " & J31 & " CEM S/ " & J28 & " CON / SIN CONDICIONES " ), "" ) -> YN S/ 8992 DEUDA S/ 1894 CY 0.246099161795858 DY 0.456730834393723 CEM S/ 3411.28 CON / SIN CONDICIONES
H39: Oferta Visión Cliente
H40: Oferta PPE | J40: =Vision_Cliente!D20 -> 
H41: Oferta TC | J41: =Vision_Cliente!M20 -> 35968
H42: Revisar condiciones en Pestaña Vision Cliente
P46: Por YN
P47: Por edad
P48: Discapacidad
P49: Desplazo de terrorismo
P50: Migrante retornado
P51: Sin Bono Integrador
P53: Con Bono Verde
P54: Sin Bono Verde

Sheet Cronograma HIPO (hidden)
D1: =DATE(YEAR('VISTA CLIENTE'!G11),MONTH('VISTA CLIENTE'!G11)+D5,'VISTA CLIENTE'!G23) -> 2025-06-07 | N1: Fecha vencimiento + PG | O1: =DATE(H35,G35+I4,F35) -> 2025-06-07
B2: Fechadefault | D2: =DATE(YEAR('VISTA CLIENTE'!G11),MONTH('VISTA CLIENTE'!G11)+1,'VISTA CLIENTE'!G23) -> 2025-05-07 | G2: Fecha Desembolso | I2: ='VISTA CLIENTE'!G11 -> 2025-04-28 | N2: Dias de PG natural | O2: =+I35-I2-IF(I35-I2<30,0,30) -> 10 | AD2: DESGRAVAMEN | AF2: SEGURO BIEN | AH2: MONEDA | AI2: CUOTA | AK2: 0
B3: FechaPersonalizada | D3: =IF(Deudas_fx!O89="","",IF(DAY(TODAY())>Deudas_fx!O89,DATE(YEAR(TODAY()),MONTH(TODAY())+2,Deudas_fx!O89),DATE(YEAR(TODAY()),MONTH(TODAY())+1,Deudas_fx!O89))) ->  | G3: Fechas de pago | I3: =VALUE(DAY(Deudas_fx!O89)) -> 0 | N3: int.+s.d. PG | O3: =+(($I$8+1)^O2-1)*I5 -> 558.2549868 | AD3: EXTERNO | AF3: EXTERNO | AG3: EXTERNO | AH3: SOLES | AI3: ORDINARIA | AK3: 1
B4: Usuario: Tom Davye Agurto Alban | D4: =DATEDIF(I2,D2,"d") -> 9 | G4: Periodo de Gracia (meses) | I4: ='VISTA CLIENTE'!G28 -> 0 | N4: s.inm. PG | O4: =+$I$12/30*O2 -> 28.33333333 | AD4: INDIVIDUAL | AF4: NORMAL | AH4: DOLARES | AI4: EXTRAORDINARIA | AK4: 2
D5: =IF(D4<30,2,1) -> 2 | G5: Saldo Capital | I5: ='VISTA CLIENTE'!G17 -> 250000 | AD5: MANCOMUNADO
G6: Tasa Interés Capital | I6: =Deudas_fx!I124 -> 0.0002138035225 | N6: =((1+I6)^30-1)*100000 -> 643.403011 | R6: =+(1+I6)^30-1 -> 0.00643403011 | S6: =+(1+R6)^12-1 -> 0.08 | T6: =+(1+S6)^(1/360)-1 -> 0.0002138035225 | U6: tit | V6: =IF(W6<>"",YEAR(TODAY())-IF(YEAR(W6)>0,YEAR(W6),0),"") ->  | W6: =Deudas!C12 -> 27/07/1989 | AD6: INDIVIDUAL/DEVOLUCIÓN
G7: Seg. Desg | I7: =Deudas_fx!I125 -> 9.332070454e-06 | N7: =((1+I7)^30-1)*100000 -> 28 | R7: =+(1+I7)^30-1 -> 0.00028 | U7: cony | V7: =IF(W7<>"",YEAR(TODAY())-IF(YEAR(W7)>0,YEAR(W7),0),"") ->  | W7: =IF(Deudas!F12<>"",Deudas!F12,"") ->  | AD7: MANCOMUNADO/DEVOLUCIÓN
G8: Tasa Diaria Total | I8: =(1+N8)^(1/30)-1 -> 0.0002230779245 | N8: =Deudas_fx!J131 -> 0.00671403011 | R8: =+R6+R7 -> 0.00671403011 | U8: cod | V8: =IF(W8<>"",YEAR(TODAY())-IF(YEAR(W8)>0,YEAR(W8),0),"") ->  | W8: =IF(Deudas!I12<>"",Deudas!I12,"") -> 
G9: Plazo | I9: ='VISTA CLIENTE'!G19 -> 240 | N9: =SUM(P35:P394) -> 117.7610798 | R9: =+(1+R8)^12-1 -> 0.0836111237 | V9: =MAX(V6:V8) -> 
G10: Saldo Capitalizado | I10: =VLOOKUP(J10,D35:K394,8,FALSE) -> 250586.5883 | J10: PP | N10: =+$I$10/N9 -> 2127.923663 | R10: =+(1+R9)^(0.00277777777777778)-1 -> 0.0002230779245 | AN10: 100000.00 | AO10: 133005.55 | AQ10: 7944.62 | AR10: 6000.00
G11: Com.Adm. | I11: 0 | N11: =+$K$35-Q395 -> -4.243100421
G12: Seguro Inmueble | I12: =Deudas_fx!I128 -> 85 | N12: =+N11/(1+N8)^I9 -> -0.8515579709 | Y12: =SUM(P47:P394) -> 106.300898 | AN12: =+AO14/AO34 -> 737.8132927
G13: T.C | I13: 3.7
Y14: =AX45/Y12 -> 2300.539839 | AO14: =+AO31/(1+AM35)^240 -> 86885.69006 | AP14: 1003.993995 | AQ14: 1003.994938 | AR14: 1003.994789
B31: Simulación de Cronograma de Préstamo Hipotecario | AA31: Costo Efectivo | AO31: =+AW274 -> 676469.7815 | AP31: 133010.9044 | AQ31: 7944.868371 | AR31: 6000 | AS31: 0 | AT31: 240959.9889 | AU31: 246959.9889
C32: Los importes son referenciales, podrán variar dependiendo de la fecha de desembolso y debido a cambios en el Tarifario del Banco | AA32: =+(AA33+1)^12-1 -> 0.09134339773 | AO32: =SUM(AQ35:AQ274) -> -425883.1931 | AP32: =SUM(AR35:AR274) -> 639033.545 | AQ32: =SUM(AS35:AS274) -> 27808.39743 | AR32: =SUM(AU35:AU274) -> 20400 | AT32: =SUM(AT35:AT274) -> 240958.7493 | AU32: =SUM(AV35:AV274) -> 261358.7493
B33: Periodo | C33: No. Cuota | D33: Periodo | E33: Cuota Ext. | F33: Dia | G33: Mes | H33: Año | I33: Vcto. | K33: Saldo Inicial | L33: Int.+SG PG | M33: Interés PG | N33: Seg. Desg PG | O33: Seg. Inm PG | P33: Factor | Q33: Amortización | R33: Interés Total | S33: Interés | T33: Seg. Desgrav. | U33: Seg. Inmueb. | V33: Comis. Admin. | W33: Cuota_Int | X33: Cuota | Y33: Saldo Final | AA33: =IRR(AA34:AA394,0.01) -> 0.007310711412 | AO33: =+K35/AO34 -> 2127.923663
Z34: =VLOOKUP(V9,$V$6:$W$8,2,FALSE) ->  | AA34: =-I5 -> -250000 | AB34: FECHA VCTO. | AC34: SALDO | AD34: AMORTIZ. | AE34: INTERES | AF34: SEG.DESG. | AG34: SEG.BIEN | AH34: COMISION | AI34: IMP.CUOTA | AO34: =SUM(AO35:AO274) -> 117.7610798
B35: =IF(D35="PG","Periodo de Gracia","") ->  | C35: 1 | D35: =IF(C35<=$I$4,"PG",IF(AND(C35>$I$4,C35<=$I$9),"PP","PG")) -> PP | E35: =IF(Deudas_fx!$I$24=2,IF(OR(G35=8,G35=1),Deudas_fx!$I$24,IF(D35="Pg",0,1)),IF(D35="PG",0,1)) -> 1 | F35: =DAY(I35) -> 7 | G35: =MONTH(I35) -> 6 | H35: =YEAR(I35) -> 2025 | I35: =IF(Deudas_fx!O89="",D1,D3) -> 2025-06-07 | J35: =+I35-I2 -> 40 | K35: =IF(O2>=0,+I5+O3+O4,I5) -> 250586.5883 | L35: =IF(D35="PG",((($I$8+1)^J35-1)*K35),0) -> 0 | M35: =IF(D35="PG",((($I$6+1)^J35-1)*K35),0) -> 0 | N35: =IF(D35="PG",((($I$7+1)^J35-1)*K35),0) -> 0 | O35: =IF(D35="PG",(+$I$12),0) -> 0 | P35: =IF(OR(D35="PG",D35=0),0,E35*((1+$I$8)^-SUMIF(D$35:D35,"PP",J$35:J35))) -> 0.9911175622 | Q35: =+IF(D35="PG",0,X35-SUM(R35,U35,V35)) -> -117.6394641 | R35: =S35+T35 -> 2245.563127 | S35: =IF(OR(D35="PG",D35=0),0,IF(O2>=0,K35*((1+$I$6)^J35-1),K35*((1+$I$6)^(J35+O2)-1))) -> 2152.010801 | T35: =IF(OR(D35="PG",D35=0),0,IF(O2>=0,K35*((1+$I$7)^30-1)*J35/30,K35*((1+$I$7)^(30+O2)-1)*J35/30)) -> 93.5523263 | U35: =IF(OR(D35="PG",D35=0),0,$I$12) -> 85 | V35: =IF(OR(D35="PG",D35=0),0,$I$11) -> 0 | W35: =IF(OR(D35="PG",D35=0),0,E35*$N$10) -> 2127.923663 | X35: =IF(OR(D35="PG",D35=0),0,W35+U35+V35) -> 2212.923663 | Y35: =+K35+N35+O35+M35-Q35 -> 250704.2278 | Z35: =YEAR(I35-$Z$34)-1900 ->  | AA35: =+X35 -> 2212.923663 | AB35: =+I35 -> 2025-06-07 | AC35: =+K35 -> 250586.5883 | AD35: =+Q35 -> -117.6394641 | AE35: =+IF(D35="PG",M35,S35) -> 2152.010801 | AF35: =+IF(D35="PG",N35,T35) -> 93.5523263 | AG35: =+IF(D35="PG",O35,U35) -> 85 | AH35: 0 | AI35: =+X35 -> 2212.923663 | AL35: =+J35 -> 40 | AM35: =+(1+$S$6)^(AL35/360)-1 -> 0.008587892972 | AN35: =+$R$7*AL35/30 -> 0.0003733333333 | AO35: =1/(1+$R$10)^SUM($AL$35:AL35) -> 0.9911175622 | AP35: =+K35 -> 250586.5883 | AQ35: =+$AR$14-AR35-AS35 -> -1241.568338 | AR35: =+AP35*AM35 -> 2152.010801 | AS35: =+AP35*AN35 -> 93.5523263 | AT35: =+AQ35+AR35+AS35 -> 1003.994789 | AU35: =+U35 -> 85 | AV35: =+AT35+AU35 -> 1088.994789 | AW35: =+AP35-AQ35 -> 251828.1567
C36: =+C35+1 -> 2 | D36: =IF(C36<=$I$4,"PG",IF(AND(C36>$I$4,C36<=$I$9),"PP","PG")) -> PP | E36: =IF(Deudas_fx!$I$24=2,IF(OR(G36=8,G36=1),Deudas_fx!$I$24,IF(D36="Pg",0,1)),IF(D36="PG",0,1)) -> 1 | F36: =F35 -> 7 | G36: =IF(G35=12,1,G35+1) -> 7 | H36: =IF(G35=12,H35+1,H35) -> 2025 | I36: =DATE(H36,G36,F36) -> 2025-07-07 | J36: =+I36-I35 -> 30 | K36: =+Y35 -> 250704.2278 | L36: 0 | M36: 0 | N36: 0 | O36: 0 | P36: =IF(OR(D36="PG",D36=0),0,E36*((1+$I$8)^-SUMIF(D$35:D36,"PP",J$35:J36))) -> 0.9845075488 | Q36: 444.6879288 | R36: 1683.235734 | S36: 1613.03855 | T36: 70.19718378 | U36: 85 | V36: 0 | W36: 2127.923663 | X36: 2212.923663 | Y36: 250259.5399 | Z36: =YEAR(I36-$Z$34)-1900 ->  | AA36: 2212.923663 | AB36: 2025-07-07 | AC36: 250704.2278 | AD36: 444.6879288 | AE36: 1613.03855 | AF36: 70.19718378 | AG36: 85 | AH36: 0 | AI36: 2212.923663 | AL36: 30 | AM36: 0.00643403011 | AN36: 0.00028 | AO36: =1/(1+$R$10)^SUM($AL$35:AL36) -> 0.9845075488 | AP36: =+AW35 -> 251828.1567 | AQ36: -686.7870376 | AR36: 1620.269942 | AS36: 70.51188386 | AT36: 1003.994789 | AU36: 85 | AV36: 1088.994789 | AW36: 252514.9437
C37: 3 | D37: PP | E37: =IF(Deudas_fx!$I$24=2,IF(OR(G37=8,G37=1),Deudas_fx!$I$24,IF(D37="Pg",0,1)),IF(D37="PG",0,1)) -> 1 | F37: 7 | G37: 8 | H37: 2025 | I37: 2025-08-07 | J37: 31 | K37: 250259.5399 | L37: 0 | M37: 0 | N37: 0 | O37: 0 | P37: =IF(OR(D37="PG",D37=0),0,E37*((1+$I$8)^-SUMIF(D$35:D37,"PP",J$35:J37))) -> 0.9777235108 | Q37: 391.4871885 | R37: 1736.436474 | S37: 1664.028048 | T37: 72.40842686 | U37: 85 | V37: 0 | W37: 2127.923663 | X37: 2212.923663 | Y37: 249868.0527 | AA37: 2212.923663 | AB37: 2025-08-07 | AC37: 250259.5399 | AD37: 391.4871885 | AE37: 1664.028048 | AF37: 72.40842686 | AG37: 85 | AH37: 0 | AI37: 2212.923663 | AK37: 76929.10334 | AL37: 31 | AM37: 0.006649209251 | AN37: 0.0002893333333 | AO37: =1/(1+$R$10)^SUM($AL$35:AL37) -> 0.9777235108 | AP37: 252514.9437 | AQ37: -748.0909012 | AR37: 1679.0247 | AS37: 73.06099037 | AT37: 1003.994789 | AU37: 85 | AV37: 1088.994789 | AW37: 253263.0346
C38: 4 | D38: PP | E38: =IF(Deudas_fx!$I$24=2,IF(OR(G38=8,G38=1),Deudas_fx!$I$24,IF(D38="Pg",0,1)),IF(D38="PG",0,1)) -> 1 | F38: 7 | G38: 9 | H38: 2025 | I38: 2025-09-07 | J38: 31 | K38: 249868.0527 | L38: 0 | M38: 0 | N38: 0 | O38: 0 | P38: =IF(OR(D38="PG",D38=0),0,E38*((1+$I$8)^-SUMIF(D$35:D38,"PP",J$35:J38))) -> 0.9709862202 | Q38: 394.203539 | R38: 1733.720124 | S38: 1661.424967 | T38: 72.29515657 | U38: 85 | V38: 0 | W38: 2127.923663 | X38: 2212.923663 | Y38: 249473.8491 | AA38: 2212.923663 | AB38: 2025-09-07 | AC38: 249868.0527 | AD38: 394.203539 | AE38: 1661.424967 | AF38: 72.29515657 | AG38: 85 | AH38: 0 | AI38: 2212.923663 | AL38: 31 | AM38: 0.006649209251 | AN38: 0.0002893333333 | AO38: =1/(1+$R$10)^SUM($AL$35:AL38) -> 0.9709862202 | AP38: 253263.0346 | AQ38: -753.2815618 | AR38: 1683.998913 | AS38: 73.27743801 | AT38: 1003.994789 | AU38: 85 | AV38: 1088.994789 | AW38: 254016.3162
C39: 5 | D39: PP | E39: =IF(Deudas_fx!$I$24=2,IF(OR(G39=8,G39=1),Deudas_fx!$I$24,IF(D39="Pg",0,1)),IF(D39="PG",0,1)) -> 1 | F39: 7 | G39: 10 | H39: 2025 | I39: 2025-10-07 | J39: 30 | K39: 249473.8491 | L39: 0 | M39: 0 | N39: 0 | O39: 0 | P39: =IF(OR(D39="PG",D39=0),0,E39*((1+$I$8)^-SUMIF(D$35:D39,"PP",J$35:J39))) -> 0.9645104679 | Q39: =+IF(D39="PG",0,X39-SUM(R39,U39,V39)) -> 452.9487282 | R39: 1674.974935 | S39: 1605.122257 | T39: 69.85267775 | U39: 85 | V39: 0 | W39: 2127.923663 | X39: 2212.923663 | Y39: 249020.9004 | AA39: 2212.923663 | AB39: 2025-10-07 | AC39: 249473.8491 | AD39: 452.9487282 | AE39: 1605.122257 | AF39: 69.85267775 | AG39: 85 | AH39: 0 | AI39: 2212.923663 | AL39: 30 | AM39: 0.00643403011 | AN39: 0.00028 | AO39: =1/(1+$R$10)^SUM($AL$35:AL39) -> 0.9645104679 | AP39: 254016.3162 | AQ39: -701.4784064 | AR39: 1634.348627 | AS39: 71.12456852 | AT39: 1003.994789 | AU39: 85 | AV39: 1088.994789 | AW39: 254717.7946
C40: 6 | D40: PP | E40: =IF(Deudas_fx!$I$24=2,IF(OR(G40=8,G40=1),Deudas_fx!$I$24,IF(D40="Pg",0,1)),IF(D40="PG",0,1)) -> 1 | F40: 7 | G40: 11 | H40: 2025 | I40: 2025-11-07 | J40: 31 | K40: 249020.9004 | L40: 0 | M40: 0 | N40: 0 | O40: 0 | P40: =IF(OR(D40="PG",D40=0),0,E40*((1+$I$8)^-SUMIF(D$35:D40,"PP",J$35:J40))) -> 0.9578642256 | Q40: 400.0815411 | R40: 1727.842122 | S40: 1655.792075 | T40: 72.05004718 | U40: 85 | V40: 0 | W40: 2127.923663 | X40: 2212.923663 | Y40: 248620.8189 | AA40: 2212.923663 | AB40: 2025-11-07 | AC40: 249020.9004 | AD40: 400.0815411 | AE40: 1655.792075 | AF40: 72.05004718 | AG40: 85 | AH40: 0 | AI40: 2212.923663 | AL40: 31 | AM40: 0.006649209251 | AN40: 0.0002893333333 | AO40: =1/(1+$R$10)^SUM($AL$35:AL40) -> 0.9578642256 | AP40: 254717.7946 | AQ40: -763.3754758 | AR40: 1693.671916 | AS40: 73.69834856 | AT40: 1003.994789 | AU40: 85 | AV40: 1088.994789 | AW40: 255481.17
C41: 7 | D41: =IF(C41<=$I$4,"PG",IF(AND(C41>$I$4,C41<=$I$9),"PP",0)) -> PP | E41: =IF(Deudas_fx!$I$24=2,IF(OR(G41=8,G41=1),Deudas_fx!$I$24,IF(D41="Pg",0,1)),IF(D41="PG",0,1)) -> 1 | F41: 7 | G41: 12 | H41: 2025 | I41: 2025-12-07 | J41: 30 | K41: 248620.8189 | L41: 0 | M41: 0 | N41: 0 | O41: 0 | P41: =IF(OR(D41="PG",D41=0),0,E41*((1+$I$8)^-SUMIF(D$35:D41,"PP",J$35:J41))) -> 0.9514759872 | Q41: 458.6759991 | R41: 1669.247664 | S41: 1599.633835 | T41: 69.61382928 | U41: 85 | V41: 0 | W41: 2127.923663 | X41: 2212.923663 | Y41: 248162.1429 | AA41: 2212.923663 | AB41: 2025-12-07 | AC41: 248620.8189 | AD41: 458.6759991 | AE41: 1599.633835 | AF41: 69.61382928 | AG41: 85 | AH41: 0 | AI41: 2212.923663 | AL41: 30 | AM41: 0.00643403011 | AN41: 0.00028 | AO41: =1/(1+$R$10)^SUM($AL$35:AL41) -> 0.9514759872 | AP41: 255481.17 | AQ41: -711.3134794 | AR41: 1643.773541 | AS41: 71.53472761 | AT41: 1003.994789 | AU41: 85 | AV41: 1088.994789 | AW41: 256192.4835
C42: 8 | D42: PP | E42: =IF(Deudas_fx!$I$24=2,IF(OR(G42=8,G42=1),Deudas_fx!$I$24,IF(D42="Pg",0,1)),IF(D42="PG",0,1)) -> 1 | F42: 7 | G42: 1 | H42: 2026 | I42: 2026-01-07 | J42: 31 | K42: 248162.1429 | L42: 0 | M42: 0 | N42: 0 | O42: 0 | P42: =IF(OR(D42="PG",D42=0),0,E42*((1+$I$8)^-SUMIF(D$35:D42,"PP",J$35:J42))) -> 0.9449195629 | Q42: 406.0400669 | R42: 1721.883596 | S42: 1650.082016 | T42: 71.80158 | U42: 85 | V42: 0 | W42: 2127.923663 | X42: 2212.923663 | Y42: 247756.1028 | AA42: 2212.923663 | AB42: 2026-01-07 | AC42: 248162.1429 | AD42: 406.0400669 | AE42: 1650.082016 | AF42: 71.80158 | AG42: 85 | AH42: 0 | AI42: 2212.923663 | AL42: 31 | AM42: 0.006649209251 | AN42: 0.0002893333333 | AO42: =1/(1+$R$10)^SUM($AL$35:AL42) -> 0.9449195629 | AP42: 256192.4835 | AQ42: -773.6076679 | AR42: 1703.477431 | AS42: 74.12502523 | AT42: 1003.994789 | AU42: 85 | AV42: 1088.994789 | AW42: 256966.0912
C43: 9 | D43: PP | E43: =IF(Deudas_fx!$I$24=2,IF(OR(G43=8,G43=1),Deudas_fx!$I$24,IF(D43="Pg",0,1)),IF(D43="PG",0,1)) -> 1 | F43: 7 | G43: 2 | H43: 2026 | I43: 2026-02-07 | J43: 31 | K43: 247756.1028 | L43: 0 | M43: 0 | N43: 0 | O43: 0 | P43: =IF(OR(D43="PG",D43=0),0,E43*((1+$I$8)^-SUMIF(D$35:D43,"PP",J$35:J43))) -> 0.9384083175 | Q43: 408.8573932 | R43: 1719.06627 | S43: 1647.382171 | T43: 71.68409907 | U43: 85 | V43: 0 | W43: 2127.923663 | X43: 2212.923663 | Y43: 247347.2454 | AA43: 2212.923663 | AB43: 2026-02-07 | AC43: 247756.1028 | AD43: 408.8573932 | AE43: 1647.382171 | AF43: 71.68409907 | AG43: 85 | AH43: 0 | AI43: 2212.923663 | AL43: 31 | AM43: 0.006649209251 | AN43: 0.0002893333333 | AO43: =1/(1+$R$10)^SUM($AL$35:AL43) -> 0.9384083175 | AP43: 256966.0912 | AQ43: -778.9753776 | AR43: 1708.621311 | AS43: 74.34885572 | AT43: 1003.994789 | AU43: 85 | AV43: 1088.994789 | AW43: 257745.0666
C44: 10 | D44: PP | E44: =IF(Deudas_fx!$I$24=2,IF(OR(G44=8,G44=1),Deudas_fx!$I$24,IF(D44="Pg",0,1)),IF(D44="PG",0,1)) -> 1 | F44: 7 | G44: 3 | H44: 2026 | I44: 2026-03-07 | J44: 28 | K44: 247347.2454 | L44: 0 | M44: 0 | N44: 0 | O44: 0 | P44: =IF(OR(D44="PG",D44=0),0,E44*((1+$I$8)^-SUMIF(D$35:D44,"PP",J$35:J44))) -> 0.9325657659 | Q44: 578.257765 | R44: 1549.665898 | S44: 1485.025818 | T44: 64.64008013 | U44: 85 | V44: 0 | W44: 2127.923663 | X44: 2212.923663 | Y44: 246768.9876 | AA44: 2212.923663 | AB44: 2026-03-07 | AC44: 247347.2454 | AD44: 578.257765 | AE44: 1485.025818 | AF44: 64.64008013 | AG44: 85 | AH44: 0 | AI44: 2212.923663 | AL44: 28 | AM44: 0.006003809807 | AN44: 0.0002613333333 | AO44: =1/(1+$R$10)^SUM($AL$35:AL44) -> 0.9325657659 | AP44: 257745.0666 | AQ44: -610.814947 | AR44: 1547.452358 | AS44: 67.35737739 | AT44: 1003.994789 | AU44: 85 | AV44: 1088.994789 | AW44: 258355.8815
C45: 11 | D45: PP | E45: =IF(Deudas_fx!$I$24=2,IF(OR(G45=8,G45=1),Deudas_fx!$I$24,IF(D45="Pg",0,1)),IF(D45="PG",0,1)) -> 1 | F45: 7 | G45: 4 | H45: 2026 | I45: 2026-04-07 | J45: 31 | K45: 246768.9876 | L45: 0 | M45: 0 | N45: 0 | O45: 0 | P45: =IF(OR(D45="PG",D45=0),0,E45*((1+$I$8)^-SUMIF(D$35:D45,"PP",J$35:J45))) -> 0.926139648 | Q45: 415.7065337 | R45: 1712.217129 | S45: 1640.818635 | T45: 71.39849375 | U45: 85 | V45: 0 | W45: 2127.923663 | X45: 2212.923663 | Y45: 246353.2811 | AA45: 2212.923663 | AB45: 2026-04-07 | AC45: 246768.9876 | AD45: 415.7065337 | AE45: 1640.818635 | AF45: 71.39849375 | AG45: 85 | AH45: 0 | AI45: 2212.923663 | AK45: =SUM(AK50:AK154) -> 74.82599385 | AL45: 31 | AM45: 0.006649209251 | AN45: 0.0002893333333 | AO45: =1/(1+$R$10)^SUM($AL$35:AL45) -> 0.926139648 | AP45: 258355.8815 | AQ45: -788.618497 | AR45: 1717.862317 | AS45: 74.75096838 | AT45: 1003.994789 | AU45: 85 | AV45: 1088.994789 | AW45: 259144.5 | AX45: =K50 -> 244549.4508 | AY45: =AX45/AK45 -> 3268.241934
C46: 12 | D46: PP | E46: =IF(Deudas_fx!$I$24=2,IF(OR(G46=8,G46=1),Deudas_fx!$I$24,IF(D46="Pg",0,1)),IF(D46="PG",0,1)) -> 1 | F46: 7 | G46: 5 | H46: 2026 | I46: 2026-05-07 | J46: 30 | K46: 246353.2811 | L46: 0 | M46: 0 | N46: 0 | O46: 0 | P46: =IF(OR(D46="PG",D46=0),0,E46*((1+$I$8)^-SUMIF(D$35:D46,"PP",J$35:J46))) -> 0.9199629888 | Q46: 473.9003159 | R46: 1654.023347 | S46: =IF(OR(D46="PG",D46=0),0,IF(O14>=0,K46*((1+$I$6)^J46-1),K46*((1+$I$6)^(J46+O14)-1))) -> 1585.044428 | T46: =IF(OR(D46="PG",D46=0),0,IF(O14>=0,K46*((1+$I$7)^30-1)*J46/30,K46*((1+$I$7)^(30+O14)-1)*J46/30)) -> 68.97891871 | U46: 85 | V46: 0 | W46: 2127.923663 | X46: 2212.923663 | Y46: 245879.3808 | AA46: 2212.923663 | AB46: 2026-05-07 | AC46: 246353.2811 | AD46: 473.9003159 | AE46: 1585.044428 | AF46: 68.97891871 | AG46: 85 | AH46: 0 | AI46: 2212.923663 | AL46: 30 | AM46: 0.00643403011 | AN46: 0.00028 | AO46: =1/(1+$R$10)^SUM($AL$35:AL46) -> 0.9199629888 | AP46: 259144.5 | AQ46: -735.9091872 | AR46: 1667.343516 | AS46: 72.56046 | AT46: 1003.994789 | AU46: 85 | AV46: 1088.994789 | AW46: 259880.4092
C47: 13 | D47: PP | E47: =IF(Deudas_fx!$I$24=2,IF(OR(G47=8,G47=1),Deudas_fx!$I$24,IF(D47="Pg",0,1)),IF(D47="PG",0,1)) -> 1 | F47: 7 | G47: 6 | H47: 2026 | I47: 2026-06-07 | J47: 31 | K47: 245879.3808 | L47: 0 | M47: 0 | N47: 0 | O47: 0 | P47: =IF(OR(D47="PG",D47=0),0,E47*((1+$I$8)^-SUMIF(D$35:D47,"PP",J$35:J47))) -> 0.913623714 | Q47: 421.8791087 | R47: 1706.044554 | S47: =IF(OR(D47="PG",D47=0),0,IF(O31>=0,K47*((1+$I$6)^J47-1),K47*((1+$I$6)^(J47+O31)-1))) -> 1634.903453 | T47: =IF(OR(D47="PG",D47=0),0,IF(O31>=0,K47*((1+$I$7)^30-1)*J47/30,K47*((1+$I$7)^(30+O31)-1)*J47/30)) -> 71.14110084 | U47: 85 | V47: 0 | W47: 2127.923663 | X47: 2212.923663 | Y47: 245457.5017 | AA47: 2212.923663 | AB47: 2026-06-07 | AC47: 245879.3808 | AD47: 421.8791087 | AE47: 1634.903453 | AF47: 71.14110084 | AG47: 85 | AH47: 0 | AI47: 2212.923663 | AL47: 31 | AM47: 0.006649209251 | AN47: 0.0002893333333 | AO47: =1/(1+$R$10)^SUM($AL$35:AL47) -> 0.913623714 | AP47: 259880.4092 | AQ47: -799.1964973 | AR47: 1727.999221 | AS47: 75.19206506 | AT47: 1003.994789 | AU47: 85 | AV47: 1088.994789 | AW47: 260679.6057
C48: 14 | D48: PP | E48: =IF(Deudas_fx!$I$24=2,IF(OR(G48=8,G48=1),Deudas_fx!$I$24,IF(D48="Pg",0,1)),IF(D48="PG",0,1)) -> 1 | F48: 7 | G48: 7 | H48: 2026 | I48: 2026-07-07 | J48: 30 | K48: 245457.5017 | L48: 0 | M48: 0 | N48: 0 | O48: 0 | P48: =IF(OR(D48="PG",D48=0),0,E48*((1+$I$8)^-SUMIF(D$35:D48,"PP",J$35:J48))) -> 0.9075305267 | Q48: 479.9146059 | R48: 1648.009057 | S48: =IF(OR(D48="PG",D48=0),0,IF(O32>=0,K48*((1+$I$6)^J48-1),K48*((1+$I$6)^(J48+O32)-1))) -> 1579.280957 | T48: 68.72810047 | U48: 85 | V48: 0 | W48: 2127.923663 | X48: 2212.923663 | Y48: 244977.5871 | AA48: 2212.923663 | AB48: 2026-07-07 | AC48: 245457.5017 | AD48: 479.9146059 | AE48: 1579.280957 | AF48: 68.72810047 | AG48: 85 | AH48: 0 | AI48: 2212.923663 | AL48: 30 | AM48: 0.00643403011 | AN48: 0.00028 | AO48: =1/(1+$R$10)^SUM($AL$35:AL48) -> 0.9075305267 | AP48: 260679.6057 | AQ48: -746.2159329 | AR48: 1677.220432 | AS48: 72.99028959 | AT48: 1003.994789 | AU48: 85 | AV48: 1088.994789 | AW48: 261425.8216
C49: 15 | D49: PP | E49: =IF(Deudas_fx!$I$24=2,IF(OR(G49=8,G49=1),Deudas_fx!$I$24,IF(D49="Pg",0,1)),IF(D49="PG",0,1)) -> 1 | F49: 7 | G49: 8 | H49: 2026 | I49: 2026-08-07 | J49: 31 | K49: 244977.5871 | L49: 0 | M49: 0 | N49: 0 | O49: 0 | P49: =IF(OR(D49="PG",D49=0),0,E49*((1+$I$8)^-SUMIF(D$35:D49,"PP",J$35:J49))) -> 0.9012769215 | Q49: 428.1362428 | R49: 1699.78742 | S49: 1628.907238 | T49: 70.88018186 | U49: 85 | V49: 0 | W49: 2127.923663 | X49: 2212.923663 | Y49: 244549.4508 | AA49: 2212.923663 | AB49: 2026-08-07 | AC49: 244977.5871 | AD49: 428.1362428 | AE49: 1628.907238 | AF49: 70.88018186 | AG49: 85 | AH49: 0 | AI49: 2212.923663 | AL49: 31 | AM49: 0.006649209251 | AN49: 0.0002893333333 | AO49: =1/(1+$R$10)^SUM($AL$35:AL49) -> 0.9012769215 | AP49: 261425.8216 | AQ49: -809.9194072 | AR49: 1738.274992 | AS49: 75.63920439 | AT49: 1003.994789 | AU49: 85 | AV49: 1088.994789 | AW49: 262235.741
C50: 16 | D50: PP | E50: =IF(Deudas_fx!$I$24=2,IF(OR(G50=8,G50=1),Deudas_fx!$I$24,IF(D50="Pg",0,1)),IF(D50="PG",0,1)) -> 1 | F50: 7 | G50: 9 | H50: 2026 | I50: 2026-09-07 | J50: 31 | K50: 244549.4508 | L50: 0 | M50: 0 | N50: 0 | O50: 0 | P50: =IF(OR(D50="PG",D50=0),0,E50*((1+$I$8)^-SUMIF(D$35:D50,"PP",J$35:J50))) -> 0.8950664085 | Q50: 431.1068844 | R50: 1696.816779 | S50: 1626.060471 | T50: 70.75630777 | U50: 85 | V50: 0 | W50: 2127.923663 | X50: 2212.923663 | Y50: 244118.3439 | AA50: 2212.923663 | AB50: 2026-09-07 | AC50: 244549.4508 | AD50: 431.1068844 | AE50: 1626.060471 | AF50: 70.75630777 | AG50: 85 | AH50: 0 | AI50: 2212.923663 | AK50: =IF(OR(D50="PG",D50=0),0,E50*((1+$I$8)^-SUMIF(D$50:D50,"PP",J$50:J50))) -> 0.9931092067 | AL50: 31 | AM50: 0.006649209251 | AN50: 0.0002893333333 | AO50: =1/(1+$R$10)^SUM($AL$35:AL50) -> 0.8950664085 | AP50: 262235.741 | AQ50: -815.5390675 | AR50: 1743.660315 | AS50: 75.87354107 | AT50: 1003.994789 | AU50: 85 | AV50: 1088.994789 | AW50: 263051.2801
C51: 17 | D51: PP | E51: =IF(Deudas_fx!$I$24=2,IF(OR(G51=8,G51=1),Deudas_fx!$I$24,IF(D51="Pg",0,1)),IF(D51="PG",0,1)) -> 1 | F51: 7 | G51: 10 | H51: 2026 | I51: 2026-10-07 | J51: 30 | K51: 244118.3439 | L51: 0 | M51: 0 | N51: 0 | O51: 0 | P51: =IF(OR(D51="PG",D51=0),0,E51*((1+$I$8)^-SUMIF(D$35:D51,"PP",J$35:J51))) -> 0.8890969846 | Q51: 488.9057512 | R51: 1639.017912 | S51: 1570.664775 | T51: 68.3531363 | U51: 85 | V51: 0 | W51: 2127.923663 | X51: 2212.923663 | Y51: 243629.4382 | AA51: 2212.923663 | AB51: 2026-10-07 | AC51: 244118.3439 | AD51: 488.9057512 | AE51: 1570.664775 | AF51: 68.3531363 | AG51: 85 | AH51: 0 | AI51: 2212.923663 | AK51: =IF(OR(D51="PG",D51=0),0,E51*((1+$I$8)^-SUMIF(D$50:D51,"PP",J$50:J51))) -> 0.9864859106 | AL51: 30 | AM51: 0.00643403011 | AN51: 0.00028 | AO51: =1/(1+$R$10)^SUM($AL$35:AL51) -> 0.8890969846 | AP51: 263051.2801 | AQ51: -762.1394263 | AR51: 1692.479857 | AS51: 73.65435843 | AT51: 1003.994789 | AU51: 85 | AV51: 1088.994789 | AW51: 263813.4195
C52: 18 | D52: PP | E52: =IF(Deudas_fx!$I$24=2,IF(OR(G52=8,G52=1),Deudas_fx!$I$24,IF(D52="Pg",0,1)),IF(D52="PG",0,1)) -> 1 | F52: 7 | G52: 11 | H52: 2026 | I52: 2026-11-07 | J52: 31 | K52: 243629.4382 | L52: 0 | M52: 0 | N52: 0 | O52: 0 | P52: =IF(OR(D52="PG",D52=0),0,E52*((1+$I$8)^-SUMIF(D$35:D52,"PP",J$35:J52))) -> 0.882970401 | Q52: 437.4904312 | R52: 1690.433232 | S52: 1619.943114 | T52: 70.49011745 | U52: 85 | V52: 0 | W52: 2127.923663 | X52: 2212.923663 | Y52: 243191.9478 | AA52: 2212.923663 | AB52: 2026-11-07 | AC52: 243629.4382 | AD52: 437.4904312 | AE52: 1619.943114 | AF52: 70.49011745 | AG52: 85 | AH52: 0 | AI52: 2212.923663 | AK52: =IF(OR(D52="PG",D52=0),0,E52*((1+$I$8)^-SUMIF(D$50:D52,"PP",J$50:J52))) -> 0.9796882401 | AL52: 31 | AM52: 0.006649209251 | AN52: 0.0002893333333 | AO52: =1/(1+$R$10)^SUM($AL$35:AL52) -> 0.882970401 | AP52: 263813.4195 | AQ52: -826.4858569 | AR52: 1754.15063 | AS52: 76.33001605 | AT52: 1003.994789 | AU52: 85 | AV52: 1088.994789 | AW52: 264639.9054
C53: 19 | D53: PP | E53: =IF(Deudas_fx!$I$24=2,IF(OR(G53=8,G53=1),Deudas_fx!$I$24,IF(D53="Pg",0,1)),IF(D53="PG",0,1)) -> 1 | F53: 7 | G53: 12 | H53: 2026 | I53: 2026-12-07 | J53: 30 | K53: 243191.9478 | L53: 0 | M53: 0 | N53: 0 | O53: 0 | P53: =IF(OR(D53="PG",D53=0),0,E53*((1+$I$8)^-SUMIF(D$35:D53,"PP",J$35:J53))) -> 0.8770816484 | Q53: 495.1256031 | R53: 1632.79806 | S53: 1564.704314 | T53: 68.09374537 | U53: 85 | V53: 0 | W53: 2127.923663 | X53: 2212.923663 | Y53: 242696.8222 | AA53: 2212.923663 | AB53: 2026-12-07 | AC53: 243191.9478 | AD53: 495.1256031 | AE53: 1564.704314 | AF53: 68.09374537 | AG53: 85 | AH53: 0 | AI53: 2212.923663 | AK53: =IF(OR(D53="PG",D53=0),0,E53*((1+$I$8)^-SUMIF(D$50:D53,"PP",J$50:J53))) -> 0.9731544518 | AL53: 30 | AM53: 0.00643403011 | AN53: 0.00028 | AO53: =1/(1+$R$10)^SUM($AL$35:AL53) -> 0.8770816484 | AP53: 264639.9054 | AQ53: -772.8055043 | AR53: 1702.70112 | AS53: 74.09917351 | AT53: 1003.994789 | AU53: 85 | AV53: 1088.994789 | AW53: 265412.7109
C54: 20 | D54: PP | E54: =IF(Deudas_fx!$I$24=2,IF(OR(G54=8,G54=1),Deudas_fx!$I$24,IF(D54="Pg",0,1)),IF(D54="PG",0,1)) -> 1 | F54: 7 | G54: 1 | H54: 2027 | I54: 2027-01-07 | J54: 31 | K54: 242696.8222 | L54: 0 | M54: 0 | N54: 0 | O54: 0 | P54: =IF(OR(D54="PG",D54=0),0,E54*((1+$I$8)^-SUMIF(D$35:D54,"PP",J$35:J54))) -> 0.8710378601 | Q54: 443.9614273 | R54: 1683.962236 | S54: 1613.741955 | T54: 70.22028054 | U54: 85 | V54: 0 | W54: 2127.923663 | X54: 2212.923663 | Y54: 242252.8607 | AA54: 2212.923663 | AB54: 2027-01-07 | AC54: 242696.8222 | AD54: 443.9614273 | AE54: 1613.741955 | AF54: 70.22028054 | AG54: 85 | AH54: 0 | AI54: 2212.923663 | AK54: =IF(OR(D54="PG",D54=0),0,E54*((1+$I$8)^-SUMIF(D$50:D54,"PP",J$50:J54))) -> 0.9664486457 | AL54: 31 | AM54: 0.006649209251 | AN54: 0.0002893333333 | AO54: =1/(1+$R$10)^SUM($AL$35:AL54) -> 0.8710378601 | AP54: 265412.7109 | AQ54: -837.5826081 | AR54: 1764.784653 | AS54: 76.79274435 | AT54: 1003.994789 | AU54: 85 | AV54: 1088.994789 | AW54: 266250.2935
C55: 21 | D55: PP | E55: =IF(Deudas_fx!$I$24=2,IF(OR(G55=8,G55=1),Deudas_fx!$I$24,IF(D55="Pg",0,1)),IF(D55="PG",0,1)) -> 1 | F55: 7 | G55: 2 | H55: 2027 | I55: 2027-02-07 | J55: 31 | K55: 242252.8607 | L55: 0 | M55: 0 | N55: 0 | O55: 0 | P55: =IF(OR(D55="PG",D55=0),0,E55*((1+$I$8)^-SUMIF(D$35:D55,"PP",J$35:J55))) -> 0.8650357183 | Q55: 447.0418726 | R55: 1680.88179 | S55: 1610.789963 | T55: 70.0918277 | U55: 85 | V55: 0 | W55: 2127.923663 | X55: 2212.923663 | Y55: 241805.8189 | AA55: 2212.923663 | AB55: 2027-02-07 | AC55: 242252.8607 | AD55: 447.0418726 | AE55: 1610.789963 | AF55: 70.0918277 | AG55: 85 | AH55: 0 | AI55: 2212.923663 | AK55: =IF(OR(D55="PG",D55=0),0,E55*((1+$I$8)^-SUMIF(D$50:D55,"PP",J$50:J55))) -> 0.9597890478 | AL55: 31 | AM55: 0.006649209251 | AN55: 0.0002893333333 | AO55: =1/(1+$R$10)^SUM($AL$35:AL55) -> 0.8650357183 | AP55: 266250.2935 | AQ55: -843.3942107 | AR55: 1770.353915 | AS55: 77.03508492 | AT55: 1003.994789 | AU55: 85 | AV55: 1088.994789 | AW55: 267093.6877
C56: 22 | D56: PP | E56: =IF(Deudas_fx!$I$24=2,IF(OR(G56=8,G56=1),Deudas_fx!$I$24,IF(D56="Pg",0,1)),IF(D56="PG",0,1)) -> 1 | F56: 7 | G56: 3 | H56: 2027 | I56: 2027-03-07 | J56: 28 | K56: 241805.8189 | L56: 0 | M56: 0 | N56: 0 | O56: 0 | P56: =IF(OR(D56="PG",D56=0),0,E56*((1+$I$8)^-SUMIF(D$35:D56,"PP",J$35:J56))) -> 0.8596499862 | Q56: 612.9755955 | R56: 1514.948067 | S56: 1451.756147 | T56: 63.19192066 | U56: 85 | V56: 0 | W56: 2127.923663 | X56: 2212.923663 | Y56: 241192.8433 | AA56: 2212.923663 | AB56: 2027-03-07 | AC56: 241805.8189 | AD56: 612.9755955 | AE56: 1451.756147 | AF56: 63.19192066 | AG56: 85 | AH56: 0 | AI56: 2212.923663 | AK56: =IF(OR(D56="PG",D56=0),0,E56*((1+$I$8)^-SUMIF(D$50:D56,"PP",J$50:J56))) -> 0.9538133793 | AL56: 28 | AM56: 0.006003809807 | AN56: 0.0002613333333 | AO56: =1/(1+$R$10)^SUM($AL$35:AL56) -> 0.8596499862 | AP56: 267093.6877 | AQ56: -669.3853967 | AR56: 1603.579702 | AS56: 69.80048372 | AT56: 1003.994789 | AU56: 85 | AV56: 1088.994789 | AW56: 267763.0731
C57: 23 | D57: PP | E57: =IF(Deudas_fx!$I$24=2,IF(OR(G57=8,G57=1),Deudas_fx!$I$24,IF(D57="Pg",0,1)),IF(D57="PG",0,1)) -> 1 | F57: 7 | G57: 4 | H57: 2027 | I57: 2027-04-07 | J57: 31 | K57: 241192.8433 | L57: 0 | M57: 0 | N57: 0 | O57: 0 | P57: =IF(OR(D57="PG",D57=0),0,E57*((1+$I$8)^-SUMIF(D$35:D57,"PP",J$35:J57))) -> 0.8537263158 | Q57: 454.3968489 | R57: 1673.526814 | S57: 1603.741685 | T57: 69.78512932 | U57: 85 | V57: 0 | W57: 2127.923663 | X57: 2212.923663 | Y57: 240738.4464 | AA57: 2212.923663 | AB57: 2027-04-07 | AC57: 241192.8433 | AD57: 454.3968489 | AE57: 1603.741685 | AF57: 69.78512932 | AG57: 85 | AH57: 0 | AI57: 2212.923663 | AK57: =IF(OR(D57="PG",D57=0),0,E57*((1+$I$8)^-SUMIF(D$50:D57,"PP",J$50:J57))) -> 0.9472408485 | AL57: 31 | AM57: 0.006649209251 | AN57: 0.0002893333333 | AO57: =1/(1+$R$10)^SUM($AL$35:AL57) -> 0.8537263158 | AP57: 267763.0731 | AQ57: -853.8906965 | AR57: 1780.412703 | AS57: 77.47278248 | AT57: 1003.994789 | AU57: 85 | AV57: 1088.994789 | AW57: 268616.9638
C58: 24 | D58: PP | E58: =IF(Deudas_fx!$I$24=2,IF(OR(G58=8,G58=1),Deudas_fx!$I$24,IF(D58="Pg",0,1)),IF(D58="PG",0,1)) -> 1 | F58: 7 | G58: 5 | H58: 2027 | I58: 2027-05-07 | J58: 30 | K58: 240738.4464 | L58: 0 | M58: 0 | N58: 0 | O58: 0 | P58: =IF(OR(D58="PG",D58=0),0,E58*((1+$I$8)^-SUMIF(D$35:D58,"PP",J$35:J58))) -> 0.8480325994 | Q58: 511.598485 | R58: 1616.325178 | S58: 1548.918413 | T58: 67.40676499 | U58: 85 | V58: 0 | W58: 2127.923663 | X58: 2212.923663 | Y58: 240226.8479 | AA58: 2212.923663 | AB58: 2027-05-07 | AC58: 240738.4464 | AD58: 511.598485 | AE58: 1548.918413 | AF58: 67.40676499 | AG58: 85 | AH58: 0 | AI58: 2212.923663 | AK58: =IF(OR(D58="PG",D58=0),0,E58*((1+$I$8)^-SUMIF(D$50:D58,"PP",J$50:J58))) -> 0.9409234601 | AL58: 30 | AM58: 0.00643403011 | AN58: 0.00028 | AO58: =1/(1+$R$10)^SUM($AL$35:AL58) -> 0.8480325994 | AP58: 268616.9638 | AQ58: -799.5075943 | AR58: 1728.289633 | AS58: 75.21274986 | AT58: 1003.994789 | AU58: 85 | AV58: 1088.994789 | AW58: 269416.4714
C59: 25 | D59: PP | E59: =IF(Deudas_fx!$I$24=2,IF(OR(G59=8,G59=1),Deudas_fx!$I$24,IF(D59="Pg",0,1)),IF(D59="PG",0,1)) -> 1 | F59: 7 | G59: 6 | H59: 2027 | I59: 2027-06-07 | J59: 31 | K59: 240226.8479 | L59: 0 | M59: 0 | N59: 0 | O59: 0 | P59: =IF(OR(D59="PG",D59=0),0,E59*((1+$I$8)^-SUMIF(D$35:D59,"PP",J$35:J59))) -> 0.8421889821 | Q59: 461.0994487 | R59: 1666.824214 | S59: 1597.31858 | T59: 69.50563467 | U59: 85 | V59: 0 | W59: 2127.923663 | X59: 2212.923663 | Y59: 239765.7485 | AA59: 2212.923663 | AB59: 2027-06-07 | AC59: 240226.8479 | AD59: 461.0994487 | AE59: 1597.31858 | AF59: 69.50563467 | AG59: 85 | AH59: 0 | AI59: 2212.923663 | AK59: =IF(OR(D59="PG",D59=0),0,E59*((1+$I$8)^-SUMIF(D$50:D59,"PP",J$50:J59))) -> 0.934439751 | AL59: 31 | AM59: 0.006649209251 | AN59: 0.0002893333333 | AO59: =1/(1+$R$10)^SUM($AL$35:AL59) -> 0.8421889821 | AP59: 269416.4714 | AQ59: -865.3628709 | AR59: 1791.406494 | AS59: 77.95116572 | AT59: 1003.994789 | AU59: 85 | AV59: 1088.994789 | AW59: 270281.8343
C60: 26 | D60: PP | E60: =IF(Deudas_fx!$I$24=2,IF(OR(G60=8,G60=1),Deudas_fx!$I$24,IF(D60="Pg",0,1)),IF(D60="PG",0,1)) -> 1 | F60: 7 | G60: 7 | H60: 2027 | I60: 2027-07-07 | J60: 30 | K60: 239765.7485 | L60: 0 | M60: 0 | N60: 0 | O60: 0 | P60: =IF(OR(D60="PG",D60=0),0,E60*((1+$I$8)^-SUMIF(D$35:D60,"PP",J$35:J60))) -> 0.836572211 | Q60: 518.1292082 | R60: 1609.794455 | S60: 1542.660045 | T60: 67.13440957 | U60: 85 | V60: 0 | W60: 2127.923663 | X60: 2212.923663 | Y60: 239247.6193 | AA60: 2212.923663 | AB60: 2027-07-07 | AC60: 239765.7485 | AD60: 518.1292082 | AE60: 1542.660045 | AF60: 67.13440957 | AG60: 85 | AH60: 0 | AI60: 2212.923663 | AK60: =IF(OR(D60="PG",D60=0),0,E60*((1+$I$8)^-SUMIF(D$50:D60,"PP",J$50:J60))) -> 0.9282077363 | AL60: 30 | AM60: 0.00643403011 | AN60: 0.00028 | AO60: =1/(1+$R$10)^SUM($AL$35:AL60) -> 0.836572211 | AP60: 270281.8343 | AQ60: -810.6855847 | AR60: 1739.00146 | AS60: 75.67891359 | AT60: 1003.994789 | AU60: 85 | AV60: 1088.994789 | AW60: 271092.5199
C61: 27 | D61: PP | E61: =IF(Deudas_fx!$I$24=2,IF(OR(G61=8,G61=1),Deudas_fx!$I$24,IF(D61="Pg",0,1)),IF(D61="PG",0,1)) -> 1 | F61: 7 | G61: 8 | H61: 2027 | I61: 2027-08-07 | J61: 31 | K61: 239247.6193 | L61: 0 | M61: 0 | N61: 0 | O61: 0 | P61: =IF(OR(D61="PG",D61=0),0,E61*((1+$I$8)^-SUMIF(D$35:D61,"PP",J$35:J61))) -> 0.8308075649 | Q61: 467.8938684 | R61: 1660.029794 | S61: 1590.807483 | T61: 69.22231117 | U61: 85 | V61: 0 | W61: 2127.923663 | X61: 2212.923663 | Y61: 238779.7254 | AA61: 2212.923663 | AB61: 2027-08-07 | AC61: 239247.6193 | AD61: 467.8938684 | AE61: 1590.807483 | AF61: 69.22231117 | AG61: 85 | AH61: 0 | AI61: 2212.923663 | AK61: =IF(OR(D61="PG",D61=0),0,E61*((1+$I$8)^-SUMIF(D$50:D61,"PP",J$50:J61))) -> 0.9218116487 | AL61: 31 | AM61: 0.006649209251 | AN61: 0.0002893333333 | AO61: =1/(1+$R$10)^SUM($AL$35:AL61) -> 0.8308075649 | AP61: 271092.5199 | AQ61: -876.9922045 | AR61: 1802.550891 | AS61: 78.43610241 | AT61: 1003.994789 | AU61: 85 | AV61: 1088.994789 | AW61: 271969.5121
C62: 28 | D62: PP | E62: =IF(Deudas_fx!$I$24=2,IF(OR(G62=8,G62=1),Deudas_fx!$I$24,IF(D62="Pg",0,1)),IF(D62="PG",0,1)) -> 1 | F62: 7 | G62: 9 | H62: 2027 | I62: 2027-09-07 | J62: 31 | K62: 238779.7254 | L62: 0 | M62: 0 | N62: 0 | O62: 0 | P62: =IF(OR(D62="PG",D62=0),0,E62*((1+$I$8)^-SUMIF(D$35:D62,"PP",J$35:J62))) -> 0.8250826417 | Q62: 471.1403699 | R62: 1656.783293 | S62: 1587.696359 | T62: 69.08693388 | U62: 85 | V62: 0 | W62: 2127.923663 | X62: 2212.923663 | Y62: 238308.585 | AA62: 2212.923663 | AB62: 2027-09-07 | AC62: 238779.7254 | AD62: 471.1403699 | AE62: 1587.696359 | AF62: 69.08693388 | AG62: 85 | AH62: 0 | AI62: 2212.923663 | AK62: =IF(OR(D62="PG",D62=0),0,E62*((1+$I$8)^-SUMIF(D$50:D62,"PP",J$50:J62))) -> 0.9154596351 | AL62: 31 | AM62: 0.006649209251 | AN62: 0.0002893333333 | AO62: =1/(1+$R$10)^SUM($AL$35:AL62) -> 0.8250826417 | AP62: 271969.5121 | AQ62: -883.0772522 | AR62: 1808.382196 | AS62: 78.68984549 | AT62: 1003.994789 | AU62: 85 | AV62: 1088.994789 | AW62: 272852.5893
C63: 29 | D63: PP | E63: =IF(Deudas_fx!$I$24=2,IF(OR(G63=8,G63=1),Deudas_fx!$I$24,IF(D63="Pg",0,1)),IF(D63="PG",0,1)) -> 1 | F63: 7 | G63: 10 | H63: 2027 | I63: 2027-10-07 | J63: 30 | K63: 238308.585 | L63: 0 | M63: 0 | N63: 0 | O63: 0 | P63: =IF(OR(D63="PG",D63=0),0,E63*((1+$I$8)^-SUMIF(D$35:D63,"PP",J$35:J63))) -> 0.8195799572 | Q63: 527.9126475 | R63: 1600.011015 | S63: 1533.284612 | T63: 66.72640381 | U63: 85 | V63: 0 | W63: 2127.923663 | X63: 2212.923663 | Y63: 237780.6724 | AA63: 2212.923663 | AB63: 2027-10-07 | AC63: 238308.585 | AD63: 527.9126475 | AE63: 1533.284612 | AF63: 66.72640381 | AG63: 85 | AH63: 0 | AI63: 2212.923663 | AK63: =IF(OR(D63="PG",D63=0),0,E63*((1+$I$8)^-SUMIF(D$50:D63,"PP",J$50:J63))) -> 0.9093542036 | AL63: 30 | AM63: 0.00643403011 | AN63: 0.00028 | AO63: =1/(1+$R$10)^SUM($AL$35:AL63) -> 0.8195799572 | AP63: 272852.5893 | AQ63: -827.9457115 | AR63: 1755.541775 | AS63: 76.39872501 | AT63: 1003.994789 | AU63: 85 | AV63: 1088.994789 | AW63: 273680.535
C64: 30 | D64: PP | E64: =IF(Deudas_fx!$I$24=2,IF(OR(G64=8,G64=1),Deudas_fx!$I$24,IF(D64="Pg",0,1)),IF(D64="PG",0,1)) -> 1 | F64: 7 | G64: 11 | H64: 2027 | I64: 2027-11-07 | J64: 31 | K64: 237780.6724 | L64: 0 | M64: 0 | N64: 0 | O64: 0 | P64: =IF(OR(D64="PG",D64=0),0,E64*((1+$I$8)^-SUMIF(D$35:D64,"PP",J$35:J64))) -> 0.8139324011 | Q64: 478.0723418 | R64: 1649.851321 | S64: 1581.053446 | T64: 68.79787454 | U64: 85 | V64: 0 | W64: 2127.923663 | X64: 2212.923663 | Y64: 237302.6 | AA64: 2212.923663 | AB64: 2027-11-07 | AC64: 237780.6724 | AD64: 478.0723418 | AE64: 1581.053446 | AF64: 68.79787454 | AG64: 85 | AH64: 0 | AI64: 2212.923663 | AK64: =IF(OR(D64="PG",D64=0),0,E64*((1+$I$8)^-SUMIF(D$50:D64,"PP",J$50:J64))) -> 0.9030880318 | AL64: 31 | AM64: 0.006649209251 | AN64: 0.0002893333333 | AO64: =1/(1+$R$10)^SUM($AL$35:AL64) -> 0.8139324011 | AP64: 273680.535 | AQ64: -894.9492579 | AR64: 1819.759145 | AS64: 79.18490146 | AT64: 1003.994789 | AU64: 85 | AV64: 1088.994789 | AW64: 274575.4843
C65: 31 | D65: PP | E65: =IF(Deudas_fx!$I$24=2,IF(OR(G65=8,G65=1),Deudas_fx!$I$24,IF(D65="Pg",0,1)),IF(D65="PG",0,1)) -> 1 | F65: 7 | G65: 12 | H65: 2027 | I65: 2027-12-07 | J65: 30 | K65: 237302.6 | L65: 0 | M65: 0 | N65: 0 | O65: 0 | P65: =IF(OR(D65="PG",D65=0),0,E65*((1+$I$8)^-SUMIF(D$35:D65,"PP",J$35:J65))) -> 0.8085040804 | Q65: 534.666861 | R65: 1593.256802 | S65: 1526.812074 | T65: 66.44472801 | U65: 85 | V65: 0 | W65: 2127.923663 | X65: 2212.923663 | Y65: 236767.9332 | AA65: 2212.923663 | AB65: 2027-12-07 | AC65: 237302.6 | AD65: 534.666861 | AE65: 1526.812074 | AF65: 66.44472801 | AG65: 85 | AH65: 0 | AI65: 2212.923663 | AK65: =IF(OR(D65="PG",D65=0),0,E65*((1+$I$8)^-SUMIF(D$50:D65,"PP",J$50:J65))) -> 0.8970651096 | AL65: 30 | AM65: 0.00643403011 | AN65: 0.00028 | AO65: =1/(1+$R$10)^SUM($AL$35:AL65) -> 0.8085040804 | AP65: 274575.4843 | AQ65: -839.5132802 | AR65: 1766.626933 | AS65: 76.8811356 | AT65: 1003.994789 | AU65: 85 | AV65: 1088.994789 | AW65: 275414.9976
C66: 32 | D66: PP | E66: =IF(Deudas_fx!$I$24=2,IF(OR(G66=8,G66=1),Deudas_fx!$I$24,IF(D66="Pg",0,1)),IF(D66="PG",0,1)) -> 1 | F66: 7 | G66: 1 | H66: 2028 | I66: 2028-01-07 | J66: 31 | K66: 236767.9332 | L66: 0 | M66: 0 | N66: 0 | O66: 0 | P66: =IF(OR(D66="PG",D66=0),0,E66*((1+$I$8)^-SUMIF(D$35:D66,"PP",J$35:J66))) -> 0.8029328459 | Q66: 485.0992759 | R66: 1642.824387 | S66: 1574.319532 | T66: 68.50485533 | U66: 85 | V66: 0 | W66: 2127.923663 | X66: 2212.923663 | Y66: 236282.8339 | AA66: 2212.923663 | AB66: 2028-01-07 | AC66: 236767.9332 | AD66: 485.0992759 | AE66: 1574.319532 | AF66: 68.50485533 | AG66: 85 | AH66: 0 | AI66: 2212.923663 | AK66: =IF(OR(D66="PG",D66=0),0,E66*((1+$I$8)^-SUMIF(D$50:D66,"PP",J$50:J66))) -> 0.8908836194 | AL66: 31 | AM66: 0.006649209251 | AN66: 0.0002893333333 | AO66: =1/(1+$R$10)^SUM($AL$35:AL66) -> 0.8029328459 | AP66: 275414.9976 | AQ66: -906.9839001 | AR66: 1831.29195 | AS66: 79.68673929 | AT66: 1003.994789 | AU66: 85 | AV66: 1088.994789 | AW66: 276321.9815
C67: 33 | D67: PP | E67: =IF(Deudas_fx!$I$24=2,IF(OR(G67=8,G67=1),Deudas_fx!$I$24,IF(D67="Pg",0,1)),IF(D67="PG",0,1)) -> 1 | F67: 7 | G67: 2 | H67: 2028 | I67: =DATE(H67,G67,F67) -> 2028-02-07 | J67: 31 | K67: 236282.8339 | L67: 0 | M67: 0 | N67: 0 | O67: 0 | P67: =IF(OR(D67="PG",D67=0),0,E67*((1+$I$8)^-SUMIF(D$35:D67,"PP",J$35:J67))) -> 0.7974000016 | Q67: 488.4651579 | R67: 1639.458505 | S67: 1571.094005 | T67: 68.36449994 | U67: 85 | V67: 0 | W67: 2127.923663 | X67: 2212.923663 | Y67: 235794.3687 | AA67: 2212.923663 | AB67: 2028-02-07 | AC67: 236282.8339 | AD67: 488.4651579 | AE67: 1571.094005 | AF67: 68.36449994 | AG67: 85 | AH67: 0 | AI67: 2212.923663 | AK67: =IF(OR(D67="PG",D67=0),0,E67*((1+$I$8)^-SUMIF(D$50:D67,"PP",J$50:J67))) -> 0.8847447245 | AL67: 31 | AM67: 0.006649209251 | AN67: 0.0002893333333 | AO67: =1/(1+$R$10)^SUM($AL$35:AL67) -> 0.7974000016 | AP67: 276321.9815 | AQ67: -913.2770465 | AR67: 1837.322675 | AS67: 79.94915997 | AT67: 1003.994789 | AU67: 85 | AV67: 1088.994789 | AW67: 277235.2585
C68: 34 | D68: PP | E68: =IF(Deudas_fx!$I$24=2,IF(OR(G68=8,G68=1),Deudas_fx!$I$24,IF(D68="Pg",0,1)),IF(D68="PG",0,1)) -> 1 | F68: 7 | G68: 3 | H68: 2028 | I68: 2028-03-07 | J68: 29 | K68: 235794.3687 | L68: 0 | M68: 0 | N68: 0 | O68: 0 | P68: =IF(OR(D68="PG",D68=0),0,E68*((1+$I$8)^-SUMIF(D$35:D68,"PP",J$35:J68))) -> 0.7922586356 | Q68: 597.7211028 | R68: 1530.20256 | S68: 1466.380884 | T68: 63.82167581 | U68: 85 | V68: 0 | W68: 2127.923663 | X68: 2212.923663 | Y68: 235196.6476 | AA68: 2212.923663 | AB68: 2028-03-07 | AC68: 235794.3687 | AD68: 597.7211028 | AE68: 1466.380884 | AF68: 63.82167581 | AG68: 85 | AH68: 0 | AI68: 2212.923663 | AK68: =IF(OR(D68="PG",D68=0),0,E68*((1+$I$8)^-SUMIF(D$50:D68,"PP",J$50:J68))) -> 0.8790401893 | AL68: 29 | AM68: 0.006218896965 | AN68: 0.0002706666667 | AO68: =1/(1+$R$10)^SUM($AL$35:AL68) -> 0.7922586356 | AP68: 277235.2585 | AQ68: -795.1410624 | AR68: 1724.097508 | AS68: 75.0383433 | AT68: 1003.994789 | AU68: 85 | AV68: 1088.994789 | AW68: 278030.3996
C69: 35 | D69: PP | E69: =IF(Deudas_fx!$I$24=2,IF(OR(G69=8,G69=1),Deudas_fx!$I$24,IF(D69="Pg",0,1)),IF(D69="PG",0,1)) -> 1 | F69: 7 | G69: 4 | H69: 2028 | I69: 2028-04-07 | J69: 31 | K69: 235196.6476 | L69: 0 | M69: 0 | N69: 0 | O69: 0 | P69: =IF(OR(D69="PG",D69=0),0,E69*((1+$I$8)^-SUMIF(D$35:D69,"PP",J$35:J69))) -> 0.7867993451 | Q69: 496.0017075 | R69: 1631.921955 | S69: 1563.871725 | T69: 68.05023005 | U69: 85 | V69: 0 | W69: 2127.923663 | X69: 2212.923663 | Y69: 234700.6459 | AA69: 2212.923663 | AB69: 2028-04-07 | AC69: 235196.6476 | AD69: 496.0017075 | AE69: 1563.871725 | AF69: 68.05023005 | AG69: 85 | AH69: 0 | AI69: 2212.923663 | AK69: =IF(OR(D69="PG",D69=0),0,E69*((1+$I$8)^-SUMIF(D$50:D69,"PP",J$50:J69))) -> 0.872982905 | AL69: 31 | AM69: 0.006649209251 | AN69: 0.0002893333333 | AO69: =1/(1+$R$10)^SUM($AL$35:AL69) -> 0.7867993451 | AP69: 278030.3996 | AQ69: -925.1309783 | AR69: 1848.682305 | AS69: 80.44346227 | AT69: 1003.994789 | AU69: 85 | AV69: 1088.994789 | AW69: 278955.5305
C70: 36 | D70: PP | E70: =IF(Deudas_fx!$I$24=2,IF(OR(G70=8,G70=1),Deudas_fx!$I$24,IF(D70="Pg",0,1)),IF(D70="PG",0,1)) -> 1 | F70: 7 | G70: 5 | H70: 2028 | I70: 2028-05-07 | J70: 30 | K70: 234700.6459 | L70: 0 | M70: 0 | N70: 0 | O70: 0 | P70: =IF(OR(D70="PG",D70=0),0,E70*((1+$I$8)^-SUMIF(D$35:D70,"PP",J$35:J70))) -> 0.7815519816 | Q70: 552.1364592 | R70: 1575.787204 | S70: 1510.071023 | T70: 65.71618086 | U70: 85 | V70: 0 | W70: 2127.923663 | X70: 2212.923663 | Y70: 234148.5095 | AA70: 2212.923663 | AB70: 2028-05-07 | AC70: 234700.6459 | AD70: 552.1364592 | AE70: 1510.071023 | AF70: 65.71618086 | AG70: 85 | AH70: 0 | AI70: 2212.923663 | AK70: =IF(OR(D70="PG",D70=0),0,E70*((1+$I$8)^-SUMIF(D$50:D70,"PP",J$50:J70))) -> 0.8671607616 | AL70: 30 | AM70: 0.00643403011 | AN70: 0.00028 | AO70: =1/(1+$R$10)^SUM($AL$35:AL70) -> 0.7815519816 | AP70: 278955.5305 | AQ70: -868.9210427 | AR70: 1794.808283 | AS70: 78.10754855 | AT70: 1003.994789 | AU70: 85 | AV70: 1088.994789 | AW70: 279824.4516
C71: 37 | D71: PP | E71: =IF(Deudas_fx!$I$24=2,IF(OR(G71=8,G71=1),Deudas_fx!$I$24,IF(D71="Pg",0,1)),IF(D71="PG",0,1)) -> 1 | F71: 7 | G71: 6 | H71: 2028 | I71: 2028-06-07 | J71: 31 | K71: 234148.5095 | L71: 0 | M71: 0 | N71: 0 | O71: 0 | P71: =IF(OR(D71="PG",D71=0),0,E71*((1+$I$8)^-SUMIF(D$35:D71,"PP",J$35:J71))) -> 0.7761664684 | Q71: 503.2742588 | R71: 1624.649404 | S71: 1556.902435 | T71: 67.74696874 | U71: 85 | V71: 0 | W71: 2127.923663 | X71: 2212.923663 | Y71: 233645.2352 | AA71: 2212.923663 | AB71: 2028-06-07 | AC71: 234148.5095 | AD71: 503.2742588 | AE71: 1556.902435 | AF71: 67.74696874 | AG71: 85 | AH71: 0 | AI71: 2212.923663 | AK71: =IF(OR(D71="PG",D71=0),0,E71*((1+$I$8)^-SUMIF(D$50:D71,"PP",J$50:J71))) -> 0.861185336 | AL71: 31 | AM71: 0.006649209251 | AN71: 0.0002893333333 | AO71: =1/(1+$R$10)^SUM($AL$35:AL71) -> 0.7761664684 | AP71: 279824.4516 | AQ71: -937.5790847 | AR71: 1860.611332 | AS71: 80.96254132 | AT71: 1003.994789 | AU71: 85 | AV71: 1088.994789 | AW71: 280762.0307
C72: 38 | D72: PP | E72: =IF(Deudas_fx!$I$24=2,IF(OR(G72=8,G72=1),Deudas_fx!$I$24,IF(D72="Pg",0,1)),IF(D72="PG",0,1)) -> 1 | F72: 7 | G72: 7 | H72: 2028 | I72: 2028-07-07 | J72: 30 | K72: 233645.2352 | L72: 0 | M72: 0 | N72: 0 | O72: 0 | P72: =IF(OR(D72="PG",D72=0),0,E72*((1+$I$8)^-SUMIF(D$35:D72,"PP",J$35:J72))) -> 0.7709900182 | Q72: 559.2225185 | R72: 1568.701144 | S72: 1503.280478 | T72: 65.42066586 | U72: 85 | V72: 0 | W72: 2127.923663 | X72: 2212.923663 | Y72: 233086.0127 | AA72: 2212.923663 | AB72: 2028-07-07 | AC72: 233645.2352 | AD72: 559.2225185 | AE72: 1503.280478 | AF72: 65.42066586 | AG72: 85 | AH72: 0 | AI72: 2212.923663 | AK72: =IF(OR(D72="PG",D72=0),0,E72*((1+$I$8)^-SUMIF(D$50:D72,"PP",J$50:J72))) -> 0.8554418735 | AL72: 30 | AM72: 0.00643403011 | AN72: 0.00028 | AO72: =1/(1+$R$10)^SUM($AL$35:AL72) -> 0.7709900182 | AP72: 280762.0307 | AQ72: -881.0499389 | AR72: 1806.431359 | AS72: 78.61336859 | AT72: 1003.994789 | AU72: 85 | AV72: 1088.994789 | AW72: 281643.0806
C73: 39 | D73: PP | E73: =IF(Deudas_fx!$I$24=2,IF(OR(G73=8,G73=1),Deudas_fx!$I$24,IF(D73="Pg",0,1)),IF(D73="PG",0,1)) -> 1 | F73: 7 | G73: 8 | H73: 2028 | I73: 2028-08-07 | J73: 31 | K73: 233086.0127 | L73: 0 | M73: 0 | N73: 0 | O73: 0 | P73: =IF(OR(D73="PG",D73=0),0,E73*((1+$I$8)^-SUMIF(D$35:D73,"PP",J$35:J73))) -> 0.7656772854 | Q73: 510.646438 | R73: 1617.277225 | S73: 1549.837672 | T73: 67.43955301 | U73: 85 | V73: 0 | W73: 2127.923663 | X73: 2212.923663 | Y73: 232575.3663 | AA73: 2212.923663 | AB73: 2028-08-07 | AC73: 233086.0127 | AD73: 510.646438 | AE73: 1549.837672 | AF73: 67.43955301 | AG73: 85 | AH73: 0 | AI73: 2212.923663 | AK73: =IF(OR(D73="PG",D73=0),0,E73*((1+$I$8)^-SUMIF(D$50:D73,"PP",J$50:J73))) -> 0.8495472004 | AL73: 31 | AM73: 0.006649209251 | AN73: 0.0002893333333 | AO73: =1/(1+$R$10)^SUM($AL$35:AL73) -> 0.7656772854 | AP73: 281643.0806 | AQ73: -950.1977196 | AR73: 1872.703777 | AS73: 81.48873132 | AT73: 1003.994789 | AU73: 85 | AV73: 1088.994789 | AW73: 282593.2783
C74: 40 | D74: PP | E74: =IF(Deudas_fx!$I$24=2,IF(OR(G74=8,G74=1),Deudas_fx!$I$24,IF(D74="Pg",0,1)),IF(D74="PG",0,1)) -> 1 | F74: 7 | G74: 9 | H74: 2028 | I74: 2028-09-07 | J74: 31 | K74: 232575.3663 | L74: 0 | M74: 0 | N74: 0 | O74: 0 | P74: =IF(OR(D74="PG",D74=0),0,E74*((1+$I$8)^-SUMIF(D$35:D74,"PP",J$35:J74))) -> 0.7604011615 | Q74: 514.18958 | R74: 1613.734083 | S74: 1546.442277 | T74: 67.29180597 | U74: 85 | V74: 0 | W74: 2127.923663 | X74: 2212.923663 | Y74: 232061.1767 | AA74: 2212.923663 | AB74: 2028-09-07 | AC74: 232575.3663 | AD74: 514.18958 | AE74: 1546.442277 | AF74: 67.29180597 | AG74: 85 | AH74: 0 | AI74: 2212.923663 | AK74: =IF(OR(D74="PG",D74=0),0,E74*((1+$I$8)^-SUMIF(D$50:D74,"PP",J$50:J74))) -> 0.8436931462 | AL74: 31 | AM74: 0.006649209251 | AN74: 0.0002893333333 | AO74: =1/(1+$R$10)^SUM($AL$35:AL74) -> 0.7604011615 | AP74: 282593.2783 | AQ74: -956.7907069 | AR74: 1879.021841 | AS74: 81.7636552 | AT74: 1003.994789 | AU74: 85 | AV74: 1088.994789 | AW74: 283550.069
C75: 41 | D75: PP | E75: =IF(Deudas_fx!$I$24=2,IF(OR(G75=8,G75=1),Deudas_fx!$I$24,IF(D75="Pg",0,1)),IF(D75="PG",0,1)) -> 1 | F75: 7 | G75: 10 | H75: 2028 | I75: 2028-10-07 | J75: 30 | K75: 232061.1767 | L75: 0 | M75: 0 | N75: 0 | O75: 0 | P75: =IF(OR(D75="PG",D75=0),0,E75*((1+$I$8)^-SUMIF(D$35:D75,"PP",J$35:J75))) -> 0.7553298541 | Q75: 569.8579352 | R75: 1558.065728 | S75: 1493.088598 | T75: 64.97712947 | U75: 85 | V75: 0 | W75: 2127.923663 | X75: 2212.923663 | Y75: 231491.3187 | AA75: 2212.923663 | AB75: 2028-10-07 | AC75: 232061.1767 | AD75: 569.8579352 | AE75: 1493.088598 | AF75: 64.97712947 | AG75: 85 | AH75: 0 | AI75: 2212.923663 | AK75: =IF(OR(D75="PG",D75=0),0,E75*((1+$I$8)^-SUMIF(D$50:D75,"PP",J$50:J75))) -> 0.8380663436 | AL75: 30 | AM75: 0.00643403011 | AN75: 0.00028 | AO75: =1/(1+$R$10)^SUM($AL$35:AL75) -> 0.7553298541 | AP75: 283550.069 | AQ75: -899.7689125 | AR75: 1824.369682 | AS75: 79.39401933 | AT75: 1003.994789 | AU75: 85 | AV75: 1088.994789 | AW75: 284449.838
C76: 42 | D76: PP | E76: =IF(Deudas_fx!$I$24=2,IF(OR(G76=8,G76=1),Deudas_fx!$I$24,IF(D76="Pg",0,1)),IF(D76="PG",0,1)) -> 1 | F76: 7 | G76: 11 | H76: 2028 | I76: 2028-11-07 | J76: 31 | K76: 231491.3187 | L76: 0 | M76: 0 | N76: 0 | O76: 0 | P76: =IF(OR(D76="PG",D76=0),0,E76*((1+$I$8)^-SUMIF(D$35:D76,"PP",J$35:J76))) -> 0.7501250322 | Q76: 521.7112899 | R76: 1606.212373 | S76: 1539.234218 | T76: 66.97815489 | U76: 85 | V76: 0 | W76: 2127.923663 | X76: 2212.923663 | Y76: 230969.6075 | AA76: 2212.923663 | AB76: 2028-11-07 | AC76: 231491.3187 | AD76: 521.7112899 | AE76: 1539.234218 | AF76: 66.97815489 | AG76: 85 | AH76: 0 | AI76: 2212.923663 | AK76: =IF(OR(D76="PG",D76=0),0,E76*((1+$I$8)^-SUMIF(D$50:D76,"PP",J$50:J76))) -> 0.8322914016 | AL76: 31 | AM76: 0.006649209251 | AN76: 0.0002893333333 | AO76: =1/(1+$R$10)^SUM($AL$35:AL76) -> 0.7501250322 | AP76: 284449.838 | AQ76: -969.6725249 | AR76: 1891.366494 | AS76: 82.30081978 | AT76: 1003.994789 | AU76: 85 | AV76: 1088.994789 | AW76: 285419.5105
C77: 43 | D77: PP | E77: =IF(Deudas_fx!$I$24=2,IF(OR(G77=8,G77=1),Deudas_fx!$I$24,IF(D77="Pg",0,1)),IF(D77="PG",0,1)) -> 1 | F77: 7 | G77: 12 | H77: 2028 | I77: 2028-12-07 | J77: 30 | K77: 230969.6075 | L77: 0 | M77: 0 | N77: 0 | O77: 0 | P77: =IF(OR(D77="PG",D77=0),0,E77*((1+$I$8)^-SUMIF(D$35:D77,"PP",J$35:J77))) -> 0.7451222589 | Q77: 577.1867639 | R77: 1550.736899 | S77: 1486.065409 | T77: 64.67149009 | U77: 85 | V77: 0 | W77: 2127.923663 | X77: 2212.923663 | Y77: 230392.4207 | AA77: 2212.923663 | AB77: 2028-12-07 | AC77: 230969.6075 | AD77: 577.1867639 | AE77: 1486.065409 | AF77: 64.67149009 | AG77: 85 | AH77: 0 | AI77: 2212.923663 | AK77: =IF(OR(D77="PG",D77=0),0,E77*((1+$I$8)^-SUMIF(D$50:D77,"PP",J$50:J77))) -> 0.8267406401 | AL77: 30 | AM77: 0.00643403011 | AN77: 0.00028 | AO77: =1/(1+$R$10)^SUM($AL$35:AL77) -> 0.7451222589 | AP77: 285419.5105 | AQ77: -912.3203986 | AR77: 1836.397724 | AS77: 79.91746293 | AT77: 1003.994789 | AU77: 85 | AV77: 1088.994789 | AW77: 286331.8309
C78: 44 | D78: PP | E78: =IF(Deudas_fx!$I$24=2,IF(OR(G78=8,G78=1),Deudas_fx!$I$24,IF(D78="Pg",0,1)),IF(D78="PG",0,1)) -> 1 | F78: 7 | G78: 1 | H78: 2029 | I78: 2029-01-07 | J78: 31 | K78: 230392.4207 | L78: 0 | M78: 0 | N78: 0 | O78: 0 | P78: =IF(OR(D78="PG",D78=0),0,E78*((1+$I$8)^-SUMIF(D$35:D78,"PP",J$35:J78))) -> 0.7399877755 | Q78: 529.3360408 | R78: 1598.587622 | S78: 1531.927415 | T78: 66.66020705 | U78: 85 | V78: 0 | W78: 2127.923663 | X78: 2212.923663 | Y78: 229863.0847 | AA78: 2212.923663 | AB78: 2029-01-07 | AC78: 230392.4207 | AD78: 529.3360408 | AE78: 1531.927415 | AF78: 66.66020705 | AG78: 85 | AH78: 0 | AI78: 2212.923663 | AK78: =IF(OR(D78="PG",D78=0),0,E78*((1+$I$8)^-SUMIF(D$50:D78,"PP",J$50:J78))) -> 0.8210437412 | AL78: 31 | AM78: 0.006649209251 | AN78: 0.0002893333333 | AO78: =1/(1+$R$10)^SUM($AL$35:AL78) -> 0.7399877755 | AP78: 286331.8309 | AQ78: -982.730813 | AR78: 1903.880259 | AS78: 82.84534306 | AT78: 1003.994789 | AU78: 85 | AV78: 1088.994789 | AW78: 287314.5617
C79: 45 | D79: PP | E79: =IF(Deudas_fx!$I$24=2,IF(OR(G79=8,G79=1),Deudas_fx!$I$24,IF(D79="Pg",0,1)),IF(D79="PG",0,1)) -> 1 | F79: 7 | G79: 2 | H79: 2029 | I79: 2029-02-07 | J79: 31 | K79: 229863.0847 | L79: 0 | M79: 0 | N79: 0 | O79: 0 | P79: =IF(OR(D79="PG",D79=0),0,E79*((1+$I$8)^-SUMIF(D$35:D79,"PP",J$35:J79))) -> 0.7348886727 | Q79: 533.0088615 | R79: 1594.914801 | S79: 1528.407749 | T79: 66.50705249 | U79: 85 | V79: 0 | W79: 2127.923663 | X79: 2212.923663 | Y79: 229330.0758 | AA79: 2212.923663 | AB79: 2029-02-07 | AC79: 229863.0847 | AD79: 533.0088615 | AE79: 1528.407749 | AF79: 66.50705249 | AG79: 85 | AH79: 0 | AI79: 2212.923663 | AK79: =IF(OR(D79="PG",D79=0),0,E79*((1+$I$8)^-SUMIF(D$50:D79,"PP",J$50:J79))) -> 0.8153860985 | AL79: 31 | AM79: 0.006649209251 | AN79: 0.0002893333333 | AO79: =1/(1+$R$10)^SUM($AL$35:AL79) -> 0.7348886727 | AP79: 287314.5617 | AQ79: -989.5495326 | AR79: 1910.414641 | AS79: 83.12967985 | AT79: 1003.994789 | AU79: 85 | AV79: 1088.994789 | AW79: 288304.1112
C80: 46 | D80: PP | E80: =IF(Deudas_fx!$I$24=2,IF(OR(G80=8,G80=1),Deudas_fx!$I$24,IF(D80="Pg",0,1)),IF(D80="PG",0,1)) -> 1 | F80: 7 | G80: 3 | H80: 2029 | I80: 2029-03-07 | J80: 28 | K80: 229330.0758 | L80: 0 | M80: 0 | N80: 0 | O80: 0 | P80: =IF(OR(D80="PG",D80=0),0,E80*((1+$I$8)^-SUMIF(D$35:D80,"PP",J$35:J80))) -> 0.7303132391 | Q80: 691.1379116 | R80: 1436.785751 | S80: 1376.854158 | T80: 59.93159314 | U80: 85 | V80: 0 | W80: 2127.923663 | X80: 2212.923663 | Y80: 228638.9379 | AA80: 2212.923663 | AB80: 2029-03-07 | AC80: 229330.0758 | AD80: 691.1379116 | AE80: 1376.854158 | AF80: 59.93159314 | AG80: 85 | AH80: 0 | AI80: 2212.923663 | AK80: =IF(OR(D80="PG",D80=0),0,E80*((1+$I$8)^-SUMIF(D$50:D80,"PP",J$50:J80))) -> 0.8103094861 | AL80: 28 | AM80: 0.006003809807 | AN80: 0.0002613333333 | AO80: =1/(1+$R$10)^SUM($AL$35:AL80) -> 0.7303132391 | AP80: 288304.1112 | AQ80: -802.271736 | AR80: 1730.92305 | AS80: 75.3434744 | AT80: 1003.994789 | AU80: 85 | AV80: 1088.994789 | AW80: 289106.383
C81: 47 | D81: PP | E81: =IF(Deudas_fx!$I$24=2,IF(OR(G81=8,G81=1),Deudas_fx!$I$24,IF(D81="Pg",0,1)),IF(D81="PG",0,1)) -> 1 | F81: 7 | G81: 4 | H81: 2029 | I81: 2029-04-07 | J81: 31 | K81: 228638.9379 | L81: 0 | M81: 0 | N81: 0 | O81: 0 | P81: =IF(OR(D81="PG",D81=0),0,E81*((1+$I$8)^-SUMIF(D$35:D81,"PP",J$35:J81))) -> 0.7252808015 | Q81: 541.502656 | R81: 1586.421007 | S81: 1520.268141 | T81: 66.15286603 | U81: 85 | V81: 0 | W81: 2127.923663 | X81: 2212.923663 | Y81: 228097.4352 | AA81: 2212.923663 | AB81: 2029-04-07 | AC81: 228638.9379 | AD81: 541.502656 | AE81: 1520.268141 | AF81: 66.15286603 | AG81: 85 | AH81: 0 | AI81: 2212.923663 | AK81: =IF(OR(D81="PG",D81=0),0,E81*((1+$I$8)^-SUMIF(D$50:D81,"PP",J$50:J81))) -> 0.8047258109 | AL81: 31 | AM81: 0.006649209251 | AN81: 0.0002893333333 | AO81: =1/(1+$R$10)^SUM($AL$35:AL81) -> 0.7252808015 | AP81: 289106.383 | AQ81: -1001.982161 | AR81: 1922.328836 | AS81: 83.64811347 | AT81: 1003.994789 | AU81: 85 | AV81: 1088.994789 | AW81: 290108.3651
C82: 48 | D82: PP | E82: =IF(Deudas_fx!$I$24=2,IF(OR(G82=8,G82=1),Deudas_fx!$I$24,IF(D82="Pg",0,1)),IF(D82="PG",0,1)) -> 1 | F82: 7 | G82: 5 | H82: 2029 | I82: 2029-05-07 | J82: 30 | K82: 228097.4352 | L82: 0 | M82: 0 | N82: 0 | O82: 0 | P82: =IF(OR(D82="PG",D82=0),0,E82*((1+$I$8)^-SUMIF(D$35:D82,"PP",J$35:J82))) -> 0.7204437207 | Q82: 596.4706148 | R82: 1531.453048 | S82: 1467.585766 | T82: 63.86728186 | U82: 85 | V82: 0 | W82: 2127.923663 | X82: 2212.923663 | Y82: 227500.9646 | AA82: 2212.923663 | AB82: 2029-05-07 | AC82: 228097.4352 | AD82: 596.4706148 | AE82: 1467.585766 | AF82: 63.86728186 | AG82: 85 | AH82: 0 | AI82: 2212.923663 | AK82: =IF(OR(D82="PG",D82=0),0,E82*((1+$I$8)^-SUMIF(D$50:D82,"PP",J$50:J82))) -> 0.7993588913 | AL82: 30 | AM82: 0.00643403011 | AN82: 0.00028 | AO82: =1/(1+$R$10)^SUM($AL$35:AL82) -> 0.7204437207 | AP82: 290108.3651 | AQ82: -943.8015098 | AR82: 1866.565956 | AS82: 81.23034223 | AT82: 1003.994789 | AU82: 85 | AV82: 1088.994789 | AW82: 291052.1666
C83: 49 | D83: PP | E83: =IF(Deudas_fx!$I$24=2,IF(OR(G83=8,G83=1),Deudas_fx!$I$24,IF(D83="Pg",0,1)),IF(D83="PG",0,1)) -> 1 | F83: 7 | G83: 6 | H83: 2029 | I83: 2029-06-07 | J83: 31 | K83: 227500.9646 | L83: 0 | M83: 0 | N83: 0 | O83: 0 | P83: =IF(OR(D83="PG",D83=0),0,E83*((1+$I$8)^-SUMIF(D$35:D83,"PP",J$35:J83))) -> 0.7154792919 | Q83: 549.398532 | R83: 1578.525131 | S83: 1512.701518 | T83: 65.82361243 | U83: 85 | V83: 0 | W83: 2127.923663 | X83: 2212.923663 | Y83: 226951.5661 | AA83: 2212.923663 | AB83: 2029-06-07 | AC83: 227500.9646 | AD83: 549.398532 | AE83: 1512.701518 | AF83: 65.82361243 | AG83: 85 | AH83: 0 | AI83: 2212.923663 | AK83: =IF(OR(D83="PG",D83=0),0,E83*((1+$I$8)^-SUMIF(D$50:D83,"PP",J$50:J83))) -> 0.7938506744 | AL83: 31 | AM83: 0.006649209251 | AN83: 0.0002893333333 | AO83: =1/(1+$R$10)^SUM($AL$35:AL83) -> 0.7154792919 | AP83: 291052.1666 | AQ83: -1015.483064 | AR83: 1935.266759 | AS83: 84.21109354 | AT83: 1003.994789 | AU83: 85 | AV83: 1088.994789 | AW83: 292067.6497
C84: 50 | D84: PP | E84: =IF(Deudas_fx!$I$24=2,IF(OR(G84=8,G84=1),Deudas_fx!$I$24,IF(D84="Pg",0,1)),IF(D84="PG",0,1)) -> 1 | F84: 7 | G84: 7 | H84: 2029 | I84: 2029-07-07 | J84: 30 | K84: 226951.5661 | L84: 0 | M84: 0 | N84: 0 | O84: 0 | P84: =IF(OR(D84="PG",D84=0),0,E84*((1+$I$8)^-SUMIF(D$35:D84,"PP",J$35:J84))) -> 0.7107075798 | Q84: 604.1640147 | R84: 1523.759648 | S84: 1460.21321 | T84: 63.5464385 | U84: 85 | V84: 0 | W84: 2127.923663 | X84: 2212.923663 | Y84: 226347.4021 | AA84: 2212.923663 | AB84: 2029-07-07 | AC84: 226951.5661 | AD84: 604.1640147 | AE84: 1460.21321 | AF84: 63.5464385 | AG84: 85 | AH84: 0 | AI84: 2212.923663 | AK84: =IF(OR(D84="PG",D84=0),0,E84*((1+$I$8)^-SUMIF(D$50:D84,"PP",J$50:J84))) -> 0.7885562837 | AL84: 30 | AM84: 0.00643403011 | AN84: 0.00028 | AO84: =1/(1+$R$10)^SUM($AL$35:AL84) -> 0.7107075798 | AP84: 292067.6497 | AQ84: -956.9562054 | AR84: 1879.172052 | AS84: 81.77894191 | AT84: 1003.994789 | AU84: 85 | AV84: 1088.994789 | AW84: 293024.6059
C85: 51 | D85: PP | E85: =IF(Deudas_fx!$I$24=2,IF(OR(G85=8,G85=1),Deudas_fx!$I$24,IF(D85="Pg",0,1)),IF(D85="PG",0,1)) -> 1 | F85: 7 | G85: 8 | H85: 2029 | I85: 2029-08-07 | J85: 31 | K85: 226347.4021 | L85: 0 | M85: 0 | N85: 0 | O85: 0 | P85: =IF(OR(D85="PG",D85=0),0,E85*((1+$I$8)^-SUMIF(D$35:D85,"PP",J$35:J85))) -> 0.7058102408 | Q85: 557.4025748 | R85: 1570.521088 | S85: 1505.03124 | T85: 65.48984833 | U85: 85 | V85: 0 | W85: 2127.923663 | X85: 2212.923663 | Y85: 225789.9995 | AA85: 2212.923663 | AB85: 2029-08-07 | AC85: 226347.4021 | AD85: 557.4025748 | AE85: 1505.03124 | AF85: 65.48984833 | AG85: 85 | AH85: 0 | AI85: 2212.923663 | AK85: =IF(OR(D85="PG",D85=0),0,E85*((1+$I$8)^-SUMIF(D$50:D85,"PP",J$50:J85))) -> 0.7831225054 | AL85: 31 | AM85: 0.006649209251 | AN85: 0.0002893333333 | AO85: =1/(1+$R$10)^SUM($AL$35:AL85) -> 0.7058102408 | AP85: 293024.6059 | AQ85: -1029.168917 | AR85: 1948.38192 | AS85: 84.78178597 | AT85: 1003.994789 | AU85: 85 | AV85: 1088.994789 | AW85: 294053.7748
C86: 52 | D86: PP | E86: =IF(Deudas_fx!$I$24=2,IF(OR(G86=8,G86=1),Deudas_fx!$I$24,IF(D86="Pg",0,1)),IF(D86="PG",0,1)) -> 1 | F86: 7 | G86: 9 | H86: 2029 | I86: 2029-09-07 | J86: 31 | K86: 225789.9995 | L86: 0 | M86: 0 | N86: 0 | O86: 0 | P86: =IF(OR(D86="PG",D86=0),0,E86*((1+$I$8)^-SUMIF(D$35:D86,"PP",J$35:J86))) -> 0.7009466483 | Q86: 561.2701363 | R86: 1566.653527 | S86: 1501.324953 | T86: 65.32857318 | U86: 85 | V86: 0 | W86: 2127.923663 | X86: 2212.923663 | Y86: 225228.7294 | AA86: 2212.923663 | AB86: 2029-09-07 | AC86: 225789.9995 | AD86: 561.2701363 | AE86: 1501.324953 | AF86: 65.32857318 | AG86: 85 | AH86: 0 | AI86: 2212.923663 | AK86: =IF(OR(D86="PG",D86=0),0,E86*((1+$I$8)^-SUMIF(D$50:D86,"PP",J$50:J86))) -> 0.7777261701 | AL86: 31 | AM86: 0.006649209251 | AN86: 0.0002893333333 | AO86: =1/(1+$R$10)^SUM($AL$35:AL86) -> 0.7009466483 | AP86: 294053.7748 | AQ86: -1036.30985 | AR86: 1955.22508 | AS86: 85.07955884 | AT86: 1003.994789 | AU86: 85 | AV86: 1088.994789 | AW86: 295090.0847
C87: 53 | D87: PP | E87: =IF(Deudas_fx!$I$24=2,IF(OR(G87=8,G87=1),Deudas_fx!$I$24,IF(D87="Pg",0,1)),IF(D87="PG",0,1)) -> 1 | F87: 7 | G87: 10 | H87: 2029 | I87: 2029-10-07 | J87: 30 | K87: 225228.7294 | L87: 0 | M87: 0 | N87: 0 | O87: 0 | P87: =IF(OR(D87="PG",D87=0),0,E87*((1+$I$8)^-SUMIF(D$35:D87,"PP",J$35:J87))) -> 0.6962718581 | Q87: 615.7311924 | R87: 1512.192471 | S87: 1449.128426 | T87: 63.06404422 | U87: 85 | V87: 0 | W87: 2127.923663 | X87: 2212.923663 | Y87: 224612.9982 | AA87: 2212.923663 | AB87: 2029-10-07 | AC87: 225228.7294 | AD87: 615.7311924 | AE87: 1449.128426 | AF87: 63.06404422 | AG87: 85 | AH87: 0 | AI87: 2212.923663 | AK87: =IF(OR(D87="PG",D87=0),0,E87*((1+$I$8)^-SUMIF(D$50:D87,"PP",J$50:J87))) -> 0.7725393179 | AL87: 30 | AM87: 0.00643403011 | AN87: 0.00028 | AO87: =1/(1+$R$10)^SUM($AL$35:AL87) -> 0.6962718581 | AP87: 295090.0847 | AQ87: -977.2489248 | AR87: 1898.61849 | AS87: 82.6252237 | AT87: 1003.994789 | AU87: 85 | AV87: 1088.994789 | AW87: 296067.3336
C88: 54 | D88: PP | E88: =IF(Deudas_fx!$I$24=2,IF(OR(G88=8,G88=1),Deudas_fx!$I$24,IF(D88="Pg",0,1)),IF(D88="PG",0,1)) -> 1 | F88: 7 | G88: 11 | H88: 2029 | I88: 2029-11-07 | J88: 31 | K88: 224612.9982 | L88: 0 | M88: 0 | N88: 0 | O88: 0 | P88: =IF(OR(D88="PG",D88=0),0,E88*((1+$I$8)^-SUMIF(D$35:D88,"PP",J$35:J88))) -> 0.6914739926 | Q88: 569.4368102 | R88: 1558.486853 | S88: 1493.498825 | T88: 64.98802747 | U88: 85 | V88: 0 | W88: 2127.923663 | X88: 2212.923663 | Y88: 224043.5614 | AA88: 2212.923663 | AB88: 2029-11-07 | AC88: 224612.9982 | AD88: 569.4368102 | AE88: 1493.498825 | AF88: 64.98802747 | AG88: 85 | AH88: 0 | AI88: 2212.923663 | AK88: =IF(OR(D88="PG",D88=0),0,E88*((1+$I$8)^-SUMIF(D$50:D88,"PP",J$50:J88))) -> 0.7672159091 | AL88: 31 | AM88: 0.006649209251 | AN88: 0.0002893333333 | AO88: =1/(1+$R$10)^SUM($AL$35:AL88) -> 0.6914739926 | AP88: 296067.3336 | AQ88: -1050.281013 | AR88: 1968.613653 | AS88: 85.66214852 | AT88: 1003.994789 | AU88: 85 | AV88: 1088.994789 | AW88: 297117.6146
C89: 55 | D89: PP | E89: =IF(Deudas_fx!$I$24=2,IF(OR(G89=8,G89=1),Deudas_fx!$I$24,IF(D89="Pg",0,1)),IF(D89="PG",0,1)) -> 1 | F89: 7 | G89: 12 | H89: 2029 | I89: 2029-12-07 | J89: 30 | K89: 224043.5614 | L89: 0 | M89: 0 | N89: 0 | O89: 0 | P89: =IF(OR(D89="PG",D89=0),0,E89*((1+$I$8)^-SUMIF(D$35:D89,"PP",J$35:J89))) -> 0.686862378 | Q89: 623.688446 | R89: 1504.235217 | S89: 1441.50302 | T89: 62.73219718 | U89: 85 | V89: 0 | W89: 2127.923663 | X89: 2212.923663 | Y89: 223419.8729 | AA89: 2212.923663 | AB89: 2029-12-07 | AC89: 224043.5614 | AD89: 623.688446 | AE89: 1441.50302 | AF89: 62.73219718 | AG89: 85 | AH89: 0 | AI89: 2212.923663 | AK89: =IF(OR(D89="PG",D89=0),0,E89*((1+$I$8)^-SUMIF(D$50:D89,"PP",J$50:J89))) -> 0.7620991525 | AL89: 30 | AM89: 0.00643403011 | AN89: 0.00028 | AO89: =1/(1+$R$10)^SUM($AL$35:AL89) -> 0.686862378 | AP89: 297117.6146 | AQ89: -990.8618219 | AR89: 1911.663679 | AS89: 83.19293209 | AT89: 1003.994789 | AU89: 85 | AV89: 1088.994789 | AW89: 298108.4764
C90: 56 | D90: PP | E90: =IF(Deudas_fx!$I$24=2,IF(OR(G90=8,G90=1),Deudas_fx!$I$24,IF(D90="Pg",0,1)),IF(D90="PG",0,1)) -> 1 | F90: 7 | G90: 1 | H90: 2030 | I90: 2030-01-07 | J90: 31 | K90: 223419.8729 | L90: 0 | M90: 0 | N90: 0 | O90: 0 | P90: =IF(OR(D90="PG",D90=0),0,E90*((1+$I$8)^-SUMIF(D$35:D90,"PP",J$35:J90))) -> 0.6821293513 | Q90: 577.7153606 | R90: 1550.208302 | S90: 1485.565486 | T90: 64.64281656 | U90: 85 | V90: 0 | W90: 2127.923663 | X90: 2212.923663 | Y90: 222842.1575 | AA90: 2212.923663 | AB90: 2030-01-07 | AC90: 223419.8729 | AD90: 577.7153606 | AE90: 1485.565486 | AF90: 64.64281656 | AG90: 85 | AH90: 0 | AI90: 2212.923663 | AK90: =IF(OR(D90="PG",D90=0),0,E90*((1+$I$8)^-SUMIF(D$50:D90,"PP",J$50:J90))) -> 0.7568476847 | AL90: 31 | AM90: 0.006649209251 | AN90: 0.0002893333333 | AO90: =1/(1+$R$10)^SUM($AL$35:AL90) -> 0.6821293513 | AP90: 298108.4764 | AQ90: -1064.44357 | AR90: 1982.185639 | AS90: 86.25271918 | AT90: 1003.994789 | AU90: 85 | AV90: 1088.994789 | AW90: 299172.92
C91: 57 | D91: PP | E91: =IF(Deudas_fx!$I$24=2,IF(OR(G91=8,G91=1),Deudas_fx!$I$24,IF(D91="Pg",0,1)),IF(D91="PG",0,1)) -> 1 | F91: 7 | G91: 2 | H91: 2030 | I91: 2030-02-07 | J91: 31 | K91: 222842.1575 | L91: 0 | M91: 0 | N91: 0 | O91: 0 | P91: =IF(OR(D91="PG",D91=0),0,E91*((1+$I$8)^-SUMIF(D$35:D91,"PP",J$35:J91))) -> 0.6774289389 | Q91: 581.7238632 | R91: 1546.1998 | S91: 1481.724135 | T91: 64.47566425 | U91: 85 | V91: 0 | W91: 2127.923663 | X91: 2212.923663 | Y91: 222260.4337 | AA91: 2212.923663 | AB91: 2030-02-07 | AC91: 222842.1575 | AD91: 581.7238632 | AE91: 1481.724135 | AF91: 64.47566425 | AG91: 85 | AH91: 0 | AI91: 2212.923663 | AK91: =IF(OR(D91="PG",D91=0),0,E91*((1+$I$8)^-SUMIF(D$50:D91,"PP",J$50:J91))) -> 0.7516324038 | AL91: 31 | AM91: 0.006649209251 | AN91: 0.0002893333333 | AO91: =1/(1+$R$10)^SUM($AL$35:AL91) -> 0.6774289389 | AP91: 299172.92 | AQ91: -1071.829257 | AR91: 1989.263347 | AS91: 86.56069818 | AT91: 1003.994789 | AU91: 85 | AV91: 1088.994789 | AW91: 300244.7492
C92: 58 | D92: PP | E92: =IF(Deudas_fx!$I$24=2,IF(OR(G92=8,G92=1),Deudas_fx!$I$24,IF(D92="Pg",0,1)),IF(D92="PG",0,1)) -> 1 | F92: 7 | G92: 3 | H92: 2030 | I92: 2030-03-07 | J92: 28 | K92: 222260.4337 | L92: 0 | M92: 0 | N92: 0 | O92: 0 | P92: =IF(OR(D92="PG",D92=0),0,E92*((1+$I$8)^-SUMIF(D$35:D92,"PP",J$35:J92))) -> 0.6732112509 | Q92: 735.4302314 | R92: 1392.493431 | S92: 1334.409371 | T92: 58.08406 | U92: 85 | V92: 0 | W92: 2127.923663 | X92: 2212.923663 | Y92: 221525.0034 | AA92: 2212.923663 | AB92: 2030-03-07 | AC92: 222260.4337 | AD92: 735.4302314 | AE92: 1334.409371 | AF92: 58.08406 | AG92: 85 | AH92: 0 | AI92: 2212.923663 | AK92: =IF(OR(D92="PG",D92=0),0,E92*((1+$I$8)^-SUMIF(D$50:D92,"PP",J$50:J92))) -> 0.7469527233 | AL92: 28 | AM92: 0.006003809807 | AN92: 0.0002613333333 | AO92: =1/(1+$R$10)^SUM($AL$35:AL92) -> 0.6732112509 | AP92: 300244.7492 | AQ92: -877.0815425 | AR92: 1802.61237 | AS92: 78.46396114 | AT92: 1003.994789 | AU92: 85 | AV92: 1088.994789 | AW92: 301121.8308
C93: 59 | D93: PP | E93: =IF(Deudas_fx!$I$24=2,IF(OR(G93=8,G93=1),Deudas_fx!$I$24,IF(D93="Pg",0,1)),IF(D93="PG",0,1)) -> 1 | F93: 7 | G93: 4 | H93: 2030 | I93: 2030-04-07 | J93: 31 | K93: 221525.0034 | L93: 0 | M93: 0 | N93: 0 | O93: 0 | P93: =IF(OR(D93="PG",D93=0),0,E93*((1+$I$8)^-SUMIF(D$35:D93,"PP",J$35:J93))) -> 0.6685722914 | Q93: 590.862993 | R93: 1537.06067 | S93: 1472.966102 | T93: 64.09456766 | U93: 85 | V93: 0 | W93: 2127.923663 | X93: 2212.923663 | Y93: 220934.1405 | AA93: 2212.923663 | AB93: 2030-04-07 | AC93: 221525.0034 | AD93: 590.862993 | AE93: 1472.966102 | AF93: 64.09456766 | AG93: 85 | AH93: 0 | AI93: 2212.923663 | AK93: =IF(OR(D93="PG",D93=0),0,E93*((1+$I$8)^-SUMIF(D$50:D93,"PP",J$50:J93))) -> 0.7418056265 | AL93: 31 | AM93: 0.006649209251 | AN93: 0.0002893333333 | AO93: =1/(1+$R$10)^SUM($AL$35:AL93) -> 0.6685722914 | AP93: 301121.8308 | AQ93: -1085.351857 | AR93: 2002.222063 | AS93: 87.12458304 | AT93: 1003.994789 | AU93: 85 | AV93: 1088.994789 | AW93: 302207.1826
C94: 60 | D94: PP | E94: =IF(Deudas_fx!$I$24=2,IF(OR(G94=8,G94=1),Deudas_fx!$I$24,IF(D94="Pg",0,1)),IF(D94="PG",0,1)) -> 1 | F94: 7 | G94: 5 | H94: 2030 | I94: 2030-05-07 | J94: 30 | K94: 220934.1405 | L94: 0 | M94: 0 | N94: 0 | O94: 0 | P94: =IF(OR(D94="PG",D94=0),0,E94*((1+$I$8)^-SUMIF(D$35:D94,"PP",J$35:J94))) -> 0.6641134139 | Q94: 644.5651915 | R94: 1483.358471 | S94: 1421.496912 | T94: 61.86155933 | U94: 85 | V94: 0 | W94: 2127.923663 | X94: 2212.923663 | Y94: 220289.5753 | AA94: 2212.923663 | AB94: 2030-05-07 | AC94: 220934.1405 | AD94: 644.5651915 | AE94: 1421.496912 | AF94: 61.86155933 | AG94: 85 | AH94: 0 | AI94: 2212.923663 | AK94: =IF(OR(D94="PG",D94=0),0,E94*((1+$I$8)^-SUMIF(D$50:D94,"PP",J$50:J94))) -> 0.7368583374 | AL94: 30 | AM94: 0.00643403011 | AN94: 0.00028 | AO94: =1/(1+$R$10)^SUM($AL$35:AL94) -> 0.6641134139 | AP94: 302207.1826 | AQ94: -1025.033335 | AR94: 1944.410113 | AS94: 84.61801114 | AT94: 1003.994789 | AU94: 85 | AV94: 1088.994789 | AW94: 303232.216
C95: 61 | D95: PP | E95: =IF(Deudas_fx!$I$24=2,IF(OR(G95=8,G95=1),Deudas_fx!$I$24,IF(D95="Pg",0,1)),IF(D95="PG",0,1)) -> 1 | F95: 7 | G95: 6 | H95: 2030 | I95: 2030-06-07 | J95: 31 | K95: 220289.5753 | L95: 0 | M95: 0 | N95: 0 | O95: 0 | P95: =IF(OR(D95="PG",D95=0),0,E95*((1+$I$8)^-SUMIF(D$35:D95,"PP",J$35:J95))) -> 0.6595371456 | Q95: 599.435064 | R95: 1528.488599 | S95: 1464.751482 | T95: 63.73711711 | U95: 85 | V95: 0 | W95: 2127.923663 | X95: 2212.923663 | Y95: 219690.1402 | AA95: 2212.923663 | AB95: 2030-06-07 | AC95: 220289.5753 | AD95: 599.435064 | AE95: 1464.751482 | AF95: 63.73711711 | AG95: 85 | AH95: 0 | AI95: 2212.923663 | AK95: =IF(OR(D95="PG",D95=0),0,E95*((1+$I$8)^-SUMIF(D$50:D95,"PP",J$50:J95))) -> 0.7317807989 | AL95: 31 | AM95: 0.006649209251 | AN95: 0.0002893333333 | AO95: =1/(1+$R$10)^SUM($AL$35:AL95) -> 0.6595371456 | AP95: 303232.216 | AQ95: -1099.994855 | AR95: 2016.254456 | AS95: 87.73518782 | AT95: 1003.994789 | AU95: 85 | AV95: 1088.994789 | AW95: 304332.2108
C96: 62 | D96: PP | E96: =IF(Deudas_fx!$I$24=2,IF(OR(G96=8,G96=1),Deudas_fx!$I$24,IF(D96="Pg",0,1)),IF(D96="PG",0,1)) -> 1 | F96: 7 | G96: 7 | H96: 2030 | I96: 2030-07-07 | J96: 30 | K96: 219690.1402 | L96: 0 | M96: 0 | N96: 0 | O96: 0 | P96: =IF(OR(D96="PG",D96=0),0,E96*((1+$I$8)^-SUMIF(D$35:D96,"PP",J$35:J96))) -> 0.6551385259 | Q96: 652.9174467 | R96: 1475.006216 | S96: 1413.492977 | T96: 61.51323926 | U96: 85 | V96: 0 | W96: 2127.923663 | X96: 2212.923663 | Y96: 219037.2228 | AA96: 2212.923663 | AB96: 2030-07-07 | AC96: 219690.1402 | AD96: 652.9174467 | AE96: 1413.492977 | AF96: 61.51323926 | AG96: 85 | AH96: 0 | AI96: 2212.923663 | AK96: =IF(OR(D96="PG",D96=0),0,E96*((1+$I$8)^-SUMIF(D$50:D96,"PP",J$50:J96))) -> 0.726900368 | AL96: 30 | AM96: 0.00643403011 | AN96: 0.00028 | AO96: =1/(1+$R$10)^SUM($AL$35:AL96) -> 0.6551385259 | AP96: 304332.2108 | AQ96: -1039.300838 | AR96: 1958.082608 | AS96: 85.21301903 | AT96: 1003.994789 | AU96: 85 | AV96: 1088.994789 | AW96: 305371.5117
C97: 63 | D97: PP | E97: =IF(Deudas_fx!$I$24=2,IF(OR(G97=8,G97=1),Deudas_fx!$I$24,IF(D97="Pg",0,1)),IF(D97="PG",0,1)) -> 1 | F97: 7 | G97: 8 | H97: 2030 | I97: 2030-08-07 | J97: 31 | K97: 219037.2228 | L97: 0 | M97: 0 | N97: 0 | O97: 0 | P97: =IF(OR(D97="PG",D97=0),0,E97*((1+$I$8)^-SUMIF(D$35:D97,"PP",J$35:J97))) -> 0.6506241017 | Q97: 608.1245653 | R97: 1519.799098 | S97: 1456.424328 | T97: 63.37476978 | U97: 85 | V97: 0 | W97: 2127.923663 | X97: 2212.923663 | Y97: 218429.0982 | AA97: 2212.923663 | AB97: 2030-08-07 | AC97: 219037.2228 | AD97: 608.1245653 | AE97: 1456.424328 | AF97: 63.37476978 | AG97: 85 | AH97: 0 | AI97: 2212.923663 | AK97: =IF(OR(D97="PG",D97=0),0,E97*((1+$I$8)^-SUMIF(D$50:D97,"PP",J$50:J97))) -> 0.7218914478 | AL97: 31 | AM97: 0.006649209251 | AN97: 0.0002893333333 | AO97: =1/(1+$R$10)^SUM($AL$35:AL97) -> 0.6506241017 | AP97: 305371.5117 | AQ97: -1114.838449 | AR97: 2030.47908 | AS97: 88.35415738 | AT97: 1003.994789 | AU97: 85 | AV97: 1088.994789 | AW97: 306486.3501
C98: 64 | D98: PP | E98: =IF(Deudas_fx!$I$24=2,IF(OR(G98=8,G98=1),Deudas_fx!$I$24,IF(D98="Pg",0,1)),IF(D98="PG",0,1)) -> 1 | F98: 7 | G98: 9 | H98: 2030 | I98: 2030-09-07 | J98: 31 | K98: 218429.0982 | L98: 0 | M98: 0 | N98: 0 | O98: 0 | P98: =IF(OR(D98="PG",D98=0),0,E98*((1+$I$8)^-SUMIF(D$35:D98,"PP",J$35:J98))) -> 0.6461407855 | Q98: 612.3440635 | R98: 1515.579599 | S98: 1452.38078 | T98: 63.19881907 | U98: 85 | V98: 0 | W98: 2127.923663 | X98: 2212.923663 | Y98: 217816.7541 | AA98: 2212.923663 | AB98: 2030-09-07 | AC98: 218429.0982 | AD98: 612.3440635 | AE98: 1452.38078 | AF98: 63.19881907 | AG98: 85 | AH98: 0 | AI98: 2212.923663 | AK98: =IF(OR(D98="PG",D98=0),0,E98*((1+$I$8)^-SUMIF(D$50:D98,"PP",J$50:J98))) -> 0.7169170431 | AL98: 31 | AM98: 0.006649209251 | AN98: 0.0002893333333 | AO98: =1/(1+$R$10)^SUM($AL$35:AL98) -> 0.6461407855 | AP98: 306486.3501 | AQ98: -1122.573803 | AR98: 2037.891875 | AS98: 88.6767173 | AT98: 1003.994789 | AU98: 85 | AV98: 1088.994789 | AW98: 307608.9239
B99: =IF(D99="PG","Periodo de Gracia","") ->  | C99: 65 | D99: PP | E99: =IF(Deudas_fx!$I$24=2,IF(OR(G99=8,G99=1),Deudas_fx!$I$24,IF(D99="Pg",0,1)),IF(D99="PG",0,1)) -> 1 | F99: 7 | G99: 10 | H99: 2030 | I99: 2030-10-07 | J99: 30 | K99: 217816.7541 | L99: =IF(D99="PG",((($I$8+1)^J99-1)*K99),0) -> 0 | M99: =IF(D99="PG",((($I$6+1)^J99-1)*K99),0) -> 0 | N99: =IF(D99="PG",((($I$7+1)^J99-1)*K99),0) -> 0 | O99: =IF(D99="PG",(+$I$12),0) -> 0 | P99: =IF(OR(D99="PG",D99=0),0,E99*((1+$I$8)^-SUMIF(D$35:D99,"PP",J$35:J99))) -> 0.6418315094 | Q99: =+IF(D99="PG",0,X99-SUM(R99,U99,V99)) -> 665.4954172 | R99: =S99+T99 -> 1462.428246 | S99: =IF(OR(D99="PG",D99=0),0,IF(O83>=0,K99*((1+$I$6)^J99-1),K99*((1+$I$6)^(J99+O83)-1))) -> 1401.439555 | T99: =IF(OR(D99="PG",D99=0),0,IF(O83>=0,K99*((1+$I$7)^30-1)*J99/30,K99*((1+$I$7)^(30+O83)-1)*J99/30)) -> 60.98869115 | U99: =IF(OR(D99="PG",D99=0),0,$I$12) -> 85 | V99: =IF(OR(D99="PG",D99=0),0,$I$11) -> 0 | W99: =IF(OR(D99="PG",D99=0),0,E99*$N$10) -> 2127.923663 | X99: =IF(OR(D99="PG",D99=0),0,W99+U99+V99) -> 2212.923663 | Y99: =+K99+N99+O99+M99-Q99 -> 217151.2587 | AA99: =+X99 -> 2212.923663 | AB99: =+I99 -> 2030-10-07 | AC99: =+K99 -> 217816.7541 | AD99: =+Q99 -> 665.4954172 | AE99: =+IF(D99="PG",M99,S99) -> 1401.439555 | AF99: =+IF(D99="PG",N99,T99) -> 60.98869115 | AG99: =+IF(D99="PG",O99,U99) -> 85 | AH99: 0 | AI99: =+X99 -> 2212.923663 | AK99: =IF(OR(D99="PG",D99=0),0,E99*((1+$I$8)^-SUMIF(D$50:D99,"PP",J$50:J99))) -> 0.7121357422 | AL99: =+J99 -> 30 | AM99: =+(1+$S$6)^(AL99/360)-1 -> 0.00643403011 | AN99: =+$R$7*AL99/30 -> 0.00028 | AO99: =1/(1+$R$10)^SUM($AL$35:AL99) -> 0.6418315094 | AP99: 307608.9239 | AQ99: =+$AR$14-AR99-AS99 -> -1061.300789 | AR99: =+AP99*AM99 -> 1979.165079 | AS99: =+AP99*AN99 -> 86.1304987 | AT99: =+AQ99+AR99+AS99 -> 1003.994789 | AU99: =+U99 -> 85 | AV99: =+AT99+AU99 -> 1088.994789 | AW99: =+AP99-AQ99 -> 308670.2247
C100: =+C99+1 -> 66 | D100: PP | E100: =IF(Deudas_fx!$I$24=2,IF(OR(G100=8,G100=1),Deudas_fx!$I$24,IF(D100="Pg",0,1)),IF(D100="PG",0,1)) -> 1 | F100: =F99 -> 7 | G100: =IF(G99=12,1,G99+1) -> 11 | H100: =IF(G99=12,H99+1,H99) -> 2030 | I100: =DATE(H100,G100,F100) -> 2030-11-07 | J100: =+I100-I99 -> 31 | K100: =+Y99 -> 217151.2587 | L100: 0 | M100: 0 | N100: 0 | O100: 0 | P100: =IF(OR(D100="PG",D100=0),0,E100*((1+$I$8)^-SUMIF(D$35:D100,"PP",J$35:J100))) -> 0.6374087812 | Q100: 621.2104071 | R100: 1506.713256 | S100: 1443.884158 | T100: 62.82909752 | U100: 85 | V100: 0 | W100: 2127.923663 | X100: 2212.923663 | Y100: 216530.0483 | Z100: =YEAR(I100-$Z$34)-1900 ->  | AA100: 2212.923663 | AB100: 2030-11-07 | AC100: 217151.2587 | AD100: 621.2104071 | AE100: 1443.884158 | AF100: 62.82909752 | AG100: 85 | AH100: 0 | AI100: 2212.923663 | AK100: =IF(OR(D100="PG",D100=0),0,E100*((1+$I$8)^-SUMIF(D$50:D100,"PP",J$50:J100))) -> 0.7072285621 | AL100: 31 | AM100: 0.006649209251 | AN100: 0.0002893333333 | AO100: =1/(1+$R$10)^SUM($AL$35:AL100) -> 0.6374087812 | AP100: =+AW99 -> 308670.2247 | AQ100: -1137.72671 | AR100: 2052.412914 | AS100: 89.30858502 | AT100: 1003.994789 | AU100: 85 | AV100: 1088.994789 | AW100: 309807.9514
C101: 67 | D101: PP | E101: =IF(Deudas_fx!$I$24=2,IF(OR(G101=8,G101=1),Deudas_fx!$I$24,IF(D101="Pg",0,1)),IF(D101="PG",0,1)) -> 1 | F101: 7 | G101: 12 | H101: 2030 | I101: 2030-12-07 | J101: 30 | K101: 216530.0483 | L101: 0 | M101: 0 | N101: 0 | O101: 0 | P101: =IF(OR(D101="PG",D101=0),0,E101*((1+$I$8)^-SUMIF(D$35:D101,"PP",J$35:J101))) -> 0.633157741 | Q101: 674.1343989 | R101: 1453.789264 | S101: 1393.16085 | T101: 60.62841352 | U101: 85 | V101: 0 | W101: 2127.923663 | X101: 2212.923663 | Y101: 215855.9139 | AA101: 2212.923663 | AB101: 2030-12-07 | AC101: 216530.0483 | AD101: 674.1343989 | AE101: 1393.16085 | AF101: 60.62841352 | AG101: 85 | AH101: 0 | AI101: 2212.923663 | AK101: =IF(OR(D101="PG",D101=0),0,E101*((1+$I$8)^-SUMIF(D$50:D101,"PP",J$50:J101))) -> 0.7025118762 | AL101: 30 | AM101: 0.00643403011 | AN101: 0.00028 | AO101: =1/(1+$R$10)^SUM($AL$35:AL101) -> 0.633157741 | AP101: 309807.9514 | AQ101: -1076.065125 | AR101: 1993.313688 | AS101: 86.7462264 | AT101: 1003.994789 | AU101: 85 | AV101: 1088.994789 | AW101: 310884.0166
C102: 68 | D102: PP | E102: =IF(Deudas_fx!$I$24=2,IF(OR(G102=8,G102=1),Deudas_fx!$I$24,IF(D102="Pg",0,1)),IF(D102="PG",0,1)) -> 1 | F102: 7 | G102: 1 | H102: 2031 | I102: 2031-01-07 | J102: 31 | K102: 215855.9139 | L102: 0 | M102: 0 | N102: 0 | O102: 0 | P102: =IF(OR(D102="PG",D102=0),0,E102*((1+$I$8)^-SUMIF(D$35:D102,"PP",J$35:J102))) -> 0.6287947819 | Q102: 630.1982122 | R102: 1497.725451 | S102: 1435.27114 | T102: 62.45431109 | U102: 85 | V102: 0 | W102: 2127.923663 | X102: 2212.923663 | Y102: 215225.7157 | AA102: 2212.923663 | AB102: 2031-01-07 | AC102: 215855.9139 | AD102: 630.1982122 | AE102: 1435.27114 | AF102: 62.45431109 | AG102: 85 | AH102: 0 | AI102: 2212.923663 | AK102: =IF(OR(D102="PG",D102=0),0,E102*((1+$I$8)^-SUMIF(D$50:D102,"PP",J$50:J102))) -> 0.697671012 | AL102: 31 | AM102: 0.006649209251 | AN102: 0.0002893333333 | AO102: =1/(1+$R$10)^SUM($AL$35:AL102) -> 0.6287947819 | AP102: 310884.0166 | AQ102: -1153.087199 | AR102: 2067.132879 | AS102: 89.94910879 | AT102: 1003.994789 | AU102: 85 | AV102: 1088.994789 | AW102: 312037.1038
C103: 69 | D103: PP | E103: =IF(Deudas_fx!$I$24=2,IF(OR(G103=8,G103=1),Deudas_fx!$I$24,IF(D103="Pg",0,1)),IF(D103="PG",0,1)) -> 1 | F103: 7 | G103: 2 | H103: 2031 | I103: 2031-02-07 | J103: 31 | K103: 215225.7157 | L103: 0 | M103: 0 | N103: 0 | O103: 0 | P103: =IF(OR(D103="PG",D103=0),0,E103*((1+$I$8)^-SUMIF(D$35:D103,"PP",J$35:J103))) -> 0.6244618871 | Q103: 634.5708693 | R103: 1493.352794 | S103: 1431.08082 | T103: 62.27197374 | U103: 85 | V103: 0 | W103: 2127.923663 | X103: 2212.923663 | Y103: 214591.1448 | AA103: 2212.923663 | AB103: 2031-02-07 | AC103: 215225.7157 | AD103: 634.5708693 | AE103: 1431.08082 | AF103: 62.27197374 | AG103: 85 | AH103: 0 | AI103: 2212.923663 | AK103: =IF(OR(D103="PG",D103=0),0,E103*((1+$I$8)^-SUMIF(D$50:D103,"PP",J$50:J103))) -> 0.6928635053 | AL103: 31 | AM103: 0.006649209251 | AN103: 0.0002893333333 | AO103: =1/(1+$R$10)^SUM($AL$35:AL103) -> 0.6244618871 | AP103: 312037.1038 | AQ103: -1161.087943 | AR103: 2074.799997 | AS103: 90.28273535 | AT103: 1003.994789 | AU103: 85 | AV103: 1088.994789 | AW103: 313198.1917
C104: 70 | D104: PP | E104: =IF(Deudas_fx!$I$24=2,IF(OR(G104=8,G104=1),Deudas_fx!$I$24,IF(D104="Pg",0,1)),IF(D104="PG",0,1)) -> 1 | F104: 7 | G104: 3 | H104: 2031 | I104: 2031-03-07 | J104: 28 | K104: 214591.1448 | L104: 0 | M104: 0 | N104: 0 | O104: 0 | P104: =IF(OR(D104="PG",D104=0),0,E104*((1+$I$8)^-SUMIF(D$35:D104,"PP",J$35:J104))) -> 0.6205739731 | Q104: 783.4794239 | R104: 1344.444239 | S104: 1288.36442 | T104: 56.07981918 | U104: 85 | V104: 0 | W104: 2127.923663 | X104: 2212.923663 | Y104: 213807.6654 | AA104: 2212.923663 | AB104: 2031-03-07 | AC104: 214591.1448 | AD104: 783.4794239 | AE104: 1288.36442 | AF104: 56.07981918 | AG104: 85 | AH104: 0 | AI104: 2212.923663 | AK104: =IF(OR(D104="PG",D104=0),0,E104*((1+$I$8)^-SUMIF(D$50:D104,"PP",J$50:J104))) -> 0.6885497213 | AL104: 28 | AM104: 0.006003809807 | AN104: 0.0002613333333 | AO104: =1/(1+$R$10)^SUM($AL$35:AL104) -> 0.6205739731 | AP104: 313198.1917 | AQ104: -958.2367136 | AR104: 1880.382375 | AS104: 81.84912743 | AT104: 1003.994789 | AU104: 85 | AV104: 1088.994789 | AW104: 314156.4284
C105: 71 | D105: =IF(C105<=$I$4,"PG",IF(AND(C105>$I$4,C105<=$I$9),"PP",0)) -> PP | E105: =IF(Deudas_fx!$I$24=2,IF(OR(G105=8,G105=1),Deudas_fx!$I$24,IF(D105="Pg",0,1)),IF(D105="PG",0,1)) -> 1 | F105: 7 | G105: 4 | H105: 2031 | I105: 2031-04-07 | J105: 31 | K105: 213807.6654 | L105: 0 | M105: 0 | N105: 0 | O105: 0 | P105: =IF(OR(D105="PG",D105=0),0,E105*((1+$I$8)^-SUMIF(D$35:D105,"PP",J$35:J105))) -> 0.6162977261 | Q105: 644.4100717 | R105: 1483.513591 | S105: 1421.651907 | T105: 61.86168452 | U105: 85 | V105: 0 | W105: 2127.923663 | X105: 2212.923663 | Y105: 213163.2553 | AA105: 2212.923663 | AB105: 2031-04-07 | AC105: 213807.6654 | AD105: 644.4100717 | AE105: 1421.651907 | AF105: 61.86168452 | AG105: 85 | AH105: 0 | AI105: 2212.923663 | AK105: =IF(OR(D105="PG",D105=0),0,E105*((1+$I$8)^-SUMIF(D$50:D105,"PP",J$50:J105))) -> 0.6838050675 | AL105: 31 | AM105: 0.006649209251 | AN105: 0.0002893333333 | AO105: =1/(1+$R$10)^SUM($AL$35:AL105) -> 0.6162977261 | AP105: 314156.4284 | AQ105: -1175.792968 | AR105: 2088.89183 | AS105: 90.89592662 | AT105: 1003.994789 | AU105: 85 | AV105: 1088.994789 | AW105: 315332.2214
C106: 72 | D106: PP | E106: =IF(Deudas_fx!$I$24=2,IF(OR(G106=8,G106=1),Deudas_fx!$I$24,IF(D106="Pg",0,1)),IF(D106="PG",0,1)) -> 1 | F106: 7 | G106: 5 | H106: 2031 | I106: 2031-05-07 | J106: 30 | K106: 213163.2553 | L106: 0 | M106: 0 | N106: 0 | O106: 0 | P106: =IF(OR(D106="PG",D106=0),0,E106*((1+$I$8)^-SUMIF(D$35:D106,"PP",J$35:J106))) -> 0.612187481 | Q106: 696.7391483 | R106: 1431.184515 | S106: 1371.498803 | T106: 59.68571149 | U106: 85 | V106: 0 | W106: 2127.923663 | X106: 2212.923663 | Y106: 212466.5162 | AA106: 2212.923663 | AB106: 2031-05-07 | AC106: 213163.2553 | AD106: 696.7391483 | AE106: 1371.498803 | AF106: 59.68571149 | AG106: 85 | AH106: 0 | AI106: 2212.923663 | AK106: =IF(OR(D106="PG",D106=0),0,E106*((1+$I$8)^-SUMIF(D$50:D106,"PP",J$50:J106))) -> 0.6792445989 | AL106: 30 | AM106: 0.00643403011 | AN106: 0.00028 | AO106: =1/(1+$R$10)^SUM($AL$35:AL106) -> 0.612187481 | AP106: 315332.2214 | AQ106: -1113.15524 | AR106: 2028.857007 | AS106: 88.29302198 | AT106: 1003.994789 | AU106: 85 | AV106: 1088.994789 | AW106: 316445.3766
C107: 73 | D107: PP | E107: =IF(Deudas_fx!$I$24=2,IF(OR(G107=8,G107=1),Deudas_fx!$I$24,IF(D107="Pg",0,1)),IF(D107="PG",0,1)) -> 1 | F107: 7 | G107: 6 | H107: 2031 | I107: 2031-06-07 | J107: 31 | K107: 212466.5162 | L107: 0 | M107: 0 | N107: 0 | O107: 0 | P107: =IF(OR(D107="PG",D107=0),0,E107*((1+$I$8)^-SUMIF(D$35:D107,"PP",J$35:J107))) -> 0.6079690236 | Q107: 653.7156927 | R107: 1474.20797 | S107: 1412.734325 | T107: 61.47364535 | U107: 85 | V107: 0 | W107: 2127.923663 | X107: 2212.923663 | Y107: 211812.8005 | AA107: 2212.923663 | AB107: 2031-06-07 | AC107: 212466.5162 | AD107: 653.7156927 | AE107: 1412.734325 | AF107: 61.47364535 | AG107: 85 | AH107: 0 | AI107: 2212.923663 | AK107: =IF(OR(D107="PG",D107=0),0,E107*((1+$I$8)^-SUMIF(D$50:D107,"PP",J$50:J107))) -> 0.6745640647 | AL107: 31 | AM107: 0.006649209251 | AN107: 0.0002893333333 | AO107: =1/(1+$R$10)^SUM($AL$35:AL107) -> 0.6079690236 | AP107: 316445.3766 | AQ107: -1191.674932 | AR107: 2104.111526 | AS107: 91.55819563 | AT107: 1003.994789 | AU107: 85 | AV107: 1088.994789 | AW107: 317637.0515
C108: 74 | D108: PP | E108: =IF(Deudas_fx!$I$24=2,IF(OR(G108=8,G108=1),Deudas_fx!$I$24,IF(D108="Pg",0,1)),IF(D108="PG",0,1)) -> 1 | F108: 7 | G108: 7 | H108: 2031 | I108: 2031-07-07 | J108: 30 | K108: 211812.8005 | L108: 0 | M108: 0 | N108: 0 | O108: 0 | P108: =IF(OR(D108="PG",D108=0),0,E108*((1+$I$8)^-SUMIF(D$35:D108,"PP",J$35:J108))) -> 0.6039143246 | Q108: 705.8061427 | R108: 1422.11752 | S108: 1362.809936 | T108: 59.30758413 | U108: 85 | V108: 0 | W108: 2127.923663 | X108: 2212.923663 | Y108: 211106.9943 | AA108: 2212.923663 | AB108: 2031-07-07 | AC108: 211812.8005 | AD108: 705.8061427 | AE108: 1362.809936 | AF108: 59.30758413 | AG108: 85 | AH108: 0 | AI108: 2212.923663 | AK108: =IF(OR(D108="PG",D108=0),0,E108*((1+$I$8)^-SUMIF(D$50:D108,"PP",J$50:J108))) -> 0.6700652266 | AL108: 30 | AM108: 0.00643403011 | AN108: 0.00028 | AO108: =1/(1+$R$10)^SUM($AL$35:AL108) -> 0.6039143246 | AP108: 317637.0515 | AQ108: -1128.629939 | AR108: 2043.686354 | AS108: 88.93837443 | AT108: 1003.994789 | AU108: 85 | AV108: 1088.994789 | AW108: 318765.6815
C109: 75 | D109: PP | E109: =IF(Deudas_fx!$I$24=2,IF(OR(G109=8,G109=1),Deudas_fx!$I$24,IF(D109="Pg",0,1)),IF(D109="PG",0,1)) -> 1 | F109: 7 | G109: 8 | H109: 2031 | I109: 2031-08-07 | J109: 31 | K109: 211106.9943 | L109: 0 | M109: 0 | N109: 0 | O109: 0 | P109: =IF(OR(D109="PG",D109=0),0,E109*((1+$I$8)^-SUMIF(D$35:D109,"PP",J$35:J109))) -> 0.5997528758 | Q109: 663.1487928 | R109: 1464.77487 | S109: 1403.69458 | T109: 61.08029036 | U109: 85 | V109: 0 | W109: 2127.923663 | X109: 2212.923663 | Y109: 210443.8455 | AA109: 2212.923663 | AB109: 2031-08-07 | AC109: 211106.9943 | AD109: 663.1487928 | AE109: 1403.69458 | AF109: 61.08029036 | AG109: 85 | AH109: 0 | AI109: 2212.923663 | AK109: =IF(OR(D109="PG",D109=0),0,E109*((1+$I$8)^-SUMIF(D$50:D109,"PP",J$50:J109))) -> 0.6654479457 | AL109: 31 | AM109: 0.006649209251 | AN109: 0.0002893333333 | AO109: =1/(1+$R$10)^SUM($AL$35:AL109) -> 0.5997528758 | AP109: 318765.6815 | AQ109: -1207.774467 | AR109: 2119.539718 | AS109: 92.22953718 | AT109: 1003.994789 | AU109: 85 | AV109: 1088.994789 | AW109: 319973.456
C110: 76 | D110: PP | E110: =IF(Deudas_fx!$I$24=2,IF(OR(G110=8,G110=1),Deudas_fx!$I$24,IF(D110="Pg",0,1)),IF(D110="PG",0,1)) -> 1 | F110: 7 | G110: 9 | H110: 2031 | I110: 2031-09-07 | J110: 31 | K110: 210443.8455 | L110: 0 | M110: 0 | N110: 0 | O110: 0 | P110: =IF(OR(D110="PG",D110=0),0,E110*((1+$I$8)^-SUMIF(D$35:D110,"PP",J$35:J110))) -> 0.5956201028 | Q110: 667.750079 | R110: 1460.173584 | S110: 1399.285165 | T110: 60.88841931 | U110: 85 | V110: 0 | W110: 2127.923663 | X110: 2212.923663 | Y110: 209776.0955 | AA110: 2212.923663 | AB110: 2031-09-07 | AC110: 210443.8455 | AD110: 667.750079 | AE110: 1399.285165 | AF110: 60.88841931 | AG110: 85 | AH110: 0 | AI110: 2212.923663 | AK110: =IF(OR(D110="PG",D110=0),0,E110*((1+$I$8)^-SUMIF(D$50:D110,"PP",J$50:J110))) -> 0.6608624814 | AL110: 31 | AM110: 0.006649209251 | AN110: 0.0002893333333 | AO110: =1/(1+$R$10)^SUM($AL$35:AL110) -> 0.5956201028 | AP110: 319973.456 | AQ110: -1216.154661 | AR110: 2127.570463 | AS110: 92.57898659 | AT110: 1003.994789 | AU110: 85 | AV110: 1088.994789 | AW110: 321189.6106
C111: 77 | D111: PP | E111: =IF(Deudas_fx!$I$24=2,IF(OR(G111=8,G111=1),Deudas_fx!$I$24,IF(D111="Pg",0,1)),IF(D111="PG",0,1)) -> 1 | F111: 7 | G111: 10 | H111: 2031 | I111: 2031-10-07 | J111: 30 | K111: 209776.0955 | L111: 0 | M111: 0 | N111: 0 | O111: 0 | P111: =IF(OR(D111="PG",D111=0),0,E111*((1+$I$8)^-SUMIF(D$35:D111,"PP",J$35:J111))) -> 0.5916477619 | Q111: 719.4806415 | R111: 1408.443021 | S111: 1349.705715 | T111: 58.73730673 | U111: 85 | V111: 0 | W111: 2127.923663 | X111: 2212.923663 | Y111: 209056.6148 | AA111: 2212.923663 | AB111: 2031-10-07 | AC111: 209776.0955 | AD111: 719.4806415 | AE111: 1349.705715 | AF111: 58.73730673 | AG111: 85 | AH111: 0 | AI111: 2212.923663 | AK111: =IF(OR(D111="PG",D111=0),0,E111*((1+$I$8)^-SUMIF(D$50:D111,"PP",J$50:J111))) -> 0.6564550226 | AL111: 30 | AM111: 0.00643403011 | AN111: 0.00028 | AO111: =1/(1+$R$10)^SUM($AL$35:AL111) -> 0.5916477619 | AP111: 321189.6106 | AQ111: -1152.481928 | AR111: 2066.543626 | AS111: 89.93309097 | AT111: 1003.994789 | AU111: 85 | AV111: 1088.994789 | AW111: 322342.0925
C112: 78 | D112: PP | E112: =IF(Deudas_fx!$I$24=2,IF(OR(G112=8,G112=1),Deudas_fx!$I$24,IF(D112="Pg",0,1)),IF(D112="PG",0,1)) -> 1 | F112: 7 | G112: 11 | H112: 2031 | I112: 2031-11-07 | J112: 31 | K112: 209056.6148 | L112: 0 | M112: 0 | N112: 0 | O112: 0 | P112: =IF(OR(D112="PG",D112=0),0,E112*((1+$I$8)^-SUMIF(D$35:D112,"PP",J$35:J112))) -> 0.5875708394 | Q112: 677.3754384 | R112: 1450.548224 | S112: 1390.061177 | T112: 60.48704722 | U112: 85 | V112: 0 | W112: 2127.923663 | X112: 2212.923663 | Y112: 208379.2394 | AA112: 2212.923663 | AB112: 2031-11-07 | AC112: 209056.6148 | AD112: 677.3754384 | AE112: 1390.061177 | AF112: 60.48704722 | AG112: 85 | AH112: 0 | AI112: 2212.923663 | AK112: =IF(OR(D112="PG",D112=0),0,E112*((1+$I$8)^-SUMIF(D$50:D112,"PP",J$50:J112))) -> 0.6519315268 | AL112: 31 | AM112: 0.006649209251 | AN112: 0.0002893333333 | AO112: =1/(1+$R$10)^SUM($AL$35:AL112) -> 0.5875708394 | AP112: 322342.0925 | AQ112: -1232.589547 | AR112: 2143.320024 | AS112: 93.26431211 | AT112: 1003.994789 | AU112: 85 | AV112: 1088.994789 | AW112: 323574.6821
C113: 79 | D113: PP | E113: =IF(Deudas_fx!$I$24=2,IF(OR(G113=8,G113=1),Deudas_fx!$I$24,IF(D113="Pg",0,1)),IF(D113="PG",0,1)) -> 1 | F113: 7 | G113: 12 | H113: 2031 | I113: 2031-12-07 | J113: 30 | K113: 208379.2394 | L113: 0 | M113: 0 | N113: 0 | O113: 0 | P113: =IF(OR(D113="PG",D113=0),0,E113*((1+$I$8)^-SUMIF(D$35:D113,"PP",J$35:J113))) -> 0.5836521811 | Q113: 728.8591753 | R113: 1399.064488 | S113: 1340.718301 | T113: 58.34618703 | U113: 85 | V113: 0 | W113: 2127.923663 | X113: 2212.923663 | Y113: 207650.3802 | AA113: 2212.923663 | AB113: 2031-12-07 | AC113: 208379.2394 | AD113: 728.8591753 | AE113: 1340.718301 | AF113: 58.34618703 | AG113: 85 | AH113: 0 | AI113: 2212.923663 | AK113: =IF(OR(D113="PG",D113=0),0,E113*((1+$I$8)^-SUMIF(D$50:D113,"PP",J$50:J113))) -> 0.6475836308 | AL113: 30 | AM113: 0.00643403011 | AN113: 0.00028 | AO113: =1/(1+$R$10)^SUM($AL$35:AL113) -> 0.5836521811 | AP113: 323574.6821 | AQ113: -1168.49537 | AR113: 2081.889247 | AS113: 90.60091098 | AT113: 1003.994789 | AU113: 85 | AV113: 1088.994789 | AW113: 324743.1775
C114: 80 | D114: PP | E114: =IF(Deudas_fx!$I$24=2,IF(OR(G114=8,G114=1),Deudas_fx!$I$24,IF(D114="Pg",0,1)),IF(D114="PG",0,1)) -> 1 | F114: 7 | G114: 1 | H114: 2032 | I114: 2032-01-07 | J114: 31 | K114: 207650.3802 | L114: 0 | M114: 0 | N114: 0 | O114: 0 | P114: =IF(OR(D114="PG",D114=0),0,E114*((1+$I$8)^-SUMIF(D$35:D114,"PP",J$35:J114))) -> 0.5796303546 | Q114: 687.1326571 | R114: 1440.791006 | S114: 1380.710829 | T114: 60.08017667 | U114: 85 | V114: 0 | W114: 2127.923663 | X114: 2212.923663 | Y114: 206963.2476 | AA114: 2212.923663 | AB114: 2032-01-07 | AC114: 207650.3802 | AD114: 687.1326571 | AE114: 1380.710829 | AF114: 60.08017667 | AG114: 85 | AH114: 0 | AI114: 2212.923663 | AK114: =IF(OR(D114="PG",D114=0),0,E114*((1+$I$8)^-SUMIF(D$50:D114,"PP",J$50:J114))) -> 0.6431212658 | AL114: 31 | AM114: 0.006649209251 | AN114: 0.0002893333333 | AO114: =1/(1+$R$10)^SUM($AL$35:AL114) -> 0.5796303546 | AP114: 324743.1775 | AQ114: -1249.249577 | AR114: 2159.28534 | AS114: 93.95902601 | AT114: 1003.994789 | AU114: 85 | AV114: 1088.994789 | AW114: 325992.427
C115: 81 | D115: PP | E115: =IF(Deudas_fx!$I$24=2,IF(OR(G115=8,G115=1),Deudas_fx!$I$24,IF(D115="Pg",0,1)),IF(D115="PG",0,1)) -> 1 | F115: 7 | G115: 2 | H115: 2032 | I115: 2032-02-07 | J115: 31 | K115: 206963.2476 | L115: 0 | M115: 0 | N115: 0 | O115: 0 | P115: =IF(OR(D115="PG",D115=0),0,E115*((1+$I$8)^-SUMIF(D$35:D115,"PP",J$35:J115))) -> 0.5756362416 | Q115: 691.9003563 | R115: 1436.023307 | S115: 1376.14194 | T115: 59.88136629 | U115: 85 | V115: 0 | W115: 2127.923663 | X115: 2212.923663 | Y115: 206271.3472 | AA115: 2212.923663 | AB115: 2032-02-07 | AC115: 206963.2476 | AD115: 691.9003563 | AE115: 1376.14194 | AF115: 59.88136629 | AG115: 85 | AH115: 0 | AI115: 2212.923663 | AK115: =IF(OR(D115="PG",D115=0),0,E115*((1+$I$8)^-SUMIF(D$50:D115,"PP",J$50:J115))) -> 0.6386896501 | AL115: 31 | AM115: 0.006649209251 | AN115: 0.0002893333333 | AO115: =1/(1+$R$10)^SUM($AL$35:AL115) -> 0.5756362416 | AP115: 325992.427 | AQ115: -1257.917548 | AR115: 2167.591862 | AS115: 94.32047555 | AT115: 1003.994789 | AU115: 85 | AV115: 1088.994789 | AW115: 327250.3446
C116: 82 | D116: PP | E116: =IF(Deudas_fx!$I$24=2,IF(OR(G116=8,G116=1),Deudas_fx!$I$24,IF(D116="Pg",0,1)),IF(D116="PG",0,1)) -> 1 | F116: 7 | G116: 3 | H116: 2032 | I116: 2032-03-07 | J116: 29 | K116: 206271.3472 | L116: 0 | M116: 0 | N116: 0 | O116: 0 | P116: =IF(OR(D116="PG",D116=0),0,E116*((1+$I$8)^-SUMIF(D$35:D116,"PP",J$35:J116))) -> 0.5719247335 | Q116: 789.3126297 | R116: 1338.611033 | S116: 1282.780255 | T116: 55.83077797 | U116: 85 | V116: 0 | W116: 2127.923663 | X116: 2212.923663 | Y116: 205482.0346 | AA116: 2212.923663 | AB116: 2032-03-07 | AC116: 206271.3472 | AD116: 789.3126297 | AE116: 1282.780255 | AF116: 55.83077797 | AG116: 85 | AH116: 0 | AI116: 2212.923663 | AK116: =IF(OR(D116="PG",D116=0),0,E116*((1+$I$8)^-SUMIF(D$50:D116,"PP",J$50:J116))) -> 0.6345715949 | AL116: 29 | AM116: 0.006218896965 | AN116: 0.0002706666667 | AO116: =1/(1+$R$10)^SUM($AL$35:AL116) -> 0.5719247335 | AP116: 327250.3446 | AQ116: -1119.717146 | AR116: 2035.136175 | AS116: 88.57575993 | AT116: 1003.994789 | AU116: 85 | AV116: 1088.994789 | AW116: 328370.0617
C117: 83 | D117: PP | E117: =IF(Deudas_fx!$I$24=2,IF(OR(G117=8,G117=1),Deudas_fx!$I$24,IF(D117="Pg",0,1)),IF(D117="PG",0,1)) -> 1 | F117: 7 | G117: 4 | H117: 2032 | I117: 2032-04-07 | J117: 31 | K117: 205482.0346 | L117: 0 | M117: 0 | N117: 0 | O117: 0 | P117: =IF(OR(D117="PG",D117=0),0,E117*((1+$I$8)^-SUMIF(D$35:D117,"PP",J$35:J117))) -> 0.5679837184 | Q117: 702.1778157 | R117: 1425.745847 | S117: 1366.293045 | T117: 59.452802 | U117: 85 | V117: 0 | W117: 2127.923663 | X117: 2212.923663 | Y117: 204779.8568 | AA117: 2212.923663 | AB117: 2032-04-07 | AC117: 205482.0346 | AD117: 702.1778157 | AE117: 1366.293045 | AF117: 59.452802 | AG117: 85 | AH117: 0 | AI117: 2212.923663 | AK117: =IF(OR(D117="PG",D117=0),0,E117*((1+$I$8)^-SUMIF(D$50:D117,"PP",J$50:J117))) -> 0.6301988932 | AL117: 31 | AM117: 0.006649209251 | AN117: 0.0002893333333 | AO117: =1/(1+$R$10)^SUM($AL$35:AL117) -> 0.5679837184 | AP117: 328370.0617 | AQ117: -1274.414868 | AR117: 2183.401252 | AS117: 95.00840453 | AT117: 1003.994789 | AU117: 85 | AV117: 1088.994789 | AW117: 329644.4766
C118: 84 | D118: PP | E118: =IF(Deudas_fx!$I$24=2,IF(OR(G118=8,G118=1),Deudas_fx!$I$24,IF(D118="Pg",0,1)),IF(D118="PG",0,1)) -> 1 | F118: 7 | G118: 5 | H118: 2032 | I118: 2032-05-07 | J118: 30 | K118: 204779.8568 | L118: 0 | M118: 0 | N118: 0 | O118: 0 | P118: =IF(OR(D118="PG",D118=0),0,E118*((1+$I$8)^-SUMIF(D$35:D118,"PP",J$35:J118))) -> 0.5641956915 | Q118: 753.0255387 | R118: 1374.898124 | S118: 1317.559764 | T118: 57.33835989 | U118: 85 | V118: 0 | W118: 2127.923663 | X118: 2212.923663 | Y118: 204026.8312 | AA118: 2212.923663 | AB118: 2032-05-07 | AC118: 204779.8568 | AD118: 753.0255387 | AE118: 1317.559764 | AF118: 57.33835989 | AG118: 85 | AH118: 0 | AI118: 2212.923663 | AK118: =IF(OR(D118="PG",D118=0),0,E118*((1+$I$8)^-SUMIF(D$50:D118,"PP",J$50:J118))) -> 0.6259959376 | AL118: 30 | AM118: 0.00643403011 | AN118: 0.00028 | AO118: =1/(1+$R$10)^SUM($AL$35:AL118) -> 0.5641956915 | AP118: 329644.4766 | AQ118: -1209.248153 | AR118: 2120.942488 | AS118: 92.30045345 | AT118: 1003.994789 | AU118: 85 | AV118: 1088.994789 | AW118: 330853.7248
C119: 85 | D119: PP | E119: =IF(Deudas_fx!$I$24=2,IF(OR(G119=8,G119=1),Deudas_fx!$I$24,IF(D119="Pg",0,1)),IF(D119="PG",0,1)) -> 1 | F119: 7 | G119: 6 | H119: 2032 | I119: 2032-06-07 | J119: 31 | K119: 204026.8312 | L119: 0 | M119: 0 | N119: 0 | O119: 0 | P119: =IF(OR(D119="PG",D119=0),0,E119*((1+$I$8)^-SUMIF(D$35:D119,"PP",J$35:J119))) -> 0.5603079356 | Q119: 712.2748062 | R119: 1415.648857 | S119: 1356.617094 | T119: 59.03176316 | U119: 85 | V119: 0 | W119: 2127.923663 | X119: 2212.923663 | Y119: 203314.5564 | AA119: 2212.923663 | AB119: 2032-06-07 | AC119: 204026.8312 | AD119: 712.2748062 | AE119: 1356.617094 | AF119: 59.03176316 | AG119: 85 | AH119: 0 | AI119: 2212.923663 | AK119: =IF(OR(D119="PG",D119=0),0,E119*((1+$I$8)^-SUMIF(D$50:D119,"PP",J$50:J119))) -> 0.621682329 | AL119: 31 | AM119: 0.006649209251 | AN119: 0.0002893333333 | AO119: =1/(1+$R$10)^SUM($AL$35:AL119) -> 0.5603079356 | AP119: 330853.7248 | AQ119: -1291.64787 | AR119: 2199.915647 | AS119: 95.72701103 | AT119: 1003.994789 | AU119: 85 | AV119: 1088.994789 | AW119: 332145.3726
C120: 86 | D120: PP | E120: =IF(Deudas_fx!$I$24=2,IF(OR(G120=8,G120=1),Deudas_fx!$I$24,IF(D120="Pg",0,1)),IF(D120="PG",0,1)) -> 1 | F120: 7 | G120: 7 | H120: 2032 | I120: 2032-07-07 | J120: 30 | K120: 203314.5564 | L120: 0 | M120: 0 | N120: 0 | O120: 0 | P120: =IF(OR(D120="PG",D120=0),0,E120*((1+$I$8)^-SUMIF(D$35:D120,"PP",J$35:J120))) -> 0.5565711005 | Q120: 762.8636093 | R120: 1365.060054 | S120: 1308.131978 | T120: 56.92807579 | U120: 85 | V120: 0 | W120: 2127.923663 | X120: 2212.923663 | Y120: 202551.6928 | AA120: 2212.923663 | AB120: 2032-07-07 | AC120: 203314.5564 | AD120: 762.8636093 | AE120: 1308.131978 | AF120: 56.92807579 | AG120: 85 | AH120: 0 | AI120: 2212.923663 | AK120: =IF(OR(D120="PG",D120=0),0,E120*((1+$I$8)^-SUMIF(D$50:D120,"PP",J$50:J120))) -> 0.6175361726 | AL120: 30 | AM120: 0.00643403011 | AN120: 0.00028 | AO120: =1/(1+$R$10)^SUM($AL$35:AL120) -> 0.5565711005 | AP120: 332145.3726 | AQ120: -1226.039244 | AR120: 2137.033328 | AS120: 93.00070433 | AT120: 1003.994789 | AU120: 85 | AV120: 1088.994789 | AW120: 333371.4119
C121: 87 | D121: PP | E121: =IF(Deudas_fx!$I$24=2,IF(OR(G121=8,G121=1),Deudas_fx!$I$24,IF(D121="Pg",0,1)),IF(D121="PG",0,1)) -> 1 | F121: 7 | G121: 8 | H121: 2032 | I121: 2032-08-07 | J121: 31 | K121: 202551.6928 | L121: 0 | M121: 0 | N121: 0 | O121: 0 | P121: =IF(OR(D121="PG",D121=0),0,E121*((1+$I$8)^-SUMIF(D$35:D121,"PP",J$35:J121))) -> 0.5527358841 | Q121: 722.5101169 | R121: 1405.413546 | S121: 1346.80859 | T121: 58.60495645 | U121: 85 | V121: 0 | W121: 2127.923663 | X121: 2212.923663 | Y121: 201829.1827 | AA121: 2212.923663 | AB121: 2032-08-07 | AC121: 202551.6928 | AD121: 722.5101169 | AE121: 1346.80859 | AF121: 58.60495645 | AG121: 85 | AH121: 0 | AI121: 2212.923663 | AK121: =IF(OR(D121="PG",D121=0),0,E121*((1+$I$8)^-SUMIF(D$50:D121,"PP",J$50:J121))) -> 0.6132808585 | AL121: 31 | AM121: 0.006649209251 | AN121: 0.0002893333333 | AO121: =1/(1+$R$10)^SUM($AL$35:AL121) -> 0.5527358841 | AP121: 333371.4119 | AQ121: -1309.116949 | AR121: 2216.656276 | AS121: 96.45546183 | AT121: 1003.994789 | AU121: 85 | AV121: 1088.994789 | AW121: 334680.5288
C122: 88 | D122: PP | E122: =IF(Deudas_fx!$I$24=2,IF(OR(G122=8,G122=1),Deudas_fx!$I$24,IF(D122="Pg",0,1)),IF(D122="PG",0,1)) -> 1 | F122: 7 | G122: 9 | H122: 2032 | I122: 2032-09-07 | J122: 31 | K122: 201829.1827 | L122: 0 | M122: 0 | N122: 0 | O122: 0 | P122: =IF(OR(D122="PG",D122=0),0,E122*((1+$I$8)^-SUMIF(D$35:D122,"PP",J$35:J122))) -> 0.5489270954 | Q122: 727.5232841 | R122: 1400.400379 | S122: 1342.004469 | T122: 58.39591019 | U122: 85 | V122: 0 | W122: 2127.923663 | X122: 2212.923663 | Y122: 201101.6594 | AA122: 2212.923663 | AB122: 2032-09-07 | AC122: 201829.1827 | AD122: 727.5232841 | AE122: 1342.004469 | AF122: 58.39591019 | AG122: 85 | AH122: 0 | AI122: 2212.923663 | AK122: =IF(OR(D122="PG",D122=0),0,E122*((1+$I$8)^-SUMIF(D$50:D122,"PP",J$50:J122))) -> 0.6090548668 | AL122: 31 | AM122: 0.006649209251 | AN122: 0.0002893333333 | AO122: =1/(1+$R$10)^SUM($AL$35:AL122) -> 0.5489270954 | AP122: 334680.5288 | AQ122: -1318.200313 | AR122: 2225.360868 | AS122: 96.834233 | AT122: 1003.994789 | AU122: 85 | AV122: 1088.994789 | AW122: 335998.7291
C123: 89 | D123: PP | E123: =IF(Deudas_fx!$I$24=2,IF(OR(G123=8,G123=1),Deudas_fx!$I$24,IF(D123="Pg",0,1)),IF(D123="PG",0,1)) -> 1 | F123: 7 | G123: 10 | H123: 2032 | I123: 2032-10-07 | J123: 30 | K123: 201101.6594 | L123: 0 | M123: 0 | N123: 0 | O123: 0 | P123: =IF(OR(D123="PG",D123=0),0,E123*((1+$I$8)^-SUMIF(D$35:D123,"PP",J$35:J123))) -> 0.545266162 | Q123: 777.7210665 | R123: 1350.202596 | S123: 1293.894132 | T123: 56.30846463 | U123: 85 | V123: 0 | W123: 2127.923663 | X123: 2212.923663 | Y123: 200323.9383 | AA123: 2212.923663 | AB123: 2032-10-07 | AC123: 201101.6594 | AD123: 777.7210665 | AE123: 1293.894132 | AF123: 56.30846463 | AG123: 85 | AH123: 0 | AI123: 2212.923663 | AK123: =IF(OR(D123="PG",D123=0),0,E123*((1+$I$8)^-SUMIF(D$50:D123,"PP",J$50:J123))) -> 0.6049929261 | AL123: 30 | AM123: 0.00643403011 | AN123: 0.00028 | AO123: =1/(1+$R$10)^SUM($AL$35:AL123) -> 0.545266162 | AP123: 335998.7291 | AQ123: -1251.910796 | AR123: 2161.82594 | AS123: 94.07964415 | AT123: 1003.994789 | AU123: 85 | AV123: 1088.994789 | AW123: 337250.6399
C124: 90 | D124: PP | E124: =IF(Deudas_fx!$I$24=2,IF(OR(G124=8,G124=1),Deudas_fx!$I$24,IF(D124="Pg",0,1)),IF(D124="PG",0,1)) -> 1 | F124: 7 | G124: 11 | H124: 2032 | I124: 2032-11-07 | J124: 31 | K124: 200323.9383 | L124: 0 | M124: 0 | N124: 0 | O124: 0 | P124: =IF(OR(D124="PG",D124=0),0,E124*((1+$I$8)^-SUMIF(D$35:D124,"PP",J$35:J124))) -> 0.5415088455 | Q124: 737.9674861 | R124: 1389.956177 | S124: 1331.995784 | T124: 57.96039282 | U124: 85 | V124: 0 | W124: 2127.923663 | X124: 2212.923663 | Y124: 199585.9708 | AA124: 2212.923663 | AB124: 2032-11-07 | AC124: 200323.9383 | AD124: 737.9674861 | AE124: 1331.995784 | AF124: 57.96039282 | AG124: 85 | AH124: 0 | AI124: 2212.923663 | AK124: =IF(OR(D124="PG",D124=0),0,E124*((1+$I$8)^-SUMIF(D$50:D124,"PP",J$50:J124))) -> 0.6008240449 | AL124: 31 | AM124: 0.006649209251 | AN124: 0.0002893333333 | AO124: =1/(1+$R$10)^SUM($AL$35:AL124) -> 0.5415088455 | AP124: 337250.6399 | AQ124: -1336.033138 | AR124: 2242.450075 | AS124: 97.57785182 | AT124: 1003.994789 | AU124: 85 | AV124: 1088.994789 | AW124: 338586.6731
C125: 91 | D125: PP | E125: =IF(Deudas_fx!$I$24=2,IF(OR(G125=8,G125=1),Deudas_fx!$I$24,IF(D125="Pg",0,1)),IF(D125="PG",0,1)) -> 1 | F125: 7 | G125: 12 | H125: 2032 | I125: 2032-12-07 | J125: 30 | K125: 199585.9708 | L125: 0 | M125: 0 | N125: 0 | O125: 0 | P125: =IF(OR(D125="PG",D125=0),0,E125*((1+$I$8)^-SUMIF(D$35:D125,"PP",J$35:J125))) -> 0.5378973863 | Q125: 787.8974451 | R125: 1340.026218 | S125: 1284.142146 | T125: 55.88407184 | U125: 85 | V125: 0 | W125: 2127.923663 | X125: 2212.923663 | Y125: 198798.0734 | AA125: 2212.923663 | AB125: 2032-12-07 | AC125: 199585.9708 | AD125: 787.8974451 | AE125: 1284.142146 | AF125: 55.88407184 | AG125: 85 | AH125: 0 | AI125: 2212.923663 | AK125: =IF(OR(D125="PG",D125=0),0,E125*((1+$I$8)^-SUMIF(D$50:D125,"PP",J$50:J125))) -> 0.5968169976 | AL125: 30 | AM125: 0.00643403011 | AN125: 0.00028 | AO125: =1/(1+$R$10)^SUM($AL$35:AL125) -> 0.5378973863 | AP125: 338586.6731 | AQ125: -1269.286329 | AR125: 2178.476849 | AS125: 94.80426846 | AT125: 1003.994789 | AU125: 85 | AV125: 1088.994789 | AW125: 339855.9594
C126: 92 | D126: PP | E126: =IF(Deudas_fx!$I$24=2,IF(OR(G126=8,G126=1),Deudas_fx!$I$24,IF(D126="Pg",0,1)),IF(D126="PG",0,1)) -> 1 | F126: 7 | G126: 1 | H126: 2033 | I126: 2033-01-07 | J126: 31 | K126: 198798.0734 | L126: 0 | M126: 0 | N126: 0 | O126: 0 | P126: =IF(OR(D126="PG",D126=0),0,E126*((1+$I$8)^-SUMIF(D$35:D126,"PP",J$35:J126))) -> 0.5341908466 | Q126: 748.5547649 | R126: 1379.368898 | S126: 1321.849989 | T126: 57.51890924 | U126: 85 | V126: 0 | W126: 2127.923663 | X126: 2212.923663 | Y126: 198049.5186 | AA126: 2212.923663 | AB126: 2033-01-07 | AC126: 198798.0734 | AD126: 748.5547649 | AE126: 1321.849989 | AF126: 57.51890924 | AG126: 85 | AH126: 0 | AI126: 2212.923663 | AK126: =IF(OR(D126="PG",D126=0),0,E126*((1+$I$8)^-SUMIF(D$50:D126,"PP",J$50:J126))) -> 0.5927044551 | AL126: 31 | AM126: 0.006649209251 | AN126: 0.0002893333333 | AO126: =1/(1+$R$10)^SUM($AL$35:AL126) -> 0.5341908466 | AP126: 339855.9594 | AQ126: -1354.110258 | AR126: 2259.773389 | AS126: 98.33165758 | AT126: 1003.994789 | AU126: 85 | AV126: 1088.994789 | AW126: 341210.0696
C127: 93 | D127: PP | E127: =IF(Deudas_fx!$I$24=2,IF(OR(G127=8,G127=1),Deudas_fx!$I$24,IF(D127="Pg",0,1)),IF(D127="PG",0,1)) -> 1 | F127: 7 | G127: 2 | H127: 2033 | I127: 2033-02-07 | J127: 31 | K127: 198049.5186 | L127: 0 | M127: 0 | N127: 0 | O127: 0 | P127: =IF(OR(D127="PG",D127=0),0,E127*((1+$I$8)^-SUMIF(D$35:D127,"PP",J$35:J127))) -> 0.5305098479 | Q127: 753.748644 | R127: 1374.175019 | S127: 1316.872691 | T127: 57.30232739 | U127: 85 | V127: 0 | W127: 2127.923663 | X127: 2212.923663 | Y127: 197295.77 | AA127: 2212.923663 | AB127: 2033-02-07 | AC127: 198049.5186 | AD127: 753.748644 | AE127: 1316.872691 | AF127: 57.30232739 | AG127: 85 | AH127: 0 | AI127: 2212.923663 | AK127: =IF(OR(D127="PG",D127=0),0,E127*((1+$I$8)^-SUMIF(D$50:D127,"PP",J$50:J127))) -> 0.5886202512 | AL127: 31 | AM127: 0.006649209251 | AN127: 0.0002893333333 | AO127: =1/(1+$R$10)^SUM($AL$35:AL127) -> 0.5305098479 | AP127: 341210.0696 | AQ127: -1363.50581 | AR127: 2268.777152 | AS127: 98.72344682 | AT127: 1003.994789 | AU127: 85 | AV127: 1088.994789 | AW127: 342573.5755
C128: 94 | D128: PP | E128: =IF(Deudas_fx!$I$24=2,IF(OR(G128=8,G128=1),Deudas_fx!$I$24,IF(D128="Pg",0,1)),IF(D128="PG",0,1)) -> 1 | F128: 7 | G128: 3 | H128: 2033 | I128: 2033-03-07 | J128: 28 | K128: 197295.77 | L128: 0 | M128: 0 | N128: 0 | O128: 0 | P128: =IF(OR(D128="PG",D128=0),0,E128*((1+$I$8)^-SUMIF(D$35:D128,"PP",J$35:J128))) -> 0.5272068815 | Q128: 891.8374228 | R128: 1236.08624 | S128: 1184.526279 | T128: 51.55996122 | U128: 85 | V128: 0 | W128: 2127.923663 | X128: 2212.923663 | Y128: 196403.9326 | AA128: 2212.923663 | AB128: 2033-03-07 | AC128: 197295.77 | AD128: 891.8374228 | AE128: 1184.526279 | AF128: 51.55996122 | AG128: 85 | AH128: 0 | AI128: 2212.923663 | AK128: =IF(OR(D128="PG",D128=0),0,E128*((1+$I$8)^-SUMIF(D$50:D128,"PP",J$50:J128))) -> 0.5849554881 | AL128: 28 | AM128: 0.006003809807 | AN128: 0.0002613333333 | AO128: =1/(1+$R$10)^SUM($AL$35:AL128) -> 0.5272068815 | AP128: 342573.5755 | AQ128: -1142.277698 | AR128: 2056.746592 | AS128: 89.52589438 | AT128: 1003.994789 | AU128: 85 | AV128: 1088.994789 | AW128: 343715.8532
C129: 95 | D129: PP | E129: =IF(Deudas_fx!$I$24=2,IF(OR(G129=8,G129=1),Deudas_fx!$I$24,IF(D129="Pg",0,1)),IF(D129="PG",0,1)) -> 1 | F129: 7 | G129: 4 | H129: 2033 | I129: 2033-04-07 | J129: 31 | K129: 196403.9326 | L129: 0 | M129: 0 | N129: 0 | O129: 0 | P129: =IF(OR(D129="PG",D129=0),0,E129*((1+$I$8)^-SUMIF(D$35:D129,"PP",J$35:J129))) -> 0.5235740078 | Q129: 765.166613 | R129: 1362.75705 | S129: 1305.930845 | T129: 56.82620449 | U129: 85 | V129: 0 | W129: 2127.923663 | X129: 2212.923663 | Y129: 195638.766 | AA129: 2212.923663 | AB129: 2033-04-07 | AC129: 196403.9326 | AD129: 765.166613 | AE129: 1305.930845 | AF129: 56.82620449 | AG129: 85 | AH129: 0 | AI129: 2212.923663 | AK129: =IF(OR(D129="PG",D129=0),0,E129*((1+$I$8)^-SUMIF(D$50:D129,"PP",J$50:J129))) -> 0.5809246807 | AL129: 31 | AM129: 0.006649209251 | AN129: 0.0002893333333 | AO129: =1/(1+$R$10)^SUM($AL$35:AL129) -> 0.5235740078 | AP129: 343715.8532 | AQ129: -1380.892295 | AR129: 2285.43863 | AS129: 99.44845351 | AT129: 1003.994789 | AU129: 85 | AV129: 1088.994789 | AW129: 345096.7455
C130: 96 | D130: PP | E130: =IF(Deudas_fx!$I$24=2,IF(OR(G130=8,G130=1),Deudas_fx!$I$24,IF(D130="Pg",0,1)),IF(D130="PG",0,1)) -> 1 | F130: 7 | G130: 5 | H130: 2033 | I130: 2033-05-07 | J130: 30 | K130: 195638.766 | L130: 0 | M130: 0 | N130: 0 | O130: 0 | P130: =IF(OR(D130="PG",D130=0),0,E130*((1+$I$8)^-SUMIF(D$35:D130,"PP",J$35:J130))) -> 0.5200821606 | Q130: 814.3990975 | R130: 1313.524565 | S130: 1258.745711 | T130: 54.77885447 | U130: 85 | V130: 0 | W130: 2127.923663 | X130: 2212.923663 | Y130: 194824.3669 | AA130: 2212.923663 | AB130: 2033-05-07 | AC130: 195638.766 | AD130: 814.3990975 | AE130: 1258.745711 | AF130: 54.77885447 | AG130: 85 | AH130: 0 | AI130: 2212.923663 | AK130: =IF(OR(D130="PG",D130=0),0,E130*((1+$I$8)^-SUMIF(D$50:D130,"PP",J$50:J130))) -> 0.5770503473 | AL130: 30 | AM130: 0.00643403011 | AN130: 0.00028 | AO130: =1/(1+$R$10)^SUM($AL$35:AL130) -> 0.5200821606 | AP130: 345096.7455 | AQ130: -1312.995151 | AR130: 2220.362851 | AS130: 96.62708872 | AT130: 1003.994789 | AU130: 85 | AV130: 1088.994789 | AW130: 346409.7406
C131: 97 | D131: PP | E131: =IF(Deudas_fx!$I$24=2,IF(OR(G131=8,G131=1),Deudas_fx!$I$24,IF(D131="Pg",0,1)),IF(D131="PG",0,1)) -> 1 | F131: 7 | G131: 6 | H131: 2033 | I131: 2033-06-07 | J131: 31 | K131: 194824.3669 | L131: 0 | M131: 0 | N131: 0 | O131: 0 | P131: =IF(OR(D131="PG",D131=0),0,E131*((1+$I$8)^-SUMIF(D$35:D131,"PP",J$35:J131))) -> 0.5164983819 | Q131: 776.126497 | R131: 1351.797166 | S131: 1295.427982 | T131: 56.36918348 | U131: 85 | V131: 0 | W131: 2127.923663 | X131: 2212.923663 | Y131: 194048.2404 | AA131: 2212.923663 | AB131: 2033-06-07 | AC131: 194824.3669 | AD131: 776.126497 | AE131: 1295.427982 | AF131: 56.36918348 | AG131: 85 | AH131: 0 | AI131: 2212.923663 | AK131: =IF(OR(D131="PG",D131=0),0,E131*((1+$I$8)^-SUMIF(D$50:D131,"PP",J$50:J131))) -> 0.5730740127 | AL131: 31 | AM131: 0.006649209251 | AN131: 0.0002893333333 | AO131: =1/(1+$R$10)^SUM($AL$35:AL131) -> 0.5164983819 | AP131: 346409.7406 | AQ131: -1399.583948 | AR131: 2303.350852 | AS131: 100.2278849 | AT131: 1003.994789 | AU131: 85 | AV131: 1088.994789 | AW131: 347809.3245
C132: 98 | D132: PP | E132: =IF(Deudas_fx!$I$24=2,IF(OR(G132=8,G132=1),Deudas_fx!$I$24,IF(D132="Pg",0,1)),IF(D132="PG",0,1)) -> 1 | F132: 7 | G132: 7 | H132: 2033 | I132: 2033-07-07 | J132: 30 | K132: 194048.2404 | L132: 0 | M132: 0 | N132: 0 | O132: 0 | P132: =IF(OR(D132="PG",D132=0),0,E132*((1+$I$8)^-SUMIF(D$35:D132,"PP",J$35:J132))) -> 0.5130537238 | Q132: 825.0779343 | R132: 1302.845729 | S132: 1248.512221 | T132: 54.3335073 | U132: 85 | V132: 0 | W132: 2127.923663 | X132: 2212.923663 | Y132: 193223.1624 | AA132: 2212.923663 | AB132: 2033-07-07 | AC132: 194048.2404 | AD132: 825.0779343 | AE132: 1248.512221 | AF132: 54.3335073 | AG132: 85 | AH132: 0 | AI132: 2212.923663 | AK132: =IF(OR(D132="PG",D132=0),0,E132*((1+$I$8)^-SUMIF(D$50:D132,"PP",J$50:J132))) -> 0.5692520373 | AL132: 30 | AM132: 0.00643403011 | AN132: 0.00028 | AO132: =1/(1+$R$10)^SUM($AL$35:AL132) -> 0.5130537238 | AP132: 347809.3245 | AQ132: -1331.207489 | AR132: 2237.815667 | AS132: 97.38661087 | AT132: 1003.994789 | AU132: 85 | AV132: 1088.994789 | AW132: 349140.532
C133: 99 | D133: PP | E133: =IF(Deudas_fx!$I$24=2,IF(OR(G133=8,G133=1),Deudas_fx!$I$24,IF(D133="Pg",0,1)),IF(D133="PG",0,1)) -> 1 | F133: 7 | G133: 8 | H133: 2033 | I133: 2033-08-07 | J133: 31 | K133: 193223.1624 | L133: 0 | M133: 0 | N133: 0 | O133: 0 | P133: =IF(OR(D133="PG",D133=0),0,E133*((1+$I$8)^-SUMIF(D$35:D133,"PP",J$35:J133))) -> 0.5095183766 | Q133: 787.2365221 | R133: 1340.687141 | S133: 1284.781239 | T133: 55.90590166 | U133: 85 | V133: 0 | W133: 2127.923663 | X133: 2212.923663 | Y133: 192435.9259 | AA133: 2212.923663 | AB133: 2033-08-07 | AC133: 193223.1624 | AD133: 787.2365221 | AE133: 1284.781239 | AF133: 55.90590166 | AG133: 85 | AH133: 0 | AI133: 2212.923663 | AK133: =IF(OR(D133="PG",D133=0),0,E133*((1+$I$8)^-SUMIF(D$50:D133,"PP",J$50:J133))) -> 0.5653294392 | AL133: 31 | AM133: 0.006649209251 | AN133: 0.0002893333333 | AO133: =1/(1+$R$10)^SUM($AL$35:AL133) -> 0.5095183766 | AP133: 349140.532 | AQ133: -1418.531661 | AR133: 2321.508455 | AS133: 101.0179939 | AT133: 1003.994789 | AU133: 85 | AV133: 1088.994789 | AW133: 350559.0637
C134: 100 | D134: PP | E134: =IF(Deudas_fx!$I$24=2,IF(OR(G134=8,G134=1),Deudas_fx!$I$24,IF(D134="Pg",0,1)),IF(D134="PG",0,1)) -> 1 | F134: 7 | G134: 9 | H134: 2033 | I134: 2033-09-07 | J134: 31 | K134: 192435.9259 | L134: 0 | M134: 0 | N134: 0 | O134: 0 | P134: =IF(OR(D134="PG",D134=0),0,E134*((1+$I$8)^-SUMIF(D$35:D134,"PP",J$35:J134))) -> 0.5060073908 | Q134: 792.6987962 | R134: 1335.224867 | S134: 1279.546739 | T134: 55.67812789 | U134: 85 | V134: 0 | W134: 2127.923663 | X134: 2212.923663 | Y134: 191643.2271 | AA134: 2212.923663 | AB134: 2033-09-07 | AC134: 192435.9259 | AD134: 792.6987962 | AE134: 1279.546739 | AF134: 55.67812789 | AG134: 85 | AH134: 0 | AI134: 2212.923663 | AK134: =IF(OR(D134="PG",D134=0),0,E134*((1+$I$8)^-SUMIF(D$50:D134,"PP",J$50:J134))) -> 0.5614338709 | AL134: 31 | AM134: 0.006649209251 | AN134: 0.0002893333333 | AO134: =1/(1+$R$10)^SUM($AL$35:AL134) -> 0.5060073908 | AP134: 350559.0637 | AQ134: -1428.374203 | AR134: 2330.940569 | AS134: 101.4284224 | AT134: 1003.994789 | AU134: 85 | AV134: 1088.994789 | AW134: 351987.4379
